{"text_format":"1","workbook":"xlsx","n_sheets":5,"sheets":["Directions ","ECD Input and Calculations","Lab Input and Calculations","Summary ","Reference Tables"],"not_rendered":{"charts":0,"images":0,"macros":0,"external_links":0,"defined_names":7,"comments":5,"pivot_tables":0},"unopened":[],"bounds":{"document_bytes":16777216,"sheet_cells":100000,"rows_first":2000,"rows_last":500,"rows_between":2000,"halvings":0,"cell_chars":16384,"cell_head_chars":4096},"cells_cut":0,"cells_raw":0,"read":"whole","date_system":"1900"}

{"sheet":"Directions ","index":0,"n_rows":55,"n_cols":40,"rows_kept":55,"cut":false,"hidden":false,"merged":[[50,0,50,5],[0,0,0,6],[42,0,42,12]]}
["DIRECTIONS"]
[]
[]
[]
[]
[]
[]
[]
[]
[]
[]
[]
[]
[]
[]
[]
[]
[]
[]
[]
[]
[]
[]
[]
[]
[]
[]
[]
[]
[]
[]
[]
[]
[]
[]
[]
[]
[]
[]
[]
[]
["EXAMPLE OF ECD INPUT AND CALCULATION"]
["Hazard criteria weighting factors for algorithm calculations. For more info, refer to the Algorithms section of the LVRA Guide. ",null,null,null,null,null,null,null,null,null,null,null,null,10,3,5,1,1,2,1]
["General Information - Enter general information for each ECD.  ",null,null,null,null,null,null,null,null,null,null,null,null,"Hazard Criteria - Select appropriate criteria for primary hazard associated with each ECD from the drop down. ",null,null,null,null,null,null,"Outputs - These columns are calculated automatically; no data entry in these fields is required. "]
["Contact/ Reviewer","Building","Lab Number","Exposure Control Device","Identification Number","Sash Min Height (in)","Sash Max Height (in)","Hood Width (in)","Hood Depth (in)","Face Velocity (ft/min) ","ECD Details ","Notes","Hazard Description","Exposure Limit","Quantity"," Generation Potential"," Generation Method","Generation Location","Change Dynamics","Housekeeping","Hazard Exposure Limit Rating","Hazard Quantity Rating","Hazard Generation Rate Rating","Hazard Generation Method Rating","Generation Location Rating","Change Dynamics Rating","Housekeeping Rating","Weighted Score","Risk Control Band","Min. Fume Hood Air Flow Requirement (ACH)","Min. ECD Airflow (CFM)","Max. ECD Airflow Air Flow (CFM)"]
["John Doe",1,"LAB0011","Fume Hood",1001,5,28.5,60,30,100,"Manufacturer A - Model 3000 ",null,null,"50-500 ppm or 250-2000 mg/m3","1-500 mL or 1-100 g","<0.5 lpm (high vapor pressure/stirring)","Equipment, constant\nManual, equipment, intermittent\nManual, equipment, constant","Close to capture device","1 change/year","Some clutter",{"$f":"IF(N46=\"\", \"\",VLOOKUP(N46,'Reference Tables'!$B$2:$D$36,3,FALSE))","v":1},{"$f":"IF(O46=\"\", \"\",VLOOKUP(O46,'Reference Tables'!$B$2:$D$36,3,FALSE))","v":2},{"$f":"IF(P46=\"\", \"\",VLOOKUP(P46,'Reference Tables'!$B$2:$D$36,3,FALSE))","v":2},{"$f":"IF(Q46=\"\", \"\",VLOOKUP(Q46,'Reference Tables'!$B$2:$D$36,3,FALSE))","v":3},{"$f":"IF(R46=\"\", \"\",VLOOKUP(R46,'Reference Tables'!$B$2:$D$36,3,FALSE))","v":2},{"$f":"IF(S46=\"\", \"\",VLOOKUP(S46,'Reference Tables'!$B$2:$D$36,3,FALSE))","v":1},{"$f":"IF(T46=\"\", \"\",VLOOKUP(T46,'Reference Tables'!$B$2:$D$36,3,FALSE))","v":1},{"$f":"IF(T46=\"\",\"\", ($N$43*U46)+($O$43*V46)+($P$43*W46)+($Q$43*X46)+($R$43*Y46)+($S$43*Z46)+($T$43*AA46))","v":34},{"$f":"IF(AB46=\"\", \"\", _xlfn.IFS(AND($AB46>='Reference Tables'!$I$2,$AB46<='Reference Tables'!$I$3),0,AND($AB46>='Reference Tables'!$I$4,$AB46<='Reference Tables'!$I$5),1,AND($AB46>='Reference Tables'!$I$6,$AB46<='Reference Tables'!$I$7),2,AND($AB46>='Reference Tables'!$I$8,$AB46<='Reference Tables'!$I$9),3,AND($AB46>'Reference Tables'!$I$10,$AB46<='Reference Tables'!$I$11),4))","v":2},{"$f":"IF(AC46=\"\", \"\",IF(D46=\"Fume Hood\",VLOOKUP(AC46,'Reference Tables'!$N$2:$O$11,2),\"N/A\"))","v":150},{"$f":"IF(D46=\"Fume Hood\",MAX(((AD46/60)*((F46/12)*(H46/12)*(I46/12))),(((F46/12)*(H46/12))*J46)),\"Enter Value\")","v":208.33333333333334},{"$f":"IF(D46=\"Fume Hood\",((G46/12)*(H46/12))*J46,\"Enter Value\")","v":1187.5}]
[]
[]
[]
["EXAMPLE OF LABORATORY INPUT AND CALCULATION"]
["Hazard criteria weighting factors for algorithm calculations. For more info, refer to the Algorithms section of the LVRA Guide. ",null,null,null,null,null,2,14,12,1,2,2,1,1,1,3,1]
["General Information  - Enter general information for each lab environment.    ",null,null,null,null,null,"Hazard Criteria - Select appropriate criteria from the drop down.",null,null,null,null,null,null,null,null,null,null,"Outputs - These columns are calculated automatically; no data entry in these fields is required. ",null,null,null,null,null,null,null,null,null,null,null,null,"Suggested Ventilation Rates for Occupied and Unoccupied Modes - A variety of metrics are calculated, based on how your organization quantifies ventilation rates. "]
["Contact/ Reviewer","Building","Lab Area [ft2]","Lab Number","Lab Type ","Chemical Type","Exposure Limit","Quantity"," Generation Potential"," Generation Method","Generation Location","Change Dynamics","Housekeeping","ECD Available?","ECD Appropriate?","Ventilation Effectivness ","Maximum RCB for ECDs in Lab","Hazard Quantity Rating","Hazard Exposure Limit Rating","Hazard Generation Rate Rating","Hazard Generation Method Rating","Generation Location Rating","Change Dynamics Rating","Housekeeping Rating","ECD Availability Rating","ECD Appropriate Rating","Ventilation Effectivness Rating","Maximum ECD Rating","Weighted Score","Lab Risk Control Band","Minimum Air Changes per Hour, Occupied (ACH)","Minimum Air Changes per Hour, Unoccupied (ACH)","Minimum Air Flow per Square Foot, Occupied (CFM/ SF)","Minimum Air Flow per Square Foot, Unoccupied (CFM/ SF)","Minimum Airflow, Occupied  (CFM)","Minimum Airflow, Unoccupied (CFM)","Total ECD Max Air Flow (CFM)","Total ECD Min. Air Flow (CFM)","Recommended Minimum Airflow, Occupied (CFM)","Recommended Maximum Airflow, Unoccupied (CFM)"]
["John Doe",1,500,"LAB0011","Chemical","Hydrochloric Acid","<50 ppm or <300 mg/m3","<1 L or <10 g","<0.1 lpm (evaporation / small # of small containers)","Manual","Low-Middle or High-Middle (not very close)","1 change/month","Some Clutter","Yes","Yes","Moderately effective",{"$f":"_xlfn.MAXIFS(AC46,C46,D54)","v":2},{"$f":"VLOOKUP(H54,'Reference Tables'!$C$2:$D$52,2,FALSE)","v":1},{"$f":"VLOOKUP(G54,'Reference Tables'!$C$2:$D$52,2,FALSE)","v":4},{"$f":"VLOOKUP(I54,'Reference Tables'!$C$2:$D$52,2,FALSE)","v":1},{"$f":"VLOOKUP(J54,'Reference Tables'!$C$2:$D$52,2,FALSE)","v":1},{"$f":"VLOOKUP(K54,'Reference Tables'!$C$2:$D$52,2,FALSE)","v":3},{"$f":"VLOOKUP(L54,'Reference Tables'!$C$2:$D$52,2,FALSE)","v":2},{"$f":"VLOOKUP(M54,'Reference Tables'!$C$2:$D$52,2,FALSE)","v":1},{"$f":"VLOOKUP(N54,'Reference Tables'!$C$2:$D$52,2,FALSE)","v":0},{"$f":"VLOOKUP(O54,'Reference Tables'!$C$2:$D$52,2,FALSE)","v":0},{"$f":"VLOOKUP(P54,'Reference Tables'!$B$2:$D$52,3,FALSE)","v":2},{"$f":"VLOOKUP(Q54,'Reference Tables'!$B$2:$D$52,3,FALSE)","v":2},{"$f":"($F$51*R54)+($G$51*S54)+($H$51*T54)+($I$51*U54)+($J$51*V54)+($K$51*W54)+($L$51*X54)+($M$51*Y54)+($N$51*Z54)","v":43},{"$f":"_xlfn.IFS(AND($AC54>='Reference Tables'!$L$2,$AC54<='Reference Tables'!$L$3),0,AND($AC54>='Reference Tables'!$L$4,$AC54<='Reference Tables'!$L$5),1,AND($AC54>='Reference Tables'!$L$6,$AC54<='Reference Tables'!$L$7),2,AND($AC54>='Reference Tables'!$L$8,$AC54<='Reference Tables'!$L$9),3,AND($AC54>='Reference Tables'!$L$10,$AC54<='Reference Tables'!$L$11),4)","v":1},{"$f":"VLOOKUP(AD54,'Reference Tables'!$Q$3:$S$12,2)","v":4},{"$f":"VLOOKUP(AD54,'Reference Tables'!$Q$3:$S$12,3)","v":2},{"$f":"(AE54*10)/60","v":0.66666666666666663},{"$f":"(AF54*10)/60","v":0.33333333333333331},{"$f":"C54*AG54","v":333.33333333333331},{"$f":"C54*AH54","v":166.66666666666666},{"$f":"IF(D54=\"\",\"\",SUMIF(C46,D54,AF46))","v":1187.5},{"$f":"IF(D54=\"\",\"\",SUMIF(C46,D54,AE46))","v":208.33333333333334},{"$f":"IF(D54=\"\",\"\",MAX(AI54,AL54))","v":333.33333333333331},{"$f":"IF(D54=\"\",\"\",MAX(AJ54,AL54))","v":208.33333333333334}]
[null,null,null,null,null,null,null,null,null,null,null,null,null,null,null,null,null,null,null,null,null,null,null,null,null,null,null,null,null,null,null,null,null,null,null,null,{"$f":"IF(Lab_Inputs[[#This Row],[Lab Number]]=\"\",\"\",SUMIF(ECD_Inputs[Lab Number],Lab_Inputs[[#This Row],[Lab Number]],'ECD Input and Calculations'!$AF$4:$AF$56))","v":""},{"$f":"IF(Lab_Inputs[[#This Row],[Lab Number]]=\"\",\"\",SUMIF(ECD_Inputs[Lab Number],Lab_Inputs[[#This Row],[Lab Number]],'ECD Input and Calculations'!$AE$4:$AE$56))","v":""},{"$f":"IF(Lab_Inputs[[#This Row],[Lab Number]]=\"\",\"\",MAX(Table5[[#This Row],[Minimum Airflow, Occupied  (CFM)]],Table5[[#This Row],[Total ECD Min. Air Flow (CFM)]]))","v":""},{"$f":"IF(Lab_Inputs[[#This Row],[Lab Number]]=\"\",\"\",MAX(Table5[[#This Row],[Minimum Airflow, Unoccupied (CFM)]],Table5[[#This Row],[Total ECD Min. Air Flow (CFM)]]))","v":""}]

{"sheet":"ECD Input and Calculations","index":1,"n_rows":56,"n_cols":32,"rows_kept":56,"cut":false,"hidden":false,"merged":[[0,0,0,12]]}
["Hazard criteria weighting factors for algorithm calculations. For more info, refer to the Algorithms section of the LVRA Guide. ",null,null,null,null,null,null,null,null,null,null,null,null,10,3,5,1,1,2,1]
["General Information - Enter general information for each ECD.  ",null,null,null,null,null,null,null,null,null,null,null,null,"Hazard Criteria - Select appropriate criteria for primary hazard associated with each ECD from the drop down. ",null,null,null,null,null,null,"Outputs - These columns are calculated automatically; no data entry in these fields is required. "]
["Contact/ Reviewer","Building","Lab Number","Exposure Control Device","Identification Number","Sash Min Height (in)","Sash Max Height (in)","Hood Width (in)","Hood Depth (in)","Face Velocity (ft/min) ","ECD Details (Manufacturer, model number, etc.)","Notes","Hazard Description","Exposure Limit","Quantity"," Generation Potential"," Generation Method","Generation Location","Change Dynamics","Housekeeping","Hazard Exposure Limit Rating","Hazard Quantity Rating","Hazard Generation Rate Rating","Hazard Generation Method Rating","Generation Location Rating","Change Dynamics Rating","Housekeeping Rating","Weighted Score","Risk Control Band","Min. Fume Hood Air Flow Requirement (ACH)","Min. ECD Airflow (CFM)","Max. ECD Airflow Air Flow (CFM)"]
[null,null,null,null,null,null,null,null,null,null,null,null,null,null,null,null,null,null,null,null,{"$f":"IF(ECD_Inputs[[#This Row],[Exposure Limit]]=\"\", \"\",VLOOKUP('ECD Input and Calculations'!N4,'Reference Tables'!$B$2:$D$36,3,FALSE))","v":""},{"$f":"IF(ECD_Inputs[[#This Row],[Quantity]]=\"\", \"\",VLOOKUP('ECD Input and Calculations'!O4,'Reference Tables'!$B$2:$D$36,3,FALSE))","v":""},{"$f":"IF(ECD_Inputs[[#This Row],[ Generation Potential]]=\"\", \"\",VLOOKUP('ECD Input and Calculations'!P4,'Reference Tables'!$B$2:$D$36,3,FALSE))","v":""},{"$f":"IF(ECD_Inputs[[#This Row],[ Generation Method]]=\"\", \"\", VLOOKUP('ECD Input and Calculations'!Q4,'Reference Tables'!$B$2:$D$36,3,FALSE))","v":""},{"$f":"IF(ECD_Inputs[[#This Row],[Generation Location]]=\"\", \"\",VLOOKUP('ECD Input and Calculations'!R4,'Reference Tables'!$B$2:$D$36,3,FALSE))","v":""},{"$f":"IF(ECD_Inputs[[#This Row],[Change Dynamics]]=\"\", \"\",VLOOKUP('ECD Input and Calculations'!S4,'Reference Tables'!$B$2:$D$36,3,FALSE))","v":""},{"$f":"IF(ECD_Inputs[[#This Row],[Housekeeping]]=\"\",\"\",VLOOKUP('ECD Input and Calculations'!T4,'Reference Tables'!$B$2:$D$36,3,FALSE))","v":""},{"$f":"IF(Table7[[#This Row],[Housekeeping Rating]]=\"\",\"\", ($M$1*U4)+($N$1*V4)+($O$1*W4)+($P$1*X4)+($Q$1*Y4)+($R$1*Z4)+($S$1*AA4))","v":""},{"$f":"IF(Table7[[#This Row],[Weighted Score]]=\"\", \"\", _xlfn.IFS(AND($AB4>='Reference Tables'!$I$2,'ECD Input and Calculations'!$AB4<='Reference Tables'!$I$3),0,AND('ECD Input and Calculations'!$AB4>='Reference Tables'!$I$4,'ECD Input and Calculations'!$AB4<='Reference Tables'!$I$5),1,AND('ECD Input and Calculations'!$AB4>='Reference Tables'!$I$6,'ECD Input and Calculations'!$AB4<='Reference Tables'!$I$7),2,AND('ECD Input and Calculations'!$AB4>='Reference Tables'!$I$8,'ECD Input and Calculations'!$AB4<='Reference Tables'!$I$9),3,AND('ECD Input and Calculations'!$AB4>='Reference Tables'!$I$10,'ECD Input and Calculations'!$AB4<='Reference Tables'!$I$11),4))","v":""},{"$f":"IF(Table7[[#This Row],[Risk Control Band]]=\"\", \"\",IF(D4=\"Fume Hood\",VLOOKUP(AC4,'Reference Tables'!$N$2:$O$11,2),\"N/A\"))","v":""},{"$f":"IF(ECD_Inputs[[#This Row],[Exposure Control Device]]=\"\",\"\", IF(ECD_Inputs[[#This Row],[Exposure Control Device]]=\"Fume Hood\",MAX(((Table7[[#This Row],[Min. Fume Hood Air Flow Requirement (ACH)]]/60)*((F4/12)*(H4/12)*(I4/12))),(((F4/12)*(H4/12))*ECD_Inputs[[#This Row],[Face Velocity (ft/min) ]])),\"Enter Value Manually\"))","v":""},{"$f":"IF(ECD_Inputs[[#This Row],[Exposure Control Device]]=\"\",\"\", IF(ECD_Inputs[[#This Row],[Exposure Control Device]]=\"Fume Hood\",(G4/12)*(H4/12)*J4,\"Enter Value Manually\"))","v":""}]
[null,null,null,null,null,null,null,null,null,null,null,null,null,null,null,null,null,null,null,null,{"$f":"IF(ECD_Inputs[[#This Row],[Exposure Limit]]=\"\", \"\",VLOOKUP('ECD Input and Calculations'!N5,'Reference Tables'!$B$2:$D$36,3,FALSE))","v":""},{"$f":"IF(ECD_Inputs[[#This Row],[Quantity]]=\"\", \"\",VLOOKUP('ECD Input and Calculations'!O5,'Reference Tables'!$B$2:$D$36,3,FALSE))","v":""},{"$f":"IF(ECD_Inputs[[#This Row],[ Generation Potential]]=\"\", \"\",VLOOKUP('ECD Input and Calculations'!P5,'Reference Tables'!$B$2:$D$36,3,FALSE))","v":""},{"$f":"IF(ECD_Inputs[[#This Row],[ Generation Method]]=\"\", \"\", VLOOKUP('ECD Input and Calculations'!Q5,'Reference Tables'!$B$2:$D$36,3,FALSE))","v":""},{"$f":"IF(ECD_Inputs[[#This Row],[Generation Location]]=\"\", \"\",VLOOKUP('ECD Input and Calculations'!R5,'Reference Tables'!$B$2:$D$36,3,FALSE))","v":""},{"$f":"IF(ECD_Inputs[[#This Row],[Change Dynamics]]=\"\", \"\",VLOOKUP('ECD Input and Calculations'!S5,'Reference Tables'!$B$2:$D$36,3,FALSE))","v":""},{"$f":"IF(ECD_Inputs[[#This Row],[Housekeeping]]=\"\",\"\",VLOOKUP('ECD Input and Calculations'!T5,'Reference Tables'!$B$2:$D$36,3,FALSE))","v":""},{"$f":"IF(Table7[[#This Row],[Housekeeping Rating]]=\"\",\"\", ($M$1*U5)+($N$1*V5)+($O$1*W5)+($P$1*X5)+($Q$1*Y5)+($R$1*Z5)+($S$1*AA5))","v":""},{"$f":"IF(Table7[[#This Row],[Weighted Score]]=\"\", \"\", _xlfn.IFS(AND($AB5>='Reference Tables'!$I$2,'ECD Input and Calculations'!$AB5<='Reference Tables'!$I$3),0,AND('ECD Input and Calculations'!$AB5>='Reference Tables'!$I$4,'ECD Input and Calculations'!$AB5<='Reference Tables'!$I$5),1,AND('ECD Input and Calculations'!$AB5>='Reference Tables'!$I$6,'ECD Input and Calculations'!$AB5<='Reference Tables'!$I$7),2,AND('ECD Input and Calculations'!$AB5>='Reference Tables'!$I$8,'ECD Input and Calculations'!$AB5<='Reference Tables'!$I$9),3,AND('ECD Input and Calculations'!$AB5>='Reference Tables'!$I$10,'ECD Input and Calculations'!$AB5<='Reference Tables'!$I$11),4))","v":""},{"$f":"IF(Table7[[#This Row],[Risk Control Band]]=\"\", \"\",IF(D5=\"Fume Hood\",VLOOKUP(AC5,'Reference Tables'!$N$2:$O$11,2),\"N/A\"))","v":""},{"$f":"IF(ECD_Inputs[[#This Row],[Exposure Control Device]]=\"\",\"\", IF(ECD_Inputs[[#This Row],[Exposure Control Device]]=\"Fume Hood\",MAX(((Table7[[#This Row],[Min. Fume Hood Air Flow Requirement (ACH)]]/60)*((F5/12)*(H5/12)*(I5/12))),(((F5/12)*(H5/12))*ECD_Inputs[[#This Row],[Face Velocity (ft/min) ]])),\"Enter Value Manually\"))","v":""},{"$f":"IF(ECD_Inputs[[#This Row],[Exposure Control Device]]=\"\",\"\", IF(ECD_Inputs[[#This Row],[Exposure Control Device]]=\"Fume Hood\",(G5/12)*(H5/12)*J5,\"Enter Value Manually\"))","v":""}]
[null,null,null,null,null,null,null,null,null,null,null,null,null,null,null,null,null,null,null,null,{"$f":"IF(ECD_Inputs[[#This Row],[Exposure Limit]]=\"\", \"\",VLOOKUP('ECD Input and Calculations'!N6,'Reference Tables'!$B$2:$D$36,3,FALSE))","v":""},{"$f":"IF(ECD_Inputs[[#This Row],[Quantity]]=\"\", \"\",VLOOKUP('ECD Input and Calculations'!O6,'Reference Tables'!$B$2:$D$36,3,FALSE))","v":""},{"$f":"IF(ECD_Inputs[[#This Row],[ Generation Potential]]=\"\", \"\",VLOOKUP('ECD Input and Calculations'!P6,'Reference Tables'!$B$2:$D$36,3,FALSE))","v":""},{"$f":"IF(ECD_Inputs[[#This Row],[ Generation Method]]=\"\", \"\", VLOOKUP('ECD Input and Calculations'!Q6,'Reference Tables'!$B$2:$D$36,3,FALSE))","v":""},{"$f":"IF(ECD_Inputs[[#This Row],[Generation Location]]=\"\", \"\",VLOOKUP('ECD Input and Calculations'!R6,'Reference Tables'!$B$2:$D$36,3,FALSE))","v":""},{"$f":"IF(ECD_Inputs[[#This Row],[Change Dynamics]]=\"\", \"\",VLOOKUP('ECD Input and Calculations'!S6,'Reference Tables'!$B$2:$D$36,3,FALSE))","v":""},{"$f":"IF(ECD_Inputs[[#This Row],[Housekeeping]]=\"\",\"\",VLOOKUP('ECD Input and Calculations'!T6,'Reference Tables'!$B$2:$D$36,3,FALSE))","v":""},{"$f":"IF(Table7[[#This Row],[Housekeeping Rating]]=\"\",\"\", ($M$1*U6)+($N$1*V6)+($O$1*W6)+($P$1*X6)+($Q$1*Y6)+($R$1*Z6)+($S$1*AA6))","v":""},{"$f":"IF(Table7[[#This Row],[Weighted Score]]=\"\", \"\", _xlfn.IFS(AND($AB6>='Reference Tables'!$I$2,'ECD Input and Calculations'!$AB6<='Reference Tables'!$I$3),0,AND('ECD Input and Calculations'!$AB6>='Reference Tables'!$I$4,'ECD Input and Calculations'!$AB6<='Reference Tables'!$I$5),1,AND('ECD Input and Calculations'!$AB6>='Reference Tables'!$I$6,'ECD Input and Calculations'!$AB6<='Reference Tables'!$I$7),2,AND('ECD Input and Calculations'!$AB6>='Reference Tables'!$I$8,'ECD Input and Calculations'!$AB6<='Reference Tables'!$I$9),3,AND('ECD Input and Calculations'!$AB6>='Reference Tables'!$I$10,'ECD Input and Calculations'!$AB6<='Reference Tables'!$I$11),4))","v":""},{"$f":"IF(Table7[[#This Row],[Risk Control Band]]=\"\", \"\",IF(D6=\"Fume Hood\",VLOOKUP(AC6,'Reference Tables'!$N$2:$O$11,2),\"N/A\"))","v":""},{"$f":"IF(ECD_Inputs[[#This Row],[Exposure Control Device]]=\"\",\"\", IF(ECD_Inputs[[#This Row],[Exposure Control Device]]=\"Fume Hood\",MAX(((Table7[[#This Row],[Min. Fume Hood Air Flow Requirement (ACH)]]/60)*((F6/12)*(H6/12)*(I6/12))),(((F6/12)*(H6/12))*ECD_Inputs[[#This Row],[Face Velocity (ft/min) ]])),\"Enter Value Manually\"))","v":""},{"$f":"IF(ECD_Inputs[[#This Row],[Exposure Control Device]]=\"\",\"\", IF(ECD_Inputs[[#This Row],[Exposure Control Device]]=\"Fume Hood\",(G6/12)*(H6/12)*J6,\"Enter Value Manually\"))","v":""}]
[null,null,null,null,null,null,null,null,null,null,null,null,null,null,null,null,null,null,null,null,{"$f":"IF(ECD_Inputs[[#This Row],[Exposure Limit]]=\"\", \"\",VLOOKUP('ECD Input and Calculations'!N7,'Reference Tables'!$B$2:$D$36,3,FALSE))","v":""},{"$f":"IF(ECD_Inputs[[#This Row],[Quantity]]=\"\", \"\",VLOOKUP('ECD Input and Calculations'!O7,'Reference Tables'!$B$2:$D$36,3,FALSE))","v":""},{"$f":"IF(ECD_Inputs[[#This Row],[ Generation Potential]]=\"\", \"\",VLOOKUP('ECD Input and Calculations'!P7,'Reference Tables'!$B$2:$D$36,3,FALSE))","v":""},{"$f":"IF(ECD_Inputs[[#This Row],[ Generation Method]]=\"\", \"\", VLOOKUP('ECD Input and Calculations'!Q7,'Reference Tables'!$B$2:$D$36,3,FALSE))","v":""},{"$f":"IF(ECD_Inputs[[#This Row],[Generation Location]]=\"\", \"\",VLOOKUP('ECD Input and Calculations'!R7,'Reference Tables'!$B$2:$D$36,3,FALSE))","v":""},{"$f":"IF(ECD_Inputs[[#This Row],[Change Dynamics]]=\"\", \"\",VLOOKUP('ECD Input and Calculations'!S7,'Reference Tables'!$B$2:$D$36,3,FALSE))","v":""},{"$f":"IF(ECD_Inputs[[#This Row],[Housekeeping]]=\"\",\"\",VLOOKUP('ECD Input and Calculations'!T7,'Reference Tables'!$B$2:$D$36,3,FALSE))","v":""},{"$f":"IF(Table7[[#This Row],[Housekeeping Rating]]=\"\",\"\", ($M$1*U7)+($N$1*V7)+($O$1*W7)+($P$1*X7)+($Q$1*Y7)+($R$1*Z7)+($S$1*AA7))","v":""},{"$f":"IF(Table7[[#This Row],[Weighted Score]]=\"\", \"\", _xlfn.IFS(AND($AB7>='Reference Tables'!$I$2,'ECD Input and Calculations'!$AB7<='Reference Tables'!$I$3),0,AND('ECD Input and Calculations'!$AB7>='Reference Tables'!$I$4,'ECD Input and Calculations'!$AB7<='Reference Tables'!$I$5),1,AND('ECD Input and Calculations'!$AB7>='Reference Tables'!$I$6,'ECD Input and Calculations'!$AB7<='Reference Tables'!$I$7),2,AND('ECD Input and Calculations'!$AB7>='Reference Tables'!$I$8,'ECD Input and Calculations'!$AB7<='Reference Tables'!$I$9),3,AND('ECD Input and Calculations'!$AB7>='Reference Tables'!$I$10,'ECD Input and Calculations'!$AB7<='Reference Tables'!$I$11),4))","v":""},{"$f":"IF(Table7[[#This Row],[Risk Control Band]]=\"\", \"\",IF(D7=\"Fume Hood\",VLOOKUP(AC7,'Reference Tables'!$N$2:$O$11,2),\"N/A\"))","v":""},{"$f":"IF(ECD_Inputs[[#This Row],[Exposure Control Device]]=\"\",\"\", IF(ECD_Inputs[[#This Row],[Exposure Control Device]]=\"Fume Hood\",MAX(((Table7[[#This Row],[Min. Fume Hood Air Flow Requirement (ACH)]]/60)*((F7/12)*(H7/12)*(I7/12))),(((F7/12)*(H7/12))*ECD_Inputs[[#This Row],[Face Velocity (ft/min) ]])),\"Enter Value Manually\"))","v":""},{"$f":"IF(ECD_Inputs[[#This Row],[Exposure Control Device]]=\"\",\"\", IF(ECD_Inputs[[#This Row],[Exposure Control Device]]=\"Fume Hood\",(G7/12)*(H7/12)*J7,\"Enter Value Manually\"))","v":""}]
[null,null,null,null,null,null,null,null,null,null,null,null,null,null,null,null,null,null,null,null,{"$f":"IF(ECD_Inputs[[#This Row],[Exposure Limit]]=\"\", \"\",VLOOKUP('ECD Input and Calculations'!N8,'Reference Tables'!$B$2:$D$36,3,FALSE))","v":""},{"$f":"IF(ECD_Inputs[[#This Row],[Quantity]]=\"\", \"\",VLOOKUP('ECD Input and Calculations'!O8,'Reference Tables'!$B$2:$D$36,3,FALSE))","v":""},{"$f":"IF(ECD_Inputs[[#This Row],[ Generation Potential]]=\"\", \"\",VLOOKUP('ECD Input and Calculations'!P8,'Reference Tables'!$B$2:$D$36,3,FALSE))","v":""},{"$f":"IF(ECD_Inputs[[#This Row],[ Generation Method]]=\"\", \"\", VLOOKUP('ECD Input and Calculations'!Q8,'Reference Tables'!$B$2:$D$36,3,FALSE))","v":""},{"$f":"IF(ECD_Inputs[[#This Row],[Generation Location]]=\"\", \"\",VLOOKUP('ECD Input and Calculations'!R8,'Reference Tables'!$B$2:$D$36,3,FALSE))","v":""},{"$f":"IF(ECD_Inputs[[#This Row],[Change Dynamics]]=\"\", \"\",VLOOKUP('ECD Input and Calculations'!S8,'Reference Tables'!$B$2:$D$36,3,FALSE))","v":""},{"$f":"IF(ECD_Inputs[[#This Row],[Housekeeping]]=\"\",\"\",VLOOKUP('ECD Input and Calculations'!T8,'Reference Tables'!$B$2:$D$36,3,FALSE))","v":""},{"$f":"IF(Table7[[#This Row],[Housekeeping Rating]]=\"\",\"\", ($M$1*U8)+($N$1*V8)+($O$1*W8)+($P$1*X8)+($Q$1*Y8)+($R$1*Z8)+($S$1*AA8))","v":""},{"$f":"IF(Table7[[#This Row],[Weighted Score]]=\"\", \"\", _xlfn.IFS(AND($AB8>='Reference Tables'!$I$2,'ECD Input and Calculations'!$AB8<='Reference Tables'!$I$3),0,AND('ECD Input and Calculations'!$AB8>='Reference Tables'!$I$4,'ECD Input and Calculations'!$AB8<='Reference Tables'!$I$5),1,AND('ECD Input and Calculations'!$AB8>='Reference Tables'!$I$6,'ECD Input and Calculations'!$AB8<='Reference Tables'!$I$7),2,AND('ECD Input and Calculations'!$AB8>='Reference Tables'!$I$8,'ECD Input and Calculations'!$AB8<='Reference Tables'!$I$9),3,AND('ECD Input and Calculations'!$AB8>='Reference Tables'!$I$10,'ECD Input and Calculations'!$AB8<='Reference Tables'!$I$11),4))","v":""},{"$f":"IF(Table7[[#This Row],[Risk Control Band]]=\"\", \"\",IF(D8=\"Fume Hood\",VLOOKUP(AC8,'Reference Tables'!$N$2:$O$11,2),\"N/A\"))","v":""},{"$f":"IF(ECD_Inputs[[#This Row],[Exposure Control Device]]=\"\",\"\", IF(ECD_Inputs[[#This Row],[Exposure Control Device]]=\"Fume Hood\",MAX(((Table7[[#This Row],[Min. Fume Hood Air Flow Requirement (ACH)]]/60)*((F8/12)*(H8/12)*(I8/12))),(((F8/12)*(H8/12))*ECD_Inputs[[#This Row],[Face Velocity (ft/min) ]])),\"Enter Value Manually\"))","v":""},{"$f":"IF(ECD_Inputs[[#This Row],[Exposure Control Device]]=\"\",\"\", IF(ECD_Inputs[[#This Row],[Exposure Control Device]]=\"Fume Hood\",(G8/12)*(H8/12)*J8,\"Enter Value Manually\"))","v":""}]
[null,null,null,null,null,null,null,null,null,null,null,null,null,null,null,null,null,null,null,null,{"$f":"IF(ECD_Inputs[[#This Row],[Exposure Limit]]=\"\", \"\",VLOOKUP('ECD Input and Calculations'!N9,'Reference Tables'!$B$2:$D$36,3,FALSE))","v":""},{"$f":"IF(ECD_Inputs[[#This Row],[Quantity]]=\"\", \"\",VLOOKUP('ECD Input and Calculations'!O9,'Reference Tables'!$B$2:$D$36,3,FALSE))","v":""},{"$f":"IF(ECD_Inputs[[#This Row],[ Generation Potential]]=\"\", \"\",VLOOKUP('ECD Input and Calculations'!P9,'Reference Tables'!$B$2:$D$36,3,FALSE))","v":""},{"$f":"IF(ECD_Inputs[[#This Row],[ Generation Method]]=\"\", \"\", VLOOKUP('ECD Input and Calculations'!Q9,'Reference Tables'!$B$2:$D$36,3,FALSE))","v":""},{"$f":"IF(ECD_Inputs[[#This Row],[Generation Location]]=\"\", \"\",VLOOKUP('ECD Input and Calculations'!R9,'Reference Tables'!$B$2:$D$36,3,FALSE))","v":""},{"$f":"IF(ECD_Inputs[[#This Row],[Change Dynamics]]=\"\", \"\",VLOOKUP('ECD Input and Calculations'!S9,'Reference Tables'!$B$2:$D$36,3,FALSE))","v":""},{"$f":"IF(ECD_Inputs[[#This Row],[Housekeeping]]=\"\",\"\",VLOOKUP('ECD Input and Calculations'!T9,'Reference Tables'!$B$2:$D$36,3,FALSE))","v":""},{"$f":"IF(Table7[[#This Row],[Housekeeping Rating]]=\"\",\"\", ($M$1*U9)+($N$1*V9)+($O$1*W9)+($P$1*X9)+($Q$1*Y9)+($R$1*Z9)+($S$1*AA9))","v":""},{"$f":"IF(Table7[[#This Row],[Weighted Score]]=\"\", \"\", _xlfn.IFS(AND($AB9>='Reference Tables'!$I$2,'ECD Input and Calculations'!$AB9<='Reference Tables'!$I$3),0,AND('ECD Input and Calculations'!$AB9>='Reference Tables'!$I$4,'ECD Input and Calculations'!$AB9<='Reference Tables'!$I$5),1,AND('ECD Input and Calculations'!$AB9>='Reference Tables'!$I$6,'ECD Input and Calculations'!$AB9<='Reference Tables'!$I$7),2,AND('ECD Input and Calculations'!$AB9>='Reference Tables'!$I$8,'ECD Input and Calculations'!$AB9<='Reference Tables'!$I$9),3,AND('ECD Input and Calculations'!$AB9>='Reference Tables'!$I$10,'ECD Input and Calculations'!$AB9<='Reference Tables'!$I$11),4))","v":""},{"$f":"IF(Table7[[#This Row],[Risk Control Band]]=\"\", \"\",IF(D9=\"Fume Hood\",VLOOKUP(AC9,'Reference Tables'!$N$2:$O$11,2),\"N/A\"))","v":""},{"$f":"IF(ECD_Inputs[[#This Row],[Exposure Control Device]]=\"\",\"\", IF(ECD_Inputs[[#This Row],[Exposure Control Device]]=\"Fume Hood\",MAX(((Table7[[#This Row],[Min. Fume Hood Air Flow Requirement (ACH)]]/60)*((F9/12)*(H9/12)*(I9/12))),(((F9/12)*(H9/12))*ECD_Inputs[[#This Row],[Face Velocity (ft/min) ]])),\"Enter Value Manually\"))","v":""},{"$f":"IF(ECD_Inputs[[#This Row],[Exposure Control Device]]=\"\",\"\", IF(ECD_Inputs[[#This Row],[Exposure Control Device]]=\"Fume Hood\",(G9/12)*(H9/12)*J9,\"Enter Value Manually\"))","v":""}]
[null,null,null,null,null,null,null,null,null,null,null,null,null,null,null,null,null,null,null,null,{"$f":"IF(ECD_Inputs[[#This Row],[Exposure Limit]]=\"\", \"\",VLOOKUP('ECD Input and Calculations'!N10,'Reference Tables'!$B$2:$D$36,3,FALSE))","v":""},{"$f":"IF(ECD_Inputs[[#This Row],[Quantity]]=\"\", \"\",VLOOKUP('ECD Input and Calculations'!O10,'Reference Tables'!$B$2:$D$36,3,FALSE))","v":""},{"$f":"IF(ECD_Inputs[[#This Row],[ Generation Potential]]=\"\", \"\",VLOOKUP('ECD Input and Calculations'!P10,'Reference Tables'!$B$2:$D$36,3,FALSE))","v":""},{"$f":"IF(ECD_Inputs[[#This Row],[ Generation Method]]=\"\", \"\", VLOOKUP('ECD Input and Calculations'!Q10,'Reference Tables'!$B$2:$D$36,3,FALSE))","v":""},{"$f":"IF(ECD_Inputs[[#This Row],[Generation Location]]=\"\", \"\",VLOOKUP('ECD Input and Calculations'!R10,'Reference Tables'!$B$2:$D$36,3,FALSE))","v":""},{"$f":"IF(ECD_Inputs[[#This Row],[Change Dynamics]]=\"\", \"\",VLOOKUP('ECD Input and Calculations'!S10,'Reference Tables'!$B$2:$D$36,3,FALSE))","v":""},{"$f":"IF(ECD_Inputs[[#This Row],[Housekeeping]]=\"\",\"\",VLOOKUP('ECD Input and Calculations'!T10,'Reference Tables'!$B$2:$D$36,3,FALSE))","v":""},{"$f":"IF(Table7[[#This Row],[Housekeeping Rating]]=\"\",\"\", ($M$1*U10)+($N$1*V10)+($O$1*W10)+($P$1*X10)+($Q$1*Y10)+($R$1*Z10)+($S$1*AA10))","v":""},{"$f":"IF(Table7[[#This Row],[Weighted Score]]=\"\", \"\", _xlfn.IFS(AND($AB10>='Reference Tables'!$I$2,'ECD Input and Calculations'!$AB10<='Reference Tables'!$I$3),0,AND('ECD Input and Calculations'!$AB10>='Reference Tables'!$I$4,'ECD Input and Calculations'!$AB10<='Reference Tables'!$I$5),1,AND('ECD Input and Calculations'!$AB10>='Reference Tables'!$I$6,'ECD Input and Calculations'!$AB10<='Reference Tables'!$I$7),2,AND('ECD Input and Calculations'!$AB10>='Reference Tables'!$I$8,'ECD Input and Calculations'!$AB10<='Reference Tables'!$I$9),3,AND('ECD Input and Calculations'!$AB10>='Reference Tables'!$I$10,'ECD Input and Calculations'!$AB10<='Reference Tables'!$I$11),4))","v":""},{"$f":"IF(Table7[[#This Row],[Risk Control Band]]=\"\", \"\",IF(D10=\"Fume Hood\",VLOOKUP(AC10,'Reference Tables'!$N$2:$O$11,2),\"N/A\"))","v":""},{"$f":"IF(ECD_Inputs[[#This Row],[Exposure Control Device]]=\"\",\"\", IF(ECD_Inputs[[#This Row],[Exposure Control Device]]=\"Fume Hood\",MAX(((Table7[[#This Row],[Min. Fume Hood Air Flow Requirement (ACH)]]/60)*((F10/12)*(H10/12)*(I10/12))),(((F10/12)*(H10/12))*ECD_Inputs[[#This Row],[Face Velocity (ft/min) ]])),\"Enter Value Manually\"))","v":""},{"$f":"IF(ECD_Inputs[[#This Row],[Exposure Control Device]]=\"\",\"\", IF(ECD_Inputs[[#This Row],[Exposure Control Device]]=\"Fume Hood\",(G10/12)*(H10/12)*J10,\"Enter Value Manually\"))","v":""}]
[null,null,null,null,null,null,null,null,null,null,null,null,null,null,null,null,null,null,null,null,{"$f":"IF(ECD_Inputs[[#This Row],[Exposure Limit]]=\"\", \"\",VLOOKUP('ECD Input and Calculations'!N11,'Reference Tables'!$B$2:$D$36,3,FALSE))","v":""},{"$f":"IF(ECD_Inputs[[#This Row],[Quantity]]=\"\", \"\",VLOOKUP('ECD Input and Calculations'!O11,'Reference Tables'!$B$2:$D$36,3,FALSE))","v":""},{"$f":"IF(ECD_Inputs[[#This Row],[ Generation Potential]]=\"\", \"\",VLOOKUP('ECD Input and Calculations'!P11,'Reference Tables'!$B$2:$D$36,3,FALSE))","v":""},{"$f":"IF(ECD_Inputs[[#This Row],[ Generation Method]]=\"\", \"\", VLOOKUP('ECD Input and Calculations'!Q11,'Reference Tables'!$B$2:$D$36,3,FALSE))","v":""},{"$f":"IF(ECD_Inputs[[#This Row],[Generation Location]]=\"\", \"\",VLOOKUP('ECD Input and Calculations'!R11,'Reference Tables'!$B$2:$D$36,3,FALSE))","v":""},{"$f":"IF(ECD_Inputs[[#This Row],[Change Dynamics]]=\"\", \"\",VLOOKUP('ECD Input and Calculations'!S11,'Reference Tables'!$B$2:$D$36,3,FALSE))","v":""},{"$f":"IF(ECD_Inputs[[#This Row],[Housekeeping]]=\"\",\"\",VLOOKUP('ECD Input and Calculations'!T11,'Reference Tables'!$B$2:$D$36,3,FALSE))","v":""},{"$f":"IF(Table7[[#This Row],[Housekeeping Rating]]=\"\",\"\", ($M$1*U11)+($N$1*V11)+($O$1*W11)+($P$1*X11)+($Q$1*Y11)+($R$1*Z11)+($S$1*AA11))","v":""},{"$f":"IF(Table7[[#This Row],[Weighted Score]]=\"\", \"\", _xlfn.IFS(AND($AB11>='Reference Tables'!$I$2,'ECD Input and Calculations'!$AB11<='Reference Tables'!$I$3),0,AND('ECD Input and Calculations'!$AB11>='Reference Tables'!$I$4,'ECD Input and Calculations'!$AB11<='Reference Tables'!$I$5),1,AND('ECD Input and Calculations'!$AB11>='Reference Tables'!$I$6,'ECD Input and Calculations'!$AB11<='Reference Tables'!$I$7),2,AND('ECD Input and Calculations'!$AB11>='Reference Tables'!$I$8,'ECD Input and Calculations'!$AB11<='Reference Tables'!$I$9),3,AND('ECD Input and Calculations'!$AB11>='Reference Tables'!$I$10,'ECD Input and Calculations'!$AB11<='Reference Tables'!$I$11),4))","v":""},{"$f":"IF(Table7[[#This Row],[Risk Control Band]]=\"\", \"\",IF(D11=\"Fume Hood\",VLOOKUP(AC11,'Reference Tables'!$N$2:$O$11,2),\"N/A\"))","v":""},{"$f":"IF(ECD_Inputs[[#This Row],[Exposure Control Device]]=\"\",\"\", IF(ECD_Inputs[[#This Row],[Exposure Control Device]]=\"Fume Hood\",MAX(((Table7[[#This Row],[Min. Fume Hood Air Flow Requirement (ACH)]]/60)*((F11/12)*(H11/12)*(I11/12))),(((F11/12)*(H11/12))*ECD_Inputs[[#This Row],[Face Velocity (ft/min) ]])),\"Enter Value Manually\"))","v":""},{"$f":"IF(ECD_Inputs[[#This Row],[Exposure Control Device]]=\"\",\"\", IF(ECD_Inputs[[#This Row],[Exposure Control Device]]=\"Fume Hood\",(G11/12)*(H11/12)*J11,\"Enter Value Manually\"))","v":""}]
[null,null,null,null,null,null,null,null,null,null,null,null,null,null,null,null,null,null,null,null,{"$f":"IF(ECD_Inputs[[#This Row],[Exposure Limit]]=\"\", \"\",VLOOKUP('ECD Input and Calculations'!N12,'Reference Tables'!$B$2:$D$36,3,FALSE))","v":""},{"$f":"IF(ECD_Inputs[[#This Row],[Quantity]]=\"\", \"\",VLOOKUP('ECD Input and Calculations'!O12,'Reference Tables'!$B$2:$D$36,3,FALSE))","v":""},{"$f":"IF(ECD_Inputs[[#This Row],[ Generation Potential]]=\"\", \"\",VLOOKUP('ECD Input and Calculations'!P12,'Reference Tables'!$B$2:$D$36,3,FALSE))","v":""},{"$f":"IF(ECD_Inputs[[#This Row],[ Generation Method]]=\"\", \"\", VLOOKUP('ECD Input and Calculations'!Q12,'Reference Tables'!$B$2:$D$36,3,FALSE))","v":""},{"$f":"IF(ECD_Inputs[[#This Row],[Generation Location]]=\"\", \"\",VLOOKUP('ECD Input and Calculations'!R12,'Reference Tables'!$B$2:$D$36,3,FALSE))","v":""},{"$f":"IF(ECD_Inputs[[#This Row],[Change Dynamics]]=\"\", \"\",VLOOKUP('ECD Input and Calculations'!S12,'Reference Tables'!$B$2:$D$36,3,FALSE))","v":""},{"$f":"IF(ECD_Inputs[[#This Row],[Housekeeping]]=\"\",\"\",VLOOKUP('ECD Input and Calculations'!T12,'Reference Tables'!$B$2:$D$36,3,FALSE))","v":""},{"$f":"IF(Table7[[#This Row],[Housekeeping Rating]]=\"\",\"\", ($M$1*U12)+($N$1*V12)+($O$1*W12)+($P$1*X12)+($Q$1*Y12)+($R$1*Z12)+($S$1*AA12))","v":""},{"$f":"IF(Table7[[#This Row],[Weighted Score]]=\"\", \"\", _xlfn.IFS(AND($AB12>='Reference Tables'!$I$2,'ECD Input and Calculations'!$AB12<='Reference Tables'!$I$3),0,AND('ECD Input and Calculations'!$AB12>='Reference Tables'!$I$4,'ECD Input and Calculations'!$AB12<='Reference Tables'!$I$5),1,AND('ECD Input and Calculations'!$AB12>='Reference Tables'!$I$6,'ECD Input and Calculations'!$AB12<='Reference Tables'!$I$7),2,AND('ECD Input and Calculations'!$AB12>='Reference Tables'!$I$8,'ECD Input and Calculations'!$AB12<='Reference Tables'!$I$9),3,AND('ECD Input and Calculations'!$AB12>='Reference Tables'!$I$10,'ECD Input and Calculations'!$AB12<='Reference Tables'!$I$11),4))","v":""},{"$f":"IF(Table7[[#This Row],[Risk Control Band]]=\"\", \"\",IF(D12=\"Fume Hood\",VLOOKUP(AC12,'Reference Tables'!$N$2:$O$11,2),\"N/A\"))","v":""},{"$f":"IF(ECD_Inputs[[#This Row],[Exposure Control Device]]=\"\",\"\", IF(ECD_Inputs[[#This Row],[Exposure Control Device]]=\"Fume Hood\",MAX(((Table7[[#This Row],[Min. Fume Hood Air Flow Requirement (ACH)]]/60)*((F12/12)*(H12/12)*(I12/12))),(((F12/12)*(H12/12))*ECD_Inputs[[#This Row],[Face Velocity (ft/min) ]])),\"Enter Value Manually\"))","v":""},{"$f":"IF(ECD_Inputs[[#This Row],[Exposure Control Device]]=\"\",\"\", IF(ECD_Inputs[[#This Row],[Exposure Control Device]]=\"Fume Hood\",(G12/12)*(H12/12)*J12,\"Enter Value Manually\"))","v":""}]
[null,null,null,null,null,null,null,null,null,null,null,null,null,null,null,null,null,null,null,null,{"$f":"IF(ECD_Inputs[[#This Row],[Exposure Limit]]=\"\", \"\",VLOOKUP('ECD Input and Calculations'!N13,'Reference Tables'!$B$2:$D$36,3,FALSE))","v":""},{"$f":"IF(ECD_Inputs[[#This Row],[Quantity]]=\"\", \"\",VLOOKUP('ECD Input and Calculations'!O13,'Reference Tables'!$B$2:$D$36,3,FALSE))","v":""},{"$f":"IF(ECD_Inputs[[#This Row],[ Generation Potential]]=\"\", \"\",VLOOKUP('ECD Input and Calculations'!P13,'Reference Tables'!$B$2:$D$36,3,FALSE))","v":""},{"$f":"IF(ECD_Inputs[[#This Row],[ Generation Method]]=\"\", \"\", VLOOKUP('ECD Input and Calculations'!Q13,'Reference Tables'!$B$2:$D$36,3,FALSE))","v":""},{"$f":"IF(ECD_Inputs[[#This Row],[Generation Location]]=\"\", \"\",VLOOKUP('ECD Input and Calculations'!R13,'Reference Tables'!$B$2:$D$36,3,FALSE))","v":""},{"$f":"IF(ECD_Inputs[[#This Row],[Change Dynamics]]=\"\", \"\",VLOOKUP('ECD Input and Calculations'!S13,'Reference Tables'!$B$2:$D$36,3,FALSE))","v":""},{"$f":"IF(ECD_Inputs[[#This Row],[Housekeeping]]=\"\",\"\",VLOOKUP('ECD Input and Calculations'!T13,'Reference Tables'!$B$2:$D$36,3,FALSE))","v":""},{"$f":"IF(Table7[[#This Row],[Housekeeping Rating]]=\"\",\"\", ($M$1*U13)+($N$1*V13)+($O$1*W13)+($P$1*X13)+($Q$1*Y13)+($R$1*Z13)+($S$1*AA13))","v":""},{"$f":"IF(Table7[[#This Row],[Weighted Score]]=\"\", \"\", _xlfn.IFS(AND($AB13>='Reference Tables'!$I$2,'ECD Input and Calculations'!$AB13<='Reference Tables'!$I$3),0,AND('ECD Input and Calculations'!$AB13>='Reference Tables'!$I$4,'ECD Input and Calculations'!$AB13<='Reference Tables'!$I$5),1,AND('ECD Input and Calculations'!$AB13>='Reference Tables'!$I$6,'ECD Input and Calculations'!$AB13<='Reference Tables'!$I$7),2,AND('ECD Input and Calculations'!$AB13>='Reference Tables'!$I$8,'ECD Input and Calculations'!$AB13<='Reference Tables'!$I$9),3,AND('ECD Input and Calculations'!$AB13>='Reference Tables'!$I$10,'ECD Input and Calculations'!$AB13<='Reference Tables'!$I$11),4))","v":""},{"$f":"IF(Table7[[#This Row],[Risk Control Band]]=\"\", \"\",IF(D13=\"Fume Hood\",VLOOKUP(AC13,'Reference Tables'!$N$2:$O$11,2),\"N/A\"))","v":""},{"$f":"IF(ECD_Inputs[[#This Row],[Exposure Control Device]]=\"\",\"\", IF(ECD_Inputs[[#This Row],[Exposure Control Device]]=\"Fume Hood\",MAX(((Table7[[#This Row],[Min. Fume Hood Air Flow Requirement (ACH)]]/60)*((F13/12)*(H13/12)*(I13/12))),(((F13/12)*(H13/12))*ECD_Inputs[[#This Row],[Face Velocity (ft/min) ]])),\"Enter Value Manually\"))","v":""},{"$f":"IF(ECD_Inputs[[#This Row],[Exposure Control Device]]=\"\",\"\", IF(ECD_Inputs[[#This Row],[Exposure Control Device]]=\"Fume Hood\",(G13/12)*(H13/12)*J13,\"Enter Value Manually\"))","v":""}]
[null,null,null,null,null,null,null,null,null,null,null,null,null,null,null,null,null,null,null,null,{"$f":"IF(ECD_Inputs[[#This Row],[Exposure Limit]]=\"\", \"\",VLOOKUP('ECD Input and Calculations'!N14,'Reference Tables'!$B$2:$D$36,3,FALSE))","v":""},{"$f":"IF(ECD_Inputs[[#This Row],[Quantity]]=\"\", \"\",VLOOKUP('ECD Input and Calculations'!O14,'Reference Tables'!$B$2:$D$36,3,FALSE))","v":""},{"$f":"IF(ECD_Inputs[[#This Row],[ Generation Potential]]=\"\", \"\",VLOOKUP('ECD Input and Calculations'!P14,'Reference Tables'!$B$2:$D$36,3,FALSE))","v":""},{"$f":"IF(ECD_Inputs[[#This Row],[ Generation Method]]=\"\", \"\", VLOOKUP('ECD Input and Calculations'!Q14,'Reference Tables'!$B$2:$D$36,3,FALSE))","v":""},{"$f":"IF(ECD_Inputs[[#This Row],[Generation Location]]=\"\", \"\",VLOOKUP('ECD Input and Calculations'!R14,'Reference Tables'!$B$2:$D$36,3,FALSE))","v":""},{"$f":"IF(ECD_Inputs[[#This Row],[Change Dynamics]]=\"\", \"\",VLOOKUP('ECD Input and Calculations'!S14,'Reference Tables'!$B$2:$D$36,3,FALSE))","v":""},{"$f":"IF(ECD_Inputs[[#This Row],[Housekeeping]]=\"\",\"\",VLOOKUP('ECD Input and Calculations'!T14,'Reference Tables'!$B$2:$D$36,3,FALSE))","v":""},{"$f":"IF(Table7[[#This Row],[Housekeeping Rating]]=\"\",\"\", ($M$1*U14)+($N$1*V14)+($O$1*W14)+($P$1*X14)+($Q$1*Y14)+($R$1*Z14)+($S$1*AA14))","v":""},{"$f":"IF(Table7[[#This Row],[Weighted Score]]=\"\", \"\", _xlfn.IFS(AND($AB14>='Reference Tables'!$I$2,'ECD Input and Calculations'!$AB14<='Reference Tables'!$I$3),0,AND('ECD Input and Calculations'!$AB14>='Reference Tables'!$I$4,'ECD Input and Calculations'!$AB14<='Reference Tables'!$I$5),1,AND('ECD Input and Calculations'!$AB14>='Reference Tables'!$I$6,'ECD Input and Calculations'!$AB14<='Reference Tables'!$I$7),2,AND('ECD Input and Calculations'!$AB14>='Reference Tables'!$I$8,'ECD Input and Calculations'!$AB14<='Reference Tables'!$I$9),3,AND('ECD Input and Calculations'!$AB14>='Reference Tables'!$I$10,'ECD Input and Calculations'!$AB14<='Reference Tables'!$I$11),4))","v":""},{"$f":"IF(Table7[[#This Row],[Risk Control Band]]=\"\", \"\",IF(D14=\"Fume Hood\",VLOOKUP(AC14,'Reference Tables'!$N$2:$O$11,2),\"N/A\"))","v":""},{"$f":"IF(ECD_Inputs[[#This Row],[Exposure Control Device]]=\"\",\"\", IF(ECD_Inputs[[#This Row],[Exposure Control Device]]=\"Fume Hood\",MAX(((Table7[[#This Row],[Min. Fume Hood Air Flow Requirement (ACH)]]/60)*((F14/12)*(H14/12)*(I14/12))),(((F14/12)*(H14/12))*ECD_Inputs[[#This Row],[Face Velocity (ft/min) ]])),\"Enter Value Manually\"))","v":""},{"$f":"IF(ECD_Inputs[[#This Row],[Exposure Control Device]]=\"\",\"\", IF(ECD_Inputs[[#This Row],[Exposure Control Device]]=\"Fume Hood\",(G14/12)*(H14/12)*J14,\"Enter Value Manually\"))","v":""}]
[null,null,null,null,null,null,null,null,null,null,null,null,null,null,null,null,null,null,null,null,{"$f":"IF(ECD_Inputs[[#This Row],[Exposure Limit]]=\"\", \"\",VLOOKUP('ECD Input and Calculations'!N15,'Reference Tables'!$B$2:$D$36,3,FALSE))","v":""},{"$f":"IF(ECD_Inputs[[#This Row],[Quantity]]=\"\", \"\",VLOOKUP('ECD Input and Calculations'!O15,'Reference Tables'!$B$2:$D$36,3,FALSE))","v":""},{"$f":"IF(ECD_Inputs[[#This Row],[ Generation Potential]]=\"\", \"\",VLOOKUP('ECD Input and Calculations'!P15,'Reference Tables'!$B$2:$D$36,3,FALSE))","v":""},{"$f":"IF(ECD_Inputs[[#This Row],[ Generation Method]]=\"\", \"\", VLOOKUP('ECD Input and Calculations'!Q15,'Reference Tables'!$B$2:$D$36,3,FALSE))","v":""},{"$f":"IF(ECD_Inputs[[#This Row],[Generation Location]]=\"\", \"\",VLOOKUP('ECD Input and Calculations'!R15,'Reference Tables'!$B$2:$D$36,3,FALSE))","v":""},{"$f":"IF(ECD_Inputs[[#This Row],[Change Dynamics]]=\"\", \"\",VLOOKUP('ECD Input and Calculations'!S15,'Reference Tables'!$B$2:$D$36,3,FALSE))","v":""},{"$f":"IF(ECD_Inputs[[#This Row],[Housekeeping]]=\"\",\"\",VLOOKUP('ECD Input and Calculations'!T15,'Reference Tables'!$B$2:$D$36,3,FALSE))","v":""},{"$f":"IF(Table7[[#This Row],[Housekeeping Rating]]=\"\",\"\", ($M$1*U15)+($N$1*V15)+($O$1*W15)+($P$1*X15)+($Q$1*Y15)+($R$1*Z15)+($S$1*AA15))","v":""},{"$f":"IF(Table7[[#This Row],[Weighted Score]]=\"\", \"\", _xlfn.IFS(AND($AB15>='Reference Tables'!$I$2,'ECD Input and Calculations'!$AB15<='Reference Tables'!$I$3),0,AND('ECD Input and Calculations'!$AB15>='Reference Tables'!$I$4,'ECD Input and Calculations'!$AB15<='Reference Tables'!$I$5),1,AND('ECD Input and Calculations'!$AB15>='Reference Tables'!$I$6,'ECD Input and Calculations'!$AB15<='Reference Tables'!$I$7),2,AND('ECD Input and Calculations'!$AB15>='Reference Tables'!$I$8,'ECD Input and Calculations'!$AB15<='Reference Tables'!$I$9),3,AND('ECD Input and Calculations'!$AB15>='Reference Tables'!$I$10,'ECD Input and Calculations'!$AB15<='Reference Tables'!$I$11),4))","v":""},{"$f":"IF(Table7[[#This Row],[Risk Control Band]]=\"\", \"\",IF(D15=\"Fume Hood\",VLOOKUP(AC15,'Reference Tables'!$N$2:$O$11,2),\"N/A\"))","v":""},{"$f":"IF(ECD_Inputs[[#This Row],[Exposure Control Device]]=\"\",\"\", IF(ECD_Inputs[[#This Row],[Exposure Control Device]]=\"Fume Hood\",MAX(((Table7[[#This Row],[Min. Fume Hood Air Flow Requirement (ACH)]]/60)*((F15/12)*(H15/12)*(I15/12))),(((F15/12)*(H15/12))*ECD_Inputs[[#This Row],[Face Velocity (ft/min) ]])),\"Enter Value Manually\"))","v":""},{"$f":"IF(ECD_Inputs[[#This Row],[Exposure Control Device]]=\"\",\"\", IF(ECD_Inputs[[#This Row],[Exposure Control Device]]=\"Fume Hood\",(G15/12)*(H15/12)*J15,\"Enter Value Manually\"))","v":""}]
[null,null,null,null,null,null,null,null,null,null,null,null,null,null,null,null,null,null,null,null,{"$f":"IF(ECD_Inputs[[#This Row],[Exposure Limit]]=\"\", \"\",VLOOKUP('ECD Input and Calculations'!N16,'Reference Tables'!$B$2:$D$36,3,FALSE))","v":""},{"$f":"IF(ECD_Inputs[[#This Row],[Quantity]]=\"\", \"\",VLOOKUP('ECD Input and Calculations'!O16,'Reference Tables'!$B$2:$D$36,3,FALSE))","v":""},{"$f":"IF(ECD_Inputs[[#This Row],[ Generation Potential]]=\"\", \"\",VLOOKUP('ECD Input and Calculations'!P16,'Reference Tables'!$B$2:$D$36,3,FALSE))","v":""},{"$f":"IF(ECD_Inputs[[#This Row],[ Generation Method]]=\"\", \"\", VLOOKUP('ECD Input and Calculations'!Q16,'Reference Tables'!$B$2:$D$36,3,FALSE))","v":""},{"$f":"IF(ECD_Inputs[[#This Row],[Generation Location]]=\"\", \"\",VLOOKUP('ECD Input and Calculations'!R16,'Reference Tables'!$B$2:$D$36,3,FALSE))","v":""},{"$f":"IF(ECD_Inputs[[#This Row],[Change Dynamics]]=\"\", \"\",VLOOKUP('ECD Input and Calculations'!S16,'Reference Tables'!$B$2:$D$36,3,FALSE))","v":""},{"$f":"IF(ECD_Inputs[[#This Row],[Housekeeping]]=\"\",\"\",VLOOKUP('ECD Input and Calculations'!T16,'Reference Tables'!$B$2:$D$36,3,FALSE))","v":""},{"$f":"IF(Table7[[#This Row],[Housekeeping Rating]]=\"\",\"\", ($M$1*U16)+($N$1*V16)+($O$1*W16)+($P$1*X16)+($Q$1*Y16)+($R$1*Z16)+($S$1*AA16))","v":""},{"$f":"IF(Table7[[#This Row],[Weighted Score]]=\"\", \"\", _xlfn.IFS(AND($AB16>='Reference Tables'!$I$2,'ECD Input and Calculations'!$AB16<='Reference Tables'!$I$3),0,AND('ECD Input and Calculations'!$AB16>='Reference Tables'!$I$4,'ECD Input and Calculations'!$AB16<='Reference Tables'!$I$5),1,AND('ECD Input and Calculations'!$AB16>='Reference Tables'!$I$6,'ECD Input and Calculations'!$AB16<='Reference Tables'!$I$7),2,AND('ECD Input and Calculations'!$AB16>='Reference Tables'!$I$8,'ECD Input and Calculations'!$AB16<='Reference Tables'!$I$9),3,AND('ECD Input and Calculations'!$AB16>='Reference Tables'!$I$10,'ECD Input and Calculations'!$AB16<='Reference Tables'!$I$11),4))","v":""},{"$f":"IF(Table7[[#This Row],[Risk Control Band]]=\"\", \"\",IF(D16=\"Fume Hood\",VLOOKUP(AC16,'Reference Tables'!$N$2:$O$11,2),\"N/A\"))","v":""},{"$f":"IF(ECD_Inputs[[#This Row],[Exposure Control Device]]=\"\",\"\", IF(ECD_Inputs[[#This Row],[Exposure Control Device]]=\"Fume Hood\",MAX(((Table7[[#This Row],[Min. Fume Hood Air Flow Requirement (ACH)]]/60)*((F16/12)*(H16/12)*(I16/12))),(((F16/12)*(H16/12))*ECD_Inputs[[#This Row],[Face Velocity (ft/min) ]])),\"Enter Value Manually\"))","v":""},{"$f":"IF(ECD_Inputs[[#This Row],[Exposure Control Device]]=\"\",\"\", IF(ECD_Inputs[[#This Row],[Exposure Control Device]]=\"Fume Hood\",(G16/12)*(H16/12)*J16,\"Enter Value Manually\"))","v":""}]
[null,null,null,null,null,null,null,null,null,null,null,null,null,null,null,null,null,null,null,null,{"$f":"IF(ECD_Inputs[[#This Row],[Exposure Limit]]=\"\", \"\",VLOOKUP('ECD Input and Calculations'!N17,'Reference Tables'!$B$2:$D$36,3,FALSE))","v":""},{"$f":"IF(ECD_Inputs[[#This Row],[Quantity]]=\"\", \"\",VLOOKUP('ECD Input and Calculations'!O17,'Reference Tables'!$B$2:$D$36,3,FALSE))","v":""},{"$f":"IF(ECD_Inputs[[#This Row],[ Generation Potential]]=\"\", \"\",VLOOKUP('ECD Input and Calculations'!P17,'Reference Tables'!$B$2:$D$36,3,FALSE))","v":""},{"$f":"IF(ECD_Inputs[[#This Row],[ Generation Method]]=\"\", \"\", VLOOKUP('ECD Input and Calculations'!Q17,'Reference Tables'!$B$2:$D$36,3,FALSE))","v":""},{"$f":"IF(ECD_Inputs[[#This Row],[Generation Location]]=\"\", \"\",VLOOKUP('ECD Input and Calculations'!R17,'Reference Tables'!$B$2:$D$36,3,FALSE))","v":""},{"$f":"IF(ECD_Inputs[[#This Row],[Change Dynamics]]=\"\", \"\",VLOOKUP('ECD Input and Calculations'!S17,'Reference Tables'!$B$2:$D$36,3,FALSE))","v":""},{"$f":"IF(ECD_Inputs[[#This Row],[Housekeeping]]=\"\",\"\",VLOOKUP('ECD Input and Calculations'!T17,'Reference Tables'!$B$2:$D$36,3,FALSE))","v":""},{"$f":"IF(Table7[[#This Row],[Housekeeping Rating]]=\"\",\"\", ($M$1*U17)+($N$1*V17)+($O$1*W17)+($P$1*X17)+($Q$1*Y17)+($R$1*Z17)+($S$1*AA17))","v":""},{"$f":"IF(Table7[[#This Row],[Weighted Score]]=\"\", \"\", _xlfn.IFS(AND($AB17>='Reference Tables'!$I$2,'ECD Input and Calculations'!$AB17<='Reference Tables'!$I$3),0,AND('ECD Input and Calculations'!$AB17>='Reference Tables'!$I$4,'ECD Input and Calculations'!$AB17<='Reference Tables'!$I$5),1,AND('ECD Input and Calculations'!$AB17>='Reference Tables'!$I$6,'ECD Input and Calculations'!$AB17<='Reference Tables'!$I$7),2,AND('ECD Input and Calculations'!$AB17>='Reference Tables'!$I$8,'ECD Input and Calculations'!$AB17<='Reference Tables'!$I$9),3,AND('ECD Input and Calculations'!$AB17>='Reference Tables'!$I$10,'ECD Input and Calculations'!$AB17<='Reference Tables'!$I$11),4))","v":""},{"$f":"IF(Table7[[#This Row],[Risk Control Band]]=\"\", \"\",IF(D17=\"Fume Hood\",VLOOKUP(AC17,'Reference Tables'!$N$2:$O$11,2),\"N/A\"))","v":""},{"$f":"IF(ECD_Inputs[[#This Row],[Exposure Control Device]]=\"\",\"\", IF(ECD_Inputs[[#This Row],[Exposure Control Device]]=\"Fume Hood\",MAX(((Table7[[#This Row],[Min. Fume Hood Air Flow Requirement (ACH)]]/60)*((F17/12)*(H17/12)*(I17/12))),(((F17/12)*(H17/12))*ECD_Inputs[[#This Row],[Face Velocity (ft/min) ]])),\"Enter Value Manually\"))","v":""},{"$f":"IF(ECD_Inputs[[#This Row],[Exposure Control Device]]=\"\",\"\", IF(ECD_Inputs[[#This Row],[Exposure Control Device]]=\"Fume Hood\",(G17/12)*(H17/12)*J17,\"Enter Value Manually\"))","v":""}]
[null,null,null,null,null,null,null,null,null,null,null,null,null,null,null,null,null,null,null,null,{"$f":"IF(ECD_Inputs[[#This Row],[Exposure Limit]]=\"\", \"\",VLOOKUP('ECD Input and Calculations'!N18,'Reference Tables'!$B$2:$D$36,3,FALSE))","v":""},{"$f":"IF(ECD_Inputs[[#This Row],[Quantity]]=\"\", \"\",VLOOKUP('ECD Input and Calculations'!O18,'Reference Tables'!$B$2:$D$36,3,FALSE))","v":""},{"$f":"IF(ECD_Inputs[[#This Row],[ Generation Potential]]=\"\", \"\",VLOOKUP('ECD Input and Calculations'!P18,'Reference Tables'!$B$2:$D$36,3,FALSE))","v":""},{"$f":"IF(ECD_Inputs[[#This Row],[ Generation Method]]=\"\", \"\", VLOOKUP('ECD Input and Calculations'!Q18,'Reference Tables'!$B$2:$D$36,3,FALSE))","v":""},{"$f":"IF(ECD_Inputs[[#This Row],[Generation Location]]=\"\", \"\",VLOOKUP('ECD Input and Calculations'!R18,'Reference Tables'!$B$2:$D$36,3,FALSE))","v":""},{"$f":"IF(ECD_Inputs[[#This Row],[Change Dynamics]]=\"\", \"\",VLOOKUP('ECD Input and Calculations'!S18,'Reference Tables'!$B$2:$D$36,3,FALSE))","v":""},{"$f":"IF(ECD_Inputs[[#This Row],[Housekeeping]]=\"\",\"\",VLOOKUP('ECD Input and Calculations'!T18,'Reference Tables'!$B$2:$D$36,3,FALSE))","v":""},{"$f":"IF(Table7[[#This Row],[Housekeeping Rating]]=\"\",\"\", ($M$1*U18)+($N$1*V18)+($O$1*W18)+($P$1*X18)+($Q$1*Y18)+($R$1*Z18)+($S$1*AA18))","v":""},{"$f":"IF(Table7[[#This Row],[Weighted Score]]=\"\", \"\", _xlfn.IFS(AND($AB18>='Reference Tables'!$I$2,'ECD Input and Calculations'!$AB18<='Reference Tables'!$I$3),0,AND('ECD Input and Calculations'!$AB18>='Reference Tables'!$I$4,'ECD Input and Calculations'!$AB18<='Reference Tables'!$I$5),1,AND('ECD Input and Calculations'!$AB18>='Reference Tables'!$I$6,'ECD Input and Calculations'!$AB18<='Reference Tables'!$I$7),2,AND('ECD Input and Calculations'!$AB18>='Reference Tables'!$I$8,'ECD Input and Calculations'!$AB18<='Reference Tables'!$I$9),3,AND('ECD Input and Calculations'!$AB18>='Reference Tables'!$I$10,'ECD Input and Calculations'!$AB18<='Reference Tables'!$I$11),4))","v":""},{"$f":"IF(Table7[[#This Row],[Risk Control Band]]=\"\", \"\",IF(D18=\"Fume Hood\",VLOOKUP(AC18,'Reference Tables'!$N$2:$O$11,2),\"N/A\"))","v":""},{"$f":"IF(ECD_Inputs[[#This Row],[Exposure Control Device]]=\"\",\"\", IF(ECD_Inputs[[#This Row],[Exposure Control Device]]=\"Fume Hood\",MAX(((Table7[[#This Row],[Min. Fume Hood Air Flow Requirement (ACH)]]/60)*((F18/12)*(H18/12)*(I18/12))),(((F18/12)*(H18/12))*ECD_Inputs[[#This Row],[Face Velocity (ft/min) ]])),\"Enter Value Manually\"))","v":""},{"$f":"IF(ECD_Inputs[[#This Row],[Exposure Control Device]]=\"\",\"\", IF(ECD_Inputs[[#This Row],[Exposure Control Device]]=\"Fume Hood\",(G18/12)*(H18/12)*J18,\"Enter Value Manually\"))","v":""}]
[null,null,null,null,null,null,null,null,null,null,null,null,null,null,null,null,null,null,null,null,{"$f":"IF(ECD_Inputs[[#This Row],[Exposure Limit]]=\"\", \"\",VLOOKUP('ECD Input and Calculations'!N19,'Reference Tables'!$B$2:$D$36,3,FALSE))","v":""},{"$f":"IF(ECD_Inputs[[#This Row],[Quantity]]=\"\", \"\",VLOOKUP('ECD Input and Calculations'!O19,'Reference Tables'!$B$2:$D$36,3,FALSE))","v":""},{"$f":"IF(ECD_Inputs[[#This Row],[ Generation Potential]]=\"\", \"\",VLOOKUP('ECD Input and Calculations'!P19,'Reference Tables'!$B$2:$D$36,3,FALSE))","v":""},{"$f":"IF(ECD_Inputs[[#This Row],[ Generation Method]]=\"\", \"\", VLOOKUP('ECD Input and Calculations'!Q19,'Reference Tables'!$B$2:$D$36,3,FALSE))","v":""},{"$f":"IF(ECD_Inputs[[#This Row],[Generation Location]]=\"\", \"\",VLOOKUP('ECD Input and Calculations'!R19,'Reference Tables'!$B$2:$D$36,3,FALSE))","v":""},{"$f":"IF(ECD_Inputs[[#This Row],[Change Dynamics]]=\"\", \"\",VLOOKUP('ECD Input and Calculations'!S19,'Reference Tables'!$B$2:$D$36,3,FALSE))","v":""},{"$f":"IF(ECD_Inputs[[#This Row],[Housekeeping]]=\"\",\"\",VLOOKUP('ECD Input and Calculations'!T19,'Reference Tables'!$B$2:$D$36,3,FALSE))","v":""},{"$f":"IF(Table7[[#This Row],[Housekeeping Rating]]=\"\",\"\", ($M$1*U19)+($N$1*V19)+($O$1*W19)+($P$1*X19)+($Q$1*Y19)+($R$1*Z19)+($S$1*AA19))","v":""},{"$f":"IF(Table7[[#This Row],[Weighted Score]]=\"\", \"\", _xlfn.IFS(AND($AB19>='Reference Tables'!$I$2,'ECD Input and Calculations'!$AB19<='Reference Tables'!$I$3),0,AND('ECD Input and Calculations'!$AB19>='Reference Tables'!$I$4,'ECD Input and Calculations'!$AB19<='Reference Tables'!$I$5),1,AND('ECD Input and Calculations'!$AB19>='Reference Tables'!$I$6,'ECD Input and Calculations'!$AB19<='Reference Tables'!$I$7),2,AND('ECD Input and Calculations'!$AB19>='Reference Tables'!$I$8,'ECD Input and Calculations'!$AB19<='Reference Tables'!$I$9),3,AND('ECD Input and Calculations'!$AB19>='Reference Tables'!$I$10,'ECD Input and Calculations'!$AB19<='Reference Tables'!$I$11),4))","v":""},{"$f":"IF(Table7[[#This Row],[Risk Control Band]]=\"\", \"\",IF(D19=\"Fume Hood\",VLOOKUP(AC19,'Reference Tables'!$N$2:$O$11,2),\"N/A\"))","v":""},{"$f":"IF(ECD_Inputs[[#This Row],[Exposure Control Device]]=\"\",\"\", IF(ECD_Inputs[[#This Row],[Exposure Control Device]]=\"Fume Hood\",MAX(((Table7[[#This Row],[Min. Fume Hood Air Flow Requirement (ACH)]]/60)*((F19/12)*(H19/12)*(I19/12))),(((F19/12)*(H19/12))*ECD_Inputs[[#This Row],[Face Velocity (ft/min) ]])),\"Enter Value Manually\"))","v":""},{"$f":"IF(ECD_Inputs[[#This Row],[Exposure Control Device]]=\"\",\"\", IF(ECD_Inputs[[#This Row],[Exposure Control Device]]=\"Fume Hood\",(G19/12)*(H19/12)*J19,\"Enter Value Manually\"))","v":""}]
[null,null,null,null,null,null,null,null,null,null,null,null,null,null,null,null,null,null,null,null,{"$f":"IF(ECD_Inputs[[#This Row],[Exposure Limit]]=\"\", \"\",VLOOKUP('ECD Input and Calculations'!N20,'Reference Tables'!$B$2:$D$36,3,FALSE))","v":""},{"$f":"IF(ECD_Inputs[[#This Row],[Quantity]]=\"\", \"\",VLOOKUP('ECD Input and Calculations'!O20,'Reference Tables'!$B$2:$D$36,3,FALSE))","v":""},{"$f":"IF(ECD_Inputs[[#This Row],[ Generation Potential]]=\"\", \"\",VLOOKUP('ECD Input and Calculations'!P20,'Reference Tables'!$B$2:$D$36,3,FALSE))","v":""},{"$f":"IF(ECD_Inputs[[#This Row],[ Generation Method]]=\"\", \"\", VLOOKUP('ECD Input and Calculations'!Q20,'Reference Tables'!$B$2:$D$36,3,FALSE))","v":""},{"$f":"IF(ECD_Inputs[[#This Row],[Generation Location]]=\"\", \"\",VLOOKUP('ECD Input and Calculations'!R20,'Reference Tables'!$B$2:$D$36,3,FALSE))","v":""},{"$f":"IF(ECD_Inputs[[#This Row],[Change Dynamics]]=\"\", \"\",VLOOKUP('ECD Input and Calculations'!S20,'Reference Tables'!$B$2:$D$36,3,FALSE))","v":""},{"$f":"IF(ECD_Inputs[[#This Row],[Housekeeping]]=\"\",\"\",VLOOKUP('ECD Input and Calculations'!T20,'Reference Tables'!$B$2:$D$36,3,FALSE))","v":""},{"$f":"IF(Table7[[#This Row],[Housekeeping Rating]]=\"\",\"\", ($M$1*U20)+($N$1*V20)+($O$1*W20)+($P$1*X20)+($Q$1*Y20)+($R$1*Z20)+($S$1*AA20))","v":""},{"$f":"IF(Table7[[#This Row],[Weighted Score]]=\"\", \"\", _xlfn.IFS(AND($AB20>='Reference Tables'!$I$2,'ECD Input and Calculations'!$AB20<='Reference Tables'!$I$3),0,AND('ECD Input and Calculations'!$AB20>='Reference Tables'!$I$4,'ECD Input and Calculations'!$AB20<='Reference Tables'!$I$5),1,AND('ECD Input and Calculations'!$AB20>='Reference Tables'!$I$6,'ECD Input and Calculations'!$AB20<='Reference Tables'!$I$7),2,AND('ECD Input and Calculations'!$AB20>='Reference Tables'!$I$8,'ECD Input and Calculations'!$AB20<='Reference Tables'!$I$9),3,AND('ECD Input and Calculations'!$AB20>='Reference Tables'!$I$10,'ECD Input and Calculations'!$AB20<='Reference Tables'!$I$11),4))","v":""},{"$f":"IF(Table7[[#This Row],[Risk Control Band]]=\"\", \"\",IF(D20=\"Fume Hood\",VLOOKUP(AC20,'Reference Tables'!$N$2:$O$11,2),\"N/A\"))","v":""},{"$f":"IF(ECD_Inputs[[#This Row],[Exposure Control Device]]=\"\",\"\", IF(ECD_Inputs[[#This Row],[Exposure Control Device]]=\"Fume Hood\",MAX(((Table7[[#This Row],[Min. Fume Hood Air Flow Requirement (ACH)]]/60)*((F20/12)*(H20/12)*(I20/12))),(((F20/12)*(H20/12))*ECD_Inputs[[#This Row],[Face Velocity (ft/min) ]])),\"Enter Value Manually\"))","v":""},{"$f":"IF(ECD_Inputs[[#This Row],[Exposure Control Device]]=\"\",\"\", IF(ECD_Inputs[[#This Row],[Exposure Control Device]]=\"Fume Hood\",(G20/12)*(H20/12)*J20,\"Enter Value Manually\"))","v":""}]
[null,null,null,null,null,null,null,null,null,null,null,null,null,null,null,null,null,null,null,null,{"$f":"IF(ECD_Inputs[[#This Row],[Exposure Limit]]=\"\", \"\",VLOOKUP('ECD Input and Calculations'!N21,'Reference Tables'!$B$2:$D$36,3,FALSE))","v":""},{"$f":"IF(ECD_Inputs[[#This Row],[Quantity]]=\"\", \"\",VLOOKUP('ECD Input and Calculations'!O21,'Reference Tables'!$B$2:$D$36,3,FALSE))","v":""},{"$f":"IF(ECD_Inputs[[#This Row],[ Generation Potential]]=\"\", \"\",VLOOKUP('ECD Input and Calculations'!P21,'Reference Tables'!$B$2:$D$36,3,FALSE))","v":""},{"$f":"IF(ECD_Inputs[[#This Row],[ Generation Method]]=\"\", \"\", VLOOKUP('ECD Input and Calculations'!Q21,'Reference Tables'!$B$2:$D$36,3,FALSE))","v":""},{"$f":"IF(ECD_Inputs[[#This Row],[Generation Location]]=\"\", \"\",VLOOKUP('ECD Input and Calculations'!R21,'Reference Tables'!$B$2:$D$36,3,FALSE))","v":""},{"$f":"IF(ECD_Inputs[[#This Row],[Change Dynamics]]=\"\", \"\",VLOOKUP('ECD Input and Calculations'!S21,'Reference Tables'!$B$2:$D$36,3,FALSE))","v":""},{"$f":"IF(ECD_Inputs[[#This Row],[Housekeeping]]=\"\",\"\",VLOOKUP('ECD Input and Calculations'!T21,'Reference Tables'!$B$2:$D$36,3,FALSE))","v":""},{"$f":"IF(Table7[[#This Row],[Housekeeping Rating]]=\"\",\"\", ($M$1*U21)+($N$1*V21)+($O$1*W21)+($P$1*X21)+($Q$1*Y21)+($R$1*Z21)+($S$1*AA21))","v":""},{"$f":"IF(Table7[[#This Row],[Weighted Score]]=\"\", \"\", _xlfn.IFS(AND($AB21>='Reference Tables'!$I$2,'ECD Input and Calculations'!$AB21<='Reference Tables'!$I$3),0,AND('ECD Input and Calculations'!$AB21>='Reference Tables'!$I$4,'ECD Input and Calculations'!$AB21<='Reference Tables'!$I$5),1,AND('ECD Input and Calculations'!$AB21>='Reference Tables'!$I$6,'ECD Input and Calculations'!$AB21<='Reference Tables'!$I$7),2,AND('ECD Input and Calculations'!$AB21>='Reference Tables'!$I$8,'ECD Input and Calculations'!$AB21<='Reference Tables'!$I$9),3,AND('ECD Input and Calculations'!$AB21>='Reference Tables'!$I$10,'ECD Input and Calculations'!$AB21<='Reference Tables'!$I$11),4))","v":""},{"$f":"IF(Table7[[#This Row],[Risk Control Band]]=\"\", \"\",IF(D21=\"Fume Hood\",VLOOKUP(AC21,'Reference Tables'!$N$2:$O$11,2),\"N/A\"))","v":""},{"$f":"IF(ECD_Inputs[[#This Row],[Exposure Control Device]]=\"\",\"\", IF(ECD_Inputs[[#This Row],[Exposure Control Device]]=\"Fume Hood\",MAX(((Table7[[#This Row],[Min. Fume Hood Air Flow Requirement (ACH)]]/60)*((F21/12)*(H21/12)*(I21/12))),(((F21/12)*(H21/12))*ECD_Inputs[[#This Row],[Face Velocity (ft/min) ]])),\"Enter Value Manually\"))","v":""},{"$f":"IF(ECD_Inputs[[#This Row],[Exposure Control Device]]=\"\",\"\", IF(ECD_Inputs[[#This Row],[Exposure Control Device]]=\"Fume Hood\",(G21/12)*(H21/12)*J21,\"Enter Value Manually\"))","v":""}]
[null,null,null,null,null,null,null,null,null,null,null,null,null,null,null,null,null,null,null,null,{"$f":"IF(ECD_Inputs[[#This Row],[Exposure Limit]]=\"\", \"\",VLOOKUP('ECD Input and Calculations'!N22,'Reference Tables'!$B$2:$D$36,3,FALSE))","v":""},{"$f":"IF(ECD_Inputs[[#This Row],[Quantity]]=\"\", \"\",VLOOKUP('ECD Input and Calculations'!O22,'Reference Tables'!$B$2:$D$36,3,FALSE))","v":""},{"$f":"IF(ECD_Inputs[[#This Row],[ Generation Potential]]=\"\", \"\",VLOOKUP('ECD Input and Calculations'!P22,'Reference Tables'!$B$2:$D$36,3,FALSE))","v":""},{"$f":"IF(ECD_Inputs[[#This Row],[ Generation Method]]=\"\", \"\", VLOOKUP('ECD Input and Calculations'!Q22,'Reference Tables'!$B$2:$D$36,3,FALSE))","v":""},{"$f":"IF(ECD_Inputs[[#This Row],[Generation Location]]=\"\", \"\",VLOOKUP('ECD Input and Calculations'!R22,'Reference Tables'!$B$2:$D$36,3,FALSE))","v":""},{"$f":"IF(ECD_Inputs[[#This Row],[Change Dynamics]]=\"\", \"\",VLOOKUP('ECD Input and Calculations'!S22,'Reference Tables'!$B$2:$D$36,3,FALSE))","v":""},{"$f":"IF(ECD_Inputs[[#This Row],[Housekeeping]]=\"\",\"\",VLOOKUP('ECD Input and Calculations'!T22,'Reference Tables'!$B$2:$D$36,3,FALSE))","v":""},{"$f":"IF(Table7[[#This Row],[Housekeeping Rating]]=\"\",\"\", ($M$1*U22)+($N$1*V22)+($O$1*W22)+($P$1*X22)+($Q$1*Y22)+($R$1*Z22)+($S$1*AA22))","v":""},{"$f":"IF(Table7[[#This Row],[Weighted Score]]=\"\", \"\", _xlfn.IFS(AND($AB22>='Reference Tables'!$I$2,'ECD Input and Calculations'!$AB22<='Reference Tables'!$I$3),0,AND('ECD Input and Calculations'!$AB22>='Reference Tables'!$I$4,'ECD Input and Calculations'!$AB22<='Reference Tables'!$I$5),1,AND('ECD Input and Calculations'!$AB22>='Reference Tables'!$I$6,'ECD Input and Calculations'!$AB22<='Reference Tables'!$I$7),2,AND('ECD Input and Calculations'!$AB22>='Reference Tables'!$I$8,'ECD Input and Calculations'!$AB22<='Reference Tables'!$I$9),3,AND('ECD Input and Calculations'!$AB22>='Reference Tables'!$I$10,'ECD Input and Calculations'!$AB22<='Reference Tables'!$I$11),4))","v":""},{"$f":"IF(Table7[[#This Row],[Risk Control Band]]=\"\", \"\",IF(D22=\"Fume Hood\",VLOOKUP(AC22,'Reference Tables'!$N$2:$O$11,2),\"N/A\"))","v":""},{"$f":"IF(ECD_Inputs[[#This Row],[Exposure Control Device]]=\"\",\"\", IF(ECD_Inputs[[#This Row],[Exposure Control Device]]=\"Fume Hood\",MAX(((Table7[[#This Row],[Min. Fume Hood Air Flow Requirement (ACH)]]/60)*((F22/12)*(H22/12)*(I22/12))),(((F22/12)*(H22/12))*ECD_Inputs[[#This Row],[Face Velocity (ft/min) ]])),\"Enter Value Manually\"))","v":""},{"$f":"IF(ECD_Inputs[[#This Row],[Exposure Control Device]]=\"\",\"\", IF(ECD_Inputs[[#This Row],[Exposure Control Device]]=\"Fume Hood\",(G22/12)*(H22/12)*J22,\"Enter Value Manually\"))","v":""}]
[null,null,null,null,null,null,null,null,null,null,null,null,null,null,null,null,null,null,null,null,{"$f":"IF(ECD_Inputs[[#This Row],[Exposure Limit]]=\"\", \"\",VLOOKUP('ECD Input and Calculations'!N23,'Reference Tables'!$B$2:$D$36,3,FALSE))","v":""},{"$f":"IF(ECD_Inputs[[#This Row],[Quantity]]=\"\", \"\",VLOOKUP('ECD Input and Calculations'!O23,'Reference Tables'!$B$2:$D$36,3,FALSE))","v":""},{"$f":"IF(ECD_Inputs[[#This Row],[ Generation Potential]]=\"\", \"\",VLOOKUP('ECD Input and Calculations'!P23,'Reference Tables'!$B$2:$D$36,3,FALSE))","v":""},{"$f":"IF(ECD_Inputs[[#This Row],[ Generation Method]]=\"\", \"\", VLOOKUP('ECD Input and Calculations'!Q23,'Reference Tables'!$B$2:$D$36,3,FALSE))","v":""},{"$f":"IF(ECD_Inputs[[#This Row],[Generation Location]]=\"\", \"\",VLOOKUP('ECD Input and Calculations'!R23,'Reference Tables'!$B$2:$D$36,3,FALSE))","v":""},{"$f":"IF(ECD_Inputs[[#This Row],[Change Dynamics]]=\"\", \"\",VLOOKUP('ECD Input and Calculations'!S23,'Reference Tables'!$B$2:$D$36,3,FALSE))","v":""},{"$f":"IF(ECD_Inputs[[#This Row],[Housekeeping]]=\"\",\"\",VLOOKUP('ECD Input and Calculations'!T23,'Reference Tables'!$B$2:$D$36,3,FALSE))","v":""},{"$f":"IF(Table7[[#This Row],[Housekeeping Rating]]=\"\",\"\", ($M$1*U23)+($N$1*V23)+($O$1*W23)+($P$1*X23)+($Q$1*Y23)+($R$1*Z23)+($S$1*AA23))","v":""},{"$f":"IF(Table7[[#This Row],[Weighted Score]]=\"\", \"\", _xlfn.IFS(AND($AB23>='Reference Tables'!$I$2,'ECD Input and Calculations'!$AB23<='Reference Tables'!$I$3),0,AND('ECD Input and Calculations'!$AB23>='Reference Tables'!$I$4,'ECD Input and Calculations'!$AB23<='Reference Tables'!$I$5),1,AND('ECD Input and Calculations'!$AB23>='Reference Tables'!$I$6,'ECD Input and Calculations'!$AB23<='Reference Tables'!$I$7),2,AND('ECD Input and Calculations'!$AB23>='Reference Tables'!$I$8,'ECD Input and Calculations'!$AB23<='Reference Tables'!$I$9),3,AND('ECD Input and Calculations'!$AB23>='Reference Tables'!$I$10,'ECD Input and Calculations'!$AB23<='Reference Tables'!$I$11),4))","v":""},{"$f":"IF(Table7[[#This Row],[Risk Control Band]]=\"\", \"\",IF(D23=\"Fume Hood\",VLOOKUP(AC23,'Reference Tables'!$N$2:$O$11,2),\"N/A\"))","v":""},{"$f":"IF(ECD_Inputs[[#This Row],[Exposure Control Device]]=\"\",\"\", IF(ECD_Inputs[[#This Row],[Exposure Control Device]]=\"Fume Hood\",MAX(((Table7[[#This Row],[Min. Fume Hood Air Flow Requirement (ACH)]]/60)*((F23/12)*(H23/12)*(I23/12))),(((F23/12)*(H23/12))*ECD_Inputs[[#This Row],[Face Velocity (ft/min) ]])),\"Enter Value Manually\"))","v":""},{"$f":"IF(ECD_Inputs[[#This Row],[Exposure Control Device]]=\"\",\"\", IF(ECD_Inputs[[#This Row],[Exposure Control Device]]=\"Fume Hood\",(G23/12)*(H23/12)*J23,\"Enter Value Manually\"))","v":""}]
[null,null,null,null,null,null,null,null,null,null,null,null,null,null,null,null,null,null,null,null,{"$f":"IF(ECD_Inputs[[#This Row],[Exposure Limit]]=\"\", \"\",VLOOKUP('ECD Input and Calculations'!N24,'Reference Tables'!$B$2:$D$36,3,FALSE))","v":""},{"$f":"IF(ECD_Inputs[[#This Row],[Quantity]]=\"\", \"\",VLOOKUP('ECD Input and Calculations'!O24,'Reference Tables'!$B$2:$D$36,3,FALSE))","v":""},{"$f":"IF(ECD_Inputs[[#This Row],[ Generation Potential]]=\"\", \"\",VLOOKUP('ECD Input and Calculations'!P24,'Reference Tables'!$B$2:$D$36,3,FALSE))","v":""},{"$f":"IF(ECD_Inputs[[#This Row],[ Generation Method]]=\"\", \"\", VLOOKUP('ECD Input and Calculations'!Q24,'Reference Tables'!$B$2:$D$36,3,FALSE))","v":""},{"$f":"IF(ECD_Inputs[[#This Row],[Generation Location]]=\"\", \"\",VLOOKUP('ECD Input and Calculations'!R24,'Reference Tables'!$B$2:$D$36,3,FALSE))","v":""},{"$f":"IF(ECD_Inputs[[#This Row],[Change Dynamics]]=\"\", \"\",VLOOKUP('ECD Input and Calculations'!S24,'Reference Tables'!$B$2:$D$36,3,FALSE))","v":""},{"$f":"IF(ECD_Inputs[[#This Row],[Housekeeping]]=\"\",\"\",VLOOKUP('ECD Input and Calculations'!T24,'Reference Tables'!$B$2:$D$36,3,FALSE))","v":""},{"$f":"IF(Table7[[#This Row],[Housekeeping Rating]]=\"\",\"\", ($M$1*U24)+($N$1*V24)+($O$1*W24)+($P$1*X24)+($Q$1*Y24)+($R$1*Z24)+($S$1*AA24))","v":""},{"$f":"IF(Table7[[#This Row],[Weighted Score]]=\"\", \"\", _xlfn.IFS(AND($AB24>='Reference Tables'!$I$2,'ECD Input and Calculations'!$AB24<='Reference Tables'!$I$3),0,AND('ECD Input and Calculations'!$AB24>='Reference Tables'!$I$4,'ECD Input and Calculations'!$AB24<='Reference Tables'!$I$5),1,AND('ECD Input and Calculations'!$AB24>='Reference Tables'!$I$6,'ECD Input and Calculations'!$AB24<='Reference Tables'!$I$7),2,AND('ECD Input and Calculations'!$AB24>='Reference Tables'!$I$8,'ECD Input and Calculations'!$AB24<='Reference Tables'!$I$9),3,AND('ECD Input and Calculations'!$AB24>='Reference Tables'!$I$10,'ECD Input and Calculations'!$AB24<='Reference Tables'!$I$11),4))","v":""},{"$f":"IF(Table7[[#This Row],[Risk Control Band]]=\"\", \"\",IF(D24=\"Fume Hood\",VLOOKUP(AC24,'Reference Tables'!$N$2:$O$11,2),\"N/A\"))","v":""},{"$f":"IF(ECD_Inputs[[#This Row],[Exposure Control Device]]=\"\",\"\", IF(ECD_Inputs[[#This Row],[Exposure Control Device]]=\"Fume Hood\",MAX(((Table7[[#This Row],[Min. Fume Hood Air Flow Requirement (ACH)]]/60)*((F24/12)*(H24/12)*(I24/12))),(((F24/12)*(H24/12))*ECD_Inputs[[#This Row],[Face Velocity (ft/min) ]])),\"Enter Value Manually\"))","v":""},{"$f":"IF(ECD_Inputs[[#This Row],[Exposure Control Device]]=\"\",\"\", IF(ECD_Inputs[[#This Row],[Exposure Control Device]]=\"Fume Hood\",(G24/12)*(H24/12)*J24,\"Enter Value Manually\"))","v":""}]
[null,null,null,null,null,null,null,null,null,null,null,null,null,null,null,null,null,null,null,null,{"$f":"IF(ECD_Inputs[[#This Row],[Exposure Limit]]=\"\", \"\",VLOOKUP('ECD Input and Calculations'!N25,'Reference Tables'!$B$2:$D$36,3,FALSE))","v":""},{"$f":"IF(ECD_Inputs[[#This Row],[Quantity]]=\"\", \"\",VLOOKUP('ECD Input and Calculations'!O25,'Reference Tables'!$B$2:$D$36,3,FALSE))","v":""},{"$f":"IF(ECD_Inputs[[#This Row],[ Generation Potential]]=\"\", \"\",VLOOKUP('ECD Input and Calculations'!P25,'Reference Tables'!$B$2:$D$36,3,FALSE))","v":""},{"$f":"IF(ECD_Inputs[[#This Row],[ Generation Method]]=\"\", \"\", VLOOKUP('ECD Input and Calculations'!Q25,'Reference Tables'!$B$2:$D$36,3,FALSE))","v":""},{"$f":"IF(ECD_Inputs[[#This Row],[Generation Location]]=\"\", \"\",VLOOKUP('ECD Input and Calculations'!R25,'Reference Tables'!$B$2:$D$36,3,FALSE))","v":""},{"$f":"IF(ECD_Inputs[[#This Row],[Change Dynamics]]=\"\", \"\",VLOOKUP('ECD Input and Calculations'!S25,'Reference Tables'!$B$2:$D$36,3,FALSE))","v":""},{"$f":"IF(ECD_Inputs[[#This Row],[Housekeeping]]=\"\",\"\",VLOOKUP('ECD Input and Calculations'!T25,'Reference Tables'!$B$2:$D$36,3,FALSE))","v":""},{"$f":"IF(Table7[[#This Row],[Housekeeping Rating]]=\"\",\"\", ($M$1*U25)+($N$1*V25)+($O$1*W25)+($P$1*X25)+($Q$1*Y25)+($R$1*Z25)+($S$1*AA25))","v":""},{"$f":"IF(Table7[[#This Row],[Weighted Score]]=\"\", \"\", _xlfn.IFS(AND($AB25>='Reference Tables'!$I$2,'ECD Input and Calculations'!$AB25<='Reference Tables'!$I$3),0,AND('ECD Input and Calculations'!$AB25>='Reference Tables'!$I$4,'ECD Input and Calculations'!$AB25<='Reference Tables'!$I$5),1,AND('ECD Input and Calculations'!$AB25>='Reference Tables'!$I$6,'ECD Input and Calculations'!$AB25<='Reference Tables'!$I$7),2,AND('ECD Input and Calculations'!$AB25>='Reference Tables'!$I$8,'ECD Input and Calculations'!$AB25<='Reference Tables'!$I$9),3,AND('ECD Input and Calculations'!$AB25>='Reference Tables'!$I$10,'ECD Input and Calculations'!$AB25<='Reference Tables'!$I$11),4))","v":""},{"$f":"IF(Table7[[#This Row],[Risk Control Band]]=\"\", \"\",IF(D25=\"Fume Hood\",VLOOKUP(AC25,'Reference Tables'!$N$2:$O$11,2),\"N/A\"))","v":""},{"$f":"IF(ECD_Inputs[[#This Row],[Exposure Control Device]]=\"\",\"\", IF(ECD_Inputs[[#This Row],[Exposure Control Device]]=\"Fume Hood\",MAX(((Table7[[#This Row],[Min. Fume Hood Air Flow Requirement (ACH)]]/60)*((F25/12)*(H25/12)*(I25/12))),(((F25/12)*(H25/12))*ECD_Inputs[[#This Row],[Face Velocity (ft/min) ]])),\"Enter Value Manually\"))","v":""},{"$f":"IF(ECD_Inputs[[#This Row],[Exposure Control Device]]=\"\",\"\", IF(ECD_Inputs[[#This Row],[Exposure Control Device]]=\"Fume Hood\",(G25/12)*(H25/12)*J25,\"Enter Value Manually\"))","v":""}]
[null,null,null,null,null,null,null,null,null,null,null,null,null,null,null,null,null,null,null,null,{"$f":"IF(ECD_Inputs[[#This Row],[Exposure Limit]]=\"\", \"\",VLOOKUP('ECD Input and Calculations'!N26,'Reference Tables'!$B$2:$D$36,3,FALSE))","v":""},{"$f":"IF(ECD_Inputs[[#This Row],[Quantity]]=\"\", \"\",VLOOKUP('ECD Input and Calculations'!O26,'Reference Tables'!$B$2:$D$36,3,FALSE))","v":""},{"$f":"IF(ECD_Inputs[[#This Row],[ Generation Potential]]=\"\", \"\",VLOOKUP('ECD Input and Calculations'!P26,'Reference Tables'!$B$2:$D$36,3,FALSE))","v":""},{"$f":"IF(ECD_Inputs[[#This Row],[ Generation Method]]=\"\", \"\", VLOOKUP('ECD Input and Calculations'!Q26,'Reference Tables'!$B$2:$D$36,3,FALSE))","v":""},{"$f":"IF(ECD_Inputs[[#This Row],[Generation Location]]=\"\", \"\",VLOOKUP('ECD Input and Calculations'!R26,'Reference Tables'!$B$2:$D$36,3,FALSE))","v":""},{"$f":"IF(ECD_Inputs[[#This Row],[Change Dynamics]]=\"\", \"\",VLOOKUP('ECD Input and Calculations'!S26,'Reference Tables'!$B$2:$D$36,3,FALSE))","v":""},{"$f":"IF(ECD_Inputs[[#This Row],[Housekeeping]]=\"\",\"\",VLOOKUP('ECD Input and Calculations'!T26,'Reference Tables'!$B$2:$D$36,3,FALSE))","v":""},{"$f":"IF(Table7[[#This Row],[Housekeeping Rating]]=\"\",\"\", ($M$1*U26)+($N$1*V26)+($O$1*W26)+($P$1*X26)+($Q$1*Y26)+($R$1*Z26)+($S$1*AA26))","v":""},{"$f":"IF(Table7[[#This Row],[Weighted Score]]=\"\", \"\", _xlfn.IFS(AND($AB26>='Reference Tables'!$I$2,'ECD Input and Calculations'!$AB26<='Reference Tables'!$I$3),0,AND('ECD Input and Calculations'!$AB26>='Reference Tables'!$I$4,'ECD Input and Calculations'!$AB26<='Reference Tables'!$I$5),1,AND('ECD Input and Calculations'!$AB26>='Reference Tables'!$I$6,'ECD Input and Calculations'!$AB26<='Reference Tables'!$I$7),2,AND('ECD Input and Calculations'!$AB26>='Reference Tables'!$I$8,'ECD Input and Calculations'!$AB26<='Reference Tables'!$I$9),3,AND('ECD Input and Calculations'!$AB26>='Reference Tables'!$I$10,'ECD Input and Calculations'!$AB26<='Reference Tables'!$I$11),4))","v":""},{"$f":"IF(Table7[[#This Row],[Risk Control Band]]=\"\", \"\",IF(D26=\"Fume Hood\",VLOOKUP(AC26,'Reference Tables'!$N$2:$O$11,2),\"N/A\"))","v":""},{"$f":"IF(ECD_Inputs[[#This Row],[Exposure Control Device]]=\"\",\"\", IF(ECD_Inputs[[#This Row],[Exposure Control Device]]=\"Fume Hood\",MAX(((Table7[[#This Row],[Min. Fume Hood Air Flow Requirement (ACH)]]/60)*((F26/12)*(H26/12)*(I26/12))),(((F26/12)*(H26/12))*ECD_Inputs[[#This Row],[Face Velocity (ft/min) ]])),\"Enter Value Manually\"))","v":""},{"$f":"IF(ECD_Inputs[[#This Row],[Exposure Control Device]]=\"\",\"\", IF(ECD_Inputs[[#This Row],[Exposure Control Device]]=\"Fume Hood\",(G26/12)*(H26/12)*J26,\"Enter Value Manually\"))","v":""}]
[null,null,null,null,null,null,null,null,null,null,null,null,null,null,null,null,null,null,null,null,{"$f":"IF(ECD_Inputs[[#This Row],[Exposure Limit]]=\"\", \"\",VLOOKUP('ECD Input and Calculations'!N27,'Reference Tables'!$B$2:$D$36,3,FALSE))","v":""},{"$f":"IF(ECD_Inputs[[#This Row],[Quantity]]=\"\", \"\",VLOOKUP('ECD Input and Calculations'!O27,'Reference Tables'!$B$2:$D$36,3,FALSE))","v":""},{"$f":"IF(ECD_Inputs[[#This Row],[ Generation Potential]]=\"\", \"\",VLOOKUP('ECD Input and Calculations'!P27,'Reference Tables'!$B$2:$D$36,3,FALSE))","v":""},{"$f":"IF(ECD_Inputs[[#This Row],[ Generation Method]]=\"\", \"\", VLOOKUP('ECD Input and Calculations'!Q27,'Reference Tables'!$B$2:$D$36,3,FALSE))","v":""},{"$f":"IF(ECD_Inputs[[#This Row],[Generation Location]]=\"\", \"\",VLOOKUP('ECD Input and Calculations'!R27,'Reference Tables'!$B$2:$D$36,3,FALSE))","v":""},{"$f":"IF(ECD_Inputs[[#This Row],[Change Dynamics]]=\"\", \"\",VLOOKUP('ECD Input and Calculations'!S27,'Reference Tables'!$B$2:$D$36,3,FALSE))","v":""},{"$f":"IF(ECD_Inputs[[#This Row],[Housekeeping]]=\"\",\"\",VLOOKUP('ECD Input and Calculations'!T27,'Reference Tables'!$B$2:$D$36,3,FALSE))","v":""},{"$f":"IF(Table7[[#This Row],[Housekeeping Rating]]=\"\",\"\", ($M$1*U27)+($N$1*V27)+($O$1*W27)+($P$1*X27)+($Q$1*Y27)+($R$1*Z27)+($S$1*AA27))","v":""},{"$f":"IF(Table7[[#This Row],[Weighted Score]]=\"\", \"\", _xlfn.IFS(AND($AB27>='Reference Tables'!$I$2,'ECD Input and Calculations'!$AB27<='Reference Tables'!$I$3),0,AND('ECD Input and Calculations'!$AB27>='Reference Tables'!$I$4,'ECD Input and Calculations'!$AB27<='Reference Tables'!$I$5),1,AND('ECD Input and Calculations'!$AB27>='Reference Tables'!$I$6,'ECD Input and Calculations'!$AB27<='Reference Tables'!$I$7),2,AND('ECD Input and Calculations'!$AB27>='Reference Tables'!$I$8,'ECD Input and Calculations'!$AB27<='Reference Tables'!$I$9),3,AND('ECD Input and Calculations'!$AB27>='Reference Tables'!$I$10,'ECD Input and Calculations'!$AB27<='Reference Tables'!$I$11),4))","v":""},{"$f":"IF(Table7[[#This Row],[Risk Control Band]]=\"\", \"\",IF(D27=\"Fume Hood\",VLOOKUP(AC27,'Reference Tables'!$N$2:$O$11,2),\"N/A\"))","v":""},{"$f":"IF(ECD_Inputs[[#This Row],[Exposure Control Device]]=\"\",\"\", IF(ECD_Inputs[[#This Row],[Exposure Control Device]]=\"Fume Hood\",MAX(((Table7[[#This Row],[Min. Fume Hood Air Flow Requirement (ACH)]]/60)*((F27/12)*(H27/12)*(I27/12))),(((F27/12)*(H27/12))*ECD_Inputs[[#This Row],[Face Velocity (ft/min) ]])),\"Enter Value Manually\"))","v":""},{"$f":"IF(ECD_Inputs[[#This Row],[Exposure Control Device]]=\"\",\"\", IF(ECD_Inputs[[#This Row],[Exposure Control Device]]=\"Fume Hood\",(G27/12)*(H27/12)*J27,\"Enter Value Manually\"))","v":""}]
[null,null,null,null,null,null,null,null,null,null,null,null,null,null,null,null,null,null,null,null,{"$f":"IF(ECD_Inputs[[#This Row],[Exposure Limit]]=\"\", \"\",VLOOKUP('ECD Input and Calculations'!N28,'Reference Tables'!$B$2:$D$36,3,FALSE))","v":""},{"$f":"IF(ECD_Inputs[[#This Row],[Quantity]]=\"\", \"\",VLOOKUP('ECD Input and Calculations'!O28,'Reference Tables'!$B$2:$D$36,3,FALSE))","v":""},{"$f":"IF(ECD_Inputs[[#This Row],[ Generation Potential]]=\"\", \"\",VLOOKUP('ECD Input and Calculations'!P28,'Reference Tables'!$B$2:$D$36,3,FALSE))","v":""},{"$f":"IF(ECD_Inputs[[#This Row],[ Generation Method]]=\"\", \"\", VLOOKUP('ECD Input and Calculations'!Q28,'Reference Tables'!$B$2:$D$36,3,FALSE))","v":""},{"$f":"IF(ECD_Inputs[[#This Row],[Generation Location]]=\"\", \"\",VLOOKUP('ECD Input and Calculations'!R28,'Reference Tables'!$B$2:$D$36,3,FALSE))","v":""},{"$f":"IF(ECD_Inputs[[#This Row],[Change Dynamics]]=\"\", \"\",VLOOKUP('ECD Input and Calculations'!S28,'Reference Tables'!$B$2:$D$36,3,FALSE))","v":""},{"$f":"IF(ECD_Inputs[[#This Row],[Housekeeping]]=\"\",\"\",VLOOKUP('ECD Input and Calculations'!T28,'Reference Tables'!$B$2:$D$36,3,FALSE))","v":""},{"$f":"IF(Table7[[#This Row],[Housekeeping Rating]]=\"\",\"\", ($M$1*U28)+($N$1*V28)+($O$1*W28)+($P$1*X28)+($Q$1*Y28)+($R$1*Z28)+($S$1*AA28))","v":""},{"$f":"IF(Table7[[#This Row],[Weighted Score]]=\"\", \"\", _xlfn.IFS(AND($AB28>='Reference Tables'!$I$2,'ECD Input and Calculations'!$AB28<='Reference Tables'!$I$3),0,AND('ECD Input and Calculations'!$AB28>='Reference Tables'!$I$4,'ECD Input and Calculations'!$AB28<='Reference Tables'!$I$5),1,AND('ECD Input and Calculations'!$AB28>='Reference Tables'!$I$6,'ECD Input and Calculations'!$AB28<='Reference Tables'!$I$7),2,AND('ECD Input and Calculations'!$AB28>='Reference Tables'!$I$8,'ECD Input and Calculations'!$AB28<='Reference Tables'!$I$9),3,AND('ECD Input and Calculations'!$AB28>='Reference Tables'!$I$10,'ECD Input and Calculations'!$AB28<='Reference Tables'!$I$11),4))","v":""},{"$f":"IF(Table7[[#This Row],[Risk Control Band]]=\"\", \"\",IF(D28=\"Fume Hood\",VLOOKUP(AC28,'Reference Tables'!$N$2:$O$11,2),\"N/A\"))","v":""},{"$f":"IF(ECD_Inputs[[#This Row],[Exposure Control Device]]=\"\",\"\", IF(ECD_Inputs[[#This Row],[Exposure Control Device]]=\"Fume Hood\",MAX(((Table7[[#This Row],[Min. Fume Hood Air Flow Requirement (ACH)]]/60)*((F28/12)*(H28/12)*(I28/12))),(((F28/12)*(H28/12))*ECD_Inputs[[#This Row],[Face Velocity (ft/min) ]])),\"Enter Value Manually\"))","v":""},{"$f":"IF(ECD_Inputs[[#This Row],[Exposure Control Device]]=\"\",\"\", IF(ECD_Inputs[[#This Row],[Exposure Control Device]]=\"Fume Hood\",(G28/12)*(H28/12)*J28,\"Enter Value Manually\"))","v":""}]
[null,null,null,null,null,null,null,null,null,null,null,null,null,null,null,null,null,null,null,null,{"$f":"IF(ECD_Inputs[[#This Row],[Exposure Limit]]=\"\", \"\",VLOOKUP('ECD Input and Calculations'!N29,'Reference Tables'!$B$2:$D$36,3,FALSE))","v":""},{"$f":"IF(ECD_Inputs[[#This Row],[Quantity]]=\"\", \"\",VLOOKUP('ECD Input and Calculations'!O29,'Reference Tables'!$B$2:$D$36,3,FALSE))","v":""},{"$f":"IF(ECD_Inputs[[#This Row],[ Generation Potential]]=\"\", \"\",VLOOKUP('ECD Input and Calculations'!P29,'Reference Tables'!$B$2:$D$36,3,FALSE))","v":""},{"$f":"IF(ECD_Inputs[[#This Row],[ Generation Method]]=\"\", \"\", VLOOKUP('ECD Input and Calculations'!Q29,'Reference Tables'!$B$2:$D$36,3,FALSE))","v":""},{"$f":"IF(ECD_Inputs[[#This Row],[Generation Location]]=\"\", \"\",VLOOKUP('ECD Input and Calculations'!R29,'Reference Tables'!$B$2:$D$36,3,FALSE))","v":""},{"$f":"IF(ECD_Inputs[[#This Row],[Change Dynamics]]=\"\", \"\",VLOOKUP('ECD Input and Calculations'!S29,'Reference Tables'!$B$2:$D$36,3,FALSE))","v":""},{"$f":"IF(ECD_Inputs[[#This Row],[Housekeeping]]=\"\",\"\",VLOOKUP('ECD Input and Calculations'!T29,'Reference Tables'!$B$2:$D$36,3,FALSE))","v":""},{"$f":"IF(Table7[[#This Row],[Housekeeping Rating]]=\"\",\"\", ($M$1*U29)+($N$1*V29)+($O$1*W29)+($P$1*X29)+($Q$1*Y29)+($R$1*Z29)+($S$1*AA29))","v":""},{"$f":"IF(Table7[[#This Row],[Weighted Score]]=\"\", \"\", _xlfn.IFS(AND($AB29>='Reference Tables'!$I$2,'ECD Input and Calculations'!$AB29<='Reference Tables'!$I$3),0,AND('ECD Input and Calculations'!$AB29>='Reference Tables'!$I$4,'ECD Input and Calculations'!$AB29<='Reference Tables'!$I$5),1,AND('ECD Input and Calculations'!$AB29>='Reference Tables'!$I$6,'ECD Input and Calculations'!$AB29<='Reference Tables'!$I$7),2,AND('ECD Input and Calculations'!$AB29>='Reference Tables'!$I$8,'ECD Input and Calculations'!$AB29<='Reference Tables'!$I$9),3,AND('ECD Input and Calculations'!$AB29>='Reference Tables'!$I$10,'ECD Input and Calculations'!$AB29<='Reference Tables'!$I$11),4))","v":""},{"$f":"IF(Table7[[#This Row],[Risk Control Band]]=\"\", \"\",IF(D29=\"Fume Hood\",VLOOKUP(AC29,'Reference Tables'!$N$2:$O$11,2),\"N/A\"))","v":""},{"$f":"IF(ECD_Inputs[[#This Row],[Exposure Control Device]]=\"\",\"\", IF(ECD_Inputs[[#This Row],[Exposure Control Device]]=\"Fume Hood\",MAX(((Table7[[#This Row],[Min. Fume Hood Air Flow Requirement (ACH)]]/60)*((F29/12)*(H29/12)*(I29/12))),(((F29/12)*(H29/12))*ECD_Inputs[[#This Row],[Face Velocity (ft/min) ]])),\"Enter Value Manually\"))","v":""},{"$f":"IF(ECD_Inputs[[#This Row],[Exposure Control Device]]=\"\",\"\", IF(ECD_Inputs[[#This Row],[Exposure Control Device]]=\"Fume Hood\",(G29/12)*(H29/12)*J29,\"Enter Value Manually\"))","v":""}]
[null,null,null,null,null,null,null,null,null,null,null,null,null,null,null,null,null,null,null,null,{"$f":"IF(ECD_Inputs[[#This Row],[Exposure Limit]]=\"\", \"\",VLOOKUP('ECD Input and Calculations'!N30,'Reference Tables'!$B$2:$D$36,3,FALSE))","v":""},{"$f":"IF(ECD_Inputs[[#This Row],[Quantity]]=\"\", \"\",VLOOKUP('ECD Input and Calculations'!O30,'Reference Tables'!$B$2:$D$36,3,FALSE))","v":""},{"$f":"IF(ECD_Inputs[[#This Row],[ Generation Potential]]=\"\", \"\",VLOOKUP('ECD Input and Calculations'!P30,'Reference Tables'!$B$2:$D$36,3,FALSE))","v":""},{"$f":"IF(ECD_Inputs[[#This Row],[ Generation Method]]=\"\", \"\", VLOOKUP('ECD Input and Calculations'!Q30,'Reference Tables'!$B$2:$D$36,3,FALSE))","v":""},{"$f":"IF(ECD_Inputs[[#This Row],[Generation Location]]=\"\", \"\",VLOOKUP('ECD Input and Calculations'!R30,'Reference Tables'!$B$2:$D$36,3,FALSE))","v":""},{"$f":"IF(ECD_Inputs[[#This Row],[Change Dynamics]]=\"\", \"\",VLOOKUP('ECD Input and Calculations'!S30,'Reference Tables'!$B$2:$D$36,3,FALSE))","v":""},{"$f":"IF(ECD_Inputs[[#This Row],[Housekeeping]]=\"\",\"\",VLOOKUP('ECD Input and Calculations'!T30,'Reference Tables'!$B$2:$D$36,3,FALSE))","v":""},{"$f":"IF(Table7[[#This Row],[Housekeeping Rating]]=\"\",\"\", ($M$1*U30)+($N$1*V30)+($O$1*W30)+($P$1*X30)+($Q$1*Y30)+($R$1*Z30)+($S$1*AA30))","v":""},{"$f":"IF(Table7[[#This Row],[Weighted Score]]=\"\", \"\", _xlfn.IFS(AND($AB30>='Reference Tables'!$I$2,'ECD Input and Calculations'!$AB30<='Reference Tables'!$I$3),0,AND('ECD Input and Calculations'!$AB30>='Reference Tables'!$I$4,'ECD Input and Calculations'!$AB30<='Reference Tables'!$I$5),1,AND('ECD Input and Calculations'!$AB30>='Reference Tables'!$I$6,'ECD Input and Calculations'!$AB30<='Reference Tables'!$I$7),2,AND('ECD Input and Calculations'!$AB30>='Reference Tables'!$I$8,'ECD Input and Calculations'!$AB30<='Reference Tables'!$I$9),3,AND('ECD Input and Calculations'!$AB30>='Reference Tables'!$I$10,'ECD Input and Calculations'!$AB30<='Reference Tables'!$I$11),4))","v":""},{"$f":"IF(Table7[[#This Row],[Risk Control Band]]=\"\", \"\",IF(D30=\"Fume Hood\",VLOOKUP(AC30,'Reference Tables'!$N$2:$O$11,2),\"N/A\"))","v":""},{"$f":"IF(ECD_Inputs[[#This Row],[Exposure Control Device]]=\"\",\"\", IF(ECD_Inputs[[#This Row],[Exposure Control Device]]=\"Fume Hood\",MAX(((Table7[[#This Row],[Min. Fume Hood Air Flow Requirement (ACH)]]/60)*((F30/12)*(H30/12)*(I30/12))),(((F30/12)*(H30/12))*ECD_Inputs[[#This Row],[Face Velocity (ft/min) ]])),\"Enter Value Manually\"))","v":""},{"$f":"IF(ECD_Inputs[[#This Row],[Exposure Control Device]]=\"\",\"\", IF(ECD_Inputs[[#This Row],[Exposure Control Device]]=\"Fume Hood\",(G30/12)*(H30/12)*J30,\"Enter Value Manually\"))","v":""}]
[null,null,null,null,null,null,null,null,null,null,null,null,null,null,null,null,null,null,null,null,{"$f":"IF(ECD_Inputs[[#This Row],[Exposure Limit]]=\"\", \"\",VLOOKUP('ECD Input and Calculations'!N31,'Reference Tables'!$B$2:$D$36,3,FALSE))","v":""},{"$f":"IF(ECD_Inputs[[#This Row],[Quantity]]=\"\", \"\",VLOOKUP('ECD Input and Calculations'!O31,'Reference Tables'!$B$2:$D$36,3,FALSE))","v":""},{"$f":"IF(ECD_Inputs[[#This Row],[ Generation Potential]]=\"\", \"\",VLOOKUP('ECD Input and Calculations'!P31,'Reference Tables'!$B$2:$D$36,3,FALSE))","v":""},{"$f":"IF(ECD_Inputs[[#This Row],[ Generation Method]]=\"\", \"\", VLOOKUP('ECD Input and Calculations'!Q31,'Reference Tables'!$B$2:$D$36,3,FALSE))","v":""},{"$f":"IF(ECD_Inputs[[#This Row],[Generation Location]]=\"\", \"\",VLOOKUP('ECD Input and Calculations'!R31,'Reference Tables'!$B$2:$D$36,3,FALSE))","v":""},{"$f":"IF(ECD_Inputs[[#This Row],[Change Dynamics]]=\"\", \"\",VLOOKUP('ECD Input and Calculations'!S31,'Reference Tables'!$B$2:$D$36,3,FALSE))","v":""},{"$f":"IF(ECD_Inputs[[#This Row],[Housekeeping]]=\"\",\"\",VLOOKUP('ECD Input and Calculations'!T31,'Reference Tables'!$B$2:$D$36,3,FALSE))","v":""},{"$f":"IF(Table7[[#This Row],[Housekeeping Rating]]=\"\",\"\", ($M$1*U31)+($N$1*V31)+($O$1*W31)+($P$1*X31)+($Q$1*Y31)+($R$1*Z31)+($S$1*AA31))","v":""},{"$f":"IF(Table7[[#This Row],[Weighted Score]]=\"\", \"\", _xlfn.IFS(AND($AB31>='Reference Tables'!$I$2,'ECD Input and Calculations'!$AB31<='Reference Tables'!$I$3),0,AND('ECD Input and Calculations'!$AB31>='Reference Tables'!$I$4,'ECD Input and Calculations'!$AB31<='Reference Tables'!$I$5),1,AND('ECD Input and Calculations'!$AB31>='Reference Tables'!$I$6,'ECD Input and Calculations'!$AB31<='Reference Tables'!$I$7),2,AND('ECD Input and Calculations'!$AB31>='Reference Tables'!$I$8,'ECD Input and Calculations'!$AB31<='Reference Tables'!$I$9),3,AND('ECD Input and Calculations'!$AB31>='Reference Tables'!$I$10,'ECD Input and Calculations'!$AB31<='Reference Tables'!$I$11),4))","v":""},{"$f":"IF(Table7[[#This Row],[Risk Control Band]]=\"\", \"\",IF(D31=\"Fume Hood\",VLOOKUP(AC31,'Reference Tables'!$N$2:$O$11,2),\"N/A\"))","v":""},{"$f":"IF(ECD_Inputs[[#This Row],[Exposure Control Device]]=\"\",\"\", IF(ECD_Inputs[[#This Row],[Exposure Control Device]]=\"Fume Hood\",MAX(((Table7[[#This Row],[Min. Fume Hood Air Flow Requirement (ACH)]]/60)*((F31/12)*(H31/12)*(I31/12))),(((F31/12)*(H31/12))*ECD_Inputs[[#This Row],[Face Velocity (ft/min) ]])),\"Enter Value Manually\"))","v":""},{"$f":"IF(ECD_Inputs[[#This Row],[Exposure Control Device]]=\"\",\"\", IF(ECD_Inputs[[#This Row],[Exposure Control Device]]=\"Fume Hood\",(G31/12)*(H31/12)*J31,\"Enter Value Manually\"))","v":""}]
[null,null,null,null,null,null,null,null,null,null,null,null,null,null,null,null,null,null,null,null,{"$f":"IF(ECD_Inputs[[#This Row],[Exposure Limit]]=\"\", \"\",VLOOKUP('ECD Input and Calculations'!N32,'Reference Tables'!$B$2:$D$36,3,FALSE))","v":""},{"$f":"IF(ECD_Inputs[[#This Row],[Quantity]]=\"\", \"\",VLOOKUP('ECD Input and Calculations'!O32,'Reference Tables'!$B$2:$D$36,3,FALSE))","v":""},{"$f":"IF(ECD_Inputs[[#This Row],[ Generation Potential]]=\"\", \"\",VLOOKUP('ECD Input and Calculations'!P32,'Reference Tables'!$B$2:$D$36,3,FALSE))","v":""},{"$f":"IF(ECD_Inputs[[#This Row],[ Generation Method]]=\"\", \"\", VLOOKUP('ECD Input and Calculations'!Q32,'Reference Tables'!$B$2:$D$36,3,FALSE))","v":""},{"$f":"IF(ECD_Inputs[[#This Row],[Generation Location]]=\"\", \"\",VLOOKUP('ECD Input and Calculations'!R32,'Reference Tables'!$B$2:$D$36,3,FALSE))","v":""},{"$f":"IF(ECD_Inputs[[#This Row],[Change Dynamics]]=\"\", \"\",VLOOKUP('ECD Input and Calculations'!S32,'Reference Tables'!$B$2:$D$36,3,FALSE))","v":""},{"$f":"IF(ECD_Inputs[[#This Row],[Housekeeping]]=\"\",\"\",VLOOKUP('ECD Input and Calculations'!T32,'Reference Tables'!$B$2:$D$36,3,FALSE))","v":""},{"$f":"IF(Table7[[#This Row],[Housekeeping Rating]]=\"\",\"\", ($M$1*U32)+($N$1*V32)+($O$1*W32)+($P$1*X32)+($Q$1*Y32)+($R$1*Z32)+($S$1*AA32))","v":""},{"$f":"IF(Table7[[#This Row],[Weighted Score]]=\"\", \"\", _xlfn.IFS(AND($AB32>='Reference Tables'!$I$2,'ECD Input and Calculations'!$AB32<='Reference Tables'!$I$3),0,AND('ECD Input and Calculations'!$AB32>='Reference Tables'!$I$4,'ECD Input and Calculations'!$AB32<='Reference Tables'!$I$5),1,AND('ECD Input and Calculations'!$AB32>='Reference Tables'!$I$6,'ECD Input and Calculations'!$AB32<='Reference Tables'!$I$7),2,AND('ECD Input and Calculations'!$AB32>='Reference Tables'!$I$8,'ECD Input and Calculations'!$AB32<='Reference Tables'!$I$9),3,AND('ECD Input and Calculations'!$AB32>='Reference Tables'!$I$10,'ECD Input and Calculations'!$AB32<='Reference Tables'!$I$11),4))","v":""},{"$f":"IF(Table7[[#This Row],[Risk Control Band]]=\"\", \"\",IF(D32=\"Fume Hood\",VLOOKUP(AC32,'Reference Tables'!$N$2:$O$11,2),\"N/A\"))","v":""},{"$f":"IF(ECD_Inputs[[#This Row],[Exposure Control Device]]=\"\",\"\", IF(ECD_Inputs[[#This Row],[Exposure Control Device]]=\"Fume Hood\",MAX(((Table7[[#This Row],[Min. Fume Hood Air Flow Requirement (ACH)]]/60)*((F32/12)*(H32/12)*(I32/12))),(((F32/12)*(H32/12))*ECD_Inputs[[#This Row],[Face Velocity (ft/min) ]])),\"Enter Value Manually\"))","v":""},{"$f":"IF(ECD_Inputs[[#This Row],[Exposure Control Device]]=\"\",\"\", IF(ECD_Inputs[[#This Row],[Exposure Control Device]]=\"Fume Hood\",(G32/12)*(H32/12)*J32,\"Enter Value Manually\"))","v":""}]
[null,null,null,null,null,null,null,null,null,null,null,null,null,null,null,null,null,null,null,null,{"$f":"IF(ECD_Inputs[[#This Row],[Exposure Limit]]=\"\", \"\",VLOOKUP('ECD Input and Calculations'!N33,'Reference Tables'!$B$2:$D$36,3,FALSE))","v":""},{"$f":"IF(ECD_Inputs[[#This Row],[Quantity]]=\"\", \"\",VLOOKUP('ECD Input and Calculations'!O33,'Reference Tables'!$B$2:$D$36,3,FALSE))","v":""},{"$f":"IF(ECD_Inputs[[#This Row],[ Generation Potential]]=\"\", \"\",VLOOKUP('ECD Input and Calculations'!P33,'Reference Tables'!$B$2:$D$36,3,FALSE))","v":""},{"$f":"IF(ECD_Inputs[[#This Row],[ Generation Method]]=\"\", \"\", VLOOKUP('ECD Input and Calculations'!Q33,'Reference Tables'!$B$2:$D$36,3,FALSE))","v":""},{"$f":"IF(ECD_Inputs[[#This Row],[Generation Location]]=\"\", \"\",VLOOKUP('ECD Input and Calculations'!R33,'Reference Tables'!$B$2:$D$36,3,FALSE))","v":""},{"$f":"IF(ECD_Inputs[[#This Row],[Change Dynamics]]=\"\", \"\",VLOOKUP('ECD Input and Calculations'!S33,'Reference Tables'!$B$2:$D$36,3,FALSE))","v":""},{"$f":"IF(ECD_Inputs[[#This Row],[Housekeeping]]=\"\",\"\",VLOOKUP('ECD Input and Calculations'!T33,'Reference Tables'!$B$2:$D$36,3,FALSE))","v":""},{"$f":"IF(Table7[[#This Row],[Housekeeping Rating]]=\"\",\"\", ($M$1*U33)+($N$1*V33)+($O$1*W33)+($P$1*X33)+($Q$1*Y33)+($R$1*Z33)+($S$1*AA33))","v":""},{"$f":"IF(Table7[[#This Row],[Weighted Score]]=\"\", \"\", _xlfn.IFS(AND($AB33>='Reference Tables'!$I$2,'ECD Input and Calculations'!$AB33<='Reference Tables'!$I$3),0,AND('ECD Input and Calculations'!$AB33>='Reference Tables'!$I$4,'ECD Input and Calculations'!$AB33<='Reference Tables'!$I$5),1,AND('ECD Input and Calculations'!$AB33>='Reference Tables'!$I$6,'ECD Input and Calculations'!$AB33<='Reference Tables'!$I$7),2,AND('ECD Input and Calculations'!$AB33>='Reference Tables'!$I$8,'ECD Input and Calculations'!$AB33<='Reference Tables'!$I$9),3,AND('ECD Input and Calculations'!$AB33>='Reference Tables'!$I$10,'ECD Input and Calculations'!$AB33<='Reference Tables'!$I$11),4))","v":""},{"$f":"IF(Table7[[#This Row],[Risk Control Band]]=\"\", \"\",IF(D33=\"Fume Hood\",VLOOKUP(AC33,'Reference Tables'!$N$2:$O$11,2),\"N/A\"))","v":""},{"$f":"IF(ECD_Inputs[[#This Row],[Exposure Control Device]]=\"\",\"\", IF(ECD_Inputs[[#This Row],[Exposure Control Device]]=\"Fume Hood\",MAX(((Table7[[#This Row],[Min. Fume Hood Air Flow Requirement (ACH)]]/60)*((F33/12)*(H33/12)*(I33/12))),(((F33/12)*(H33/12))*ECD_Inputs[[#This Row],[Face Velocity (ft/min) ]])),\"Enter Value Manually\"))","v":""},{"$f":"IF(ECD_Inputs[[#This Row],[Exposure Control Device]]=\"\",\"\", IF(ECD_Inputs[[#This Row],[Exposure Control Device]]=\"Fume Hood\",(G33/12)*(H33/12)*J33,\"Enter Value Manually\"))","v":""}]
[null,null,null,null,null,null,null,null,null,null,null,null,null,null,null,null,null,null,null,null,{"$f":"IF(ECD_Inputs[[#This Row],[Exposure Limit]]=\"\", \"\",VLOOKUP('ECD Input and Calculations'!N34,'Reference Tables'!$B$2:$D$36,3,FALSE))","v":""},{"$f":"IF(ECD_Inputs[[#This Row],[Quantity]]=\"\", \"\",VLOOKUP('ECD Input and Calculations'!O34,'Reference Tables'!$B$2:$D$36,3,FALSE))","v":""},{"$f":"IF(ECD_Inputs[[#This Row],[ Generation Potential]]=\"\", \"\",VLOOKUP('ECD Input and Calculations'!P34,'Reference Tables'!$B$2:$D$36,3,FALSE))","v":""},{"$f":"IF(ECD_Inputs[[#This Row],[ Generation Method]]=\"\", \"\", VLOOKUP('ECD Input and Calculations'!Q34,'Reference Tables'!$B$2:$D$36,3,FALSE))","v":""},{"$f":"IF(ECD_Inputs[[#This Row],[Generation Location]]=\"\", \"\",VLOOKUP('ECD Input and Calculations'!R34,'Reference Tables'!$B$2:$D$36,3,FALSE))","v":""},{"$f":"IF(ECD_Inputs[[#This Row],[Change Dynamics]]=\"\", \"\",VLOOKUP('ECD Input and Calculations'!S34,'Reference Tables'!$B$2:$D$36,3,FALSE))","v":""},{"$f":"IF(ECD_Inputs[[#This Row],[Housekeeping]]=\"\",\"\",VLOOKUP('ECD Input and Calculations'!T34,'Reference Tables'!$B$2:$D$36,3,FALSE))","v":""},{"$f":"IF(Table7[[#This Row],[Housekeeping Rating]]=\"\",\"\", ($M$1*U34)+($N$1*V34)+($O$1*W34)+($P$1*X34)+($Q$1*Y34)+($R$1*Z34)+($S$1*AA34))","v":""},{"$f":"IF(Table7[[#This Row],[Weighted Score]]=\"\", \"\", _xlfn.IFS(AND($AB34>='Reference Tables'!$I$2,'ECD Input and Calculations'!$AB34<='Reference Tables'!$I$3),0,AND('ECD Input and Calculations'!$AB34>='Reference Tables'!$I$4,'ECD Input and Calculations'!$AB34<='Reference Tables'!$I$5),1,AND('ECD Input and Calculations'!$AB34>='Reference Tables'!$I$6,'ECD Input and Calculations'!$AB34<='Reference Tables'!$I$7),2,AND('ECD Input and Calculations'!$AB34>='Reference Tables'!$I$8,'ECD Input and Calculations'!$AB34<='Reference Tables'!$I$9),3,AND('ECD Input and Calculations'!$AB34>='Reference Tables'!$I$10,'ECD Input and Calculations'!$AB34<='Reference Tables'!$I$11),4))","v":""},{"$f":"IF(Table7[[#This Row],[Risk Control Band]]=\"\", \"\",IF(D34=\"Fume Hood\",VLOOKUP(AC34,'Reference Tables'!$N$2:$O$11,2),\"N/A\"))","v":""},{"$f":"IF(ECD_Inputs[[#This Row],[Exposure Control Device]]=\"\",\"\", IF(ECD_Inputs[[#This Row],[Exposure Control Device]]=\"Fume Hood\",MAX(((Table7[[#This Row],[Min. Fume Hood Air Flow Requirement (ACH)]]/60)*((F34/12)*(H34/12)*(I34/12))),(((F34/12)*(H34/12))*ECD_Inputs[[#This Row],[Face Velocity (ft/min) ]])),\"Enter Value Manually\"))","v":""},{"$f":"IF(ECD_Inputs[[#This Row],[Exposure Control Device]]=\"\",\"\", IF(ECD_Inputs[[#This Row],[Exposure Control Device]]=\"Fume Hood\",(G34/12)*(H34/12)*J34,\"Enter Value Manually\"))","v":""}]
[null,null,null,null,null,null,null,null,null,null,null,null,null,null,null,null,null,null,null,null,{"$f":"IF(ECD_Inputs[[#This Row],[Exposure Limit]]=\"\", \"\",VLOOKUP('ECD Input and Calculations'!N35,'Reference Tables'!$B$2:$D$36,3,FALSE))","v":""},{"$f":"IF(ECD_Inputs[[#This Row],[Quantity]]=\"\", \"\",VLOOKUP('ECD Input and Calculations'!O35,'Reference Tables'!$B$2:$D$36,3,FALSE))","v":""},{"$f":"IF(ECD_Inputs[[#This Row],[ Generation Potential]]=\"\", \"\",VLOOKUP('ECD Input and Calculations'!P35,'Reference Tables'!$B$2:$D$36,3,FALSE))","v":""},{"$f":"IF(ECD_Inputs[[#This Row],[ Generation Method]]=\"\", \"\", VLOOKUP('ECD Input and Calculations'!Q35,'Reference Tables'!$B$2:$D$36,3,FALSE))","v":""},{"$f":"IF(ECD_Inputs[[#This Row],[Generation Location]]=\"\", \"\",VLOOKUP('ECD Input and Calculations'!R35,'Reference Tables'!$B$2:$D$36,3,FALSE))","v":""},{"$f":"IF(ECD_Inputs[[#This Row],[Change Dynamics]]=\"\", \"\",VLOOKUP('ECD Input and Calculations'!S35,'Reference Tables'!$B$2:$D$36,3,FALSE))","v":""},{"$f":"IF(ECD_Inputs[[#This Row],[Housekeeping]]=\"\",\"\",VLOOKUP('ECD Input and Calculations'!T35,'Reference Tables'!$B$2:$D$36,3,FALSE))","v":""},{"$f":"IF(Table7[[#This Row],[Housekeeping Rating]]=\"\",\"\", ($M$1*U35)+($N$1*V35)+($O$1*W35)+($P$1*X35)+($Q$1*Y35)+($R$1*Z35)+($S$1*AA35))","v":""},{"$f":"IF(Table7[[#This Row],[Weighted Score]]=\"\", \"\", _xlfn.IFS(AND($AB35>='Reference Tables'!$I$2,'ECD Input and Calculations'!$AB35<='Reference Tables'!$I$3),0,AND('ECD Input and Calculations'!$AB35>='Reference Tables'!$I$4,'ECD Input and Calculations'!$AB35<='Reference Tables'!$I$5),1,AND('ECD Input and Calculations'!$AB35>='Reference Tables'!$I$6,'ECD Input and Calculations'!$AB35<='Reference Tables'!$I$7),2,AND('ECD Input and Calculations'!$AB35>='Reference Tables'!$I$8,'ECD Input and Calculations'!$AB35<='Reference Tables'!$I$9),3,AND('ECD Input and Calculations'!$AB35>='Reference Tables'!$I$10,'ECD Input and Calculations'!$AB35<='Reference Tables'!$I$11),4))","v":""},{"$f":"IF(Table7[[#This Row],[Risk Control Band]]=\"\", \"\",IF(D35=\"Fume Hood\",VLOOKUP(AC35,'Reference Tables'!$N$2:$O$11,2),\"N/A\"))","v":""},{"$f":"IF(ECD_Inputs[[#This Row],[Exposure Control Device]]=\"\",\"\", IF(ECD_Inputs[[#This Row],[Exposure Control Device]]=\"Fume Hood\",MAX(((Table7[[#This Row],[Min. Fume Hood Air Flow Requirement (ACH)]]/60)*((F35/12)*(H35/12)*(I35/12))),(((F35/12)*(H35/12))*ECD_Inputs[[#This Row],[Face Velocity (ft/min) ]])),\"Enter Value Manually\"))","v":""},{"$f":"IF(ECD_Inputs[[#This Row],[Exposure Control Device]]=\"\",\"\", IF(ECD_Inputs[[#This Row],[Exposure Control Device]]=\"Fume Hood\",(G35/12)*(H35/12)*J35,\"Enter Value Manually\"))","v":""}]
[null,null,null,null,null,null,null,null,null,null,null,null,null,null,null,null,null,null,null,null,{"$f":"IF(ECD_Inputs[[#This Row],[Exposure Limit]]=\"\", \"\",VLOOKUP('ECD Input and Calculations'!N36,'Reference Tables'!$B$2:$D$36,3,FALSE))","v":""},{"$f":"IF(ECD_Inputs[[#This Row],[Quantity]]=\"\", \"\",VLOOKUP('ECD Input and Calculations'!O36,'Reference Tables'!$B$2:$D$36,3,FALSE))","v":""},{"$f":"IF(ECD_Inputs[[#This Row],[ Generation Potential]]=\"\", \"\",VLOOKUP('ECD Input and Calculations'!P36,'Reference Tables'!$B$2:$D$36,3,FALSE))","v":""},{"$f":"IF(ECD_Inputs[[#This Row],[ Generation Method]]=\"\", \"\", VLOOKUP('ECD Input and Calculations'!Q36,'Reference Tables'!$B$2:$D$36,3,FALSE))","v":""},{"$f":"IF(ECD_Inputs[[#This Row],[Generation Location]]=\"\", \"\",VLOOKUP('ECD Input and Calculations'!R36,'Reference Tables'!$B$2:$D$36,3,FALSE))","v":""},{"$f":"IF(ECD_Inputs[[#This Row],[Change Dynamics]]=\"\", \"\",VLOOKUP('ECD Input and Calculations'!S36,'Reference Tables'!$B$2:$D$36,3,FALSE))","v":""},{"$f":"IF(ECD_Inputs[[#This Row],[Housekeeping]]=\"\",\"\",VLOOKUP('ECD Input and Calculations'!T36,'Reference Tables'!$B$2:$D$36,3,FALSE))","v":""},{"$f":"IF(Table7[[#This Row],[Housekeeping Rating]]=\"\",\"\", ($M$1*U36)+($N$1*V36)+($O$1*W36)+($P$1*X36)+($Q$1*Y36)+($R$1*Z36)+($S$1*AA36))","v":""},{"$f":"IF(Table7[[#This Row],[Weighted Score]]=\"\", \"\", _xlfn.IFS(AND($AB36>='Reference Tables'!$I$2,'ECD Input and Calculations'!$AB36<='Reference Tables'!$I$3),0,AND('ECD Input and Calculations'!$AB36>='Reference Tables'!$I$4,'ECD Input and Calculations'!$AB36<='Reference Tables'!$I$5),1,AND('ECD Input and Calculations'!$AB36>='Reference Tables'!$I$6,'ECD Input and Calculations'!$AB36<='Reference Tables'!$I$7),2,AND('ECD Input and Calculations'!$AB36>='Reference Tables'!$I$8,'ECD Input and Calculations'!$AB36<='Reference Tables'!$I$9),3,AND('ECD Input and Calculations'!$AB36>='Reference Tables'!$I$10,'ECD Input and Calculations'!$AB36<='Reference Tables'!$I$11),4))","v":""},{"$f":"IF(Table7[[#This Row],[Risk Control Band]]=\"\", \"\",IF(D36=\"Fume Hood\",VLOOKUP(AC36,'Reference Tables'!$N$2:$O$11,2),\"N/A\"))","v":""},{"$f":"IF(ECD_Inputs[[#This Row],[Exposure Control Device]]=\"\",\"\", IF(ECD_Inputs[[#This Row],[Exposure Control Device]]=\"Fume Hood\",MAX(((Table7[[#This Row],[Min. Fume Hood Air Flow Requirement (ACH)]]/60)*((F36/12)*(H36/12)*(I36/12))),(((F36/12)*(H36/12))*ECD_Inputs[[#This Row],[Face Velocity (ft/min) ]])),\"Enter Value Manually\"))","v":""},{"$f":"IF(ECD_Inputs[[#This Row],[Exposure Control Device]]=\"\",\"\", IF(ECD_Inputs[[#This Row],[Exposure Control Device]]=\"Fume Hood\",(G36/12)*(H36/12)*J36,\"Enter Value Manually\"))","v":""}]
[null,null,null,null,null,null,null,null,null,null,null,null,null,null,null,null,null,null,null,null,{"$f":"IF(ECD_Inputs[[#This Row],[Exposure Limit]]=\"\", \"\",VLOOKUP('ECD Input and Calculations'!N37,'Reference Tables'!$B$2:$D$36,3,FALSE))","v":""},{"$f":"IF(ECD_Inputs[[#This Row],[Quantity]]=\"\", \"\",VLOOKUP('ECD Input and Calculations'!O37,'Reference Tables'!$B$2:$D$36,3,FALSE))","v":""},{"$f":"IF(ECD_Inputs[[#This Row],[ Generation Potential]]=\"\", \"\",VLOOKUP('ECD Input and Calculations'!P37,'Reference Tables'!$B$2:$D$36,3,FALSE))","v":""},{"$f":"IF(ECD_Inputs[[#This Row],[ Generation Method]]=\"\", \"\", VLOOKUP('ECD Input and Calculations'!Q37,'Reference Tables'!$B$2:$D$36,3,FALSE))","v":""},{"$f":"IF(ECD_Inputs[[#This Row],[Generation Location]]=\"\", \"\",VLOOKUP('ECD Input and Calculations'!R37,'Reference Tables'!$B$2:$D$36,3,FALSE))","v":""},{"$f":"IF(ECD_Inputs[[#This Row],[Change Dynamics]]=\"\", \"\",VLOOKUP('ECD Input and Calculations'!S37,'Reference Tables'!$B$2:$D$36,3,FALSE))","v":""},{"$f":"IF(ECD_Inputs[[#This Row],[Housekeeping]]=\"\",\"\",VLOOKUP('ECD Input and Calculations'!T37,'Reference Tables'!$B$2:$D$36,3,FALSE))","v":""},{"$f":"IF(Table7[[#This Row],[Housekeeping Rating]]=\"\",\"\", ($M$1*U37)+($N$1*V37)+($O$1*W37)+($P$1*X37)+($Q$1*Y37)+($R$1*Z37)+($S$1*AA37))","v":""},{"$f":"IF(Table7[[#This Row],[Weighted Score]]=\"\", \"\", _xlfn.IFS(AND($AB37>='Reference Tables'!$I$2,'ECD Input and Calculations'!$AB37<='Reference Tables'!$I$3),0,AND('ECD Input and Calculations'!$AB37>='Reference Tables'!$I$4,'ECD Input and Calculations'!$AB37<='Reference Tables'!$I$5),1,AND('ECD Input and Calculations'!$AB37>='Reference Tables'!$I$6,'ECD Input and Calculations'!$AB37<='Reference Tables'!$I$7),2,AND('ECD Input and Calculations'!$AB37>='Reference Tables'!$I$8,'ECD Input and Calculations'!$AB37<='Reference Tables'!$I$9),3,AND('ECD Input and Calculations'!$AB37>='Reference Tables'!$I$10,'ECD Input and Calculations'!$AB37<='Reference Tables'!$I$11),4))","v":""},{"$f":"IF(Table7[[#This Row],[Risk Control Band]]=\"\", \"\",IF(D37=\"Fume Hood\",VLOOKUP(AC37,'Reference Tables'!$N$2:$O$11,2),\"N/A\"))","v":""},{"$f":"IF(ECD_Inputs[[#This Row],[Exposure Control Device]]=\"\",\"\", IF(ECD_Inputs[[#This Row],[Exposure Control Device]]=\"Fume Hood\",MAX(((Table7[[#This Row],[Min. Fume Hood Air Flow Requirement (ACH)]]/60)*((F37/12)*(H37/12)*(I37/12))),(((F37/12)*(H37/12))*ECD_Inputs[[#This Row],[Face Velocity (ft/min) ]])),\"Enter Value Manually\"))","v":""},{"$f":"IF(ECD_Inputs[[#This Row],[Exposure Control Device]]=\"\",\"\", IF(ECD_Inputs[[#This Row],[Exposure Control Device]]=\"Fume Hood\",(G37/12)*(H37/12)*J37,\"Enter Value Manually\"))","v":""}]
[null,null,null,null,null,null,null,null,null,null,null,null,null,null,null,null,null,null,null,null,{"$f":"IF(ECD_Inputs[[#This Row],[Exposure Limit]]=\"\", \"\",VLOOKUP('ECD Input and Calculations'!N38,'Reference Tables'!$B$2:$D$36,3,FALSE))","v":""},{"$f":"IF(ECD_Inputs[[#This Row],[Quantity]]=\"\", \"\",VLOOKUP('ECD Input and Calculations'!O38,'Reference Tables'!$B$2:$D$36,3,FALSE))","v":""},{"$f":"IF(ECD_Inputs[[#This Row],[ Generation Potential]]=\"\", \"\",VLOOKUP('ECD Input and Calculations'!P38,'Reference Tables'!$B$2:$D$36,3,FALSE))","v":""},{"$f":"IF(ECD_Inputs[[#This Row],[ Generation Method]]=\"\", \"\", VLOOKUP('ECD Input and Calculations'!Q38,'Reference Tables'!$B$2:$D$36,3,FALSE))","v":""},{"$f":"IF(ECD_Inputs[[#This Row],[Generation Location]]=\"\", \"\",VLOOKUP('ECD Input and Calculations'!R38,'Reference Tables'!$B$2:$D$36,3,FALSE))","v":""},{"$f":"IF(ECD_Inputs[[#This Row],[Change Dynamics]]=\"\", \"\",VLOOKUP('ECD Input and Calculations'!S38,'Reference Tables'!$B$2:$D$36,3,FALSE))","v":""},{"$f":"IF(ECD_Inputs[[#This Row],[Housekeeping]]=\"\",\"\",VLOOKUP('ECD Input and Calculations'!T38,'Reference Tables'!$B$2:$D$36,3,FALSE))","v":""},{"$f":"IF(Table7[[#This Row],[Housekeeping Rating]]=\"\",\"\", ($M$1*U38)+($N$1*V38)+($O$1*W38)+($P$1*X38)+($Q$1*Y38)+($R$1*Z38)+($S$1*AA38))","v":""},{"$f":"IF(Table7[[#This Row],[Weighted Score]]=\"\", \"\", _xlfn.IFS(AND($AB38>='Reference Tables'!$I$2,'ECD Input and Calculations'!$AB38<='Reference Tables'!$I$3),0,AND('ECD Input and Calculations'!$AB38>='Reference Tables'!$I$4,'ECD Input and Calculations'!$AB38<='Reference Tables'!$I$5),1,AND('ECD Input and Calculations'!$AB38>='Reference Tables'!$I$6,'ECD Input and Calculations'!$AB38<='Reference Tables'!$I$7),2,AND('ECD Input and Calculations'!$AB38>='Reference Tables'!$I$8,'ECD Input and Calculations'!$AB38<='Reference Tables'!$I$9),3,AND('ECD Input and Calculations'!$AB38>='Reference Tables'!$I$10,'ECD Input and Calculations'!$AB38<='Reference Tables'!$I$11),4))","v":""},{"$f":"IF(Table7[[#This Row],[Risk Control Band]]=\"\", \"\",IF(D38=\"Fume Hood\",VLOOKUP(AC38,'Reference Tables'!$N$2:$O$11,2),\"N/A\"))","v":""},{"$f":"IF(ECD_Inputs[[#This Row],[Exposure Control Device]]=\"\",\"\", IF(ECD_Inputs[[#This Row],[Exposure Control Device]]=\"Fume Hood\",MAX(((Table7[[#This Row],[Min. Fume Hood Air Flow Requirement (ACH)]]/60)*((F38/12)*(H38/12)*(I38/12))),(((F38/12)*(H38/12))*ECD_Inputs[[#This Row],[Face Velocity (ft/min) ]])),\"Enter Value Manually\"))","v":""},{"$f":"IF(ECD_Inputs[[#This Row],[Exposure Control Device]]=\"\",\"\", IF(ECD_Inputs[[#This Row],[Exposure Control Device]]=\"Fume Hood\",(G38/12)*(H38/12)*J38,\"Enter Value Manually\"))","v":""}]
[null,null,null,null,null,null,null,null,null,null,null,null,null,null,null,null,null,null,null,null,{"$f":"IF(ECD_Inputs[[#This Row],[Exposure Limit]]=\"\", \"\",VLOOKUP('ECD Input and Calculations'!N39,'Reference Tables'!$B$2:$D$36,3,FALSE))","v":""},{"$f":"IF(ECD_Inputs[[#This Row],[Quantity]]=\"\", \"\",VLOOKUP('ECD Input and Calculations'!O39,'Reference Tables'!$B$2:$D$36,3,FALSE))","v":""},{"$f":"IF(ECD_Inputs[[#This Row],[ Generation Potential]]=\"\", \"\",VLOOKUP('ECD Input and Calculations'!P39,'Reference Tables'!$B$2:$D$36,3,FALSE))","v":""},{"$f":"IF(ECD_Inputs[[#This Row],[ Generation Method]]=\"\", \"\", VLOOKUP('ECD Input and Calculations'!Q39,'Reference Tables'!$B$2:$D$36,3,FALSE))","v":""},{"$f":"IF(ECD_Inputs[[#This Row],[Generation Location]]=\"\", \"\",VLOOKUP('ECD Input and Calculations'!R39,'Reference Tables'!$B$2:$D$36,3,FALSE))","v":""},{"$f":"IF(ECD_Inputs[[#This Row],[Change Dynamics]]=\"\", \"\",VLOOKUP('ECD Input and Calculations'!S39,'Reference Tables'!$B$2:$D$36,3,FALSE))","v":""},{"$f":"IF(ECD_Inputs[[#This Row],[Housekeeping]]=\"\",\"\",VLOOKUP('ECD Input and Calculations'!T39,'Reference Tables'!$B$2:$D$36,3,FALSE))","v":""},{"$f":"IF(Table7[[#This Row],[Housekeeping Rating]]=\"\",\"\", ($M$1*U39)+($N$1*V39)+($O$1*W39)+($P$1*X39)+($Q$1*Y39)+($R$1*Z39)+($S$1*AA39))","v":""},{"$f":"IF(Table7[[#This Row],[Weighted Score]]=\"\", \"\", _xlfn.IFS(AND($AB39>='Reference Tables'!$I$2,'ECD Input and Calculations'!$AB39<='Reference Tables'!$I$3),0,AND('ECD Input and Calculations'!$AB39>='Reference Tables'!$I$4,'ECD Input and Calculations'!$AB39<='Reference Tables'!$I$5),1,AND('ECD Input and Calculations'!$AB39>='Reference Tables'!$I$6,'ECD Input and Calculations'!$AB39<='Reference Tables'!$I$7),2,AND('ECD Input and Calculations'!$AB39>='Reference Tables'!$I$8,'ECD Input and Calculations'!$AB39<='Reference Tables'!$I$9),3,AND('ECD Input and Calculations'!$AB39>='Reference Tables'!$I$10,'ECD Input and Calculations'!$AB39<='Reference Tables'!$I$11),4))","v":""},{"$f":"IF(Table7[[#This Row],[Risk Control Band]]=\"\", \"\",IF(D39=\"Fume Hood\",VLOOKUP(AC39,'Reference Tables'!$N$2:$O$11,2),\"N/A\"))","v":""},{"$f":"IF(ECD_Inputs[[#This Row],[Exposure Control Device]]=\"\",\"\", IF(ECD_Inputs[[#This Row],[Exposure Control Device]]=\"Fume Hood\",MAX(((Table7[[#This Row],[Min. Fume Hood Air Flow Requirement (ACH)]]/60)*((F39/12)*(H39/12)*(I39/12))),(((F39/12)*(H39/12))*ECD_Inputs[[#This Row],[Face Velocity (ft/min) ]])),\"Enter Value Manually\"))","v":""},{"$f":"IF(ECD_Inputs[[#This Row],[Exposure Control Device]]=\"\",\"\", IF(ECD_Inputs[[#This Row],[Exposure Control Device]]=\"Fume Hood\",(G39/12)*(H39/12)*J39,\"Enter Value Manually\"))","v":""}]
[null,null,null,null,null,null,null,null,null,null,null,null,null,null,null,null,null,null,null,null,{"$f":"IF(ECD_Inputs[[#This Row],[Exposure Limit]]=\"\", \"\",VLOOKUP('ECD Input and Calculations'!N40,'Reference Tables'!$B$2:$D$36,3,FALSE))","v":""},{"$f":"IF(ECD_Inputs[[#This Row],[Quantity]]=\"\", \"\",VLOOKUP('ECD Input and Calculations'!O40,'Reference Tables'!$B$2:$D$36,3,FALSE))","v":""},{"$f":"IF(ECD_Inputs[[#This Row],[ Generation Potential]]=\"\", \"\",VLOOKUP('ECD Input and Calculations'!P40,'Reference Tables'!$B$2:$D$36,3,FALSE))","v":""},{"$f":"IF(ECD_Inputs[[#This Row],[ Generation Method]]=\"\", \"\", VLOOKUP('ECD Input and Calculations'!Q40,'Reference Tables'!$B$2:$D$36,3,FALSE))","v":""},{"$f":"IF(ECD_Inputs[[#This Row],[Generation Location]]=\"\", \"\",VLOOKUP('ECD Input and Calculations'!R40,'Reference Tables'!$B$2:$D$36,3,FALSE))","v":""},{"$f":"IF(ECD_Inputs[[#This Row],[Change Dynamics]]=\"\", \"\",VLOOKUP('ECD Input and Calculations'!S40,'Reference Tables'!$B$2:$D$36,3,FALSE))","v":""},{"$f":"IF(ECD_Inputs[[#This Row],[Housekeeping]]=\"\",\"\",VLOOKUP('ECD Input and Calculations'!T40,'Reference Tables'!$B$2:$D$36,3,FALSE))","v":""},{"$f":"IF(Table7[[#This Row],[Housekeeping Rating]]=\"\",\"\", ($M$1*U40)+($N$1*V40)+($O$1*W40)+($P$1*X40)+($Q$1*Y40)+($R$1*Z40)+($S$1*AA40))","v":""},{"$f":"IF(Table7[[#This Row],[Weighted Score]]=\"\", \"\", _xlfn.IFS(AND($AB40>='Reference Tables'!$I$2,'ECD Input and Calculations'!$AB40<='Reference Tables'!$I$3),0,AND('ECD Input and Calculations'!$AB40>='Reference Tables'!$I$4,'ECD Input and Calculations'!$AB40<='Reference Tables'!$I$5),1,AND('ECD Input and Calculations'!$AB40>='Reference Tables'!$I$6,'ECD Input and Calculations'!$AB40<='Reference Tables'!$I$7),2,AND('ECD Input and Calculations'!$AB40>='Reference Tables'!$I$8,'ECD Input and Calculations'!$AB40<='Reference Tables'!$I$9),3,AND('ECD Input and Calculations'!$AB40>='Reference Tables'!$I$10,'ECD Input and Calculations'!$AB40<='Reference Tables'!$I$11),4))","v":""},{"$f":"IF(Table7[[#This Row],[Risk Control Band]]=\"\", \"\",IF(D40=\"Fume Hood\",VLOOKUP(AC40,'Reference Tables'!$N$2:$O$11,2),\"N/A\"))","v":""},{"$f":"IF(ECD_Inputs[[#This Row],[Exposure Control Device]]=\"\",\"\", IF(ECD_Inputs[[#This Row],[Exposure Control Device]]=\"Fume Hood\",MAX(((Table7[[#This Row],[Min. Fume Hood Air Flow Requirement (ACH)]]/60)*((F40/12)*(H40/12)*(I40/12))),(((F40/12)*(H40/12))*ECD_Inputs[[#This Row],[Face Velocity (ft/min) ]])),\"Enter Value Manually\"))","v":""},{"$f":"IF(ECD_Inputs[[#This Row],[Exposure Control Device]]=\"\",\"\", IF(ECD_Inputs[[#This Row],[Exposure Control Device]]=\"Fume Hood\",(G40/12)*(H40/12)*J40,\"Enter Value Manually\"))","v":""}]
[null,null,null,null,null,null,null,null,null,null,null,null,null,null,null,null,null,null,null,null,{"$f":"IF(ECD_Inputs[[#This Row],[Exposure Limit]]=\"\", \"\",VLOOKUP('ECD Input and Calculations'!N41,'Reference Tables'!$B$2:$D$36,3,FALSE))","v":""},{"$f":"IF(ECD_Inputs[[#This Row],[Quantity]]=\"\", \"\",VLOOKUP('ECD Input and Calculations'!O41,'Reference Tables'!$B$2:$D$36,3,FALSE))","v":""},{"$f":"IF(ECD_Inputs[[#This Row],[ Generation Potential]]=\"\", \"\",VLOOKUP('ECD Input and Calculations'!P41,'Reference Tables'!$B$2:$D$36,3,FALSE))","v":""},{"$f":"IF(ECD_Inputs[[#This Row],[ Generation Method]]=\"\", \"\", VLOOKUP('ECD Input and Calculations'!Q41,'Reference Tables'!$B$2:$D$36,3,FALSE))","v":""},{"$f":"IF(ECD_Inputs[[#This Row],[Generation Location]]=\"\", \"\",VLOOKUP('ECD Input and Calculations'!R41,'Reference Tables'!$B$2:$D$36,3,FALSE))","v":""},{"$f":"IF(ECD_Inputs[[#This Row],[Change Dynamics]]=\"\", \"\",VLOOKUP('ECD Input and Calculations'!S41,'Reference Tables'!$B$2:$D$36,3,FALSE))","v":""},{"$f":"IF(ECD_Inputs[[#This Row],[Housekeeping]]=\"\",\"\",VLOOKUP('ECD Input and Calculations'!T41,'Reference Tables'!$B$2:$D$36,3,FALSE))","v":""},{"$f":"IF(Table7[[#This Row],[Housekeeping Rating]]=\"\",\"\", ($M$1*U41)+($N$1*V41)+($O$1*W41)+($P$1*X41)+($Q$1*Y41)+($R$1*Z41)+($S$1*AA41))","v":""},{"$f":"IF(Table7[[#This Row],[Weighted Score]]=\"\", \"\", _xlfn.IFS(AND($AB41>='Reference Tables'!$I$2,'ECD Input and Calculations'!$AB41<='Reference Tables'!$I$3),0,AND('ECD Input and Calculations'!$AB41>='Reference Tables'!$I$4,'ECD Input and Calculations'!$AB41<='Reference Tables'!$I$5),1,AND('ECD Input and Calculations'!$AB41>='Reference Tables'!$I$6,'ECD Input and Calculations'!$AB41<='Reference Tables'!$I$7),2,AND('ECD Input and Calculations'!$AB41>='Reference Tables'!$I$8,'ECD Input and Calculations'!$AB41<='Reference Tables'!$I$9),3,AND('ECD Input and Calculations'!$AB41>='Reference Tables'!$I$10,'ECD Input and Calculations'!$AB41<='Reference Tables'!$I$11),4))","v":""},{"$f":"IF(Table7[[#This Row],[Risk Control Band]]=\"\", \"\",IF(D41=\"Fume Hood\",VLOOKUP(AC41,'Reference Tables'!$N$2:$O$11,2),\"N/A\"))","v":""},{"$f":"IF(ECD_Inputs[[#This Row],[Exposure Control Device]]=\"\",\"\", IF(ECD_Inputs[[#This Row],[Exposure Control Device]]=\"Fume Hood\",MAX(((Table7[[#This Row],[Min. Fume Hood Air Flow Requirement (ACH)]]/60)*((F41/12)*(H41/12)*(I41/12))),(((F41/12)*(H41/12))*ECD_Inputs[[#This Row],[Face Velocity (ft/min) ]])),\"Enter Value Manually\"))","v":""},{"$f":"IF(ECD_Inputs[[#This Row],[Exposure Control Device]]=\"\",\"\", IF(ECD_Inputs[[#This Row],[Exposure Control Device]]=\"Fume Hood\",(G41/12)*(H41/12)*J41,\"Enter Value Manually\"))","v":""}]
[null,null,null,null,null,null,null,null,null,null,null,null,null,null,null,null,null,null,null,null,{"$f":"IF(ECD_Inputs[[#This Row],[Exposure Limit]]=\"\", \"\",VLOOKUP('ECD Input and Calculations'!N42,'Reference Tables'!$B$2:$D$36,3,FALSE))","v":""},{"$f":"IF(ECD_Inputs[[#This Row],[Quantity]]=\"\", \"\",VLOOKUP('ECD Input and Calculations'!O42,'Reference Tables'!$B$2:$D$36,3,FALSE))","v":""},{"$f":"IF(ECD_Inputs[[#This Row],[ Generation Potential]]=\"\", \"\",VLOOKUP('ECD Input and Calculations'!P42,'Reference Tables'!$B$2:$D$36,3,FALSE))","v":""},{"$f":"IF(ECD_Inputs[[#This Row],[ Generation Method]]=\"\", \"\", VLOOKUP('ECD Input and Calculations'!Q42,'Reference Tables'!$B$2:$D$36,3,FALSE))","v":""},{"$f":"IF(ECD_Inputs[[#This Row],[Generation Location]]=\"\", \"\",VLOOKUP('ECD Input and Calculations'!R42,'Reference Tables'!$B$2:$D$36,3,FALSE))","v":""},{"$f":"IF(ECD_Inputs[[#This Row],[Change Dynamics]]=\"\", \"\",VLOOKUP('ECD Input and Calculations'!S42,'Reference Tables'!$B$2:$D$36,3,FALSE))","v":""},{"$f":"IF(ECD_Inputs[[#This Row],[Housekeeping]]=\"\",\"\",VLOOKUP('ECD Input and Calculations'!T42,'Reference Tables'!$B$2:$D$36,3,FALSE))","v":""},{"$f":"IF(Table7[[#This Row],[Housekeeping Rating]]=\"\",\"\", ($M$1*U42)+($N$1*V42)+($O$1*W42)+($P$1*X42)+($Q$1*Y42)+($R$1*Z42)+($S$1*AA42))","v":""},{"$f":"IF(Table7[[#This Row],[Weighted Score]]=\"\", \"\", _xlfn.IFS(AND($AB42>='Reference Tables'!$I$2,'ECD Input and Calculations'!$AB42<='Reference Tables'!$I$3),0,AND('ECD Input and Calculations'!$AB42>='Reference Tables'!$I$4,'ECD Input and Calculations'!$AB42<='Reference Tables'!$I$5),1,AND('ECD Input and Calculations'!$AB42>='Reference Tables'!$I$6,'ECD Input and Calculations'!$AB42<='Reference Tables'!$I$7),2,AND('ECD Input and Calculations'!$AB42>='Reference Tables'!$I$8,'ECD Input and Calculations'!$AB42<='Reference Tables'!$I$9),3,AND('ECD Input and Calculations'!$AB42>='Reference Tables'!$I$10,'ECD Input and Calculations'!$AB42<='Reference Tables'!$I$11),4))","v":""},{"$f":"IF(Table7[[#This Row],[Risk Control Band]]=\"\", \"\",IF(D42=\"Fume Hood\",VLOOKUP(AC42,'Reference Tables'!$N$2:$O$11,2),\"N/A\"))","v":""},{"$f":"IF(ECD_Inputs[[#This Row],[Exposure Control Device]]=\"\",\"\", IF(ECD_Inputs[[#This Row],[Exposure Control Device]]=\"Fume Hood\",MAX(((Table7[[#This Row],[Min. Fume Hood Air Flow Requirement (ACH)]]/60)*((F42/12)*(H42/12)*(I42/12))),(((F42/12)*(H42/12))*ECD_Inputs[[#This Row],[Face Velocity (ft/min) ]])),\"Enter Value Manually\"))","v":""},{"$f":"IF(ECD_Inputs[[#This Row],[Exposure Control Device]]=\"\",\"\", IF(ECD_Inputs[[#This Row],[Exposure Control Device]]=\"Fume Hood\",(G42/12)*(H42/12)*J42,\"Enter Value Manually\"))","v":""}]
[null,null,null,null,null,null,null,null,null,null,null,null,null,null,null,null,null,null,null,null,{"$f":"IF(ECD_Inputs[[#This Row],[Exposure Limit]]=\"\", \"\",VLOOKUP('ECD Input and Calculations'!N43,'Reference Tables'!$B$2:$D$36,3,FALSE))","v":""},{"$f":"IF(ECD_Inputs[[#This Row],[Quantity]]=\"\", \"\",VLOOKUP('ECD Input and Calculations'!O43,'Reference Tables'!$B$2:$D$36,3,FALSE))","v":""},{"$f":"IF(ECD_Inputs[[#This Row],[ Generation Potential]]=\"\", \"\",VLOOKUP('ECD Input and Calculations'!P43,'Reference Tables'!$B$2:$D$36,3,FALSE))","v":""},{"$f":"IF(ECD_Inputs[[#This Row],[ Generation Method]]=\"\", \"\", VLOOKUP('ECD Input and Calculations'!Q43,'Reference Tables'!$B$2:$D$36,3,FALSE))","v":""},{"$f":"IF(ECD_Inputs[[#This Row],[Generation Location]]=\"\", \"\",VLOOKUP('ECD Input and Calculations'!R43,'Reference Tables'!$B$2:$D$36,3,FALSE))","v":""},{"$f":"IF(ECD_Inputs[[#This Row],[Change Dynamics]]=\"\", \"\",VLOOKUP('ECD Input and Calculations'!S43,'Reference Tables'!$B$2:$D$36,3,FALSE))","v":""},{"$f":"IF(ECD_Inputs[[#This Row],[Housekeeping]]=\"\",\"\",VLOOKUP('ECD Input and Calculations'!T43,'Reference Tables'!$B$2:$D$36,3,FALSE))","v":""},{"$f":"IF(Table7[[#This Row],[Housekeeping Rating]]=\"\",\"\", ($M$1*U43)+($N$1*V43)+($O$1*W43)+($P$1*X43)+($Q$1*Y43)+($R$1*Z43)+($S$1*AA43))","v":""},{"$f":"IF(Table7[[#This Row],[Weighted Score]]=\"\", \"\", _xlfn.IFS(AND($AB43>='Reference Tables'!$I$2,'ECD Input and Calculations'!$AB43<='Reference Tables'!$I$3),0,AND('ECD Input and Calculations'!$AB43>='Reference Tables'!$I$4,'ECD Input and Calculations'!$AB43<='Reference Tables'!$I$5),1,AND('ECD Input and Calculations'!$AB43>='Reference Tables'!$I$6,'ECD Input and Calculations'!$AB43<='Reference Tables'!$I$7),2,AND('ECD Input and Calculations'!$AB43>='Reference Tables'!$I$8,'ECD Input and Calculations'!$AB43<='Reference Tables'!$I$9),3,AND('ECD Input and Calculations'!$AB43>='Reference Tables'!$I$10,'ECD Input and Calculations'!$AB43<='Reference Tables'!$I$11),4))","v":""},{"$f":"IF(Table7[[#This Row],[Risk Control Band]]=\"\", \"\",IF(D43=\"Fume Hood\",VLOOKUP(AC43,'Reference Tables'!$N$2:$O$11,2),\"N/A\"))","v":""},{"$f":"IF(ECD_Inputs[[#This Row],[Exposure Control Device]]=\"\",\"\", IF(ECD_Inputs[[#This Row],[Exposure Control Device]]=\"Fume Hood\",MAX(((Table7[[#This Row],[Min. Fume Hood Air Flow Requirement (ACH)]]/60)*((F43/12)*(H43/12)*(I43/12))),(((F43/12)*(H43/12))*ECD_Inputs[[#This Row],[Face Velocity (ft/min) ]])),\"Enter Value Manually\"))","v":""},{"$f":"IF(ECD_Inputs[[#This Row],[Exposure Control Device]]=\"\",\"\", IF(ECD_Inputs[[#This Row],[Exposure Control Device]]=\"Fume Hood\",(G43/12)*(H43/12)*J43,\"Enter Value Manually\"))","v":""}]
[null,null,null,null,null,null,null,null,null,null,null,null,null,null,null,null,null,null,null,null,{"$f":"IF(ECD_Inputs[[#This Row],[Exposure Limit]]=\"\", \"\",VLOOKUP('ECD Input and Calculations'!N44,'Reference Tables'!$B$2:$D$36,3,FALSE))","v":""},{"$f":"IF(ECD_Inputs[[#This Row],[Quantity]]=\"\", \"\",VLOOKUP('ECD Input and Calculations'!O44,'Reference Tables'!$B$2:$D$36,3,FALSE))","v":""},{"$f":"IF(ECD_Inputs[[#This Row],[ Generation Potential]]=\"\", \"\",VLOOKUP('ECD Input and Calculations'!P44,'Reference Tables'!$B$2:$D$36,3,FALSE))","v":""},{"$f":"IF(ECD_Inputs[[#This Row],[ Generation Method]]=\"\", \"\", VLOOKUP('ECD Input and Calculations'!Q44,'Reference Tables'!$B$2:$D$36,3,FALSE))","v":""},{"$f":"IF(ECD_Inputs[[#This Row],[Generation Location]]=\"\", \"\",VLOOKUP('ECD Input and Calculations'!R44,'Reference Tables'!$B$2:$D$36,3,FALSE))","v":""},{"$f":"IF(ECD_Inputs[[#This Row],[Change Dynamics]]=\"\", \"\",VLOOKUP('ECD Input and Calculations'!S44,'Reference Tables'!$B$2:$D$36,3,FALSE))","v":""},{"$f":"IF(ECD_Inputs[[#This Row],[Housekeeping]]=\"\",\"\",VLOOKUP('ECD Input and Calculations'!T44,'Reference Tables'!$B$2:$D$36,3,FALSE))","v":""},{"$f":"IF(Table7[[#This Row],[Housekeeping Rating]]=\"\",\"\", ($M$1*U44)+($N$1*V44)+($O$1*W44)+($P$1*X44)+($Q$1*Y44)+($R$1*Z44)+($S$1*AA44))","v":""},{"$f":"IF(Table7[[#This Row],[Weighted Score]]=\"\", \"\", _xlfn.IFS(AND($AB44>='Reference Tables'!$I$2,'ECD Input and Calculations'!$AB44<='Reference Tables'!$I$3),0,AND('ECD Input and Calculations'!$AB44>='Reference Tables'!$I$4,'ECD Input and Calculations'!$AB44<='Reference Tables'!$I$5),1,AND('ECD Input and Calculations'!$AB44>='Reference Tables'!$I$6,'ECD Input and Calculations'!$AB44<='Reference Tables'!$I$7),2,AND('ECD Input and Calculations'!$AB44>='Reference Tables'!$I$8,'ECD Input and Calculations'!$AB44<='Reference Tables'!$I$9),3,AND('ECD Input and Calculations'!$AB44>='Reference Tables'!$I$10,'ECD Input and Calculations'!$AB44<='Reference Tables'!$I$11),4))","v":""},{"$f":"IF(Table7[[#This Row],[Risk Control Band]]=\"\", \"\",IF(D44=\"Fume Hood\",VLOOKUP(AC44,'Reference Tables'!$N$2:$O$11,2),\"N/A\"))","v":""},{"$f":"IF(ECD_Inputs[[#This Row],[Exposure Control Device]]=\"\",\"\", IF(ECD_Inputs[[#This Row],[Exposure Control Device]]=\"Fume Hood\",MAX(((Table7[[#This Row],[Min. Fume Hood Air Flow Requirement (ACH)]]/60)*((F44/12)*(H44/12)*(I44/12))),(((F44/12)*(H44/12))*ECD_Inputs[[#This Row],[Face Velocity (ft/min) ]])),\"Enter Value Manually\"))","v":""},{"$f":"IF(ECD_Inputs[[#This Row],[Exposure Control Device]]=\"\",\"\", IF(ECD_Inputs[[#This Row],[Exposure Control Device]]=\"Fume Hood\",(G44/12)*(H44/12)*J44,\"Enter Value Manually\"))","v":""}]
[null,null,null,null,null,null,null,null,null,null,null,null,null,null,null,null,null,null,null,null,{"$f":"IF(ECD_Inputs[[#This Row],[Exposure Limit]]=\"\", \"\",VLOOKUP('ECD Input and Calculations'!N45,'Reference Tables'!$B$2:$D$36,3,FALSE))","v":""},{"$f":"IF(ECD_Inputs[[#This Row],[Quantity]]=\"\", \"\",VLOOKUP('ECD Input and Calculations'!O45,'Reference Tables'!$B$2:$D$36,3,FALSE))","v":""},{"$f":"IF(ECD_Inputs[[#This Row],[ Generation Potential]]=\"\", \"\",VLOOKUP('ECD Input and Calculations'!P45,'Reference Tables'!$B$2:$D$36,3,FALSE))","v":""},{"$f":"IF(ECD_Inputs[[#This Row],[ Generation Method]]=\"\", \"\", VLOOKUP('ECD Input and Calculations'!Q45,'Reference Tables'!$B$2:$D$36,3,FALSE))","v":""},{"$f":"IF(ECD_Inputs[[#This Row],[Generation Location]]=\"\", \"\",VLOOKUP('ECD Input and Calculations'!R45,'Reference Tables'!$B$2:$D$36,3,FALSE))","v":""},{"$f":"IF(ECD_Inputs[[#This Row],[Change Dynamics]]=\"\", \"\",VLOOKUP('ECD Input and Calculations'!S45,'Reference Tables'!$B$2:$D$36,3,FALSE))","v":""},{"$f":"IF(ECD_Inputs[[#This Row],[Housekeeping]]=\"\",\"\",VLOOKUP('ECD Input and Calculations'!T45,'Reference Tables'!$B$2:$D$36,3,FALSE))","v":""},{"$f":"IF(Table7[[#This Row],[Housekeeping Rating]]=\"\",\"\", ($M$1*U45)+($N$1*V45)+($O$1*W45)+($P$1*X45)+($Q$1*Y45)+($R$1*Z45)+($S$1*AA45))","v":""},{"$f":"IF(Table7[[#This Row],[Weighted Score]]=\"\", \"\", _xlfn.IFS(AND($AB45>='Reference Tables'!$I$2,'ECD Input and Calculations'!$AB45<='Reference Tables'!$I$3),0,AND('ECD Input and Calculations'!$AB45>='Reference Tables'!$I$4,'ECD Input and Calculations'!$AB45<='Reference Tables'!$I$5),1,AND('ECD Input and Calculations'!$AB45>='Reference Tables'!$I$6,'ECD Input and Calculations'!$AB45<='Reference Tables'!$I$7),2,AND('ECD Input and Calculations'!$AB45>='Reference Tables'!$I$8,'ECD Input and Calculations'!$AB45<='Reference Tables'!$I$9),3,AND('ECD Input and Calculations'!$AB45>='Reference Tables'!$I$10,'ECD Input and Calculations'!$AB45<='Reference Tables'!$I$11),4))","v":""},{"$f":"IF(Table7[[#This Row],[Risk Control Band]]=\"\", \"\",IF(D45=\"Fume Hood\",VLOOKUP(AC45,'Reference Tables'!$N$2:$O$11,2),\"N/A\"))","v":""},{"$f":"IF(ECD_Inputs[[#This Row],[Exposure Control Device]]=\"\",\"\", IF(ECD_Inputs[[#This Row],[Exposure Control Device]]=\"Fume Hood\",MAX(((Table7[[#This Row],[Min. Fume Hood Air Flow Requirement (ACH)]]/60)*((F45/12)*(H45/12)*(I45/12))),(((F45/12)*(H45/12))*ECD_Inputs[[#This Row],[Face Velocity (ft/min) ]])),\"Enter Value Manually\"))","v":""},{"$f":"IF(ECD_Inputs[[#This Row],[Exposure Control Device]]=\"\",\"\", IF(ECD_Inputs[[#This Row],[Exposure Control Device]]=\"Fume Hood\",(G45/12)*(H45/12)*J45,\"Enter Value Manually\"))","v":""}]
[null,null,null,null,null,null,null,null,null,null,null,null,null,null,null,null,null,null,null,null,{"$f":"IF(ECD_Inputs[[#This Row],[Exposure Limit]]=\"\", \"\",VLOOKUP('ECD Input and Calculations'!N46,'Reference Tables'!$B$2:$D$36,3,FALSE))","v":""},{"$f":"IF(ECD_Inputs[[#This Row],[Quantity]]=\"\", \"\",VLOOKUP('ECD Input and Calculations'!O46,'Reference Tables'!$B$2:$D$36,3,FALSE))","v":""},{"$f":"IF(ECD_Inputs[[#This Row],[ Generation Potential]]=\"\", \"\",VLOOKUP('ECD Input and Calculations'!P46,'Reference Tables'!$B$2:$D$36,3,FALSE))","v":""},{"$f":"IF(ECD_Inputs[[#This Row],[ Generation Method]]=\"\", \"\", VLOOKUP('ECD Input and Calculations'!Q46,'Reference Tables'!$B$2:$D$36,3,FALSE))","v":""},{"$f":"IF(ECD_Inputs[[#This Row],[Generation Location]]=\"\", \"\",VLOOKUP('ECD Input and Calculations'!R46,'Reference Tables'!$B$2:$D$36,3,FALSE))","v":""},{"$f":"IF(ECD_Inputs[[#This Row],[Change Dynamics]]=\"\", \"\",VLOOKUP('ECD Input and Calculations'!S46,'Reference Tables'!$B$2:$D$36,3,FALSE))","v":""},{"$f":"IF(ECD_Inputs[[#This Row],[Housekeeping]]=\"\",\"\",VLOOKUP('ECD Input and Calculations'!T46,'Reference Tables'!$B$2:$D$36,3,FALSE))","v":""},{"$f":"IF(Table7[[#This Row],[Housekeeping Rating]]=\"\",\"\", ($M$1*U46)+($N$1*V46)+($O$1*W46)+($P$1*X46)+($Q$1*Y46)+($R$1*Z46)+($S$1*AA46))","v":""},{"$f":"IF(Table7[[#This Row],[Weighted Score]]=\"\", \"\", _xlfn.IFS(AND($AB46>='Reference Tables'!$I$2,'ECD Input and Calculations'!$AB46<='Reference Tables'!$I$3),0,AND('ECD Input and Calculations'!$AB46>='Reference Tables'!$I$4,'ECD Input and Calculations'!$AB46<='Reference Tables'!$I$5),1,AND('ECD Input and Calculations'!$AB46>='Reference Tables'!$I$6,'ECD Input and Calculations'!$AB46<='Reference Tables'!$I$7),2,AND('ECD Input and Calculations'!$AB46>='Reference Tables'!$I$8,'ECD Input and Calculations'!$AB46<='Reference Tables'!$I$9),3,AND('ECD Input and Calculations'!$AB46>='Reference Tables'!$I$10,'ECD Input and Calculations'!$AB46<='Reference Tables'!$I$11),4))","v":""},{"$f":"IF(Table7[[#This Row],[Risk Control Band]]=\"\", \"\",IF(D46=\"Fume Hood\",VLOOKUP(AC46,'Reference Tables'!$N$2:$O$11,2),\"N/A\"))","v":""},{"$f":"IF(ECD_Inputs[[#This Row],[Exposure Control Device]]=\"\",\"\", IF(ECD_Inputs[[#This Row],[Exposure Control Device]]=\"Fume Hood\",MAX(((Table7[[#This Row],[Min. Fume Hood Air Flow Requirement (ACH)]]/60)*((F46/12)*(H46/12)*(I46/12))),(((F46/12)*(H46/12))*ECD_Inputs[[#This Row],[Face Velocity (ft/min) ]])),\"Enter Value Manually\"))","v":""},{"$f":"IF(ECD_Inputs[[#This Row],[Exposure Control Device]]=\"\",\"\", IF(ECD_Inputs[[#This Row],[Exposure Control Device]]=\"Fume Hood\",(G46/12)*(H46/12)*J46,\"Enter Value Manually\"))","v":""}]
[null,null,null,null,null,null,null,null,null,null,null,null,null,null,null,null,null,null,null,null,{"$f":"IF(ECD_Inputs[[#This Row],[Exposure Limit]]=\"\", \"\",VLOOKUP('ECD Input and Calculations'!N47,'Reference Tables'!$B$2:$D$36,3,FALSE))","v":""},{"$f":"IF(ECD_Inputs[[#This Row],[Quantity]]=\"\", \"\",VLOOKUP('ECD Input and Calculations'!O47,'Reference Tables'!$B$2:$D$36,3,FALSE))","v":""},{"$f":"IF(ECD_Inputs[[#This Row],[ Generation Potential]]=\"\", \"\",VLOOKUP('ECD Input and Calculations'!P47,'Reference Tables'!$B$2:$D$36,3,FALSE))","v":""},{"$f":"IF(ECD_Inputs[[#This Row],[ Generation Method]]=\"\", \"\", VLOOKUP('ECD Input and Calculations'!Q47,'Reference Tables'!$B$2:$D$36,3,FALSE))","v":""},{"$f":"IF(ECD_Inputs[[#This Row],[Generation Location]]=\"\", \"\",VLOOKUP('ECD Input and Calculations'!R47,'Reference Tables'!$B$2:$D$36,3,FALSE))","v":""},{"$f":"IF(ECD_Inputs[[#This Row],[Change Dynamics]]=\"\", \"\",VLOOKUP('ECD Input and Calculations'!S47,'Reference Tables'!$B$2:$D$36,3,FALSE))","v":""},{"$f":"IF(ECD_Inputs[[#This Row],[Housekeeping]]=\"\",\"\",VLOOKUP('ECD Input and Calculations'!T47,'Reference Tables'!$B$2:$D$36,3,FALSE))","v":""},{"$f":"IF(Table7[[#This Row],[Housekeeping Rating]]=\"\",\"\", ($M$1*U47)+($N$1*V47)+($O$1*W47)+($P$1*X47)+($Q$1*Y47)+($R$1*Z47)+($S$1*AA47))","v":""},{"$f":"IF(Table7[[#This Row],[Weighted Score]]=\"\", \"\", _xlfn.IFS(AND($AB47>='Reference Tables'!$I$2,'ECD Input and Calculations'!$AB47<='Reference Tables'!$I$3),0,AND('ECD Input and Calculations'!$AB47>='Reference Tables'!$I$4,'ECD Input and Calculations'!$AB47<='Reference Tables'!$I$5),1,AND('ECD Input and Calculations'!$AB47>='Reference Tables'!$I$6,'ECD Input and Calculations'!$AB47<='Reference Tables'!$I$7),2,AND('ECD Input and Calculations'!$AB47>='Reference Tables'!$I$8,'ECD Input and Calculations'!$AB47<='Reference Tables'!$I$9),3,AND('ECD Input and Calculations'!$AB47>='Reference Tables'!$I$10,'ECD Input and Calculations'!$AB47<='Reference Tables'!$I$11),4))","v":""},{"$f":"IF(Table7[[#This Row],[Risk Control Band]]=\"\", \"\",IF(D47=\"Fume Hood\",VLOOKUP(AC47,'Reference Tables'!$N$2:$O$11,2),\"N/A\"))","v":""},{"$f":"IF(ECD_Inputs[[#This Row],[Exposure Control Device]]=\"\",\"\", IF(ECD_Inputs[[#This Row],[Exposure Control Device]]=\"Fume Hood\",MAX(((Table7[[#This Row],[Min. Fume Hood Air Flow Requirement (ACH)]]/60)*((F47/12)*(H47/12)*(I47/12))),(((F47/12)*(H47/12))*ECD_Inputs[[#This Row],[Face Velocity (ft/min) ]])),\"Enter Value Manually\"))","v":""},{"$f":"IF(ECD_Inputs[[#This Row],[Exposure Control Device]]=\"\",\"\", IF(ECD_Inputs[[#This Row],[Exposure Control Device]]=\"Fume Hood\",(G47/12)*(H47/12)*J47,\"Enter Value Manually\"))","v":""}]
[null,null,null,null,null,null,null,null,null,null,null,null,null,null,null,null,null,null,null,null,{"$f":"IF(ECD_Inputs[[#This Row],[Exposure Limit]]=\"\", \"\",VLOOKUP('ECD Input and Calculations'!N48,'Reference Tables'!$B$2:$D$36,3,FALSE))","v":""},{"$f":"IF(ECD_Inputs[[#This Row],[Quantity]]=\"\", \"\",VLOOKUP('ECD Input and Calculations'!O48,'Reference Tables'!$B$2:$D$36,3,FALSE))","v":""},{"$f":"IF(ECD_Inputs[[#This Row],[ Generation Potential]]=\"\", \"\",VLOOKUP('ECD Input and Calculations'!P48,'Reference Tables'!$B$2:$D$36,3,FALSE))","v":""},{"$f":"IF(ECD_Inputs[[#This Row],[ Generation Method]]=\"\", \"\", VLOOKUP('ECD Input and Calculations'!Q48,'Reference Tables'!$B$2:$D$36,3,FALSE))","v":""},{"$f":"IF(ECD_Inputs[[#This Row],[Generation Location]]=\"\", \"\",VLOOKUP('ECD Input and Calculations'!R48,'Reference Tables'!$B$2:$D$36,3,FALSE))","v":""},{"$f":"IF(ECD_Inputs[[#This Row],[Change Dynamics]]=\"\", \"\",VLOOKUP('ECD Input and Calculations'!S48,'Reference Tables'!$B$2:$D$36,3,FALSE))","v":""},{"$f":"IF(ECD_Inputs[[#This Row],[Housekeeping]]=\"\",\"\",VLOOKUP('ECD Input and Calculations'!T48,'Reference Tables'!$B$2:$D$36,3,FALSE))","v":""},{"$f":"IF(Table7[[#This Row],[Housekeeping Rating]]=\"\",\"\", ($M$1*U48)+($N$1*V48)+($O$1*W48)+($P$1*X48)+($Q$1*Y48)+($R$1*Z48)+($S$1*AA48))","v":""},{"$f":"IF(Table7[[#This Row],[Weighted Score]]=\"\", \"\", _xlfn.IFS(AND($AB48>='Reference Tables'!$I$2,'ECD Input and Calculations'!$AB48<='Reference Tables'!$I$3),0,AND('ECD Input and Calculations'!$AB48>='Reference Tables'!$I$4,'ECD Input and Calculations'!$AB48<='Reference Tables'!$I$5),1,AND('ECD Input and Calculations'!$AB48>='Reference Tables'!$I$6,'ECD Input and Calculations'!$AB48<='Reference Tables'!$I$7),2,AND('ECD Input and Calculations'!$AB48>='Reference Tables'!$I$8,'ECD Input and Calculations'!$AB48<='Reference Tables'!$I$9),3,AND('ECD Input and Calculations'!$AB48>='Reference Tables'!$I$10,'ECD Input and Calculations'!$AB48<='Reference Tables'!$I$11),4))","v":""},{"$f":"IF(Table7[[#This Row],[Risk Control Band]]=\"\", \"\",IF(D48=\"Fume Hood\",VLOOKUP(AC48,'Reference Tables'!$N$2:$O$11,2),\"N/A\"))","v":""},{"$f":"IF(ECD_Inputs[[#This Row],[Exposure Control Device]]=\"\",\"\", IF(ECD_Inputs[[#This Row],[Exposure Control Device]]=\"Fume Hood\",MAX(((Table7[[#This Row],[Min. Fume Hood Air Flow Requirement (ACH)]]/60)*((F48/12)*(H48/12)*(I48/12))),(((F48/12)*(H48/12))*ECD_Inputs[[#This Row],[Face Velocity (ft/min) ]])),\"Enter Value Manually\"))","v":""},{"$f":"IF(ECD_Inputs[[#This Row],[Exposure Control Device]]=\"\",\"\", IF(ECD_Inputs[[#This Row],[Exposure Control Device]]=\"Fume Hood\",(G48/12)*(H48/12)*J48,\"Enter Value Manually\"))","v":""}]
[null,null,null,null,null,null,null,null,null,null,null,null,null,null,null,null,null,null,null,null,{"$f":"IF(ECD_Inputs[[#This Row],[Exposure Limit]]=\"\", \"\",VLOOKUP('ECD Input and Calculations'!N49,'Reference Tables'!$B$2:$D$36,3,FALSE))","v":""},{"$f":"IF(ECD_Inputs[[#This Row],[Quantity]]=\"\", \"\",VLOOKUP('ECD Input and Calculations'!O49,'Reference Tables'!$B$2:$D$36,3,FALSE))","v":""},{"$f":"IF(ECD_Inputs[[#This Row],[ Generation Potential]]=\"\", \"\",VLOOKUP('ECD Input and Calculations'!P49,'Reference Tables'!$B$2:$D$36,3,FALSE))","v":""},{"$f":"IF(ECD_Inputs[[#This Row],[ Generation Method]]=\"\", \"\", VLOOKUP('ECD Input and Calculations'!Q49,'Reference Tables'!$B$2:$D$36,3,FALSE))","v":""},{"$f":"IF(ECD_Inputs[[#This Row],[Generation Location]]=\"\", \"\",VLOOKUP('ECD Input and Calculations'!R49,'Reference Tables'!$B$2:$D$36,3,FALSE))","v":""},{"$f":"IF(ECD_Inputs[[#This Row],[Change Dynamics]]=\"\", \"\",VLOOKUP('ECD Input and Calculations'!S49,'Reference Tables'!$B$2:$D$36,3,FALSE))","v":""},{"$f":"IF(ECD_Inputs[[#This Row],[Housekeeping]]=\"\",\"\",VLOOKUP('ECD Input and Calculations'!T49,'Reference Tables'!$B$2:$D$36,3,FALSE))","v":""},{"$f":"IF(Table7[[#This Row],[Housekeeping Rating]]=\"\",\"\", ($M$1*U49)+($N$1*V49)+($O$1*W49)+($P$1*X49)+($Q$1*Y49)+($R$1*Z49)+($S$1*AA49))","v":""},{"$f":"IF(Table7[[#This Row],[Weighted Score]]=\"\", \"\", _xlfn.IFS(AND($AB49>='Reference Tables'!$I$2,'ECD Input and Calculations'!$AB49<='Reference Tables'!$I$3),0,AND('ECD Input and Calculations'!$AB49>='Reference Tables'!$I$4,'ECD Input and Calculations'!$AB49<='Reference Tables'!$I$5),1,AND('ECD Input and Calculations'!$AB49>='Reference Tables'!$I$6,'ECD Input and Calculations'!$AB49<='Reference Tables'!$I$7),2,AND('ECD Input and Calculations'!$AB49>='Reference Tables'!$I$8,'ECD Input and Calculations'!$AB49<='Reference Tables'!$I$9),3,AND('ECD Input and Calculations'!$AB49>='Reference Tables'!$I$10,'ECD Input and Calculations'!$AB49<='Reference Tables'!$I$11),4))","v":""},{"$f":"IF(Table7[[#This Row],[Risk Control Band]]=\"\", \"\",IF(D49=\"Fume Hood\",VLOOKUP(AC49,'Reference Tables'!$N$2:$O$11,2),\"N/A\"))","v":""},{"$f":"IF(ECD_Inputs[[#This Row],[Exposure Control Device]]=\"\",\"\", IF(ECD_Inputs[[#This Row],[Exposure Control Device]]=\"Fume Hood\",MAX(((Table7[[#This Row],[Min. Fume Hood Air Flow Requirement (ACH)]]/60)*((F49/12)*(H49/12)*(I49/12))),(((F49/12)*(H49/12))*ECD_Inputs[[#This Row],[Face Velocity (ft/min) ]])),\"Enter Value Manually\"))","v":""},{"$f":"IF(ECD_Inputs[[#This Row],[Exposure Control Device]]=\"\",\"\", IF(ECD_Inputs[[#This Row],[Exposure Control Device]]=\"Fume Hood\",(G49/12)*(H49/12)*J49,\"Enter Value Manually\"))","v":""}]
[null,null,null,null,null,null,null,null,null,null,null,null,null,null,null,null,null,null,null,null,{"$f":"IF(ECD_Inputs[[#This Row],[Exposure Limit]]=\"\", \"\",VLOOKUP('ECD Input and Calculations'!N50,'Reference Tables'!$B$2:$D$36,3,FALSE))","v":""},{"$f":"IF(ECD_Inputs[[#This Row],[Quantity]]=\"\", \"\",VLOOKUP('ECD Input and Calculations'!O50,'Reference Tables'!$B$2:$D$36,3,FALSE))","v":""},{"$f":"IF(ECD_Inputs[[#This Row],[ Generation Potential]]=\"\", \"\",VLOOKUP('ECD Input and Calculations'!P50,'Reference Tables'!$B$2:$D$36,3,FALSE))","v":""},{"$f":"IF(ECD_Inputs[[#This Row],[ Generation Method]]=\"\", \"\", VLOOKUP('ECD Input and Calculations'!Q50,'Reference Tables'!$B$2:$D$36,3,FALSE))","v":""},{"$f":"IF(ECD_Inputs[[#This Row],[Generation Location]]=\"\", \"\",VLOOKUP('ECD Input and Calculations'!R50,'Reference Tables'!$B$2:$D$36,3,FALSE))","v":""},{"$f":"IF(ECD_Inputs[[#This Row],[Change Dynamics]]=\"\", \"\",VLOOKUP('ECD Input and Calculations'!S50,'Reference Tables'!$B$2:$D$36,3,FALSE))","v":""},{"$f":"IF(ECD_Inputs[[#This Row],[Housekeeping]]=\"\",\"\",VLOOKUP('ECD Input and Calculations'!T50,'Reference Tables'!$B$2:$D$36,3,FALSE))","v":""},{"$f":"IF(Table7[[#This Row],[Housekeeping Rating]]=\"\",\"\", ($M$1*U50)+($N$1*V50)+($O$1*W50)+($P$1*X50)+($Q$1*Y50)+($R$1*Z50)+($S$1*AA50))","v":""},{"$f":"IF(Table7[[#This Row],[Weighted Score]]=\"\", \"\", _xlfn.IFS(AND($AB50>='Reference Tables'!$I$2,'ECD Input and Calculations'!$AB50<='Reference Tables'!$I$3),0,AND('ECD Input and Calculations'!$AB50>='Reference Tables'!$I$4,'ECD Input and Calculations'!$AB50<='Reference Tables'!$I$5),1,AND('ECD Input and Calculations'!$AB50>='Reference Tables'!$I$6,'ECD Input and Calculations'!$AB50<='Reference Tables'!$I$7),2,AND('ECD Input and Calculations'!$AB50>='Reference Tables'!$I$8,'ECD Input and Calculations'!$AB50<='Reference Tables'!$I$9),3,AND('ECD Input and Calculations'!$AB50>='Reference Tables'!$I$10,'ECD Input and Calculations'!$AB50<='Reference Tables'!$I$11),4))","v":""},{"$f":"IF(Table7[[#This Row],[Risk Control Band]]=\"\", \"\",IF(D50=\"Fume Hood\",VLOOKUP(AC50,'Reference Tables'!$N$2:$O$11,2),\"N/A\"))","v":""},{"$f":"IF(ECD_Inputs[[#This Row],[Exposure Control Device]]=\"\",\"\", IF(ECD_Inputs[[#This Row],[Exposure Control Device]]=\"Fume Hood\",MAX(((Table7[[#This Row],[Min. Fume Hood Air Flow Requirement (ACH)]]/60)*((F50/12)*(H50/12)*(I50/12))),(((F50/12)*(H50/12))*ECD_Inputs[[#This Row],[Face Velocity (ft/min) ]])),\"Enter Value Manually\"))","v":""},{"$f":"IF(ECD_Inputs[[#This Row],[Exposure Control Device]]=\"\",\"\", IF(ECD_Inputs[[#This Row],[Exposure Control Device]]=\"Fume Hood\",(G50/12)*(H50/12)*J50,\"Enter Value Manually\"))","v":""}]
[null,null,null,null,null,null,null,null,null,null,null,null,null,null,null,null,null,null,null,null,{"$f":"IF(ECD_Inputs[[#This Row],[Exposure Limit]]=\"\", \"\",VLOOKUP('ECD Input and Calculations'!N51,'Reference Tables'!$B$2:$D$36,3,FALSE))","v":""},{"$f":"IF(ECD_Inputs[[#This Row],[Quantity]]=\"\", \"\",VLOOKUP('ECD Input and Calculations'!O51,'Reference Tables'!$B$2:$D$36,3,FALSE))","v":""},{"$f":"IF(ECD_Inputs[[#This Row],[ Generation Potential]]=\"\", \"\",VLOOKUP('ECD Input and Calculations'!P51,'Reference Tables'!$B$2:$D$36,3,FALSE))","v":""},{"$f":"IF(ECD_Inputs[[#This Row],[ Generation Method]]=\"\", \"\", VLOOKUP('ECD Input and Calculations'!Q51,'Reference Tables'!$B$2:$D$36,3,FALSE))","v":""},{"$f":"IF(ECD_Inputs[[#This Row],[Generation Location]]=\"\", \"\",VLOOKUP('ECD Input and Calculations'!R51,'Reference Tables'!$B$2:$D$36,3,FALSE))","v":""},{"$f":"IF(ECD_Inputs[[#This Row],[Change Dynamics]]=\"\", \"\",VLOOKUP('ECD Input and Calculations'!S51,'Reference Tables'!$B$2:$D$36,3,FALSE))","v":""},{"$f":"IF(ECD_Inputs[[#This Row],[Housekeeping]]=\"\",\"\",VLOOKUP('ECD Input and Calculations'!T51,'Reference Tables'!$B$2:$D$36,3,FALSE))","v":""},{"$f":"IF(Table7[[#This Row],[Housekeeping Rating]]=\"\",\"\", ($M$1*U51)+($N$1*V51)+($O$1*W51)+($P$1*X51)+($Q$1*Y51)+($R$1*Z51)+($S$1*AA51))","v":""},{"$f":"IF(Table7[[#This Row],[Weighted Score]]=\"\", \"\", _xlfn.IFS(AND($AB51>='Reference Tables'!$I$2,'ECD Input and Calculations'!$AB51<='Reference Tables'!$I$3),0,AND('ECD Input and Calculations'!$AB51>='Reference Tables'!$I$4,'ECD Input and Calculations'!$AB51<='Reference Tables'!$I$5),1,AND('ECD Input and Calculations'!$AB51>='Reference Tables'!$I$6,'ECD Input and Calculations'!$AB51<='Reference Tables'!$I$7),2,AND('ECD Input and Calculations'!$AB51>='Reference Tables'!$I$8,'ECD Input and Calculations'!$AB51<='Reference Tables'!$I$9),3,AND('ECD Input and Calculations'!$AB51>='Reference Tables'!$I$10,'ECD Input and Calculations'!$AB51<='Reference Tables'!$I$11),4))","v":""},{"$f":"IF(Table7[[#This Row],[Risk Control Band]]=\"\", \"\",IF(D51=\"Fume Hood\",VLOOKUP(AC51,'Reference Tables'!$N$2:$O$11,2),\"N/A\"))","v":""},{"$f":"IF(ECD_Inputs[[#This Row],[Exposure Control Device]]=\"\",\"\", IF(ECD_Inputs[[#This Row],[Exposure Control Device]]=\"Fume Hood\",MAX(((Table7[[#This Row],[Min. Fume Hood Air Flow Requirement (ACH)]]/60)*((F51/12)*(H51/12)*(I51/12))),(((F51/12)*(H51/12))*ECD_Inputs[[#This Row],[Face Velocity (ft/min) ]])),\"Enter Value Manually\"))","v":""},{"$f":"IF(ECD_Inputs[[#This Row],[Exposure Control Device]]=\"\",\"\", IF(ECD_Inputs[[#This Row],[Exposure Control Device]]=\"Fume Hood\",(G51/12)*(H51/12)*J51,\"Enter Value Manually\"))","v":""}]
[null,null,null,null,null,null,null,null,null,null,null,null,null,null,null,null,null,null,null,null,{"$f":"IF(ECD_Inputs[[#This Row],[Exposure Limit]]=\"\", \"\",VLOOKUP('ECD Input and Calculations'!N52,'Reference Tables'!$B$2:$D$36,3,FALSE))","v":""},{"$f":"IF(ECD_Inputs[[#This Row],[Quantity]]=\"\", \"\",VLOOKUP('ECD Input and Calculations'!O52,'Reference Tables'!$B$2:$D$36,3,FALSE))","v":""},{"$f":"IF(ECD_Inputs[[#This Row],[ Generation Potential]]=\"\", \"\",VLOOKUP('ECD Input and Calculations'!P52,'Reference Tables'!$B$2:$D$36,3,FALSE))","v":""},{"$f":"IF(ECD_Inputs[[#This Row],[ Generation Method]]=\"\", \"\", VLOOKUP('ECD Input and Calculations'!Q52,'Reference Tables'!$B$2:$D$36,3,FALSE))","v":""},{"$f":"IF(ECD_Inputs[[#This Row],[Generation Location]]=\"\", \"\",VLOOKUP('ECD Input and Calculations'!R52,'Reference Tables'!$B$2:$D$36,3,FALSE))","v":""},{"$f":"IF(ECD_Inputs[[#This Row],[Change Dynamics]]=\"\", \"\",VLOOKUP('ECD Input and Calculations'!S52,'Reference Tables'!$B$2:$D$36,3,FALSE))","v":""},{"$f":"IF(ECD_Inputs[[#This Row],[Housekeeping]]=\"\",\"\",VLOOKUP('ECD Input and Calculations'!T52,'Reference Tables'!$B$2:$D$36,3,FALSE))","v":""},{"$f":"IF(Table7[[#This Row],[Housekeeping Rating]]=\"\",\"\", ($M$1*U52)+($N$1*V52)+($O$1*W52)+($P$1*X52)+($Q$1*Y52)+($R$1*Z52)+($S$1*AA52))","v":""},{"$f":"IF(Table7[[#This Row],[Weighted Score]]=\"\", \"\", _xlfn.IFS(AND($AB52>='Reference Tables'!$I$2,'ECD Input and Calculations'!$AB52<='Reference Tables'!$I$3),0,AND('ECD Input and Calculations'!$AB52>='Reference Tables'!$I$4,'ECD Input and Calculations'!$AB52<='Reference Tables'!$I$5),1,AND('ECD Input and Calculations'!$AB52>='Reference Tables'!$I$6,'ECD Input and Calculations'!$AB52<='Reference Tables'!$I$7),2,AND('ECD Input and Calculations'!$AB52>='Reference Tables'!$I$8,'ECD Input and Calculations'!$AB52<='Reference Tables'!$I$9),3,AND('ECD Input and Calculations'!$AB52>='Reference Tables'!$I$10,'ECD Input and Calculations'!$AB52<='Reference Tables'!$I$11),4))","v":""},{"$f":"IF(Table7[[#This Row],[Risk Control Band]]=\"\", \"\",IF(D52=\"Fume Hood\",VLOOKUP(AC52,'Reference Tables'!$N$2:$O$11,2),\"N/A\"))","v":""},{"$f":"IF(ECD_Inputs[[#This Row],[Exposure Control Device]]=\"\",\"\", IF(ECD_Inputs[[#This Row],[Exposure Control Device]]=\"Fume Hood\",MAX(((Table7[[#This Row],[Min. Fume Hood Air Flow Requirement (ACH)]]/60)*((F52/12)*(H52/12)*(I52/12))),(((F52/12)*(H52/12))*ECD_Inputs[[#This Row],[Face Velocity (ft/min) ]])),\"Enter Value Manually\"))","v":""},{"$f":"IF(ECD_Inputs[[#This Row],[Exposure Control Device]]=\"\",\"\", IF(ECD_Inputs[[#This Row],[Exposure Control Device]]=\"Fume Hood\",(G52/12)*(H52/12)*J52,\"Enter Value Manually\"))","v":""}]
[null,null,null,null,null,null,null,null,null,null,null,null,null,null,null,null,null,null,null,null,{"$f":"IF(ECD_Inputs[[#This Row],[Exposure Limit]]=\"\", \"\",VLOOKUP('ECD Input and Calculations'!N53,'Reference Tables'!$B$2:$D$36,3,FALSE))","v":""},{"$f":"IF(ECD_Inputs[[#This Row],[Quantity]]=\"\", \"\",VLOOKUP('ECD Input and Calculations'!O53,'Reference Tables'!$B$2:$D$36,3,FALSE))","v":""},{"$f":"IF(ECD_Inputs[[#This Row],[ Generation Potential]]=\"\", \"\",VLOOKUP('ECD Input and Calculations'!P53,'Reference Tables'!$B$2:$D$36,3,FALSE))","v":""},{"$f":"IF(ECD_Inputs[[#This Row],[ Generation Method]]=\"\", \"\", VLOOKUP('ECD Input and Calculations'!Q53,'Reference Tables'!$B$2:$D$36,3,FALSE))","v":""},{"$f":"IF(ECD_Inputs[[#This Row],[Generation Location]]=\"\", \"\",VLOOKUP('ECD Input and Calculations'!R53,'Reference Tables'!$B$2:$D$36,3,FALSE))","v":""},{"$f":"IF(ECD_Inputs[[#This Row],[Change Dynamics]]=\"\", \"\",VLOOKUP('ECD Input and Calculations'!S53,'Reference Tables'!$B$2:$D$36,3,FALSE))","v":""},{"$f":"IF(ECD_Inputs[[#This Row],[Housekeeping]]=\"\",\"\",VLOOKUP('ECD Input and Calculations'!T53,'Reference Tables'!$B$2:$D$36,3,FALSE))","v":""},{"$f":"IF(Table7[[#This Row],[Housekeeping Rating]]=\"\",\"\", ($M$1*U53)+($N$1*V53)+($O$1*W53)+($P$1*X53)+($Q$1*Y53)+($R$1*Z53)+($S$1*AA53))","v":""},{"$f":"IF(Table7[[#This Row],[Weighted Score]]=\"\", \"\", _xlfn.IFS(AND($AB53>='Reference Tables'!$I$2,'ECD Input and Calculations'!$AB53<='Reference Tables'!$I$3),0,AND('ECD Input and Calculations'!$AB53>='Reference Tables'!$I$4,'ECD Input and Calculations'!$AB53<='Reference Tables'!$I$5),1,AND('ECD Input and Calculations'!$AB53>='Reference Tables'!$I$6,'ECD Input and Calculations'!$AB53<='Reference Tables'!$I$7),2,AND('ECD Input and Calculations'!$AB53>='Reference Tables'!$I$8,'ECD Input and Calculations'!$AB53<='Reference Tables'!$I$9),3,AND('ECD Input and Calculations'!$AB53>='Reference Tables'!$I$10,'ECD Input and Calculations'!$AB53<='Reference Tables'!$I$11),4))","v":""},{"$f":"IF(Table7[[#This Row],[Risk Control Band]]=\"\", \"\",IF(D53=\"Fume Hood\",VLOOKUP(AC53,'Reference Tables'!$N$2:$O$11,2),\"N/A\"))","v":""},{"$f":"IF(ECD_Inputs[[#This Row],[Exposure Control Device]]=\"\",\"\", IF(ECD_Inputs[[#This Row],[Exposure Control Device]]=\"Fume Hood\",MAX(((Table7[[#This Row],[Min. Fume Hood Air Flow Requirement (ACH)]]/60)*((F53/12)*(H53/12)*(I53/12))),(((F53/12)*(H53/12))*ECD_Inputs[[#This Row],[Face Velocity (ft/min) ]])),\"Enter Value Manually\"))","v":""},{"$f":"IF(ECD_Inputs[[#This Row],[Exposure Control Device]]=\"\",\"\", IF(ECD_Inputs[[#This Row],[Exposure Control Device]]=\"Fume Hood\",(G53/12)*(H53/12)*J53,\"Enter Value Manually\"))","v":""}]
[null,null,null,null,null,null,null,null,null,null,null,null,null,null,null,null,null,null,null,null,{"$f":"IF(ECD_Inputs[[#This Row],[Exposure Limit]]=\"\", \"\",VLOOKUP('ECD Input and Calculations'!N54,'Reference Tables'!$B$2:$D$36,3,FALSE))","v":""},{"$f":"IF(ECD_Inputs[[#This Row],[Quantity]]=\"\", \"\",VLOOKUP('ECD Input and Calculations'!O54,'Reference Tables'!$B$2:$D$36,3,FALSE))","v":""},{"$f":"IF(ECD_Inputs[[#This Row],[ Generation Potential]]=\"\", \"\",VLOOKUP('ECD Input and Calculations'!P54,'Reference Tables'!$B$2:$D$36,3,FALSE))","v":""},{"$f":"IF(ECD_Inputs[[#This Row],[ Generation Method]]=\"\", \"\", VLOOKUP('ECD Input and Calculations'!Q54,'Reference Tables'!$B$2:$D$36,3,FALSE))","v":""},{"$f":"IF(ECD_Inputs[[#This Row],[Generation Location]]=\"\", \"\",VLOOKUP('ECD Input and Calculations'!R54,'Reference Tables'!$B$2:$D$36,3,FALSE))","v":""},{"$f":"IF(ECD_Inputs[[#This Row],[Change Dynamics]]=\"\", \"\",VLOOKUP('ECD Input and Calculations'!S54,'Reference Tables'!$B$2:$D$36,3,FALSE))","v":""},{"$f":"IF(ECD_Inputs[[#This Row],[Housekeeping]]=\"\",\"\",VLOOKUP('ECD Input and Calculations'!T54,'Reference Tables'!$B$2:$D$36,3,FALSE))","v":""},{"$f":"IF(Table7[[#This Row],[Housekeeping Rating]]=\"\",\"\", ($M$1*U54)+($N$1*V54)+($O$1*W54)+($P$1*X54)+($Q$1*Y54)+($R$1*Z54)+($S$1*AA54))","v":""},{"$f":"IF(Table7[[#This Row],[Weighted Score]]=\"\", \"\", _xlfn.IFS(AND($AB54>='Reference Tables'!$I$2,'ECD Input and Calculations'!$AB54<='Reference Tables'!$I$3),0,AND('ECD Input and Calculations'!$AB54>='Reference Tables'!$I$4,'ECD Input and Calculations'!$AB54<='Reference Tables'!$I$5),1,AND('ECD Input and Calculations'!$AB54>='Reference Tables'!$I$6,'ECD Input and Calculations'!$AB54<='Reference Tables'!$I$7),2,AND('ECD Input and Calculations'!$AB54>='Reference Tables'!$I$8,'ECD Input and Calculations'!$AB54<='Reference Tables'!$I$9),3,AND('ECD Input and Calculations'!$AB54>='Reference Tables'!$I$10,'ECD Input and Calculations'!$AB54<='Reference Tables'!$I$11),4))","v":""},{"$f":"IF(Table7[[#This Row],[Risk Control Band]]=\"\", \"\",IF(D54=\"Fume Hood\",VLOOKUP(AC54,'Reference Tables'!$N$2:$O$11,2),\"N/A\"))","v":""},{"$f":"IF(ECD_Inputs[[#This Row],[Exposure Control Device]]=\"\",\"\", IF(ECD_Inputs[[#This Row],[Exposure Control Device]]=\"Fume Hood\",MAX(((Table7[[#This Row],[Min. Fume Hood Air Flow Requirement (ACH)]]/60)*((F54/12)*(H54/12)*(I54/12))),(((F54/12)*(H54/12))*ECD_Inputs[[#This Row],[Face Velocity (ft/min) ]])),\"Enter Value Manually\"))","v":""},{"$f":"IF(ECD_Inputs[[#This Row],[Exposure Control Device]]=\"\",\"\", IF(ECD_Inputs[[#This Row],[Exposure Control Device]]=\"Fume Hood\",(G54/12)*(H54/12)*J54,\"Enter Value Manually\"))","v":""}]
[null,null,null,null,null,null,null,null,null,null,null,null,null,null,null,null,null,null,null,null,{"$f":"IF(ECD_Inputs[[#This Row],[Exposure Limit]]=\"\", \"\",VLOOKUP('ECD Input and Calculations'!N55,'Reference Tables'!$B$2:$D$36,3,FALSE))","v":""},{"$f":"IF(ECD_Inputs[[#This Row],[Quantity]]=\"\", \"\",VLOOKUP('ECD Input and Calculations'!O55,'Reference Tables'!$B$2:$D$36,3,FALSE))","v":""},{"$f":"IF(ECD_Inputs[[#This Row],[ Generation Potential]]=\"\", \"\",VLOOKUP('ECD Input and Calculations'!P55,'Reference Tables'!$B$2:$D$36,3,FALSE))","v":""},{"$f":"IF(ECD_Inputs[[#This Row],[ Generation Method]]=\"\", \"\", VLOOKUP('ECD Input and Calculations'!Q55,'Reference Tables'!$B$2:$D$36,3,FALSE))","v":""},{"$f":"IF(ECD_Inputs[[#This Row],[Generation Location]]=\"\", \"\",VLOOKUP('ECD Input and Calculations'!R55,'Reference Tables'!$B$2:$D$36,3,FALSE))","v":""},{"$f":"IF(ECD_Inputs[[#This Row],[Change Dynamics]]=\"\", \"\",VLOOKUP('ECD Input and Calculations'!S55,'Reference Tables'!$B$2:$D$36,3,FALSE))","v":""},{"$f":"IF(ECD_Inputs[[#This Row],[Housekeeping]]=\"\",\"\",VLOOKUP('ECD Input and Calculations'!T55,'Reference Tables'!$B$2:$D$36,3,FALSE))","v":""},{"$f":"IF(Table7[[#This Row],[Housekeeping Rating]]=\"\",\"\", ($M$1*U55)+($N$1*V55)+($O$1*W55)+($P$1*X55)+($Q$1*Y55)+($R$1*Z55)+($S$1*AA55))","v":""},{"$f":"IF(Table7[[#This Row],[Weighted Score]]=\"\", \"\", _xlfn.IFS(AND($AB55>='Reference Tables'!$I$2,'ECD Input and Calculations'!$AB55<='Reference Tables'!$I$3),0,AND('ECD Input and Calculations'!$AB55>='Reference Tables'!$I$4,'ECD Input and Calculations'!$AB55<='Reference Tables'!$I$5),1,AND('ECD Input and Calculations'!$AB55>='Reference Tables'!$I$6,'ECD Input and Calculations'!$AB55<='Reference Tables'!$I$7),2,AND('ECD Input and Calculations'!$AB55>='Reference Tables'!$I$8,'ECD Input and Calculations'!$AB55<='Reference Tables'!$I$9),3,AND('ECD Input and Calculations'!$AB55>='Reference Tables'!$I$10,'ECD Input and Calculations'!$AB55<='Reference Tables'!$I$11),4))","v":""},{"$f":"IF(Table7[[#This Row],[Risk Control Band]]=\"\", \"\",IF(D55=\"Fume Hood\",VLOOKUP(AC55,'Reference Tables'!$N$2:$O$11,2),\"N/A\"))","v":""},{"$f":"IF(ECD_Inputs[[#This Row],[Exposure Control Device]]=\"\",\"\", IF(ECD_Inputs[[#This Row],[Exposure Control Device]]=\"Fume Hood\",MAX(((Table7[[#This Row],[Min. Fume Hood Air Flow Requirement (ACH)]]/60)*((F55/12)*(H55/12)*(I55/12))),(((F55/12)*(H55/12))*ECD_Inputs[[#This Row],[Face Velocity (ft/min) ]])),\"Enter Value Manually\"))","v":""},{"$f":"IF(ECD_Inputs[[#This Row],[Exposure Control Device]]=\"\",\"\", IF(ECD_Inputs[[#This Row],[Exposure Control Device]]=\"Fume Hood\",(G55/12)*(H55/12)*J55,\"Enter Value Manually\"))","v":""}]
[null,null,null,null,null,null,null,null,null,null,null,null,null,null,null,null,null,null,null,null,{"$f":"IF(ECD_Inputs[[#This Row],[Exposure Limit]]=\"\", \"\",VLOOKUP('ECD Input and Calculations'!N56,'Reference Tables'!$B$2:$D$36,3,FALSE))","v":""},{"$f":"IF(ECD_Inputs[[#This Row],[Quantity]]=\"\", \"\",VLOOKUP('ECD Input and Calculations'!O56,'Reference Tables'!$B$2:$D$36,3,FALSE))","v":""},{"$f":"IF(ECD_Inputs[[#This Row],[ Generation Potential]]=\"\", \"\",VLOOKUP('ECD Input and Calculations'!P56,'Reference Tables'!$B$2:$D$36,3,FALSE))","v":""},{"$f":"IF(ECD_Inputs[[#This Row],[ Generation Method]]=\"\", \"\", VLOOKUP('ECD Input and Calculations'!Q56,'Reference Tables'!$B$2:$D$36,3,FALSE))","v":""},{"$f":"IF(ECD_Inputs[[#This Row],[Generation Location]]=\"\", \"\",VLOOKUP('ECD Input and Calculations'!R56,'Reference Tables'!$B$2:$D$36,3,FALSE))","v":""},{"$f":"IF(ECD_Inputs[[#This Row],[Change Dynamics]]=\"\", \"\",VLOOKUP('ECD Input and Calculations'!S56,'Reference Tables'!$B$2:$D$36,3,FALSE))","v":""},{"$f":"IF(ECD_Inputs[[#This Row],[Housekeeping]]=\"\",\"\",VLOOKUP('ECD Input and Calculations'!T56,'Reference Tables'!$B$2:$D$36,3,FALSE))","v":""},{"$f":"IF(Table7[[#This Row],[Housekeeping Rating]]=\"\",\"\", ($M$1*U56)+($N$1*V56)+($O$1*W56)+($P$1*X56)+($Q$1*Y56)+($R$1*Z56)+($S$1*AA56))","v":""},{"$f":"IF(Table7[[#This Row],[Weighted Score]]=\"\", \"\", _xlfn.IFS(AND($AB56>='Reference Tables'!$I$2,'ECD Input and Calculations'!$AB56<='Reference Tables'!$I$3),0,AND('ECD Input and Calculations'!$AB56>='Reference Tables'!$I$4,'ECD Input and Calculations'!$AB56<='Reference Tables'!$I$5),1,AND('ECD Input and Calculations'!$AB56>='Reference Tables'!$I$6,'ECD Input and Calculations'!$AB56<='Reference Tables'!$I$7),2,AND('ECD Input and Calculations'!$AB56>='Reference Tables'!$I$8,'ECD Input and Calculations'!$AB56<='Reference Tables'!$I$9),3,AND('ECD Input and Calculations'!$AB56>='Reference Tables'!$I$10,'ECD Input and Calculations'!$AB56<='Reference Tables'!$I$11),4))","v":""},{"$f":"IF(Table7[[#This Row],[Risk Control Band]]=\"\", \"\",IF(D56=\"Fume Hood\",VLOOKUP(AC56,'Reference Tables'!$N$2:$O$11,2),\"N/A\"))","v":""},{"$f":"IF(ECD_Inputs[[#This Row],[Exposure Control Device]]=\"\",\"\", IF(ECD_Inputs[[#This Row],[Exposure Control Device]]=\"Fume Hood\",MAX(((Table7[[#This Row],[Min. Fume Hood Air Flow Requirement (ACH)]]/60)*((F56/12)*(H56/12)*(I56/12))),(((F56/12)*(H56/12))*ECD_Inputs[[#This Row],[Face Velocity (ft/min) ]])),\"Enter Value Manually\"))","v":""},{"$f":"IF(ECD_Inputs[[#This Row],[Exposure Control Device]]=\"\",\"\", IF(ECD_Inputs[[#This Row],[Exposure Control Device]]=\"Fume Hood\",(G56/12)*(H56/12)*J56,\"Enter Value Manually\"))","v":""}]

{"sheet":"Lab Input and Calculations","index":2,"n_rows":56,"n_cols":40,"rows_kept":56,"cut":false,"hidden":false,"merged":[[0,0,0,5]]}
["Hazard criteria weighting factors for algorithm calculations. For more info, refer to the Algorithms section of the LVRA Guide. ",null,null,null,null,null,14,2,12,1,2,2,1,1,1,3,1]
["General Information - Enter general information for each lab.  ",null,null,null,null,null,"Hazard Criteria - Select appropriate criteria from the drop down. ",null,null,null,null,null,null,null,null,null,null,"Outputs - These columns are calculated automatically; no data entry in these fields is required. ",null,null,null,null,null,null,null,null,null,null,null,null,"Suggested Ventilation Rates for Occupied and Unoccupied Modes - A variety of metrics are calculated, based on how your organization quantifies ventilation rates. "]
["Contact/ Reviewer","Building","Lab Number","Lab Area [ft2]","Lab Type ","Chemical Type","Exposure Limit","Quantity"," Generation Potential"," Generation Method","Generation Location","Change Dynamics","Housekeeping","ECD Available?","ECD Appropriate?","Ventilation Effectivness ","Maximum RCB for ECDs in Lab","Hazard Exposure Limit Rating","Hazard Quantity Rating","Hazard Generation Rate Rating","Hazard Generation Method Rating","Generation Location Rating","Change Dynamics Rating","Housekeeping Rating","ECD Availability Rating","ECD Appropriate Rating","Ventilation Effectivness Rating","Maximum ECD Rating","Weighed Score","Lab Control Band","Minimum Air Changes per Hour, Occupied (ACH)","Minimum Air Changes per Hour, Unoccupied (ACH)","Minimum Air Flow per Square Foot, Occupied (CFM/ SF)","Minimum Air Flow per Square Foot, Unoccupied (CFM/ SF)","Minimum Airflow, Occupied  (CFM)","Minimum Airflow, Unoccupied (CFM)","Total ECD Max Air Flow (CFM)","Total ECD Min. Air Flow (CFM)","Recommended Minimum Airflow, Occupied (CFM)","Recommended Minimum Airflow, Unoccupied (CFM)"]
[null,null,null,null,null,null,null,null,null,null,null,null,null,null,null,null,{"$f":"IF(Lab_Inputs[[#This Row],[Lab Number]]=\"\",\"\",_xlfn.MAXIFS(Table7[Risk Control Band],ECD_Inputs[Lab Number],Lab_Inputs[[#This Row],[Lab Number]]))","v":""},{"$f":"IF(Lab_Inputs[[#This Row],[Quantity]]=\"\", \"\",VLOOKUP('Lab Input and Calculations'!G4,'Reference Tables'!$C$2:$D$52,2,FALSE))","v":""},{"$f":"IF(Lab_Inputs[[#This Row],[Quantity]]=\"\", \"\",VLOOKUP('Lab Input and Calculations'!H4,'Reference Tables'!$C$2:$D$52,2,FALSE))","v":""},{"$f":"IF(Lab_Inputs[[#This Row],[ Generation Potential]]=\"\", \"\", VLOOKUP('Lab Input and Calculations'!I4,'Reference Tables'!$C$2:$D$52,2,FALSE))","v":""},{"$f":"IF(Lab_Inputs[[#This Row],[ Generation Method]]=\"\", \"\", VLOOKUP('Lab Input and Calculations'!J4,'Reference Tables'!$C$2:$D$52,2,FALSE))","v":""},{"$f":"IF(Lab_Inputs[[#This Row],[Generation Location]]=\"\", \"\", VLOOKUP('Lab Input and Calculations'!K4,'Reference Tables'!$C$2:$D$52,2,FALSE))","v":""},{"$f":"IF(Lab_Inputs[[#This Row],[Change Dynamics]]=\"\", \"\", VLOOKUP('Lab Input and Calculations'!L4,'Reference Tables'!$C$2:$D$52,2,FALSE))","v":""},{"$f":"IF(Lab_Inputs[[#This Row],[Housekeeping]]=\"\", \"\", VLOOKUP('Lab Input and Calculations'!M4,'Reference Tables'!$C$2:$D$52,2,FALSE))","v":""},{"$f":"IF(Lab_Inputs[[#This Row],[ECD Available?]]=\"\",\"\", VLOOKUP('Lab Input and Calculations'!N4,'Reference Tables'!$C$2:$D$52,2,FALSE))","v":""},{"$f":"IF(Lab_Inputs[[#This Row],[ECD Appropriate?]]=\"\", \"\", VLOOKUP('Lab Input and Calculations'!O4,'Reference Tables'!$C$2:$D$52,2,FALSE))","v":""},{"$f":"IF(Lab_Inputs[[#This Row],[Ventilation Effectivness ]]=\"\", \"\",VLOOKUP('Lab Input and Calculations'!P4,'Reference Tables'!$C$2:$D$52,2,FALSE))","v":""},{"$f":"IF(Lab_Inputs[[#This Row],[Maximum RCB for ECDs in Lab]]=\"\", \"\", Lab_Inputs[[#This Row],[Maximum RCB for ECDs in Lab]])","v":""},{"$f":"IF(Table75[[#This Row],[Hazard Exposure Limit Rating]]=\"\", \"\", ($G$1*R4)+($H$1*S4)+($I$1*T4)+($J$1*U4)+($K$1*V4)+($L$1*W4)+($M$1*X4)+($N$1*Y4)+($O$1*Z4)+($P$1*AA4)+($Q$1*AB4))","v":""},{"$f":"IF(Table75[[#This Row],[Weighed Score]]=\"\", \"\", _xlfn.IFS(AND($AC4>='Reference Tables'!$L$2,'Lab Input and Calculations'!$AC4<='Reference Tables'!$L$3),0,AND('Lab Input and Calculations'!$AC4>='Reference Tables'!$L$4,'Lab Input and Calculations'!$AC4<='Reference Tables'!$L$5),1,AND('Lab Input and Calculations'!$AC4>='Reference Tables'!$L$6,'Lab Input and Calculations'!$AC4<='Reference Tables'!$L$7),2,AND('Lab Input and Calculations'!$AC4>='Reference Tables'!$L$8,'Lab Input and Calculations'!$AC4<='Reference Tables'!$L$9),3,AND('Lab Input and Calculations'!$AC4>'Reference Tables'!$L$10,'Lab Input and Calculations'!$AC4<='Reference Tables'!$L$11),4))","v":""},{"$f":"IF(Table75[[#This Row],[Lab Control Band]]=\"\", \"\", VLOOKUP(AD4,'Reference Tables'!$Q$3:$S$12,2))","v":""},{"$f":"IF(Table75[[#This Row],[Lab Control Band]]=\"\", \"\", VLOOKUP(AD4,'Reference Tables'!$Q$3:$S$12,3))","v":""},{"$f":"IF(Table75[[#This Row],[Lab Control Band]]=\"\", \"\", (Table5[[#This Row],[Minimum Air Changes per Hour, Occupied (ACH)]]*10)/60)","v":""},{"$f":"IF(Table75[[#This Row],[Lab Control Band]]=\"\", \"\", (AF4*10)/60)","v":""},{"$f":"IF(Table75[[#This Row],[Lab Control Band]]=\"\", \"\", D4*AG4)","v":""},{"$f":"IF(Table75[[#This Row],[Lab Control Band]]=\"\", \"\", D4*AH4)","v":""},{"$f":"IF(Lab_Inputs[[#This Row],[Lab Number]]=\"\",\"\",SUMIF(ECD_Inputs[Lab Number],Lab_Inputs[[#This Row],[Lab Number]],'ECD Input and Calculations'!$AF$4:$AF$56))","v":""},{"$f":"IF(Lab_Inputs[[#This Row],[Lab Number]]=\"\",\"\",SUMIF(ECD_Inputs[Lab Number],Lab_Inputs[[#This Row],[Lab Number]],'ECD Input and Calculations'!$AE$4:$AE$56))","v":""},{"$f":"IF(Lab_Inputs[[#This Row],[Lab Number]]=\"\",\"\",MAX(Table5[[#This Row],[Minimum Airflow, Occupied  (CFM)]],Table5[[#This Row],[Total ECD Min. Air Flow (CFM)]]))","v":""},{"$f":"IF(Lab_Inputs[[#This Row],[Lab Number]]=\"\",\"\",MAX(Table5[[#This Row],[Minimum Airflow, Unoccupied (CFM)]],Table5[[#This Row],[Total ECD Min. Air Flow (CFM)]]))","v":""}]
[null,null,null,null,null,null,null,null,null,null,null,null,null,null,null,null,{"$f":"IF(Lab_Inputs[[#This Row],[Lab Number]]=\"\",\"\",_xlfn.MAXIFS(Table7[Risk Control Band],ECD_Inputs[Lab Number],Lab_Inputs[[#This Row],[Lab Number]]))","v":""},{"$f":"IF(Lab_Inputs[[#This Row],[Quantity]]=\"\", \"\",VLOOKUP('Lab Input and Calculations'!G5,'Reference Tables'!$C$2:$D$52,2,FALSE))","v":""},{"$f":"IF(Lab_Inputs[[#This Row],[Quantity]]=\"\", \"\",VLOOKUP('Lab Input and Calculations'!H5,'Reference Tables'!$C$2:$D$52,2,FALSE))","v":""},{"$f":"IF(Lab_Inputs[[#This Row],[ Generation Potential]]=\"\", \"\", VLOOKUP('Lab Input and Calculations'!I5,'Reference Tables'!$C$2:$D$52,2,FALSE))","v":""},{"$f":"IF(Lab_Inputs[[#This Row],[ Generation Method]]=\"\", \"\", VLOOKUP('Lab Input and Calculations'!J5,'Reference Tables'!$C$2:$D$52,2,FALSE))","v":""},{"$f":"IF(Lab_Inputs[[#This Row],[Generation Location]]=\"\", \"\", VLOOKUP('Lab Input and Calculations'!K5,'Reference Tables'!$C$2:$D$52,2,FALSE))","v":""},{"$f":"IF(Lab_Inputs[[#This Row],[Change Dynamics]]=\"\", \"\", VLOOKUP('Lab Input and Calculations'!L5,'Reference Tables'!$C$2:$D$52,2,FALSE))","v":""},{"$f":"IF(Lab_Inputs[[#This Row],[Housekeeping]]=\"\", \"\", VLOOKUP('Lab Input and Calculations'!M5,'Reference Tables'!$C$2:$D$52,2,FALSE))","v":""},{"$f":"IF(Lab_Inputs[[#This Row],[ECD Available?]]=\"\",\"\", VLOOKUP('Lab Input and Calculations'!N5,'Reference Tables'!$C$2:$D$52,2,FALSE))","v":""},{"$f":"IF(Lab_Inputs[[#This Row],[ECD Appropriate?]]=\"\", \"\", VLOOKUP('Lab Input and Calculations'!O5,'Reference Tables'!$C$2:$D$52,2,FALSE))","v":""},{"$f":"IF(Lab_Inputs[[#This Row],[Ventilation Effectivness ]]=\"\", \"\",VLOOKUP('Lab Input and Calculations'!P5,'Reference Tables'!$C$2:$D$52,2,FALSE))","v":""},{"$f":"IF(Lab_Inputs[[#This Row],[Maximum RCB for ECDs in Lab]]=\"\", \"\", Lab_Inputs[[#This Row],[Maximum RCB for ECDs in Lab]])","v":""},{"$f":"IF(Table75[[#This Row],[Hazard Exposure Limit Rating]]=\"\", \"\", ($G$1*R5)+($H$1*S5)+($I$1*T5)+($J$1*U5)+($K$1*V5)+($L$1*W5)+($M$1*X5)+($N$1*Y5)+($O$1*Z5)+($P$1*AA5)+($Q$1*AB5))","v":""},{"$f":"IF(Table75[[#This Row],[Weighed Score]]=\"\", \"\", _xlfn.IFS(AND($AC5>='Reference Tables'!$L$2,'Lab Input and Calculations'!$AC5<='Reference Tables'!$L$3),0,AND('Lab Input and Calculations'!$AC5>='Reference Tables'!$L$4,'Lab Input and Calculations'!$AC5<='Reference Tables'!$L$5),1,AND('Lab Input and Calculations'!$AC5>='Reference Tables'!$L$6,'Lab Input and Calculations'!$AC5<='Reference Tables'!$L$7),2,AND('Lab Input and Calculations'!$AC5>='Reference Tables'!$L$8,'Lab Input and Calculations'!$AC5<='Reference Tables'!$L$9),3,AND('Lab Input and Calculations'!$AC5>'Reference Tables'!$L$10,'Lab Input and Calculations'!$AC5<='Reference Tables'!$L$11),4))","v":""},{"$f":"IF(Table75[[#This Row],[Lab Control Band]]=\"\", \"\", VLOOKUP(AD5,'Reference Tables'!$Q$3:$S$12,2))","v":""},{"$f":"IF(Table75[[#This Row],[Lab Control Band]]=\"\", \"\", VLOOKUP(AD5,'Reference Tables'!$Q$3:$S$12,3))","v":""},{"$f":"IF(Table75[[#This Row],[Lab Control Band]]=\"\", \"\", (Table5[[#This Row],[Minimum Air Changes per Hour, Occupied (ACH)]]*10)/60)","v":""},{"$f":"IF(Table75[[#This Row],[Lab Control Band]]=\"\", \"\", (AF5*10)/60)","v":""},{"$f":"IF(Table75[[#This Row],[Lab Control Band]]=\"\", \"\", D5*AG5)","v":""},{"$f":"IF(Table75[[#This Row],[Lab Control Band]]=\"\", \"\", D5*AH5)","v":""},{"$f":"IF(Lab_Inputs[[#This Row],[Lab Number]]=\"\",\"\",SUMIF(ECD_Inputs[Lab Number],Lab_Inputs[[#This Row],[Lab Number]],'ECD Input and Calculations'!$AF$4:$AF$56))","v":""},{"$f":"IF(Lab_Inputs[[#This Row],[Lab Number]]=\"\",\"\",SUMIF(ECD_Inputs[Lab Number],Lab_Inputs[[#This Row],[Lab Number]],'ECD Input and Calculations'!$AE$4:$AE$56))","v":""},{"$f":"IF(Lab_Inputs[[#This Row],[Lab Number]]=\"\",\"\",MAX(Table5[[#This Row],[Minimum Airflow, Occupied  (CFM)]],Table5[[#This Row],[Total ECD Min. Air Flow (CFM)]]))","v":""},{"$f":"IF(Lab_Inputs[[#This Row],[Lab Number]]=\"\",\"\",MAX(Table5[[#This Row],[Minimum Airflow, Unoccupied (CFM)]],Table5[[#This Row],[Total ECD Min. Air Flow (CFM)]]))","v":""}]
[null,null,null,null,null,null,null,null,null,null,null,null,null,null,null,null,{"$f":"IF(Lab_Inputs[[#This Row],[Lab Number]]=\"\",\"\",_xlfn.MAXIFS(Table7[Risk Control Band],ECD_Inputs[Lab Number],Lab_Inputs[[#This Row],[Lab Number]]))","v":""},{"$f":"IF(Lab_Inputs[[#This Row],[Quantity]]=\"\", \"\",VLOOKUP('Lab Input and Calculations'!G6,'Reference Tables'!$C$2:$D$52,2,FALSE))","v":""},{"$f":"IF(Lab_Inputs[[#This Row],[Quantity]]=\"\", \"\",VLOOKUP('Lab Input and Calculations'!H6,'Reference Tables'!$C$2:$D$52,2,FALSE))","v":""},{"$f":"IF(Lab_Inputs[[#This Row],[ Generation Potential]]=\"\", \"\", VLOOKUP('Lab Input and Calculations'!I6,'Reference Tables'!$C$2:$D$52,2,FALSE))","v":""},{"$f":"IF(Lab_Inputs[[#This Row],[ Generation Method]]=\"\", \"\", VLOOKUP('Lab Input and Calculations'!J6,'Reference Tables'!$C$2:$D$52,2,FALSE))","v":""},{"$f":"IF(Lab_Inputs[[#This Row],[Generation Location]]=\"\", \"\", VLOOKUP('Lab Input and Calculations'!K6,'Reference Tables'!$C$2:$D$52,2,FALSE))","v":""},{"$f":"IF(Lab_Inputs[[#This Row],[Change Dynamics]]=\"\", \"\", VLOOKUP('Lab Input and Calculations'!L6,'Reference Tables'!$C$2:$D$52,2,FALSE))","v":""},{"$f":"IF(Lab_Inputs[[#This Row],[Housekeeping]]=\"\", \"\", VLOOKUP('Lab Input and Calculations'!M6,'Reference Tables'!$C$2:$D$52,2,FALSE))","v":""},{"$f":"IF(Lab_Inputs[[#This Row],[ECD Available?]]=\"\",\"\", VLOOKUP('Lab Input and Calculations'!N6,'Reference Tables'!$C$2:$D$52,2,FALSE))","v":""},{"$f":"IF(Lab_Inputs[[#This Row],[ECD Appropriate?]]=\"\", \"\", VLOOKUP('Lab Input and Calculations'!O6,'Reference Tables'!$C$2:$D$52,2,FALSE))","v":""},{"$f":"IF(Lab_Inputs[[#This Row],[Ventilation Effectivness ]]=\"\", \"\",VLOOKUP('Lab Input and Calculations'!P6,'Reference Tables'!$C$2:$D$52,2,FALSE))","v":""},{"$f":"IF(Lab_Inputs[[#This Row],[Maximum RCB for ECDs in Lab]]=\"\", \"\", Lab_Inputs[[#This Row],[Maximum RCB for ECDs in Lab]])","v":""},{"$f":"IF(Table75[[#This Row],[Hazard Exposure Limit Rating]]=\"\", \"\", ($G$1*R6)+($H$1*S6)+($I$1*T6)+($J$1*U6)+($K$1*V6)+($L$1*W6)+($M$1*X6)+($N$1*Y6)+($O$1*Z6)+($P$1*AA6)+($Q$1*AB6))","v":""},{"$f":"IF(Table75[[#This Row],[Weighed Score]]=\"\", \"\", _xlfn.IFS(AND($AC6>='Reference Tables'!$L$2,'Lab Input and Calculations'!$AC6<='Reference Tables'!$L$3),0,AND('Lab Input and Calculations'!$AC6>='Reference Tables'!$L$4,'Lab Input and Calculations'!$AC6<='Reference Tables'!$L$5),1,AND('Lab Input and Calculations'!$AC6>='Reference Tables'!$L$6,'Lab Input and Calculations'!$AC6<='Reference Tables'!$L$7),2,AND('Lab Input and Calculations'!$AC6>='Reference Tables'!$L$8,'Lab Input and Calculations'!$AC6<='Reference Tables'!$L$9),3,AND('Lab Input and Calculations'!$AC6>'Reference Tables'!$L$10,'Lab Input and Calculations'!$AC6<='Reference Tables'!$L$11),4))","v":""},{"$f":"IF(Table75[[#This Row],[Lab Control Band]]=\"\", \"\", VLOOKUP(AD6,'Reference Tables'!$Q$3:$S$12,2))","v":""},{"$f":"IF(Table75[[#This Row],[Lab Control Band]]=\"\", \"\", VLOOKUP(AD6,'Reference Tables'!$Q$3:$S$12,3))","v":""},{"$f":"IF(Table75[[#This Row],[Lab Control Band]]=\"\", \"\", (Table5[[#This Row],[Minimum Air Changes per Hour, Occupied (ACH)]]*10)/60)","v":""},{"$f":"IF(Table75[[#This Row],[Lab Control Band]]=\"\", \"\", (AF6*10)/60)","v":""},{"$f":"IF(Table75[[#This Row],[Lab Control Band]]=\"\", \"\", D6*AG6)","v":""},{"$f":"IF(Table75[[#This Row],[Lab Control Band]]=\"\", \"\", D6*AH6)","v":""},{"$f":"IF(Lab_Inputs[[#This Row],[Lab Number]]=\"\",\"\",SUMIF(ECD_Inputs[Lab Number],Lab_Inputs[[#This Row],[Lab Number]],'ECD Input and Calculations'!$AF$4:$AF$56))","v":""},{"$f":"IF(Lab_Inputs[[#This Row],[Lab Number]]=\"\",\"\",SUMIF(ECD_Inputs[Lab Number],Lab_Inputs[[#This Row],[Lab Number]],'ECD Input and Calculations'!$AE$4:$AE$56))","v":""},{"$f":"IF(Lab_Inputs[[#This Row],[Lab Number]]=\"\",\"\",MAX(Table5[[#This Row],[Minimum Airflow, Occupied  (CFM)]],Table5[[#This Row],[Total ECD Min. Air Flow (CFM)]]))","v":""},{"$f":"IF(Lab_Inputs[[#This Row],[Lab Number]]=\"\",\"\",MAX(Table5[[#This Row],[Minimum Airflow, Unoccupied (CFM)]],Table5[[#This Row],[Total ECD Min. Air Flow (CFM)]]))","v":""}]
[null,null,null,null,null,null,null,null,null,null,null,null,null,null,null,null,{"$f":"IF(Lab_Inputs[[#This Row],[Lab Number]]=\"\",\"\",_xlfn.MAXIFS(Table7[Risk Control Band],ECD_Inputs[Lab Number],Lab_Inputs[[#This Row],[Lab Number]]))","v":""},{"$f":"IF(Lab_Inputs[[#This Row],[Quantity]]=\"\", \"\",VLOOKUP('Lab Input and Calculations'!G7,'Reference Tables'!$C$2:$D$52,2,FALSE))","v":""},{"$f":"IF(Lab_Inputs[[#This Row],[Quantity]]=\"\", \"\",VLOOKUP('Lab Input and Calculations'!H7,'Reference Tables'!$C$2:$D$52,2,FALSE))","v":""},{"$f":"IF(Lab_Inputs[[#This Row],[ Generation Potential]]=\"\", \"\", VLOOKUP('Lab Input and Calculations'!I7,'Reference Tables'!$C$2:$D$52,2,FALSE))","v":""},{"$f":"IF(Lab_Inputs[[#This Row],[ Generation Method]]=\"\", \"\", VLOOKUP('Lab Input and Calculations'!J7,'Reference Tables'!$C$2:$D$52,2,FALSE))","v":""},{"$f":"IF(Lab_Inputs[[#This Row],[Generation Location]]=\"\", \"\", VLOOKUP('Lab Input and Calculations'!K7,'Reference Tables'!$C$2:$D$52,2,FALSE))","v":""},{"$f":"IF(Lab_Inputs[[#This Row],[Change Dynamics]]=\"\", \"\", VLOOKUP('Lab Input and Calculations'!L7,'Reference Tables'!$C$2:$D$52,2,FALSE))","v":""},{"$f":"IF(Lab_Inputs[[#This Row],[Housekeeping]]=\"\", \"\", VLOOKUP('Lab Input and Calculations'!M7,'Reference Tables'!$C$2:$D$52,2,FALSE))","v":""},{"$f":"IF(Lab_Inputs[[#This Row],[ECD Available?]]=\"\",\"\", VLOOKUP('Lab Input and Calculations'!N7,'Reference Tables'!$C$2:$D$52,2,FALSE))","v":""},{"$f":"IF(Lab_Inputs[[#This Row],[ECD Appropriate?]]=\"\", \"\", VLOOKUP('Lab Input and Calculations'!O7,'Reference Tables'!$C$2:$D$52,2,FALSE))","v":""},{"$f":"IF(Lab_Inputs[[#This Row],[Ventilation Effectivness ]]=\"\", \"\",VLOOKUP('Lab Input and Calculations'!P7,'Reference Tables'!$C$2:$D$52,2,FALSE))","v":""},{"$f":"IF(Lab_Inputs[[#This Row],[Maximum RCB for ECDs in Lab]]=\"\", \"\", Lab_Inputs[[#This Row],[Maximum RCB for ECDs in Lab]])","v":""},{"$f":"IF(Table75[[#This Row],[Hazard Exposure Limit Rating]]=\"\", \"\", ($G$1*R7)+($H$1*S7)+($I$1*T7)+($J$1*U7)+($K$1*V7)+($L$1*W7)+($M$1*X7)+($N$1*Y7)+($O$1*Z7)+($P$1*AA7)+($Q$1*AB7))","v":""},{"$f":"IF(Table75[[#This Row],[Weighed Score]]=\"\", \"\", _xlfn.IFS(AND($AC7>='Reference Tables'!$L$2,'Lab Input and Calculations'!$AC7<='Reference Tables'!$L$3),0,AND('Lab Input and Calculations'!$AC7>='Reference Tables'!$L$4,'Lab Input and Calculations'!$AC7<='Reference Tables'!$L$5),1,AND('Lab Input and Calculations'!$AC7>='Reference Tables'!$L$6,'Lab Input and Calculations'!$AC7<='Reference Tables'!$L$7),2,AND('Lab Input and Calculations'!$AC7>='Reference Tables'!$L$8,'Lab Input and Calculations'!$AC7<='Reference Tables'!$L$9),3,AND('Lab Input and Calculations'!$AC7>'Reference Tables'!$L$10,'Lab Input and Calculations'!$AC7<='Reference Tables'!$L$11),4))","v":""},{"$f":"IF(Table75[[#This Row],[Lab Control Band]]=\"\", \"\", VLOOKUP(AD7,'Reference Tables'!$Q$3:$S$12,2))","v":""},{"$f":"IF(Table75[[#This Row],[Lab Control Band]]=\"\", \"\", VLOOKUP(AD7,'Reference Tables'!$Q$3:$S$12,3))","v":""},{"$f":"IF(Table75[[#This Row],[Lab Control Band]]=\"\", \"\", (Table5[[#This Row],[Minimum Air Changes per Hour, Occupied (ACH)]]*10)/60)","v":""},{"$f":"IF(Table75[[#This Row],[Lab Control Band]]=\"\", \"\", (AF7*10)/60)","v":""},{"$f":"IF(Table75[[#This Row],[Lab Control Band]]=\"\", \"\", D7*AG7)","v":""},{"$f":"IF(Table75[[#This Row],[Lab Control Band]]=\"\", \"\", D7*AH7)","v":""},{"$f":"IF(Lab_Inputs[[#This Row],[Lab Number]]=\"\",\"\",SUMIF(ECD_Inputs[Lab Number],Lab_Inputs[[#This Row],[Lab Number]],'ECD Input and Calculations'!$AF$4:$AF$56))","v":""},{"$f":"IF(Lab_Inputs[[#This Row],[Lab Number]]=\"\",\"\",SUMIF(ECD_Inputs[Lab Number],Lab_Inputs[[#This Row],[Lab Number]],'ECD Input and Calculations'!$AE$4:$AE$56))","v":""},{"$f":"IF(Lab_Inputs[[#This Row],[Lab Number]]=\"\",\"\",MAX(Table5[[#This Row],[Minimum Airflow, Occupied  (CFM)]],Table5[[#This Row],[Total ECD Min. Air Flow (CFM)]]))","v":""},{"$f":"IF(Lab_Inputs[[#This Row],[Lab Number]]=\"\",\"\",MAX(Table5[[#This Row],[Minimum Airflow, Unoccupied (CFM)]],Table5[[#This Row],[Total ECD Min. Air Flow (CFM)]]))","v":""}]
[null,null,null,null,null,null,null,null,null,null,null,null,null,null,null,null,{"$f":"IF(Lab_Inputs[[#This Row],[Lab Number]]=\"\",\"\",_xlfn.MAXIFS(Table7[Risk Control Band],ECD_Inputs[Lab Number],Lab_Inputs[[#This Row],[Lab Number]]))","v":""},{"$f":"IF(Lab_Inputs[[#This Row],[Quantity]]=\"\", \"\",VLOOKUP('Lab Input and Calculations'!G8,'Reference Tables'!$C$2:$D$52,2,FALSE))","v":""},{"$f":"IF(Lab_Inputs[[#This Row],[Quantity]]=\"\", \"\",VLOOKUP('Lab Input and Calculations'!H8,'Reference Tables'!$C$2:$D$52,2,FALSE))","v":""},{"$f":"IF(Lab_Inputs[[#This Row],[ Generation Potential]]=\"\", \"\", VLOOKUP('Lab Input and Calculations'!I8,'Reference Tables'!$C$2:$D$52,2,FALSE))","v":""},{"$f":"IF(Lab_Inputs[[#This Row],[ Generation Method]]=\"\", \"\", VLOOKUP('Lab Input and Calculations'!J8,'Reference Tables'!$C$2:$D$52,2,FALSE))","v":""},{"$f":"IF(Lab_Inputs[[#This Row],[Generation Location]]=\"\", \"\", VLOOKUP('Lab Input and Calculations'!K8,'Reference Tables'!$C$2:$D$52,2,FALSE))","v":""},{"$f":"IF(Lab_Inputs[[#This Row],[Change Dynamics]]=\"\", \"\", VLOOKUP('Lab Input and Calculations'!L8,'Reference Tables'!$C$2:$D$52,2,FALSE))","v":""},{"$f":"IF(Lab_Inputs[[#This Row],[Housekeeping]]=\"\", \"\", VLOOKUP('Lab Input and Calculations'!M8,'Reference Tables'!$C$2:$D$52,2,FALSE))","v":""},{"$f":"IF(Lab_Inputs[[#This Row],[ECD Available?]]=\"\",\"\", VLOOKUP('Lab Input and Calculations'!N8,'Reference Tables'!$C$2:$D$52,2,FALSE))","v":""},{"$f":"IF(Lab_Inputs[[#This Row],[ECD Appropriate?]]=\"\", \"\", VLOOKUP('Lab Input and Calculations'!O8,'Reference Tables'!$C$2:$D$52,2,FALSE))","v":""},{"$f":"IF(Lab_Inputs[[#This Row],[Ventilation Effectivness ]]=\"\", \"\",VLOOKUP('Lab Input and Calculations'!P8,'Reference Tables'!$C$2:$D$52,2,FALSE))","v":""},{"$f":"IF(Lab_Inputs[[#This Row],[Maximum RCB for ECDs in Lab]]=\"\", \"\", Lab_Inputs[[#This Row],[Maximum RCB for ECDs in Lab]])","v":""},{"$f":"IF(Table75[[#This Row],[Hazard Exposure Limit Rating]]=\"\", \"\", ($G$1*R8)+($H$1*S8)+($I$1*T8)+($J$1*U8)+($K$1*V8)+($L$1*W8)+($M$1*X8)+($N$1*Y8)+($O$1*Z8)+($P$1*AA8)+($Q$1*AB8))","v":""},{"$f":"IF(Table75[[#This Row],[Weighed Score]]=\"\", \"\", _xlfn.IFS(AND($AC8>='Reference Tables'!$L$2,'Lab Input and Calculations'!$AC8<='Reference Tables'!$L$3),0,AND('Lab Input and Calculations'!$AC8>='Reference Tables'!$L$4,'Lab Input and Calculations'!$AC8<='Reference Tables'!$L$5),1,AND('Lab Input and Calculations'!$AC8>='Reference Tables'!$L$6,'Lab Input and Calculations'!$AC8<='Reference Tables'!$L$7),2,AND('Lab Input and Calculations'!$AC8>='Reference Tables'!$L$8,'Lab Input and Calculations'!$AC8<='Reference Tables'!$L$9),3,AND('Lab Input and Calculations'!$AC8>'Reference Tables'!$L$10,'Lab Input and Calculations'!$AC8<='Reference Tables'!$L$11),4))","v":""},{"$f":"IF(Table75[[#This Row],[Lab Control Band]]=\"\", \"\", VLOOKUP(AD8,'Reference Tables'!$Q$3:$S$12,2))","v":""},{"$f":"IF(Table75[[#This Row],[Lab Control Band]]=\"\", \"\", VLOOKUP(AD8,'Reference Tables'!$Q$3:$S$12,3))","v":""},{"$f":"IF(Table75[[#This Row],[Lab Control Band]]=\"\", \"\", (Table5[[#This Row],[Minimum Air Changes per Hour, Occupied (ACH)]]*10)/60)","v":""},{"$f":"IF(Table75[[#This Row],[Lab Control Band]]=\"\", \"\", (AF8*10)/60)","v":""},{"$f":"IF(Table75[[#This Row],[Lab Control Band]]=\"\", \"\", D8*AG8)","v":""},{"$f":"IF(Table75[[#This Row],[Lab Control Band]]=\"\", \"\", D8*AH8)","v":""},{"$f":"IF(Lab_Inputs[[#This Row],[Lab Number]]=\"\",\"\",SUMIF(ECD_Inputs[Lab Number],Lab_Inputs[[#This Row],[Lab Number]],'ECD Input and Calculations'!$AF$4:$AF$56))","v":""},{"$f":"IF(Lab_Inputs[[#This Row],[Lab Number]]=\"\",\"\",SUMIF(ECD_Inputs[Lab Number],Lab_Inputs[[#This Row],[Lab Number]],'ECD Input and Calculations'!$AE$4:$AE$56))","v":""},{"$f":"IF(Lab_Inputs[[#This Row],[Lab Number]]=\"\",\"\",MAX(Table5[[#This Row],[Minimum Airflow, Occupied  (CFM)]],Table5[[#This Row],[Total ECD Min. Air Flow (CFM)]]))","v":""},{"$f":"IF(Lab_Inputs[[#This Row],[Lab Number]]=\"\",\"\",MAX(Table5[[#This Row],[Minimum Airflow, Unoccupied (CFM)]],Table5[[#This Row],[Total ECD Min. Air Flow (CFM)]]))","v":""}]
[null,null,null,null,null,null,null,null,null,null,null,null,null,null,null,null,{"$f":"IF(Lab_Inputs[[#This Row],[Lab Number]]=\"\",\"\",_xlfn.MAXIFS(Table7[Risk Control Band],ECD_Inputs[Lab Number],Lab_Inputs[[#This Row],[Lab Number]]))","v":""},{"$f":"IF(Lab_Inputs[[#This Row],[Quantity]]=\"\", \"\",VLOOKUP('Lab Input and Calculations'!G9,'Reference Tables'!$C$2:$D$52,2,FALSE))","v":""},{"$f":"IF(Lab_Inputs[[#This Row],[Quantity]]=\"\", \"\",VLOOKUP('Lab Input and Calculations'!H9,'Reference Tables'!$C$2:$D$52,2,FALSE))","v":""},{"$f":"IF(Lab_Inputs[[#This Row],[ Generation Potential]]=\"\", \"\", VLOOKUP('Lab Input and Calculations'!I9,'Reference Tables'!$C$2:$D$52,2,FALSE))","v":""},{"$f":"IF(Lab_Inputs[[#This Row],[ Generation Method]]=\"\", \"\", VLOOKUP('Lab Input and Calculations'!J9,'Reference Tables'!$C$2:$D$52,2,FALSE))","v":""},{"$f":"IF(Lab_Inputs[[#This Row],[Generation Location]]=\"\", \"\", VLOOKUP('Lab Input and Calculations'!K9,'Reference Tables'!$C$2:$D$52,2,FALSE))","v":""},{"$f":"IF(Lab_Inputs[[#This Row],[Change Dynamics]]=\"\", \"\", VLOOKUP('Lab Input and Calculations'!L9,'Reference Tables'!$C$2:$D$52,2,FALSE))","v":""},{"$f":"IF(Lab_Inputs[[#This Row],[Housekeeping]]=\"\", \"\", VLOOKUP('Lab Input and Calculations'!M9,'Reference Tables'!$C$2:$D$52,2,FALSE))","v":""},{"$f":"IF(Lab_Inputs[[#This Row],[ECD Available?]]=\"\",\"\", VLOOKUP('Lab Input and Calculations'!N9,'Reference Tables'!$C$2:$D$52,2,FALSE))","v":""},{"$f":"IF(Lab_Inputs[[#This Row],[ECD Appropriate?]]=\"\", \"\", VLOOKUP('Lab Input and Calculations'!O9,'Reference Tables'!$C$2:$D$52,2,FALSE))","v":""},{"$f":"IF(Lab_Inputs[[#This Row],[Ventilation Effectivness ]]=\"\", \"\",VLOOKUP('Lab Input and Calculations'!P9,'Reference Tables'!$C$2:$D$52,2,FALSE))","v":""},{"$f":"IF(Lab_Inputs[[#This Row],[Maximum RCB for ECDs in Lab]]=\"\", \"\", Lab_Inputs[[#This Row],[Maximum RCB for ECDs in Lab]])","v":""},{"$f":"IF(Table75[[#This Row],[Hazard Exposure Limit Rating]]=\"\", \"\", ($G$1*R9)+($H$1*S9)+($I$1*T9)+($J$1*U9)+($K$1*V9)+($L$1*W9)+($M$1*X9)+($N$1*Y9)+($O$1*Z9)+($P$1*AA9)+($Q$1*AB9))","v":""},{"$f":"IF(Table75[[#This Row],[Weighed Score]]=\"\", \"\", _xlfn.IFS(AND($AC9>='Reference Tables'!$L$2,'Lab Input and Calculations'!$AC9<='Reference Tables'!$L$3),0,AND('Lab Input and Calculations'!$AC9>='Reference Tables'!$L$4,'Lab Input and Calculations'!$AC9<='Reference Tables'!$L$5),1,AND('Lab Input and Calculations'!$AC9>='Reference Tables'!$L$6,'Lab Input and Calculations'!$AC9<='Reference Tables'!$L$7),2,AND('Lab Input and Calculations'!$AC9>='Reference Tables'!$L$8,'Lab Input and Calculations'!$AC9<='Reference Tables'!$L$9),3,AND('Lab Input and Calculations'!$AC9>'Reference Tables'!$L$10,'Lab Input and Calculations'!$AC9<='Reference Tables'!$L$11),4))","v":""},{"$f":"IF(Table75[[#This Row],[Lab Control Band]]=\"\", \"\", VLOOKUP(AD9,'Reference Tables'!$Q$3:$S$12,2))","v":""},{"$f":"IF(Table75[[#This Row],[Lab Control Band]]=\"\", \"\", VLOOKUP(AD9,'Reference Tables'!$Q$3:$S$12,3))","v":""},{"$f":"IF(Table75[[#This Row],[Lab Control Band]]=\"\", \"\", (Table5[[#This Row],[Minimum Air Changes per Hour, Occupied (ACH)]]*10)/60)","v":""},{"$f":"IF(Table75[[#This Row],[Lab Control Band]]=\"\", \"\", (AF9*10)/60)","v":""},{"$f":"IF(Table75[[#This Row],[Lab Control Band]]=\"\", \"\", D9*AG9)","v":""},{"$f":"IF(Table75[[#This Row],[Lab Control Band]]=\"\", \"\", D9*AH9)","v":""},{"$f":"IF(Lab_Inputs[[#This Row],[Lab Number]]=\"\",\"\",SUMIF(ECD_Inputs[Lab Number],Lab_Inputs[[#This Row],[Lab Number]],'ECD Input and Calculations'!$AF$4:$AF$56))","v":""},{"$f":"IF(Lab_Inputs[[#This Row],[Lab Number]]=\"\",\"\",SUMIF(ECD_Inputs[Lab Number],Lab_Inputs[[#This Row],[Lab Number]],'ECD Input and Calculations'!$AE$4:$AE$56))","v":""},{"$f":"IF(Lab_Inputs[[#This Row],[Lab Number]]=\"\",\"\",MAX(Table5[[#This Row],[Minimum Airflow, Occupied  (CFM)]],Table5[[#This Row],[Total ECD Min. Air Flow (CFM)]]))","v":""},{"$f":"IF(Lab_Inputs[[#This Row],[Lab Number]]=\"\",\"\",MAX(Table5[[#This Row],[Minimum Airflow, Unoccupied (CFM)]],Table5[[#This Row],[Total ECD Min. Air Flow (CFM)]]))","v":""}]
[null,null,null,null,null,null,null,null,null,null,null,null,null,null,null,null,{"$f":"IF(Lab_Inputs[[#This Row],[Lab Number]]=\"\",\"\",_xlfn.MAXIFS(Table7[Risk Control Band],ECD_Inputs[Lab Number],Lab_Inputs[[#This Row],[Lab Number]]))","v":""},{"$f":"IF(Lab_Inputs[[#This Row],[Quantity]]=\"\", \"\",VLOOKUP('Lab Input and Calculations'!G10,'Reference Tables'!$C$2:$D$52,2,FALSE))","v":""},{"$f":"IF(Lab_Inputs[[#This Row],[Quantity]]=\"\", \"\",VLOOKUP('Lab Input and Calculations'!H10,'Reference Tables'!$C$2:$D$52,2,FALSE))","v":""},{"$f":"IF(Lab_Inputs[[#This Row],[ Generation Potential]]=\"\", \"\", VLOOKUP('Lab Input and Calculations'!I10,'Reference Tables'!$C$2:$D$52,2,FALSE))","v":""},{"$f":"IF(Lab_Inputs[[#This Row],[ Generation Method]]=\"\", \"\", VLOOKUP('Lab Input and Calculations'!J10,'Reference Tables'!$C$2:$D$52,2,FALSE))","v":""},{"$f":"IF(Lab_Inputs[[#This Row],[Generation Location]]=\"\", \"\", VLOOKUP('Lab Input and Calculations'!K10,'Reference Tables'!$C$2:$D$52,2,FALSE))","v":""},{"$f":"IF(Lab_Inputs[[#This Row],[Change Dynamics]]=\"\", \"\", VLOOKUP('Lab Input and Calculations'!L10,'Reference Tables'!$C$2:$D$52,2,FALSE))","v":""},{"$f":"IF(Lab_Inputs[[#This Row],[Housekeeping]]=\"\", \"\", VLOOKUP('Lab Input and Calculations'!M10,'Reference Tables'!$C$2:$D$52,2,FALSE))","v":""},{"$f":"IF(Lab_Inputs[[#This Row],[ECD Available?]]=\"\",\"\", VLOOKUP('Lab Input and Calculations'!N10,'Reference Tables'!$C$2:$D$52,2,FALSE))","v":""},{"$f":"IF(Lab_Inputs[[#This Row],[ECD Appropriate?]]=\"\", \"\", VLOOKUP('Lab Input and Calculations'!O10,'Reference Tables'!$C$2:$D$52,2,FALSE))","v":""},{"$f":"IF(Lab_Inputs[[#This Row],[Ventilation Effectivness ]]=\"\", \"\",VLOOKUP('Lab Input and Calculations'!P10,'Reference Tables'!$C$2:$D$52,2,FALSE))","v":""},{"$f":"IF(Lab_Inputs[[#This Row],[Maximum RCB for ECDs in Lab]]=\"\", \"\", Lab_Inputs[[#This Row],[Maximum RCB for ECDs in Lab]])","v":""},{"$f":"IF(Table75[[#This Row],[Hazard Exposure Limit Rating]]=\"\", \"\", ($G$1*R10)+($H$1*S10)+($I$1*T10)+($J$1*U10)+($K$1*V10)+($L$1*W10)+($M$1*X10)+($N$1*Y10)+($O$1*Z10)+($P$1*AA10)+($Q$1*AB10))","v":""},{"$f":"IF(Table75[[#This Row],[Weighed Score]]=\"\", \"\", _xlfn.IFS(AND($AC10>='Reference Tables'!$L$2,'Lab Input and Calculations'!$AC10<='Reference Tables'!$L$3),0,AND('Lab Input and Calculations'!$AC10>='Reference Tables'!$L$4,'Lab Input and Calculations'!$AC10<='Reference Tables'!$L$5),1,AND('Lab Input and Calculations'!$AC10>='Reference Tables'!$L$6,'Lab Input and Calculations'!$AC10<='Reference Tables'!$L$7),2,AND('Lab Input and Calculations'!$AC10>='Reference Tables'!$L$8,'Lab Input and Calculations'!$AC10<='Reference Tables'!$L$9),3,AND('Lab Input and Calculations'!$AC10>'Reference Tables'!$L$10,'Lab Input and Calculations'!$AC10<='Reference Tables'!$L$11),4))","v":""},{"$f":"IF(Table75[[#This Row],[Lab Control Band]]=\"\", \"\", VLOOKUP(AD10,'Reference Tables'!$Q$3:$S$12,2))","v":""},{"$f":"IF(Table75[[#This Row],[Lab Control Band]]=\"\", \"\", VLOOKUP(AD10,'Reference Tables'!$Q$3:$S$12,3))","v":""},{"$f":"IF(Table75[[#This Row],[Lab Control Band]]=\"\", \"\", (Table5[[#This Row],[Minimum Air Changes per Hour, Occupied (ACH)]]*10)/60)","v":""},{"$f":"IF(Table75[[#This Row],[Lab Control Band]]=\"\", \"\", (AF10*10)/60)","v":""},{"$f":"IF(Table75[[#This Row],[Lab Control Band]]=\"\", \"\", D10*AG10)","v":""},{"$f":"IF(Table75[[#This Row],[Lab Control Band]]=\"\", \"\", D10*AH10)","v":""},{"$f":"IF(Lab_Inputs[[#This Row],[Lab Number]]=\"\",\"\",SUMIF(ECD_Inputs[Lab Number],Lab_Inputs[[#This Row],[Lab Number]],'ECD Input and Calculations'!$AF$4:$AF$56))","v":""},{"$f":"IF(Lab_Inputs[[#This Row],[Lab Number]]=\"\",\"\",SUMIF(ECD_Inputs[Lab Number],Lab_Inputs[[#This Row],[Lab Number]],'ECD Input and Calculations'!$AE$4:$AE$56))","v":""},{"$f":"IF(Lab_Inputs[[#This Row],[Lab Number]]=\"\",\"\",MAX(Table5[[#This Row],[Minimum Airflow, Occupied  (CFM)]],Table5[[#This Row],[Total ECD Min. Air Flow (CFM)]]))","v":""},{"$f":"IF(Lab_Inputs[[#This Row],[Lab Number]]=\"\",\"\",MAX(Table5[[#This Row],[Minimum Airflow, Unoccupied (CFM)]],Table5[[#This Row],[Total ECD Min. Air Flow (CFM)]]))","v":""}]
[null,null,null,null,null,null,null,null,null,null,null,null,null,null,null,null,{"$f":"IF(Lab_Inputs[[#This Row],[Lab Number]]=\"\",\"\",_xlfn.MAXIFS(Table7[Risk Control Band],ECD_Inputs[Lab Number],Lab_Inputs[[#This Row],[Lab Number]]))","v":""},{"$f":"IF(Lab_Inputs[[#This Row],[Quantity]]=\"\", \"\",VLOOKUP('Lab Input and Calculations'!G11,'Reference Tables'!$C$2:$D$52,2,FALSE))","v":""},{"$f":"IF(Lab_Inputs[[#This Row],[Quantity]]=\"\", \"\",VLOOKUP('Lab Input and Calculations'!H11,'Reference Tables'!$C$2:$D$52,2,FALSE))","v":""},{"$f":"IF(Lab_Inputs[[#This Row],[ Generation Potential]]=\"\", \"\", VLOOKUP('Lab Input and Calculations'!I11,'Reference Tables'!$C$2:$D$52,2,FALSE))","v":""},{"$f":"IF(Lab_Inputs[[#This Row],[ Generation Method]]=\"\", \"\", VLOOKUP('Lab Input and Calculations'!J11,'Reference Tables'!$C$2:$D$52,2,FALSE))","v":""},{"$f":"IF(Lab_Inputs[[#This Row],[Generation Location]]=\"\", \"\", VLOOKUP('Lab Input and Calculations'!K11,'Reference Tables'!$C$2:$D$52,2,FALSE))","v":""},{"$f":"IF(Lab_Inputs[[#This Row],[Change Dynamics]]=\"\", \"\", VLOOKUP('Lab Input and Calculations'!L11,'Reference Tables'!$C$2:$D$52,2,FALSE))","v":""},{"$f":"IF(Lab_Inputs[[#This Row],[Housekeeping]]=\"\", \"\", VLOOKUP('Lab Input and Calculations'!M11,'Reference Tables'!$C$2:$D$52,2,FALSE))","v":""},{"$f":"IF(Lab_Inputs[[#This Row],[ECD Available?]]=\"\",\"\", VLOOKUP('Lab Input and Calculations'!N11,'Reference Tables'!$C$2:$D$52,2,FALSE))","v":""},{"$f":"IF(Lab_Inputs[[#This Row],[ECD Appropriate?]]=\"\", \"\", VLOOKUP('Lab Input and Calculations'!O11,'Reference Tables'!$C$2:$D$52,2,FALSE))","v":""},{"$f":"IF(Lab_Inputs[[#This Row],[Ventilation Effectivness ]]=\"\", \"\",VLOOKUP('Lab Input and Calculations'!P11,'Reference Tables'!$C$2:$D$52,2,FALSE))","v":""},{"$f":"IF(Lab_Inputs[[#This Row],[Maximum RCB for ECDs in Lab]]=\"\", \"\", Lab_Inputs[[#This Row],[Maximum RCB for ECDs in Lab]])","v":""},{"$f":"IF(Table75[[#This Row],[Hazard Exposure Limit Rating]]=\"\", \"\", ($G$1*R11)+($H$1*S11)+($I$1*T11)+($J$1*U11)+($K$1*V11)+($L$1*W11)+($M$1*X11)+($N$1*Y11)+($O$1*Z11)+($P$1*AA11)+($Q$1*AB11))","v":""},{"$f":"IF(Table75[[#This Row],[Weighed Score]]=\"\", \"\", _xlfn.IFS(AND($AC11>='Reference Tables'!$L$2,'Lab Input and Calculations'!$AC11<='Reference Tables'!$L$3),0,AND('Lab Input and Calculations'!$AC11>='Reference Tables'!$L$4,'Lab Input and Calculations'!$AC11<='Reference Tables'!$L$5),1,AND('Lab Input and Calculations'!$AC11>='Reference Tables'!$L$6,'Lab Input and Calculations'!$AC11<='Reference Tables'!$L$7),2,AND('Lab Input and Calculations'!$AC11>='Reference Tables'!$L$8,'Lab Input and Calculations'!$AC11<='Reference Tables'!$L$9),3,AND('Lab Input and Calculations'!$AC11>'Reference Tables'!$L$10,'Lab Input and Calculations'!$AC11<='Reference Tables'!$L$11),4))","v":""},{"$f":"IF(Table75[[#This Row],[Lab Control Band]]=\"\", \"\", VLOOKUP(AD11,'Reference Tables'!$Q$3:$S$12,2))","v":""},{"$f":"IF(Table75[[#This Row],[Lab Control Band]]=\"\", \"\", VLOOKUP(AD11,'Reference Tables'!$Q$3:$S$12,3))","v":""},{"$f":"IF(Table75[[#This Row],[Lab Control Band]]=\"\", \"\", (Table5[[#This Row],[Minimum Air Changes per Hour, Occupied (ACH)]]*10)/60)","v":""},{"$f":"IF(Table75[[#This Row],[Lab Control Band]]=\"\", \"\", (AF11*10)/60)","v":""},{"$f":"IF(Table75[[#This Row],[Lab Control Band]]=\"\", \"\", D11*AG11)","v":""},{"$f":"IF(Table75[[#This Row],[Lab Control Band]]=\"\", \"\", D11*AH11)","v":""},{"$f":"IF(Lab_Inputs[[#This Row],[Lab Number]]=\"\",\"\",SUMIF(ECD_Inputs[Lab Number],Lab_Inputs[[#This Row],[Lab Number]],'ECD Input and Calculations'!$AF$4:$AF$56))","v":""},{"$f":"IF(Lab_Inputs[[#This Row],[Lab Number]]=\"\",\"\",SUMIF(ECD_Inputs[Lab Number],Lab_Inputs[[#This Row],[Lab Number]],'ECD Input and Calculations'!$AE$4:$AE$56))","v":""},{"$f":"IF(Lab_Inputs[[#This Row],[Lab Number]]=\"\",\"\",MAX(Table5[[#This Row],[Minimum Airflow, Occupied  (CFM)]],Table5[[#This Row],[Total ECD Min. Air Flow (CFM)]]))","v":""},{"$f":"IF(Lab_Inputs[[#This Row],[Lab Number]]=\"\",\"\",MAX(Table5[[#This Row],[Minimum Airflow, Unoccupied (CFM)]],Table5[[#This Row],[Total ECD Min. Air Flow (CFM)]]))","v":""}]
[null,null,null,null,null,null,null,null,null,null,null,null,null,null,null,null,{"$f":"IF(Lab_Inputs[[#This Row],[Lab Number]]=\"\",\"\",_xlfn.MAXIFS(Table7[Risk Control Band],ECD_Inputs[Lab Number],Lab_Inputs[[#This Row],[Lab Number]]))","v":""},{"$f":"IF(Lab_Inputs[[#This Row],[Quantity]]=\"\", \"\",VLOOKUP('Lab Input and Calculations'!G12,'Reference Tables'!$C$2:$D$52,2,FALSE))","v":""},{"$f":"IF(Lab_Inputs[[#This Row],[Quantity]]=\"\", \"\",VLOOKUP('Lab Input and Calculations'!H12,'Reference Tables'!$C$2:$D$52,2,FALSE))","v":""},{"$f":"IF(Lab_Inputs[[#This Row],[ Generation Potential]]=\"\", \"\", VLOOKUP('Lab Input and Calculations'!I12,'Reference Tables'!$C$2:$D$52,2,FALSE))","v":""},{"$f":"IF(Lab_Inputs[[#This Row],[ Generation Method]]=\"\", \"\", VLOOKUP('Lab Input and Calculations'!J12,'Reference Tables'!$C$2:$D$52,2,FALSE))","v":""},{"$f":"IF(Lab_Inputs[[#This Row],[Generation Location]]=\"\", \"\", VLOOKUP('Lab Input and Calculations'!K12,'Reference Tables'!$C$2:$D$52,2,FALSE))","v":""},{"$f":"IF(Lab_Inputs[[#This Row],[Change Dynamics]]=\"\", \"\", VLOOKUP('Lab Input and Calculations'!L12,'Reference Tables'!$C$2:$D$52,2,FALSE))","v":""},{"$f":"IF(Lab_Inputs[[#This Row],[Housekeeping]]=\"\", \"\", VLOOKUP('Lab Input and Calculations'!M12,'Reference Tables'!$C$2:$D$52,2,FALSE))","v":""},{"$f":"IF(Lab_Inputs[[#This Row],[ECD Available?]]=\"\",\"\", VLOOKUP('Lab Input and Calculations'!N12,'Reference Tables'!$C$2:$D$52,2,FALSE))","v":""},{"$f":"IF(Lab_Inputs[[#This Row],[ECD Appropriate?]]=\"\", \"\", VLOOKUP('Lab Input and Calculations'!O12,'Reference Tables'!$C$2:$D$52,2,FALSE))","v":""},{"$f":"IF(Lab_Inputs[[#This Row],[Ventilation Effectivness ]]=\"\", \"\",VLOOKUP('Lab Input and Calculations'!P12,'Reference Tables'!$C$2:$D$52,2,FALSE))","v":""},{"$f":"IF(Lab_Inputs[[#This Row],[Maximum RCB for ECDs in Lab]]=\"\", \"\", Lab_Inputs[[#This Row],[Maximum RCB for ECDs in Lab]])","v":""},{"$f":"IF(Table75[[#This Row],[Hazard Exposure Limit Rating]]=\"\", \"\", ($G$1*R12)+($H$1*S12)+($I$1*T12)+($J$1*U12)+($K$1*V12)+($L$1*W12)+($M$1*X12)+($N$1*Y12)+($O$1*Z12)+($P$1*AA12)+($Q$1*AB12))","v":""},{"$f":"IF(Table75[[#This Row],[Weighed Score]]=\"\", \"\", _xlfn.IFS(AND($AC12>='Reference Tables'!$L$2,'Lab Input and Calculations'!$AC12<='Reference Tables'!$L$3),0,AND('Lab Input and Calculations'!$AC12>='Reference Tables'!$L$4,'Lab Input and Calculations'!$AC12<='Reference Tables'!$L$5),1,AND('Lab Input and Calculations'!$AC12>='Reference Tables'!$L$6,'Lab Input and Calculations'!$AC12<='Reference Tables'!$L$7),2,AND('Lab Input and Calculations'!$AC12>='Reference Tables'!$L$8,'Lab Input and Calculations'!$AC12<='Reference Tables'!$L$9),3,AND('Lab Input and Calculations'!$AC12>'Reference Tables'!$L$10,'Lab Input and Calculations'!$AC12<='Reference Tables'!$L$11),4))","v":""},{"$f":"IF(Table75[[#This Row],[Lab Control Band]]=\"\", \"\", VLOOKUP(AD12,'Reference Tables'!$Q$3:$S$12,2))","v":""},{"$f":"IF(Table75[[#This Row],[Lab Control Band]]=\"\", \"\", VLOOKUP(AD12,'Reference Tables'!$Q$3:$S$12,3))","v":""},{"$f":"IF(Table75[[#This Row],[Lab Control Band]]=\"\", \"\", (Table5[[#This Row],[Minimum Air Changes per Hour, Occupied (ACH)]]*10)/60)","v":""},{"$f":"IF(Table75[[#This Row],[Lab Control Band]]=\"\", \"\", (AF12*10)/60)","v":""},{"$f":"IF(Table75[[#This Row],[Lab Control Band]]=\"\", \"\", D12*AG12)","v":""},{"$f":"IF(Table75[[#This Row],[Lab Control Band]]=\"\", \"\", D12*AH12)","v":""},{"$f":"IF(Lab_Inputs[[#This Row],[Lab Number]]=\"\",\"\",SUMIF(ECD_Inputs[Lab Number],Lab_Inputs[[#This Row],[Lab Number]],'ECD Input and Calculations'!$AF$4:$AF$56))","v":""},{"$f":"IF(Lab_Inputs[[#This Row],[Lab Number]]=\"\",\"\",SUMIF(ECD_Inputs[Lab Number],Lab_Inputs[[#This Row],[Lab Number]],'ECD Input and Calculations'!$AE$4:$AE$56))","v":""},{"$f":"IF(Lab_Inputs[[#This Row],[Lab Number]]=\"\",\"\",MAX(Table5[[#This Row],[Minimum Airflow, Occupied  (CFM)]],Table5[[#This Row],[Total ECD Min. Air Flow (CFM)]]))","v":""},{"$f":"IF(Lab_Inputs[[#This Row],[Lab Number]]=\"\",\"\",MAX(Table5[[#This Row],[Minimum Airflow, Unoccupied (CFM)]],Table5[[#This Row],[Total ECD Min. Air Flow (CFM)]]))","v":""}]
[null,null,null,null,null,null,null,null,null,null,null,null,null,null,null,null,{"$f":"IF(Lab_Inputs[[#This Row],[Lab Number]]=\"\",\"\",_xlfn.MAXIFS(Table7[Risk Control Band],ECD_Inputs[Lab Number],Lab_Inputs[[#This Row],[Lab Number]]))","v":""},{"$f":"IF(Lab_Inputs[[#This Row],[Quantity]]=\"\", \"\",VLOOKUP('Lab Input and Calculations'!G13,'Reference Tables'!$C$2:$D$52,2,FALSE))","v":""},{"$f":"IF(Lab_Inputs[[#This Row],[Quantity]]=\"\", \"\",VLOOKUP('Lab Input and Calculations'!H13,'Reference Tables'!$C$2:$D$52,2,FALSE))","v":""},{"$f":"IF(Lab_Inputs[[#This Row],[ Generation Potential]]=\"\", \"\", VLOOKUP('Lab Input and Calculations'!I13,'Reference Tables'!$C$2:$D$52,2,FALSE))","v":""},{"$f":"IF(Lab_Inputs[[#This Row],[ Generation Method]]=\"\", \"\", VLOOKUP('Lab Input and Calculations'!J13,'Reference Tables'!$C$2:$D$52,2,FALSE))","v":""},{"$f":"IF(Lab_Inputs[[#This Row],[Generation Location]]=\"\", \"\", VLOOKUP('Lab Input and Calculations'!K13,'Reference Tables'!$C$2:$D$52,2,FALSE))","v":""},{"$f":"IF(Lab_Inputs[[#This Row],[Change Dynamics]]=\"\", \"\", VLOOKUP('Lab Input and Calculations'!L13,'Reference Tables'!$C$2:$D$52,2,FALSE))","v":""},{"$f":"IF(Lab_Inputs[[#This Row],[Housekeeping]]=\"\", \"\", VLOOKUP('Lab Input and Calculations'!M13,'Reference Tables'!$C$2:$D$52,2,FALSE))","v":""},{"$f":"IF(Lab_Inputs[[#This Row],[ECD Available?]]=\"\",\"\", VLOOKUP('Lab Input and Calculations'!N13,'Reference Tables'!$C$2:$D$52,2,FALSE))","v":""},{"$f":"IF(Lab_Inputs[[#This Row],[ECD Appropriate?]]=\"\", \"\", VLOOKUP('Lab Input and Calculations'!O13,'Reference Tables'!$C$2:$D$52,2,FALSE))","v":""},{"$f":"IF(Lab_Inputs[[#This Row],[Ventilation Effectivness ]]=\"\", \"\",VLOOKUP('Lab Input and Calculations'!P13,'Reference Tables'!$C$2:$D$52,2,FALSE))","v":""},{"$f":"IF(Lab_Inputs[[#This Row],[Maximum RCB for ECDs in Lab]]=\"\", \"\", Lab_Inputs[[#This Row],[Maximum RCB for ECDs in Lab]])","v":""},{"$f":"IF(Table75[[#This Row],[Hazard Exposure Limit Rating]]=\"\", \"\", ($G$1*R13)+($H$1*S13)+($I$1*T13)+($J$1*U13)+($K$1*V13)+($L$1*W13)+($M$1*X13)+($N$1*Y13)+($O$1*Z13)+($P$1*AA13)+($Q$1*AB13))","v":""},{"$f":"IF(Table75[[#This Row],[Weighed Score]]=\"\", \"\", _xlfn.IFS(AND($AC13>='Reference Tables'!$L$2,'Lab Input and Calculations'!$AC13<='Reference Tables'!$L$3),0,AND('Lab Input and Calculations'!$AC13>='Reference Tables'!$L$4,'Lab Input and Calculations'!$AC13<='Reference Tables'!$L$5),1,AND('Lab Input and Calculations'!$AC13>='Reference Tables'!$L$6,'Lab Input and Calculations'!$AC13<='Reference Tables'!$L$7),2,AND('Lab Input and Calculations'!$AC13>='Reference Tables'!$L$8,'Lab Input and Calculations'!$AC13<='Reference Tables'!$L$9),3,AND('Lab Input and Calculations'!$AC13>'Reference Tables'!$L$10,'Lab Input and Calculations'!$AC13<='Reference Tables'!$L$11),4))","v":""},{"$f":"IF(Table75[[#This Row],[Lab Control Band]]=\"\", \"\", VLOOKUP(AD13,'Reference Tables'!$Q$3:$S$12,2))","v":""},{"$f":"IF(Table75[[#This Row],[Lab Control Band]]=\"\", \"\", VLOOKUP(AD13,'Reference Tables'!$Q$3:$S$12,3))","v":""},{"$f":"IF(Table75[[#This Row],[Lab Control Band]]=\"\", \"\", (Table5[[#This Row],[Minimum Air Changes per Hour, Occupied (ACH)]]*10)/60)","v":""},{"$f":"IF(Table75[[#This Row],[Lab Control Band]]=\"\", \"\", (AF13*10)/60)","v":""},{"$f":"IF(Table75[[#This Row],[Lab Control Band]]=\"\", \"\", D13*AG13)","v":""},{"$f":"IF(Table75[[#This Row],[Lab Control Band]]=\"\", \"\", D13*AH13)","v":""},{"$f":"IF(Lab_Inputs[[#This Row],[Lab Number]]=\"\",\"\",SUMIF(ECD_Inputs[Lab Number],Lab_Inputs[[#This Row],[Lab Number]],'ECD Input and Calculations'!$AF$4:$AF$56))","v":""},{"$f":"IF(Lab_Inputs[[#This Row],[Lab Number]]=\"\",\"\",SUMIF(ECD_Inputs[Lab Number],Lab_Inputs[[#This Row],[Lab Number]],'ECD Input and Calculations'!$AE$4:$AE$56))","v":""},{"$f":"IF(Lab_Inputs[[#This Row],[Lab Number]]=\"\",\"\",MAX(Table5[[#This Row],[Minimum Airflow, Occupied  (CFM)]],Table5[[#This Row],[Total ECD Min. Air Flow (CFM)]]))","v":""},{"$f":"IF(Lab_Inputs[[#This Row],[Lab Number]]=\"\",\"\",MAX(Table5[[#This Row],[Minimum Airflow, Unoccupied (CFM)]],Table5[[#This Row],[Total ECD Min. Air Flow (CFM)]]))","v":""}]
[null,null,null,null,null,null,null,null,null,null,null,null,null,null,null,null,{"$f":"IF(Lab_Inputs[[#This Row],[Lab Number]]=\"\",\"\",_xlfn.MAXIFS(Table7[Risk Control Band],ECD_Inputs[Lab Number],Lab_Inputs[[#This Row],[Lab Number]]))","v":""},{"$f":"IF(Lab_Inputs[[#This Row],[Quantity]]=\"\", \"\",VLOOKUP('Lab Input and Calculations'!G14,'Reference Tables'!$C$2:$D$52,2,FALSE))","v":""},{"$f":"IF(Lab_Inputs[[#This Row],[Quantity]]=\"\", \"\",VLOOKUP('Lab Input and Calculations'!H14,'Reference Tables'!$C$2:$D$52,2,FALSE))","v":""},{"$f":"IF(Lab_Inputs[[#This Row],[ Generation Potential]]=\"\", \"\", VLOOKUP('Lab Input and Calculations'!I14,'Reference Tables'!$C$2:$D$52,2,FALSE))","v":""},{"$f":"IF(Lab_Inputs[[#This Row],[ Generation Method]]=\"\", \"\", VLOOKUP('Lab Input and Calculations'!J14,'Reference Tables'!$C$2:$D$52,2,FALSE))","v":""},{"$f":"IF(Lab_Inputs[[#This Row],[Generation Location]]=\"\", \"\", VLOOKUP('Lab Input and Calculations'!K14,'Reference Tables'!$C$2:$D$52,2,FALSE))","v":""},{"$f":"IF(Lab_Inputs[[#This Row],[Change Dynamics]]=\"\", \"\", VLOOKUP('Lab Input and Calculations'!L14,'Reference Tables'!$C$2:$D$52,2,FALSE))","v":""},{"$f":"IF(Lab_Inputs[[#This Row],[Housekeeping]]=\"\", \"\", VLOOKUP('Lab Input and Calculations'!M14,'Reference Tables'!$C$2:$D$52,2,FALSE))","v":""},{"$f":"IF(Lab_Inputs[[#This Row],[ECD Available?]]=\"\",\"\", VLOOKUP('Lab Input and Calculations'!N14,'Reference Tables'!$C$2:$D$52,2,FALSE))","v":""},{"$f":"IF(Lab_Inputs[[#This Row],[ECD Appropriate?]]=\"\", \"\", VLOOKUP('Lab Input and Calculations'!O14,'Reference Tables'!$C$2:$D$52,2,FALSE))","v":""},{"$f":"IF(Lab_Inputs[[#This Row],[Ventilation Effectivness ]]=\"\", \"\",VLOOKUP('Lab Input and Calculations'!P14,'Reference Tables'!$C$2:$D$52,2,FALSE))","v":""},{"$f":"IF(Lab_Inputs[[#This Row],[Maximum RCB for ECDs in Lab]]=\"\", \"\", Lab_Inputs[[#This Row],[Maximum RCB for ECDs in Lab]])","v":""},{"$f":"IF(Table75[[#This Row],[Hazard Exposure Limit Rating]]=\"\", \"\", ($G$1*R14)+($H$1*S14)+($I$1*T14)+($J$1*U14)+($K$1*V14)+($L$1*W14)+($M$1*X14)+($N$1*Y14)+($O$1*Z14)+($P$1*AA14)+($Q$1*AB14))","v":""},{"$f":"IF(Table75[[#This Row],[Weighed Score]]=\"\", \"\", _xlfn.IFS(AND($AC14>='Reference Tables'!$L$2,'Lab Input and Calculations'!$AC14<='Reference Tables'!$L$3),0,AND('Lab Input and Calculations'!$AC14>='Reference Tables'!$L$4,'Lab Input and Calculations'!$AC14<='Reference Tables'!$L$5),1,AND('Lab Input and Calculations'!$AC14>='Reference Tables'!$L$6,'Lab Input and Calculations'!$AC14<='Reference Tables'!$L$7),2,AND('Lab Input and Calculations'!$AC14>='Reference Tables'!$L$8,'Lab Input and Calculations'!$AC14<='Reference Tables'!$L$9),3,AND('Lab Input and Calculations'!$AC14>'Reference Tables'!$L$10,'Lab Input and Calculations'!$AC14<='Reference Tables'!$L$11),4))","v":""},{"$f":"IF(Table75[[#This Row],[Lab Control Band]]=\"\", \"\", VLOOKUP(AD14,'Reference Tables'!$Q$3:$S$12,2))","v":""},{"$f":"IF(Table75[[#This Row],[Lab Control Band]]=\"\", \"\", VLOOKUP(AD14,'Reference Tables'!$Q$3:$S$12,3))","v":""},{"$f":"IF(Table75[[#This Row],[Lab Control Band]]=\"\", \"\", (Table5[[#This Row],[Minimum Air Changes per Hour, Occupied (ACH)]]*10)/60)","v":""},{"$f":"IF(Table75[[#This Row],[Lab Control Band]]=\"\", \"\", (AF14*10)/60)","v":""},{"$f":"IF(Table75[[#This Row],[Lab Control Band]]=\"\", \"\", D14*AG14)","v":""},{"$f":"IF(Table75[[#This Row],[Lab Control Band]]=\"\", \"\", D14*AH14)","v":""},{"$f":"IF(Lab_Inputs[[#This Row],[Lab Number]]=\"\",\"\",SUMIF(ECD_Inputs[Lab Number],Lab_Inputs[[#This Row],[Lab Number]],'ECD Input and Calculations'!$AF$4:$AF$56))","v":""},{"$f":"IF(Lab_Inputs[[#This Row],[Lab Number]]=\"\",\"\",SUMIF(ECD_Inputs[Lab Number],Lab_Inputs[[#This Row],[Lab Number]],'ECD Input and Calculations'!$AE$4:$AE$56))","v":""},{"$f":"IF(Lab_Inputs[[#This Row],[Lab Number]]=\"\",\"\",MAX(Table5[[#This Row],[Minimum Airflow, Occupied  (CFM)]],Table5[[#This Row],[Total ECD Min. Air Flow (CFM)]]))","v":""},{"$f":"IF(Lab_Inputs[[#This Row],[Lab Number]]=\"\",\"\",MAX(Table5[[#This Row],[Minimum Airflow, Unoccupied (CFM)]],Table5[[#This Row],[Total ECD Min. Air Flow (CFM)]]))","v":""}]
[null,null,null,null,null,null,null,null,null,null,null,null,null,null,null,null,{"$f":"IF(Lab_Inputs[[#This Row],[Lab Number]]=\"\",\"\",_xlfn.MAXIFS(Table7[Risk Control Band],ECD_Inputs[Lab Number],Lab_Inputs[[#This Row],[Lab Number]]))","v":""},{"$f":"IF(Lab_Inputs[[#This Row],[Quantity]]=\"\", \"\",VLOOKUP('Lab Input and Calculations'!G15,'Reference Tables'!$C$2:$D$52,2,FALSE))","v":""},{"$f":"IF(Lab_Inputs[[#This Row],[Quantity]]=\"\", \"\",VLOOKUP('Lab Input and Calculations'!H15,'Reference Tables'!$C$2:$D$52,2,FALSE))","v":""},{"$f":"IF(Lab_Inputs[[#This Row],[ Generation Potential]]=\"\", \"\", VLOOKUP('Lab Input and Calculations'!I15,'Reference Tables'!$C$2:$D$52,2,FALSE))","v":""},{"$f":"IF(Lab_Inputs[[#This Row],[ Generation Method]]=\"\", \"\", VLOOKUP('Lab Input and Calculations'!J15,'Reference Tables'!$C$2:$D$52,2,FALSE))","v":""},{"$f":"IF(Lab_Inputs[[#This Row],[Generation Location]]=\"\", \"\", VLOOKUP('Lab Input and Calculations'!K15,'Reference Tables'!$C$2:$D$52,2,FALSE))","v":""},{"$f":"IF(Lab_Inputs[[#This Row],[Change Dynamics]]=\"\", \"\", VLOOKUP('Lab Input and Calculations'!L15,'Reference Tables'!$C$2:$D$52,2,FALSE))","v":""},{"$f":"IF(Lab_Inputs[[#This Row],[Housekeeping]]=\"\", \"\", VLOOKUP('Lab Input and Calculations'!M15,'Reference Tables'!$C$2:$D$52,2,FALSE))","v":""},{"$f":"IF(Lab_Inputs[[#This Row],[ECD Available?]]=\"\",\"\", VLOOKUP('Lab Input and Calculations'!N15,'Reference Tables'!$C$2:$D$52,2,FALSE))","v":""},{"$f":"IF(Lab_Inputs[[#This Row],[ECD Appropriate?]]=\"\", \"\", VLOOKUP('Lab Input and Calculations'!O15,'Reference Tables'!$C$2:$D$52,2,FALSE))","v":""},{"$f":"IF(Lab_Inputs[[#This Row],[Ventilation Effectivness ]]=\"\", \"\",VLOOKUP('Lab Input and Calculations'!P15,'Reference Tables'!$C$2:$D$52,2,FALSE))","v":""},{"$f":"IF(Lab_Inputs[[#This Row],[Maximum RCB for ECDs in Lab]]=\"\", \"\", Lab_Inputs[[#This Row],[Maximum RCB for ECDs in Lab]])","v":""},{"$f":"IF(Table75[[#This Row],[Hazard Exposure Limit Rating]]=\"\", \"\", ($G$1*R15)+($H$1*S15)+($I$1*T15)+($J$1*U15)+($K$1*V15)+($L$1*W15)+($M$1*X15)+($N$1*Y15)+($O$1*Z15)+($P$1*AA15)+($Q$1*AB15))","v":""},{"$f":"IF(Table75[[#This Row],[Weighed Score]]=\"\", \"\", _xlfn.IFS(AND($AC15>='Reference Tables'!$L$2,'Lab Input and Calculations'!$AC15<='Reference Tables'!$L$3),0,AND('Lab Input and Calculations'!$AC15>='Reference Tables'!$L$4,'Lab Input and Calculations'!$AC15<='Reference Tables'!$L$5),1,AND('Lab Input and Calculations'!$AC15>='Reference Tables'!$L$6,'Lab Input and Calculations'!$AC15<='Reference Tables'!$L$7),2,AND('Lab Input and Calculations'!$AC15>='Reference Tables'!$L$8,'Lab Input and Calculations'!$AC15<='Reference Tables'!$L$9),3,AND('Lab Input and Calculations'!$AC15>'Reference Tables'!$L$10,'Lab Input and Calculations'!$AC15<='Reference Tables'!$L$11),4))","v":""},{"$f":"IF(Table75[[#This Row],[Lab Control Band]]=\"\", \"\", VLOOKUP(AD15,'Reference Tables'!$Q$3:$S$12,2))","v":""},{"$f":"IF(Table75[[#This Row],[Lab Control Band]]=\"\", \"\", VLOOKUP(AD15,'Reference Tables'!$Q$3:$S$12,3))","v":""},{"$f":"IF(Table75[[#This Row],[Lab Control Band]]=\"\", \"\", (Table5[[#This Row],[Minimum Air Changes per Hour, Occupied (ACH)]]*10)/60)","v":""},{"$f":"IF(Table75[[#This Row],[Lab Control Band]]=\"\", \"\", (AF15*10)/60)","v":""},{"$f":"IF(Table75[[#This Row],[Lab Control Band]]=\"\", \"\", D15*AG15)","v":""},{"$f":"IF(Table75[[#This Row],[Lab Control Band]]=\"\", \"\", D15*AH15)","v":""},{"$f":"IF(Lab_Inputs[[#This Row],[Lab Number]]=\"\",\"\",SUMIF(ECD_Inputs[Lab Number],Lab_Inputs[[#This Row],[Lab Number]],'ECD Input and Calculations'!$AF$4:$AF$56))","v":""},{"$f":"IF(Lab_Inputs[[#This Row],[Lab Number]]=\"\",\"\",SUMIF(ECD_Inputs[Lab Number],Lab_Inputs[[#This Row],[Lab Number]],'ECD Input and Calculations'!$AE$4:$AE$56))","v":""},{"$f":"IF(Lab_Inputs[[#This Row],[Lab Number]]=\"\",\"\",MAX(Table5[[#This Row],[Minimum Airflow, Occupied  (CFM)]],Table5[[#This Row],[Total ECD Min. Air Flow (CFM)]]))","v":""},{"$f":"IF(Lab_Inputs[[#This Row],[Lab Number]]=\"\",\"\",MAX(Table5[[#This Row],[Minimum Airflow, Unoccupied (CFM)]],Table5[[#This Row],[Total ECD Min. Air Flow (CFM)]]))","v":""}]
[null,null,null,null,null,null,null,null,null,null,null,null,null,null,null,null,{"$f":"IF(Lab_Inputs[[#This Row],[Lab Number]]=\"\",\"\",_xlfn.MAXIFS(Table7[Risk Control Band],ECD_Inputs[Lab Number],Lab_Inputs[[#This Row],[Lab Number]]))","v":""},{"$f":"IF(Lab_Inputs[[#This Row],[Quantity]]=\"\", \"\",VLOOKUP('Lab Input and Calculations'!G16,'Reference Tables'!$C$2:$D$52,2,FALSE))","v":""},{"$f":"IF(Lab_Inputs[[#This Row],[Quantity]]=\"\", \"\",VLOOKUP('Lab Input and Calculations'!H16,'Reference Tables'!$C$2:$D$52,2,FALSE))","v":""},{"$f":"IF(Lab_Inputs[[#This Row],[ Generation Potential]]=\"\", \"\", VLOOKUP('Lab Input and Calculations'!I16,'Reference Tables'!$C$2:$D$52,2,FALSE))","v":""},{"$f":"IF(Lab_Inputs[[#This Row],[ Generation Method]]=\"\", \"\", VLOOKUP('Lab Input and Calculations'!J16,'Reference Tables'!$C$2:$D$52,2,FALSE))","v":""},{"$f":"IF(Lab_Inputs[[#This Row],[Generation Location]]=\"\", \"\", VLOOKUP('Lab Input and Calculations'!K16,'Reference Tables'!$C$2:$D$52,2,FALSE))","v":""},{"$f":"IF(Lab_Inputs[[#This Row],[Change Dynamics]]=\"\", \"\", VLOOKUP('Lab Input and Calculations'!L16,'Reference Tables'!$C$2:$D$52,2,FALSE))","v":""},{"$f":"IF(Lab_Inputs[[#This Row],[Housekeeping]]=\"\", \"\", VLOOKUP('Lab Input and Calculations'!M16,'Reference Tables'!$C$2:$D$52,2,FALSE))","v":""},{"$f":"IF(Lab_Inputs[[#This Row],[ECD Available?]]=\"\",\"\", VLOOKUP('Lab Input and Calculations'!N16,'Reference Tables'!$C$2:$D$52,2,FALSE))","v":""},{"$f":"IF(Lab_Inputs[[#This Row],[ECD Appropriate?]]=\"\", \"\", VLOOKUP('Lab Input and Calculations'!O16,'Reference Tables'!$C$2:$D$52,2,FALSE))","v":""},{"$f":"IF(Lab_Inputs[[#This Row],[Ventilation Effectivness ]]=\"\", \"\",VLOOKUP('Lab Input and Calculations'!P16,'Reference Tables'!$C$2:$D$52,2,FALSE))","v":""},{"$f":"IF(Lab_Inputs[[#This Row],[Maximum RCB for ECDs in Lab]]=\"\", \"\", Lab_Inputs[[#This Row],[Maximum RCB for ECDs in Lab]])","v":""},{"$f":"IF(Table75[[#This Row],[Hazard Exposure Limit Rating]]=\"\", \"\", ($G$1*R16)+($H$1*S16)+($I$1*T16)+($J$1*U16)+($K$1*V16)+($L$1*W16)+($M$1*X16)+($N$1*Y16)+($O$1*Z16)+($P$1*AA16)+($Q$1*AB16))","v":""},{"$f":"IF(Table75[[#This Row],[Weighed Score]]=\"\", \"\", _xlfn.IFS(AND($AC16>='Reference Tables'!$L$2,'Lab Input and Calculations'!$AC16<='Reference Tables'!$L$3),0,AND('Lab Input and Calculations'!$AC16>='Reference Tables'!$L$4,'Lab Input and Calculations'!$AC16<='Reference Tables'!$L$5),1,AND('Lab Input and Calculations'!$AC16>='Reference Tables'!$L$6,'Lab Input and Calculations'!$AC16<='Reference Tables'!$L$7),2,AND('Lab Input and Calculations'!$AC16>='Reference Tables'!$L$8,'Lab Input and Calculations'!$AC16<='Reference Tables'!$L$9),3,AND('Lab Input and Calculations'!$AC16>'Reference Tables'!$L$10,'Lab Input and Calculations'!$AC16<='Reference Tables'!$L$11),4))","v":""},{"$f":"IF(Table75[[#This Row],[Lab Control Band]]=\"\", \"\", VLOOKUP(AD16,'Reference Tables'!$Q$3:$S$12,2))","v":""},{"$f":"IF(Table75[[#This Row],[Lab Control Band]]=\"\", \"\", VLOOKUP(AD16,'Reference Tables'!$Q$3:$S$12,3))","v":""},{"$f":"IF(Table75[[#This Row],[Lab Control Band]]=\"\", \"\", (Table5[[#This Row],[Minimum Air Changes per Hour, Occupied (ACH)]]*10)/60)","v":""},{"$f":"IF(Table75[[#This Row],[Lab Control Band]]=\"\", \"\", (AF16*10)/60)","v":""},{"$f":"IF(Table75[[#This Row],[Lab Control Band]]=\"\", \"\", D16*AG16)","v":""},{"$f":"IF(Table75[[#This Row],[Lab Control Band]]=\"\", \"\", D16*AH16)","v":""},{"$f":"IF(Lab_Inputs[[#This Row],[Lab Number]]=\"\",\"\",SUMIF(ECD_Inputs[Lab Number],Lab_Inputs[[#This Row],[Lab Number]],'ECD Input and Calculations'!$AF$4:$AF$56))","v":""},{"$f":"IF(Lab_Inputs[[#This Row],[Lab Number]]=\"\",\"\",SUMIF(ECD_Inputs[Lab Number],Lab_Inputs[[#This Row],[Lab Number]],'ECD Input and Calculations'!$AE$4:$AE$56))","v":""},{"$f":"IF(Lab_Inputs[[#This Row],[Lab Number]]=\"\",\"\",MAX(Table5[[#This Row],[Minimum Airflow, Occupied  (CFM)]],Table5[[#This Row],[Total ECD Min. Air Flow (CFM)]]))","v":""},{"$f":"IF(Lab_Inputs[[#This Row],[Lab Number]]=\"\",\"\",MAX(Table5[[#This Row],[Minimum Airflow, Unoccupied (CFM)]],Table5[[#This Row],[Total ECD Min. Air Flow (CFM)]]))","v":""}]
[null,null,null,null,null,null,null,null,null,null,null,null,null,null,null,null,{"$f":"IF(Lab_Inputs[[#This Row],[Lab Number]]=\"\",\"\",_xlfn.MAXIFS(Table7[Risk Control Band],ECD_Inputs[Lab Number],Lab_Inputs[[#This Row],[Lab Number]]))","v":""},{"$f":"IF(Lab_Inputs[[#This Row],[Quantity]]=\"\", \"\",VLOOKUP('Lab Input and Calculations'!G17,'Reference Tables'!$C$2:$D$52,2,FALSE))","v":""},{"$f":"IF(Lab_Inputs[[#This Row],[Quantity]]=\"\", \"\",VLOOKUP('Lab Input and Calculations'!H17,'Reference Tables'!$C$2:$D$52,2,FALSE))","v":""},{"$f":"IF(Lab_Inputs[[#This Row],[ Generation Potential]]=\"\", \"\", VLOOKUP('Lab Input and Calculations'!I17,'Reference Tables'!$C$2:$D$52,2,FALSE))","v":""},{"$f":"IF(Lab_Inputs[[#This Row],[ Generation Method]]=\"\", \"\", VLOOKUP('Lab Input and Calculations'!J17,'Reference Tables'!$C$2:$D$52,2,FALSE))","v":""},{"$f":"IF(Lab_Inputs[[#This Row],[Generation Location]]=\"\", \"\", VLOOKUP('Lab Input and Calculations'!K17,'Reference Tables'!$C$2:$D$52,2,FALSE))","v":""},{"$f":"IF(Lab_Inputs[[#This Row],[Change Dynamics]]=\"\", \"\", VLOOKUP('Lab Input and Calculations'!L17,'Reference Tables'!$C$2:$D$52,2,FALSE))","v":""},{"$f":"IF(Lab_Inputs[[#This Row],[Housekeeping]]=\"\", \"\", VLOOKUP('Lab Input and Calculations'!M17,'Reference Tables'!$C$2:$D$52,2,FALSE))","v":""},{"$f":"IF(Lab_Inputs[[#This Row],[ECD Available?]]=\"\",\"\", VLOOKUP('Lab Input and Calculations'!N17,'Reference Tables'!$C$2:$D$52,2,FALSE))","v":""},{"$f":"IF(Lab_Inputs[[#This Row],[ECD Appropriate?]]=\"\", \"\", VLOOKUP('Lab Input and Calculations'!O17,'Reference Tables'!$C$2:$D$52,2,FALSE))","v":""},{"$f":"IF(Lab_Inputs[[#This Row],[Ventilation Effectivness ]]=\"\", \"\",VLOOKUP('Lab Input and Calculations'!P17,'Reference Tables'!$C$2:$D$52,2,FALSE))","v":""},{"$f":"IF(Lab_Inputs[[#This Row],[Maximum RCB for ECDs in Lab]]=\"\", \"\", Lab_Inputs[[#This Row],[Maximum RCB for ECDs in Lab]])","v":""},{"$f":"IF(Table75[[#This Row],[Hazard Exposure Limit Rating]]=\"\", \"\", ($G$1*R17)+($H$1*S17)+($I$1*T17)+($J$1*U17)+($K$1*V17)+($L$1*W17)+($M$1*X17)+($N$1*Y17)+($O$1*Z17)+($P$1*AA17)+($Q$1*AB17))","v":""},{"$f":"IF(Table75[[#This Row],[Weighed Score]]=\"\", \"\", _xlfn.IFS(AND($AC17>='Reference Tables'!$L$2,'Lab Input and Calculations'!$AC17<='Reference Tables'!$L$3),0,AND('Lab Input and Calculations'!$AC17>='Reference Tables'!$L$4,'Lab Input and Calculations'!$AC17<='Reference Tables'!$L$5),1,AND('Lab Input and Calculations'!$AC17>='Reference Tables'!$L$6,'Lab Input and Calculations'!$AC17<='Reference Tables'!$L$7),2,AND('Lab Input and Calculations'!$AC17>='Reference Tables'!$L$8,'Lab Input and Calculations'!$AC17<='Reference Tables'!$L$9),3,AND('Lab Input and Calculations'!$AC17>'Reference Tables'!$L$10,'Lab Input and Calculations'!$AC17<='Reference Tables'!$L$11),4))","v":""},{"$f":"IF(Table75[[#This Row],[Lab Control Band]]=\"\", \"\", VLOOKUP(AD17,'Reference Tables'!$Q$3:$S$12,2))","v":""},{"$f":"IF(Table75[[#This Row],[Lab Control Band]]=\"\", \"\", VLOOKUP(AD17,'Reference Tables'!$Q$3:$S$12,3))","v":""},{"$f":"IF(Table75[[#This Row],[Lab Control Band]]=\"\", \"\", (Table5[[#This Row],[Minimum Air Changes per Hour, Occupied (ACH)]]*10)/60)","v":""},{"$f":"IF(Table75[[#This Row],[Lab Control Band]]=\"\", \"\", (AF17*10)/60)","v":""},{"$f":"IF(Table75[[#This Row],[Lab Control Band]]=\"\", \"\", D17*AG17)","v":""},{"$f":"IF(Table75[[#This Row],[Lab Control Band]]=\"\", \"\", D17*AH17)","v":""},{"$f":"IF(Lab_Inputs[[#This Row],[Lab Number]]=\"\",\"\",SUMIF(ECD_Inputs[Lab Number],Lab_Inputs[[#This Row],[Lab Number]],'ECD Input and Calculations'!$AF$4:$AF$56))","v":""},{"$f":"IF(Lab_Inputs[[#This Row],[Lab Number]]=\"\",\"\",SUMIF(ECD_Inputs[Lab Number],Lab_Inputs[[#This Row],[Lab Number]],'ECD Input and Calculations'!$AE$4:$AE$56))","v":""},{"$f":"IF(Lab_Inputs[[#This Row],[Lab Number]]=\"\",\"\",MAX(Table5[[#This Row],[Minimum Airflow, Occupied  (CFM)]],Table5[[#This Row],[Total ECD Min. Air Flow (CFM)]]))","v":""},{"$f":"IF(Lab_Inputs[[#This Row],[Lab Number]]=\"\",\"\",MAX(Table5[[#This Row],[Minimum Airflow, Unoccupied (CFM)]],Table5[[#This Row],[Total ECD Min. Air Flow (CFM)]]))","v":""}]
[null,null,null,null,null,null,null,null,null,null,null,null,null,null,null,null,{"$f":"IF(Lab_Inputs[[#This Row],[Lab Number]]=\"\",\"\",_xlfn.MAXIFS(Table7[Risk Control Band],ECD_Inputs[Lab Number],Lab_Inputs[[#This Row],[Lab Number]]))","v":""},{"$f":"IF(Lab_Inputs[[#This Row],[Quantity]]=\"\", \"\",VLOOKUP('Lab Input and Calculations'!G18,'Reference Tables'!$C$2:$D$52,2,FALSE))","v":""},{"$f":"IF(Lab_Inputs[[#This Row],[Quantity]]=\"\", \"\",VLOOKUP('Lab Input and Calculations'!H18,'Reference Tables'!$C$2:$D$52,2,FALSE))","v":""},{"$f":"IF(Lab_Inputs[[#This Row],[ Generation Potential]]=\"\", \"\", VLOOKUP('Lab Input and Calculations'!I18,'Reference Tables'!$C$2:$D$52,2,FALSE))","v":""},{"$f":"IF(Lab_Inputs[[#This Row],[ Generation Method]]=\"\", \"\", VLOOKUP('Lab Input and Calculations'!J18,'Reference Tables'!$C$2:$D$52,2,FALSE))","v":""},{"$f":"IF(Lab_Inputs[[#This Row],[Generation Location]]=\"\", \"\", VLOOKUP('Lab Input and Calculations'!K18,'Reference Tables'!$C$2:$D$52,2,FALSE))","v":""},{"$f":"IF(Lab_Inputs[[#This Row],[Change Dynamics]]=\"\", \"\", VLOOKUP('Lab Input and Calculations'!L18,'Reference Tables'!$C$2:$D$52,2,FALSE))","v":""},{"$f":"IF(Lab_Inputs[[#This Row],[Housekeeping]]=\"\", \"\", VLOOKUP('Lab Input and Calculations'!M18,'Reference Tables'!$C$2:$D$52,2,FALSE))","v":""},{"$f":"IF(Lab_Inputs[[#This Row],[ECD Available?]]=\"\",\"\", VLOOKUP('Lab Input and Calculations'!N18,'Reference Tables'!$C$2:$D$52,2,FALSE))","v":""},{"$f":"IF(Lab_Inputs[[#This Row],[ECD Appropriate?]]=\"\", \"\", VLOOKUP('Lab Input and Calculations'!O18,'Reference Tables'!$C$2:$D$52,2,FALSE))","v":""},{"$f":"IF(Lab_Inputs[[#This Row],[Ventilation Effectivness ]]=\"\", \"\",VLOOKUP('Lab Input and Calculations'!P18,'Reference Tables'!$C$2:$D$52,2,FALSE))","v":""},{"$f":"IF(Lab_Inputs[[#This Row],[Maximum RCB for ECDs in Lab]]=\"\", \"\", Lab_Inputs[[#This Row],[Maximum RCB for ECDs in Lab]])","v":""},{"$f":"IF(Table75[[#This Row],[Hazard Exposure Limit Rating]]=\"\", \"\", ($G$1*R18)+($H$1*S18)+($I$1*T18)+($J$1*U18)+($K$1*V18)+($L$1*W18)+($M$1*X18)+($N$1*Y18)+($O$1*Z18)+($P$1*AA18)+($Q$1*AB18))","v":""},{"$f":"IF(Table75[[#This Row],[Weighed Score]]=\"\", \"\", _xlfn.IFS(AND($AC18>='Reference Tables'!$L$2,'Lab Input and Calculations'!$AC18<='Reference Tables'!$L$3),0,AND('Lab Input and Calculations'!$AC18>='Reference Tables'!$L$4,'Lab Input and Calculations'!$AC18<='Reference Tables'!$L$5),1,AND('Lab Input and Calculations'!$AC18>='Reference Tables'!$L$6,'Lab Input and Calculations'!$AC18<='Reference Tables'!$L$7),2,AND('Lab Input and Calculations'!$AC18>='Reference Tables'!$L$8,'Lab Input and Calculations'!$AC18<='Reference Tables'!$L$9),3,AND('Lab Input and Calculations'!$AC18>'Reference Tables'!$L$10,'Lab Input and Calculations'!$AC18<='Reference Tables'!$L$11),4))","v":""},{"$f":"IF(Table75[[#This Row],[Lab Control Band]]=\"\", \"\", VLOOKUP(AD18,'Reference Tables'!$Q$3:$S$12,2))","v":""},{"$f":"IF(Table75[[#This Row],[Lab Control Band]]=\"\", \"\", VLOOKUP(AD18,'Reference Tables'!$Q$3:$S$12,3))","v":""},{"$f":"IF(Table75[[#This Row],[Lab Control Band]]=\"\", \"\", (Table5[[#This Row],[Minimum Air Changes per Hour, Occupied (ACH)]]*10)/60)","v":""},{"$f":"IF(Table75[[#This Row],[Lab Control Band]]=\"\", \"\", (AF18*10)/60)","v":""},{"$f":"IF(Table75[[#This Row],[Lab Control Band]]=\"\", \"\", D18*AG18)","v":""},{"$f":"IF(Table75[[#This Row],[Lab Control Band]]=\"\", \"\", D18*AH18)","v":""},{"$f":"IF(Lab_Inputs[[#This Row],[Lab Number]]=\"\",\"\",SUMIF(ECD_Inputs[Lab Number],Lab_Inputs[[#This Row],[Lab Number]],'ECD Input and Calculations'!$AF$4:$AF$56))","v":""},{"$f":"IF(Lab_Inputs[[#This Row],[Lab Number]]=\"\",\"\",SUMIF(ECD_Inputs[Lab Number],Lab_Inputs[[#This Row],[Lab Number]],'ECD Input and Calculations'!$AE$4:$AE$56))","v":""},{"$f":"IF(Lab_Inputs[[#This Row],[Lab Number]]=\"\",\"\",MAX(Table5[[#This Row],[Minimum Airflow, Occupied  (CFM)]],Table5[[#This Row],[Total ECD Min. Air Flow (CFM)]]))","v":""},{"$f":"IF(Lab_Inputs[[#This Row],[Lab Number]]=\"\",\"\",MAX(Table5[[#This Row],[Minimum Airflow, Unoccupied (CFM)]],Table5[[#This Row],[Total ECD Min. Air Flow (CFM)]]))","v":""}]
[null,null,null,null,null,null,null,null,null,null,null,null,null,null,null,null,{"$f":"IF(Lab_Inputs[[#This Row],[Lab Number]]=\"\",\"\",_xlfn.MAXIFS(Table7[Risk Control Band],ECD_Inputs[Lab Number],Lab_Inputs[[#This Row],[Lab Number]]))","v":""},{"$f":"IF(Lab_Inputs[[#This Row],[Quantity]]=\"\", \"\",VLOOKUP('Lab Input and Calculations'!G19,'Reference Tables'!$C$2:$D$52,2,FALSE))","v":""},{"$f":"IF(Lab_Inputs[[#This Row],[Quantity]]=\"\", \"\",VLOOKUP('Lab Input and Calculations'!H19,'Reference Tables'!$C$2:$D$52,2,FALSE))","v":""},{"$f":"IF(Lab_Inputs[[#This Row],[ Generation Potential]]=\"\", \"\", VLOOKUP('Lab Input and Calculations'!I19,'Reference Tables'!$C$2:$D$52,2,FALSE))","v":""},{"$f":"IF(Lab_Inputs[[#This Row],[ Generation Method]]=\"\", \"\", VLOOKUP('Lab Input and Calculations'!J19,'Reference Tables'!$C$2:$D$52,2,FALSE))","v":""},{"$f":"IF(Lab_Inputs[[#This Row],[Generation Location]]=\"\", \"\", VLOOKUP('Lab Input and Calculations'!K19,'Reference Tables'!$C$2:$D$52,2,FALSE))","v":""},{"$f":"IF(Lab_Inputs[[#This Row],[Change Dynamics]]=\"\", \"\", VLOOKUP('Lab Input and Calculations'!L19,'Reference Tables'!$C$2:$D$52,2,FALSE))","v":""},{"$f":"IF(Lab_Inputs[[#This Row],[Housekeeping]]=\"\", \"\", VLOOKUP('Lab Input and Calculations'!M19,'Reference Tables'!$C$2:$D$52,2,FALSE))","v":""},{"$f":"IF(Lab_Inputs[[#This Row],[ECD Available?]]=\"\",\"\", VLOOKUP('Lab Input and Calculations'!N19,'Reference Tables'!$C$2:$D$52,2,FALSE))","v":""},{"$f":"IF(Lab_Inputs[[#This Row],[ECD Appropriate?]]=\"\", \"\", VLOOKUP('Lab Input and Calculations'!O19,'Reference Tables'!$C$2:$D$52,2,FALSE))","v":""},{"$f":"IF(Lab_Inputs[[#This Row],[Ventilation Effectivness ]]=\"\", \"\",VLOOKUP('Lab Input and Calculations'!P19,'Reference Tables'!$C$2:$D$52,2,FALSE))","v":""},{"$f":"IF(Lab_Inputs[[#This Row],[Maximum RCB for ECDs in Lab]]=\"\", \"\", Lab_Inputs[[#This Row],[Maximum RCB for ECDs in Lab]])","v":""},{"$f":"IF(Table75[[#This Row],[Hazard Exposure Limit Rating]]=\"\", \"\", ($G$1*R19)+($H$1*S19)+($I$1*T19)+($J$1*U19)+($K$1*V19)+($L$1*W19)+($M$1*X19)+($N$1*Y19)+($O$1*Z19)+($P$1*AA19)+($Q$1*AB19))","v":""},{"$f":"IF(Table75[[#This Row],[Weighed Score]]=\"\", \"\", _xlfn.IFS(AND($AC19>='Reference Tables'!$L$2,'Lab Input and Calculations'!$AC19<='Reference Tables'!$L$3),0,AND('Lab Input and Calculations'!$AC19>='Reference Tables'!$L$4,'Lab Input and Calculations'!$AC19<='Reference Tables'!$L$5),1,AND('Lab Input and Calculations'!$AC19>='Reference Tables'!$L$6,'Lab Input and Calculations'!$AC19<='Reference Tables'!$L$7),2,AND('Lab Input and Calculations'!$AC19>='Reference Tables'!$L$8,'Lab Input and Calculations'!$AC19<='Reference Tables'!$L$9),3,AND('Lab Input and Calculations'!$AC19>'Reference Tables'!$L$10,'Lab Input and Calculations'!$AC19<='Reference Tables'!$L$11),4))","v":""},{"$f":"IF(Table75[[#This Row],[Lab Control Band]]=\"\", \"\", VLOOKUP(AD19,'Reference Tables'!$Q$3:$S$12,2))","v":""},{"$f":"IF(Table75[[#This Row],[Lab Control Band]]=\"\", \"\", VLOOKUP(AD19,'Reference Tables'!$Q$3:$S$12,3))","v":""},{"$f":"IF(Table75[[#This Row],[Lab Control Band]]=\"\", \"\", (Table5[[#This Row],[Minimum Air Changes per Hour, Occupied (ACH)]]*10)/60)","v":""},{"$f":"IF(Table75[[#This Row],[Lab Control Band]]=\"\", \"\", (AF19*10)/60)","v":""},{"$f":"IF(Table75[[#This Row],[Lab Control Band]]=\"\", \"\", D19*AG19)","v":""},{"$f":"IF(Table75[[#This Row],[Lab Control Band]]=\"\", \"\", D19*AH19)","v":""},{"$f":"IF(Lab_Inputs[[#This Row],[Lab Number]]=\"\",\"\",SUMIF(ECD_Inputs[Lab Number],Lab_Inputs[[#This Row],[Lab Number]],'ECD Input and Calculations'!$AF$4:$AF$56))","v":""},{"$f":"IF(Lab_Inputs[[#This Row],[Lab Number]]=\"\",\"\",SUMIF(ECD_Inputs[Lab Number],Lab_Inputs[[#This Row],[Lab Number]],'ECD Input and Calculations'!$AE$4:$AE$56))","v":""},{"$f":"IF(Lab_Inputs[[#This Row],[Lab Number]]=\"\",\"\",MAX(Table5[[#This Row],[Minimum Airflow, Occupied  (CFM)]],Table5[[#This Row],[Total ECD Min. Air Flow (CFM)]]))","v":""},{"$f":"IF(Lab_Inputs[[#This Row],[Lab Number]]=\"\",\"\",MAX(Table5[[#This Row],[Minimum Airflow, Unoccupied (CFM)]],Table5[[#This Row],[Total ECD Min. Air Flow (CFM)]]))","v":""}]
[null,null,null,null,null,null,null,null,null,null,null,null,null,null,null,null,{"$f":"IF(Lab_Inputs[[#This Row],[Lab Number]]=\"\",\"\",_xlfn.MAXIFS(Table7[Risk Control Band],ECD_Inputs[Lab Number],Lab_Inputs[[#This Row],[Lab Number]]))","v":""},{"$f":"IF(Lab_Inputs[[#This Row],[Quantity]]=\"\", \"\",VLOOKUP('Lab Input and Calculations'!G20,'Reference Tables'!$C$2:$D$52,2,FALSE))","v":""},{"$f":"IF(Lab_Inputs[[#This Row],[Quantity]]=\"\", \"\",VLOOKUP('Lab Input and Calculations'!H20,'Reference Tables'!$C$2:$D$52,2,FALSE))","v":""},{"$f":"IF(Lab_Inputs[[#This Row],[ Generation Potential]]=\"\", \"\", VLOOKUP('Lab Input and Calculations'!I20,'Reference Tables'!$C$2:$D$52,2,FALSE))","v":""},{"$f":"IF(Lab_Inputs[[#This Row],[ Generation Method]]=\"\", \"\", VLOOKUP('Lab Input and Calculations'!J20,'Reference Tables'!$C$2:$D$52,2,FALSE))","v":""},{"$f":"IF(Lab_Inputs[[#This Row],[Generation Location]]=\"\", \"\", VLOOKUP('Lab Input and Calculations'!K20,'Reference Tables'!$C$2:$D$52,2,FALSE))","v":""},{"$f":"IF(Lab_Inputs[[#This Row],[Change Dynamics]]=\"\", \"\", VLOOKUP('Lab Input and Calculations'!L20,'Reference Tables'!$C$2:$D$52,2,FALSE))","v":""},{"$f":"IF(Lab_Inputs[[#This Row],[Housekeeping]]=\"\", \"\", VLOOKUP('Lab Input and Calculations'!M20,'Reference Tables'!$C$2:$D$52,2,FALSE))","v":""},{"$f":"IF(Lab_Inputs[[#This Row],[ECD Available?]]=\"\",\"\", VLOOKUP('Lab Input and Calculations'!N20,'Reference Tables'!$C$2:$D$52,2,FALSE))","v":""},{"$f":"IF(Lab_Inputs[[#This Row],[ECD Appropriate?]]=\"\", \"\", VLOOKUP('Lab Input and Calculations'!O20,'Reference Tables'!$C$2:$D$52,2,FALSE))","v":""},{"$f":"IF(Lab_Inputs[[#This Row],[Ventilation Effectivness ]]=\"\", \"\",VLOOKUP('Lab Input and Calculations'!P20,'Reference Tables'!$C$2:$D$52,2,FALSE))","v":""},{"$f":"IF(Lab_Inputs[[#This Row],[Maximum RCB for ECDs in Lab]]=\"\", \"\", Lab_Inputs[[#This Row],[Maximum RCB for ECDs in Lab]])","v":""},{"$f":"IF(Table75[[#This Row],[Hazard Exposure Limit Rating]]=\"\", \"\", ($G$1*R20)+($H$1*S20)+($I$1*T20)+($J$1*U20)+($K$1*V20)+($L$1*W20)+($M$1*X20)+($N$1*Y20)+($O$1*Z20)+($P$1*AA20)+($Q$1*AB20))","v":""},{"$f":"IF(Table75[[#This Row],[Weighed Score]]=\"\", \"\", _xlfn.IFS(AND($AC20>='Reference Tables'!$L$2,'Lab Input and Calculations'!$AC20<='Reference Tables'!$L$3),0,AND('Lab Input and Calculations'!$AC20>='Reference Tables'!$L$4,'Lab Input and Calculations'!$AC20<='Reference Tables'!$L$5),1,AND('Lab Input and Calculations'!$AC20>='Reference Tables'!$L$6,'Lab Input and Calculations'!$AC20<='Reference Tables'!$L$7),2,AND('Lab Input and Calculations'!$AC20>='Reference Tables'!$L$8,'Lab Input and Calculations'!$AC20<='Reference Tables'!$L$9),3,AND('Lab Input and Calculations'!$AC20>'Reference Tables'!$L$10,'Lab Input and Calculations'!$AC20<='Reference Tables'!$L$11),4))","v":""},{"$f":"IF(Table75[[#This Row],[Lab Control Band]]=\"\", \"\", VLOOKUP(AD20,'Reference Tables'!$Q$3:$S$12,2))","v":""},{"$f":"IF(Table75[[#This Row],[Lab Control Band]]=\"\", \"\", VLOOKUP(AD20,'Reference Tables'!$Q$3:$S$12,3))","v":""},{"$f":"IF(Table75[[#This Row],[Lab Control Band]]=\"\", \"\", (Table5[[#This Row],[Minimum Air Changes per Hour, Occupied (ACH)]]*10)/60)","v":""},{"$f":"IF(Table75[[#This Row],[Lab Control Band]]=\"\", \"\", (AF20*10)/60)","v":""},{"$f":"IF(Table75[[#This Row],[Lab Control Band]]=\"\", \"\", D20*AG20)","v":""},{"$f":"IF(Table75[[#This Row],[Lab Control Band]]=\"\", \"\", D20*AH20)","v":""},{"$f":"IF(Lab_Inputs[[#This Row],[Lab Number]]=\"\",\"\",SUMIF(ECD_Inputs[Lab Number],Lab_Inputs[[#This Row],[Lab Number]],'ECD Input and Calculations'!$AF$4:$AF$56))","v":""},{"$f":"IF(Lab_Inputs[[#This Row],[Lab Number]]=\"\",\"\",SUMIF(ECD_Inputs[Lab Number],Lab_Inputs[[#This Row],[Lab Number]],'ECD Input and Calculations'!$AE$4:$AE$56))","v":""},{"$f":"IF(Lab_Inputs[[#This Row],[Lab Number]]=\"\",\"\",MAX(Table5[[#This Row],[Minimum Airflow, Occupied  (CFM)]],Table5[[#This Row],[Total ECD Min. Air Flow (CFM)]]))","v":""},{"$f":"IF(Lab_Inputs[[#This Row],[Lab Number]]=\"\",\"\",MAX(Table5[[#This Row],[Minimum Airflow, Unoccupied (CFM)]],Table5[[#This Row],[Total ECD Min. Air Flow (CFM)]]))","v":""}]
[null,null,null,null,null,null,null,null,null,null,null,null,null,null,null,null,{"$f":"IF(Lab_Inputs[[#This Row],[Lab Number]]=\"\",\"\",_xlfn.MAXIFS(Table7[Risk Control Band],ECD_Inputs[Lab Number],Lab_Inputs[[#This Row],[Lab Number]]))","v":""},{"$f":"IF(Lab_Inputs[[#This Row],[Quantity]]=\"\", \"\",VLOOKUP('Lab Input and Calculations'!G21,'Reference Tables'!$C$2:$D$52,2,FALSE))","v":""},{"$f":"IF(Lab_Inputs[[#This Row],[Quantity]]=\"\", \"\",VLOOKUP('Lab Input and Calculations'!H21,'Reference Tables'!$C$2:$D$52,2,FALSE))","v":""},{"$f":"IF(Lab_Inputs[[#This Row],[ Generation Potential]]=\"\", \"\", VLOOKUP('Lab Input and Calculations'!I21,'Reference Tables'!$C$2:$D$52,2,FALSE))","v":""},{"$f":"IF(Lab_Inputs[[#This Row],[ Generation Method]]=\"\", \"\", VLOOKUP('Lab Input and Calculations'!J21,'Reference Tables'!$C$2:$D$52,2,FALSE))","v":""},{"$f":"IF(Lab_Inputs[[#This Row],[Generation Location]]=\"\", \"\", VLOOKUP('Lab Input and Calculations'!K21,'Reference Tables'!$C$2:$D$52,2,FALSE))","v":""},{"$f":"IF(Lab_Inputs[[#This Row],[Change Dynamics]]=\"\", \"\", VLOOKUP('Lab Input and Calculations'!L21,'Reference Tables'!$C$2:$D$52,2,FALSE))","v":""},{"$f":"IF(Lab_Inputs[[#This Row],[Housekeeping]]=\"\", \"\", VLOOKUP('Lab Input and Calculations'!M21,'Reference Tables'!$C$2:$D$52,2,FALSE))","v":""},{"$f":"IF(Lab_Inputs[[#This Row],[ECD Available?]]=\"\",\"\", VLOOKUP('Lab Input and Calculations'!N21,'Reference Tables'!$C$2:$D$52,2,FALSE))","v":""},{"$f":"IF(Lab_Inputs[[#This Row],[ECD Appropriate?]]=\"\", \"\", VLOOKUP('Lab Input and Calculations'!O21,'Reference Tables'!$C$2:$D$52,2,FALSE))","v":""},{"$f":"IF(Lab_Inputs[[#This Row],[Ventilation Effectivness ]]=\"\", \"\",VLOOKUP('Lab Input and Calculations'!P21,'Reference Tables'!$C$2:$D$52,2,FALSE))","v":""},{"$f":"IF(Lab_Inputs[[#This Row],[Maximum RCB for ECDs in Lab]]=\"\", \"\", Lab_Inputs[[#This Row],[Maximum RCB for ECDs in Lab]])","v":""},{"$f":"IF(Table75[[#This Row],[Hazard Exposure Limit Rating]]=\"\", \"\", ($G$1*R21)+($H$1*S21)+($I$1*T21)+($J$1*U21)+($K$1*V21)+($L$1*W21)+($M$1*X21)+($N$1*Y21)+($O$1*Z21)+($P$1*AA21)+($Q$1*AB21))","v":""},{"$f":"IF(Table75[[#This Row],[Weighed Score]]=\"\", \"\", _xlfn.IFS(AND($AC21>='Reference Tables'!$L$2,'Lab Input and Calculations'!$AC21<='Reference Tables'!$L$3),0,AND('Lab Input and Calculations'!$AC21>='Reference Tables'!$L$4,'Lab Input and Calculations'!$AC21<='Reference Tables'!$L$5),1,AND('Lab Input and Calculations'!$AC21>='Reference Tables'!$L$6,'Lab Input and Calculations'!$AC21<='Reference Tables'!$L$7),2,AND('Lab Input and Calculations'!$AC21>='Reference Tables'!$L$8,'Lab Input and Calculations'!$AC21<='Reference Tables'!$L$9),3,AND('Lab Input and Calculations'!$AC21>'Reference Tables'!$L$10,'Lab Input and Calculations'!$AC21<='Reference Tables'!$L$11),4))","v":""},{"$f":"IF(Table75[[#This Row],[Lab Control Band]]=\"\", \"\", VLOOKUP(AD21,'Reference Tables'!$Q$3:$S$12,2))","v":""},{"$f":"IF(Table75[[#This Row],[Lab Control Band]]=\"\", \"\", VLOOKUP(AD21,'Reference Tables'!$Q$3:$S$12,3))","v":""},{"$f":"IF(Table75[[#This Row],[Lab Control Band]]=\"\", \"\", (Table5[[#This Row],[Minimum Air Changes per Hour, Occupied (ACH)]]*10)/60)","v":""},{"$f":"IF(Table75[[#This Row],[Lab Control Band]]=\"\", \"\", (AF21*10)/60)","v":""},{"$f":"IF(Table75[[#This Row],[Lab Control Band]]=\"\", \"\", D21*AG21)","v":""},{"$f":"IF(Table75[[#This Row],[Lab Control Band]]=\"\", \"\", D21*AH21)","v":""},{"$f":"IF(Lab_Inputs[[#This Row],[Lab Number]]=\"\",\"\",SUMIF(ECD_Inputs[Lab Number],Lab_Inputs[[#This Row],[Lab Number]],'ECD Input and Calculations'!$AF$4:$AF$56))","v":""},{"$f":"IF(Lab_Inputs[[#This Row],[Lab Number]]=\"\",\"\",SUMIF(ECD_Inputs[Lab Number],Lab_Inputs[[#This Row],[Lab Number]],'ECD Input and Calculations'!$AE$4:$AE$56))","v":""},{"$f":"IF(Lab_Inputs[[#This Row],[Lab Number]]=\"\",\"\",MAX(Table5[[#This Row],[Minimum Airflow, Occupied  (CFM)]],Table5[[#This Row],[Total ECD Min. Air Flow (CFM)]]))","v":""},{"$f":"IF(Lab_Inputs[[#This Row],[Lab Number]]=\"\",\"\",MAX(Table5[[#This Row],[Minimum Airflow, Unoccupied (CFM)]],Table5[[#This Row],[Total ECD Min. Air Flow (CFM)]]))","v":""}]
[null,null,null,null,null,null,null,null,null,null,null,null,null,null,null,null,{"$f":"IF(Lab_Inputs[[#This Row],[Lab Number]]=\"\",\"\",_xlfn.MAXIFS(Table7[Risk Control Band],ECD_Inputs[Lab Number],Lab_Inputs[[#This Row],[Lab Number]]))","v":""},{"$f":"IF(Lab_Inputs[[#This Row],[Quantity]]=\"\", \"\",VLOOKUP('Lab Input and Calculations'!G22,'Reference Tables'!$C$2:$D$52,2,FALSE))","v":""},{"$f":"IF(Lab_Inputs[[#This Row],[Quantity]]=\"\", \"\",VLOOKUP('Lab Input and Calculations'!H22,'Reference Tables'!$C$2:$D$52,2,FALSE))","v":""},{"$f":"IF(Lab_Inputs[[#This Row],[ Generation Potential]]=\"\", \"\", VLOOKUP('Lab Input and Calculations'!I22,'Reference Tables'!$C$2:$D$52,2,FALSE))","v":""},{"$f":"IF(Lab_Inputs[[#This Row],[ Generation Method]]=\"\", \"\", VLOOKUP('Lab Input and Calculations'!J22,'Reference Tables'!$C$2:$D$52,2,FALSE))","v":""},{"$f":"IF(Lab_Inputs[[#This Row],[Generation Location]]=\"\", \"\", VLOOKUP('Lab Input and Calculations'!K22,'Reference Tables'!$C$2:$D$52,2,FALSE))","v":""},{"$f":"IF(Lab_Inputs[[#This Row],[Change Dynamics]]=\"\", \"\", VLOOKUP('Lab Input and Calculations'!L22,'Reference Tables'!$C$2:$D$52,2,FALSE))","v":""},{"$f":"IF(Lab_Inputs[[#This Row],[Housekeeping]]=\"\", \"\", VLOOKUP('Lab Input and Calculations'!M22,'Reference Tables'!$C$2:$D$52,2,FALSE))","v":""},{"$f":"IF(Lab_Inputs[[#This Row],[ECD Available?]]=\"\",\"\", VLOOKUP('Lab Input and Calculations'!N22,'Reference Tables'!$C$2:$D$52,2,FALSE))","v":""},{"$f":"IF(Lab_Inputs[[#This Row],[ECD Appropriate?]]=\"\", \"\", VLOOKUP('Lab Input and Calculations'!O22,'Reference Tables'!$C$2:$D$52,2,FALSE))","v":""},{"$f":"IF(Lab_Inputs[[#This Row],[Ventilation Effectivness ]]=\"\", \"\",VLOOKUP('Lab Input and Calculations'!P22,'Reference Tables'!$C$2:$D$52,2,FALSE))","v":""},{"$f":"IF(Lab_Inputs[[#This Row],[Maximum RCB for ECDs in Lab]]=\"\", \"\", Lab_Inputs[[#This Row],[Maximum RCB for ECDs in Lab]])","v":""},{"$f":"IF(Table75[[#This Row],[Hazard Exposure Limit Rating]]=\"\", \"\", ($G$1*R22)+($H$1*S22)+($I$1*T22)+($J$1*U22)+($K$1*V22)+($L$1*W22)+($M$1*X22)+($N$1*Y22)+($O$1*Z22)+($P$1*AA22)+($Q$1*AB22))","v":""},{"$f":"IF(Table75[[#This Row],[Weighed Score]]=\"\", \"\", _xlfn.IFS(AND($AC22>='Reference Tables'!$L$2,'Lab Input and Calculations'!$AC22<='Reference Tables'!$L$3),0,AND('Lab Input and Calculations'!$AC22>='Reference Tables'!$L$4,'Lab Input and Calculations'!$AC22<='Reference Tables'!$L$5),1,AND('Lab Input and Calculations'!$AC22>='Reference Tables'!$L$6,'Lab Input and Calculations'!$AC22<='Reference Tables'!$L$7),2,AND('Lab Input and Calculations'!$AC22>='Reference Tables'!$L$8,'Lab Input and Calculations'!$AC22<='Reference Tables'!$L$9),3,AND('Lab Input and Calculations'!$AC22>'Reference Tables'!$L$10,'Lab Input and Calculations'!$AC22<='Reference Tables'!$L$11),4))","v":""},{"$f":"IF(Table75[[#This Row],[Lab Control Band]]=\"\", \"\", VLOOKUP(AD22,'Reference Tables'!$Q$3:$S$12,2))","v":""},{"$f":"IF(Table75[[#This Row],[Lab Control Band]]=\"\", \"\", VLOOKUP(AD22,'Reference Tables'!$Q$3:$S$12,3))","v":""},{"$f":"IF(Table75[[#This Row],[Lab Control Band]]=\"\", \"\", (Table5[[#This Row],[Minimum Air Changes per Hour, Occupied (ACH)]]*10)/60)","v":""},{"$f":"IF(Table75[[#This Row],[Lab Control Band]]=\"\", \"\", (AF22*10)/60)","v":""},{"$f":"IF(Table75[[#This Row],[Lab Control Band]]=\"\", \"\", D22*AG22)","v":""},{"$f":"IF(Table75[[#This Row],[Lab Control Band]]=\"\", \"\", D22*AH22)","v":""},{"$f":"IF(Lab_Inputs[[#This Row],[Lab Number]]=\"\",\"\",SUMIF(ECD_Inputs[Lab Number],Lab_Inputs[[#This Row],[Lab Number]],'ECD Input and Calculations'!$AF$4:$AF$56))","v":""},{"$f":"IF(Lab_Inputs[[#This Row],[Lab Number]]=\"\",\"\",SUMIF(ECD_Inputs[Lab Number],Lab_Inputs[[#This Row],[Lab Number]],'ECD Input and Calculations'!$AE$4:$AE$56))","v":""},{"$f":"IF(Lab_Inputs[[#This Row],[Lab Number]]=\"\",\"\",MAX(Table5[[#This Row],[Minimum Airflow, Occupied  (CFM)]],Table5[[#This Row],[Total ECD Min. Air Flow (CFM)]]))","v":""},{"$f":"IF(Lab_Inputs[[#This Row],[Lab Number]]=\"\",\"\",MAX(Table5[[#This Row],[Minimum Airflow, Unoccupied (CFM)]],Table5[[#This Row],[Total ECD Min. Air Flow (CFM)]]))","v":""}]
[null,null,null,null,null,null,null,null,null,null,null,null,null,null,null,null,{"$f":"IF(Lab_Inputs[[#This Row],[Lab Number]]=\"\",\"\",_xlfn.MAXIFS(Table7[Risk Control Band],ECD_Inputs[Lab Number],Lab_Inputs[[#This Row],[Lab Number]]))","v":""},{"$f":"IF(Lab_Inputs[[#This Row],[Quantity]]=\"\", \"\",VLOOKUP('Lab Input and Calculations'!G23,'Reference Tables'!$C$2:$D$52,2,FALSE))","v":""},{"$f":"IF(Lab_Inputs[[#This Row],[Quantity]]=\"\", \"\",VLOOKUP('Lab Input and Calculations'!H23,'Reference Tables'!$C$2:$D$52,2,FALSE))","v":""},{"$f":"IF(Lab_Inputs[[#This Row],[ Generation Potential]]=\"\", \"\", VLOOKUP('Lab Input and Calculations'!I23,'Reference Tables'!$C$2:$D$52,2,FALSE))","v":""},{"$f":"IF(Lab_Inputs[[#This Row],[ Generation Method]]=\"\", \"\", VLOOKUP('Lab Input and Calculations'!J23,'Reference Tables'!$C$2:$D$52,2,FALSE))","v":""},{"$f":"IF(Lab_Inputs[[#This Row],[Generation Location]]=\"\", \"\", VLOOKUP('Lab Input and Calculations'!K23,'Reference Tables'!$C$2:$D$52,2,FALSE))","v":""},{"$f":"IF(Lab_Inputs[[#This Row],[Change Dynamics]]=\"\", \"\", VLOOKUP('Lab Input and Calculations'!L23,'Reference Tables'!$C$2:$D$52,2,FALSE))","v":""},{"$f":"IF(Lab_Inputs[[#This Row],[Housekeeping]]=\"\", \"\", VLOOKUP('Lab Input and Calculations'!M23,'Reference Tables'!$C$2:$D$52,2,FALSE))","v":""},{"$f":"IF(Lab_Inputs[[#This Row],[ECD Available?]]=\"\",\"\", VLOOKUP('Lab Input and Calculations'!N23,'Reference Tables'!$C$2:$D$52,2,FALSE))","v":""},{"$f":"IF(Lab_Inputs[[#This Row],[ECD Appropriate?]]=\"\", \"\", VLOOKUP('Lab Input and Calculations'!O23,'Reference Tables'!$C$2:$D$52,2,FALSE))","v":""},{"$f":"IF(Lab_Inputs[[#This Row],[Ventilation Effectivness ]]=\"\", \"\",VLOOKUP('Lab Input and Calculations'!P23,'Reference Tables'!$C$2:$D$52,2,FALSE))","v":""},{"$f":"IF(Lab_Inputs[[#This Row],[Maximum RCB for ECDs in Lab]]=\"\", \"\", Lab_Inputs[[#This Row],[Maximum RCB for ECDs in Lab]])","v":""},{"$f":"IF(Table75[[#This Row],[Hazard Exposure Limit Rating]]=\"\", \"\", ($G$1*R23)+($H$1*S23)+($I$1*T23)+($J$1*U23)+($K$1*V23)+($L$1*W23)+($M$1*X23)+($N$1*Y23)+($O$1*Z23)+($P$1*AA23)+($Q$1*AB23))","v":""},{"$f":"IF(Table75[[#This Row],[Weighed Score]]=\"\", \"\", _xlfn.IFS(AND($AC23>='Reference Tables'!$L$2,'Lab Input and Calculations'!$AC23<='Reference Tables'!$L$3),0,AND('Lab Input and Calculations'!$AC23>='Reference Tables'!$L$4,'Lab Input and Calculations'!$AC23<='Reference Tables'!$L$5),1,AND('Lab Input and Calculations'!$AC23>='Reference Tables'!$L$6,'Lab Input and Calculations'!$AC23<='Reference Tables'!$L$7),2,AND('Lab Input and Calculations'!$AC23>='Reference Tables'!$L$8,'Lab Input and Calculations'!$AC23<='Reference Tables'!$L$9),3,AND('Lab Input and Calculations'!$AC23>'Reference Tables'!$L$10,'Lab Input and Calculations'!$AC23<='Reference Tables'!$L$11),4))","v":""},{"$f":"IF(Table75[[#This Row],[Lab Control Band]]=\"\", \"\", VLOOKUP(AD23,'Reference Tables'!$Q$3:$S$12,2))","v":""},{"$f":"IF(Table75[[#This Row],[Lab Control Band]]=\"\", \"\", VLOOKUP(AD23,'Reference Tables'!$Q$3:$S$12,3))","v":""},{"$f":"IF(Table75[[#This Row],[Lab Control Band]]=\"\", \"\", (Table5[[#This Row],[Minimum Air Changes per Hour, Occupied (ACH)]]*10)/60)","v":""},{"$f":"IF(Table75[[#This Row],[Lab Control Band]]=\"\", \"\", (AF23*10)/60)","v":""},{"$f":"IF(Table75[[#This Row],[Lab Control Band]]=\"\", \"\", D23*AG23)","v":""},{"$f":"IF(Table75[[#This Row],[Lab Control Band]]=\"\", \"\", D23*AH23)","v":""},{"$f":"IF(Lab_Inputs[[#This Row],[Lab Number]]=\"\",\"\",SUMIF(ECD_Inputs[Lab Number],Lab_Inputs[[#This Row],[Lab Number]],'ECD Input and Calculations'!$AF$4:$AF$56))","v":""},{"$f":"IF(Lab_Inputs[[#This Row],[Lab Number]]=\"\",\"\",SUMIF(ECD_Inputs[Lab Number],Lab_Inputs[[#This Row],[Lab Number]],'ECD Input and Calculations'!$AE$4:$AE$56))","v":""},{"$f":"IF(Lab_Inputs[[#This Row],[Lab Number]]=\"\",\"\",MAX(Table5[[#This Row],[Minimum Airflow, Occupied  (CFM)]],Table5[[#This Row],[Total ECD Min. Air Flow (CFM)]]))","v":""},{"$f":"IF(Lab_Inputs[[#This Row],[Lab Number]]=\"\",\"\",MAX(Table5[[#This Row],[Minimum Airflow, Unoccupied (CFM)]],Table5[[#This Row],[Total ECD Min. Air Flow (CFM)]]))","v":""}]
[null,null,null,null,null,null,null,null,null,null,null,null,null,null,null,null,{"$f":"IF(Lab_Inputs[[#This Row],[Lab Number]]=\"\",\"\",_xlfn.MAXIFS(Table7[Risk Control Band],ECD_Inputs[Lab Number],Lab_Inputs[[#This Row],[Lab Number]]))","v":""},{"$f":"IF(Lab_Inputs[[#This Row],[Quantity]]=\"\", \"\",VLOOKUP('Lab Input and Calculations'!G24,'Reference Tables'!$C$2:$D$52,2,FALSE))","v":""},{"$f":"IF(Lab_Inputs[[#This Row],[Quantity]]=\"\", \"\",VLOOKUP('Lab Input and Calculations'!H24,'Reference Tables'!$C$2:$D$52,2,FALSE))","v":""},{"$f":"IF(Lab_Inputs[[#This Row],[ Generation Potential]]=\"\", \"\", VLOOKUP('Lab Input and Calculations'!I24,'Reference Tables'!$C$2:$D$52,2,FALSE))","v":""},{"$f":"IF(Lab_Inputs[[#This Row],[ Generation Method]]=\"\", \"\", VLOOKUP('Lab Input and Calculations'!J24,'Reference Tables'!$C$2:$D$52,2,FALSE))","v":""},{"$f":"IF(Lab_Inputs[[#This Row],[Generation Location]]=\"\", \"\", VLOOKUP('Lab Input and Calculations'!K24,'Reference Tables'!$C$2:$D$52,2,FALSE))","v":""},{"$f":"IF(Lab_Inputs[[#This Row],[Change Dynamics]]=\"\", \"\", VLOOKUP('Lab Input and Calculations'!L24,'Reference Tables'!$C$2:$D$52,2,FALSE))","v":""},{"$f":"IF(Lab_Inputs[[#This Row],[Housekeeping]]=\"\", \"\", VLOOKUP('Lab Input and Calculations'!M24,'Reference Tables'!$C$2:$D$52,2,FALSE))","v":""},{"$f":"IF(Lab_Inputs[[#This Row],[ECD Available?]]=\"\",\"\", VLOOKUP('Lab Input and Calculations'!N24,'Reference Tables'!$C$2:$D$52,2,FALSE))","v":""},{"$f":"IF(Lab_Inputs[[#This Row],[ECD Appropriate?]]=\"\", \"\", VLOOKUP('Lab Input and Calculations'!O24,'Reference Tables'!$C$2:$D$52,2,FALSE))","v":""},{"$f":"IF(Lab_Inputs[[#This Row],[Ventilation Effectivness ]]=\"\", \"\",VLOOKUP('Lab Input and Calculations'!P24,'Reference Tables'!$C$2:$D$52,2,FALSE))","v":""},{"$f":"IF(Lab_Inputs[[#This Row],[Maximum RCB for ECDs in Lab]]=\"\", \"\", Lab_Inputs[[#This Row],[Maximum RCB for ECDs in Lab]])","v":""},{"$f":"IF(Table75[[#This Row],[Hazard Exposure Limit Rating]]=\"\", \"\", ($G$1*R24)+($H$1*S24)+($I$1*T24)+($J$1*U24)+($K$1*V24)+($L$1*W24)+($M$1*X24)+($N$1*Y24)+($O$1*Z24)+($P$1*AA24)+($Q$1*AB24))","v":""},{"$f":"IF(Table75[[#This Row],[Weighed Score]]=\"\", \"\", _xlfn.IFS(AND($AC24>='Reference Tables'!$L$2,'Lab Input and Calculations'!$AC24<='Reference Tables'!$L$3),0,AND('Lab Input and Calculations'!$AC24>='Reference Tables'!$L$4,'Lab Input and Calculations'!$AC24<='Reference Tables'!$L$5),1,AND('Lab Input and Calculations'!$AC24>='Reference Tables'!$L$6,'Lab Input and Calculations'!$AC24<='Reference Tables'!$L$7),2,AND('Lab Input and Calculations'!$AC24>='Reference Tables'!$L$8,'Lab Input and Calculations'!$AC24<='Reference Tables'!$L$9),3,AND('Lab Input and Calculations'!$AC24>'Reference Tables'!$L$10,'Lab Input and Calculations'!$AC24<='Reference Tables'!$L$11),4))","v":""},{"$f":"IF(Table75[[#This Row],[Lab Control Band]]=\"\", \"\", VLOOKUP(AD24,'Reference Tables'!$Q$3:$S$12,2))","v":""},{"$f":"IF(Table75[[#This Row],[Lab Control Band]]=\"\", \"\", VLOOKUP(AD24,'Reference Tables'!$Q$3:$S$12,3))","v":""},{"$f":"IF(Table75[[#This Row],[Lab Control Band]]=\"\", \"\", (Table5[[#This Row],[Minimum Air Changes per Hour, Occupied (ACH)]]*10)/60)","v":""},{"$f":"IF(Table75[[#This Row],[Lab Control Band]]=\"\", \"\", (AF24*10)/60)","v":""},{"$f":"IF(Table75[[#This Row],[Lab Control Band]]=\"\", \"\", D24*AG24)","v":""},{"$f":"IF(Table75[[#This Row],[Lab Control Band]]=\"\", \"\", D24*AH24)","v":""},{"$f":"IF(Lab_Inputs[[#This Row],[Lab Number]]=\"\",\"\",SUMIF(ECD_Inputs[Lab Number],Lab_Inputs[[#This Row],[Lab Number]],'ECD Input and Calculations'!$AF$4:$AF$56))","v":""},{"$f":"IF(Lab_Inputs[[#This Row],[Lab Number]]=\"\",\"\",SUMIF(ECD_Inputs[Lab Number],Lab_Inputs[[#This Row],[Lab Number]],'ECD Input and Calculations'!$AE$4:$AE$56))","v":""},{"$f":"IF(Lab_Inputs[[#This Row],[Lab Number]]=\"\",\"\",MAX(Table5[[#This Row],[Minimum Airflow, Occupied  (CFM)]],Table5[[#This Row],[Total ECD Min. Air Flow (CFM)]]))","v":""},{"$f":"IF(Lab_Inputs[[#This Row],[Lab Number]]=\"\",\"\",MAX(Table5[[#This Row],[Minimum Airflow, Unoccupied (CFM)]],Table5[[#This Row],[Total ECD Min. Air Flow (CFM)]]))","v":""}]
[null,null,null,null,null,null,null,null,null,null,null,null,null,null,null,null,{"$f":"IF(Lab_Inputs[[#This Row],[Lab Number]]=\"\",\"\",_xlfn.MAXIFS(Table7[Risk Control Band],ECD_Inputs[Lab Number],Lab_Inputs[[#This Row],[Lab Number]]))","v":""},{"$f":"IF(Lab_Inputs[[#This Row],[Quantity]]=\"\", \"\",VLOOKUP('Lab Input and Calculations'!G25,'Reference Tables'!$C$2:$D$52,2,FALSE))","v":""},{"$f":"IF(Lab_Inputs[[#This Row],[Quantity]]=\"\", \"\",VLOOKUP('Lab Input and Calculations'!H25,'Reference Tables'!$C$2:$D$52,2,FALSE))","v":""},{"$f":"IF(Lab_Inputs[[#This Row],[ Generation Potential]]=\"\", \"\", VLOOKUP('Lab Input and Calculations'!I25,'Reference Tables'!$C$2:$D$52,2,FALSE))","v":""},{"$f":"IF(Lab_Inputs[[#This Row],[ Generation Method]]=\"\", \"\", VLOOKUP('Lab Input and Calculations'!J25,'Reference Tables'!$C$2:$D$52,2,FALSE))","v":""},{"$f":"IF(Lab_Inputs[[#This Row],[Generation Location]]=\"\", \"\", VLOOKUP('Lab Input and Calculations'!K25,'Reference Tables'!$C$2:$D$52,2,FALSE))","v":""},{"$f":"IF(Lab_Inputs[[#This Row],[Change Dynamics]]=\"\", \"\", VLOOKUP('Lab Input and Calculations'!L25,'Reference Tables'!$C$2:$D$52,2,FALSE))","v":""},{"$f":"IF(Lab_Inputs[[#This Row],[Housekeeping]]=\"\", \"\", VLOOKUP('Lab Input and Calculations'!M25,'Reference Tables'!$C$2:$D$52,2,FALSE))","v":""},{"$f":"IF(Lab_Inputs[[#This Row],[ECD Available?]]=\"\",\"\", VLOOKUP('Lab Input and Calculations'!N25,'Reference Tables'!$C$2:$D$52,2,FALSE))","v":""},{"$f":"IF(Lab_Inputs[[#This Row],[ECD Appropriate?]]=\"\", \"\", VLOOKUP('Lab Input and Calculations'!O25,'Reference Tables'!$C$2:$D$52,2,FALSE))","v":""},{"$f":"IF(Lab_Inputs[[#This Row],[Ventilation Effectivness ]]=\"\", \"\",VLOOKUP('Lab Input and Calculations'!P25,'Reference Tables'!$C$2:$D$52,2,FALSE))","v":""},{"$f":"IF(Lab_Inputs[[#This Row],[Maximum RCB for ECDs in Lab]]=\"\", \"\", Lab_Inputs[[#This Row],[Maximum RCB for ECDs in Lab]])","v":""},{"$f":"IF(Table75[[#This Row],[Hazard Exposure Limit Rating]]=\"\", \"\", ($G$1*R25)+($H$1*S25)+($I$1*T25)+($J$1*U25)+($K$1*V25)+($L$1*W25)+($M$1*X25)+($N$1*Y25)+($O$1*Z25)+($P$1*AA25)+($Q$1*AB25))","v":""},{"$f":"IF(Table75[[#This Row],[Weighed Score]]=\"\", \"\", _xlfn.IFS(AND($AC25>='Reference Tables'!$L$2,'Lab Input and Calculations'!$AC25<='Reference Tables'!$L$3),0,AND('Lab Input and Calculations'!$AC25>='Reference Tables'!$L$4,'Lab Input and Calculations'!$AC25<='Reference Tables'!$L$5),1,AND('Lab Input and Calculations'!$AC25>='Reference Tables'!$L$6,'Lab Input and Calculations'!$AC25<='Reference Tables'!$L$7),2,AND('Lab Input and Calculations'!$AC25>='Reference Tables'!$L$8,'Lab Input and Calculations'!$AC25<='Reference Tables'!$L$9),3,AND('Lab Input and Calculations'!$AC25>'Reference Tables'!$L$10,'Lab Input and Calculations'!$AC25<='Reference Tables'!$L$11),4))","v":""},{"$f":"IF(Table75[[#This Row],[Lab Control Band]]=\"\", \"\", VLOOKUP(AD25,'Reference Tables'!$Q$3:$S$12,2))","v":""},{"$f":"IF(Table75[[#This Row],[Lab Control Band]]=\"\", \"\", VLOOKUP(AD25,'Reference Tables'!$Q$3:$S$12,3))","v":""},{"$f":"IF(Table75[[#This Row],[Lab Control Band]]=\"\", \"\", (Table5[[#This Row],[Minimum Air Changes per Hour, Occupied (ACH)]]*10)/60)","v":""},{"$f":"IF(Table75[[#This Row],[Lab Control Band]]=\"\", \"\", (AF25*10)/60)","v":""},{"$f":"IF(Table75[[#This Row],[Lab Control Band]]=\"\", \"\", D25*AG25)","v":""},{"$f":"IF(Table75[[#This Row],[Lab Control Band]]=\"\", \"\", D25*AH25)","v":""},{"$f":"IF(Lab_Inputs[[#This Row],[Lab Number]]=\"\",\"\",SUMIF(ECD_Inputs[Lab Number],Lab_Inputs[[#This Row],[Lab Number]],'ECD Input and Calculations'!$AF$4:$AF$56))","v":""},{"$f":"IF(Lab_Inputs[[#This Row],[Lab Number]]=\"\",\"\",SUMIF(ECD_Inputs[Lab Number],Lab_Inputs[[#This Row],[Lab Number]],'ECD Input and Calculations'!$AE$4:$AE$56))","v":""},{"$f":"IF(Lab_Inputs[[#This Row],[Lab Number]]=\"\",\"\",MAX(Table5[[#This Row],[Minimum Airflow, Occupied  (CFM)]],Table5[[#This Row],[Total ECD Min. Air Flow (CFM)]]))","v":""},{"$f":"IF(Lab_Inputs[[#This Row],[Lab Number]]=\"\",\"\",MAX(Table5[[#This Row],[Minimum Airflow, Unoccupied (CFM)]],Table5[[#This Row],[Total ECD Min. Air Flow (CFM)]]))","v":""}]
[null,null,null,null,null,null,null,null,null,null,null,null,null,null,null,null,{"$f":"IF(Lab_Inputs[[#This Row],[Lab Number]]=\"\",\"\",_xlfn.MAXIFS(Table7[Risk Control Band],ECD_Inputs[Lab Number],Lab_Inputs[[#This Row],[Lab Number]]))","v":""},{"$f":"IF(Lab_Inputs[[#This Row],[Quantity]]=\"\", \"\",VLOOKUP('Lab Input and Calculations'!G26,'Reference Tables'!$C$2:$D$52,2,FALSE))","v":""},{"$f":"IF(Lab_Inputs[[#This Row],[Quantity]]=\"\", \"\",VLOOKUP('Lab Input and Calculations'!H26,'Reference Tables'!$C$2:$D$52,2,FALSE))","v":""},{"$f":"IF(Lab_Inputs[[#This Row],[ Generation Potential]]=\"\", \"\", VLOOKUP('Lab Input and Calculations'!I26,'Reference Tables'!$C$2:$D$52,2,FALSE))","v":""},{"$f":"IF(Lab_Inputs[[#This Row],[ Generation Method]]=\"\", \"\", VLOOKUP('Lab Input and Calculations'!J26,'Reference Tables'!$C$2:$D$52,2,FALSE))","v":""},{"$f":"IF(Lab_Inputs[[#This Row],[Generation Location]]=\"\", \"\", VLOOKUP('Lab Input and Calculations'!K26,'Reference Tables'!$C$2:$D$52,2,FALSE))","v":""},{"$f":"IF(Lab_Inputs[[#This Row],[Change Dynamics]]=\"\", \"\", VLOOKUP('Lab Input and Calculations'!L26,'Reference Tables'!$C$2:$D$52,2,FALSE))","v":""},{"$f":"IF(Lab_Inputs[[#This Row],[Housekeeping]]=\"\", \"\", VLOOKUP('Lab Input and Calculations'!M26,'Reference Tables'!$C$2:$D$52,2,FALSE))","v":""},{"$f":"IF(Lab_Inputs[[#This Row],[ECD Available?]]=\"\",\"\", VLOOKUP('Lab Input and Calculations'!N26,'Reference Tables'!$C$2:$D$52,2,FALSE))","v":""},{"$f":"IF(Lab_Inputs[[#This Row],[ECD Appropriate?]]=\"\", \"\", VLOOKUP('Lab Input and Calculations'!O26,'Reference Tables'!$C$2:$D$52,2,FALSE))","v":""},{"$f":"IF(Lab_Inputs[[#This Row],[Ventilation Effectivness ]]=\"\", \"\",VLOOKUP('Lab Input and Calculations'!P26,'Reference Tables'!$C$2:$D$52,2,FALSE))","v":""},{"$f":"IF(Lab_Inputs[[#This Row],[Maximum RCB for ECDs in Lab]]=\"\", \"\", Lab_Inputs[[#This Row],[Maximum RCB for ECDs in Lab]])","v":""},{"$f":"IF(Table75[[#This Row],[Hazard Exposure Limit Rating]]=\"\", \"\", ($G$1*R26)+($H$1*S26)+($I$1*T26)+($J$1*U26)+($K$1*V26)+($L$1*W26)+($M$1*X26)+($N$1*Y26)+($O$1*Z26)+($P$1*AA26)+($Q$1*AB26))","v":""},{"$f":"IF(Table75[[#This Row],[Weighed Score]]=\"\", \"\", _xlfn.IFS(AND($AC26>='Reference Tables'!$L$2,'Lab Input and Calculations'!$AC26<='Reference Tables'!$L$3),0,AND('Lab Input and Calculations'!$AC26>='Reference Tables'!$L$4,'Lab Input and Calculations'!$AC26<='Reference Tables'!$L$5),1,AND('Lab Input and Calculations'!$AC26>='Reference Tables'!$L$6,'Lab Input and Calculations'!$AC26<='Reference Tables'!$L$7),2,AND('Lab Input and Calculations'!$AC26>='Reference Tables'!$L$8,'Lab Input and Calculations'!$AC26<='Reference Tables'!$L$9),3,AND('Lab Input and Calculations'!$AC26>'Reference Tables'!$L$10,'Lab Input and Calculations'!$AC26<='Reference Tables'!$L$11),4))","v":""},{"$f":"IF(Table75[[#This Row],[Lab Control Band]]=\"\", \"\", VLOOKUP(AD26,'Reference Tables'!$Q$3:$S$12,2))","v":""},{"$f":"IF(Table75[[#This Row],[Lab Control Band]]=\"\", \"\", VLOOKUP(AD26,'Reference Tables'!$Q$3:$S$12,3))","v":""},{"$f":"IF(Table75[[#This Row],[Lab Control Band]]=\"\", \"\", (Table5[[#This Row],[Minimum Air Changes per Hour, Occupied (ACH)]]*10)/60)","v":""},{"$f":"IF(Table75[[#This Row],[Lab Control Band]]=\"\", \"\", (AF26*10)/60)","v":""},{"$f":"IF(Table75[[#This Row],[Lab Control Band]]=\"\", \"\", D26*AG26)","v":""},{"$f":"IF(Table75[[#This Row],[Lab Control Band]]=\"\", \"\", D26*AH26)","v":""},{"$f":"IF(Lab_Inputs[[#This Row],[Lab Number]]=\"\",\"\",SUMIF(ECD_Inputs[Lab Number],Lab_Inputs[[#This Row],[Lab Number]],'ECD Input and Calculations'!$AF$4:$AF$56))","v":""},{"$f":"IF(Lab_Inputs[[#This Row],[Lab Number]]=\"\",\"\",SUMIF(ECD_Inputs[Lab Number],Lab_Inputs[[#This Row],[Lab Number]],'ECD Input and Calculations'!$AE$4:$AE$56))","v":""},{"$f":"IF(Lab_Inputs[[#This Row],[Lab Number]]=\"\",\"\",MAX(Table5[[#This Row],[Minimum Airflow, Occupied  (CFM)]],Table5[[#This Row],[Total ECD Min. Air Flow (CFM)]]))","v":""},{"$f":"IF(Lab_Inputs[[#This Row],[Lab Number]]=\"\",\"\",MAX(Table5[[#This Row],[Minimum Airflow, Unoccupied (CFM)]],Table5[[#This Row],[Total ECD Min. Air Flow (CFM)]]))","v":""}]
[null,null,null,null,null,null,null,null,null,null,null,null,null,null,null,null,{"$f":"IF(Lab_Inputs[[#This Row],[Lab Number]]=\"\",\"\",_xlfn.MAXIFS(Table7[Risk Control Band],ECD_Inputs[Lab Number],Lab_Inputs[[#This Row],[Lab Number]]))","v":""},{"$f":"IF(Lab_Inputs[[#This Row],[Quantity]]=\"\", \"\",VLOOKUP('Lab Input and Calculations'!G27,'Reference Tables'!$C$2:$D$52,2,FALSE))","v":""},{"$f":"IF(Lab_Inputs[[#This Row],[Quantity]]=\"\", \"\",VLOOKUP('Lab Input and Calculations'!H27,'Reference Tables'!$C$2:$D$52,2,FALSE))","v":""},{"$f":"IF(Lab_Inputs[[#This Row],[ Generation Potential]]=\"\", \"\", VLOOKUP('Lab Input and Calculations'!I27,'Reference Tables'!$C$2:$D$52,2,FALSE))","v":""},{"$f":"IF(Lab_Inputs[[#This Row],[ Generation Method]]=\"\", \"\", VLOOKUP('Lab Input and Calculations'!J27,'Reference Tables'!$C$2:$D$52,2,FALSE))","v":""},{"$f":"IF(Lab_Inputs[[#This Row],[Generation Location]]=\"\", \"\", VLOOKUP('Lab Input and Calculations'!K27,'Reference Tables'!$C$2:$D$52,2,FALSE))","v":""},{"$f":"IF(Lab_Inputs[[#This Row],[Change Dynamics]]=\"\", \"\", VLOOKUP('Lab Input and Calculations'!L27,'Reference Tables'!$C$2:$D$52,2,FALSE))","v":""},{"$f":"IF(Lab_Inputs[[#This Row],[Housekeeping]]=\"\", \"\", VLOOKUP('Lab Input and Calculations'!M27,'Reference Tables'!$C$2:$D$52,2,FALSE))","v":""},{"$f":"IF(Lab_Inputs[[#This Row],[ECD Available?]]=\"\",\"\", VLOOKUP('Lab Input and Calculations'!N27,'Reference Tables'!$C$2:$D$52,2,FALSE))","v":""},{"$f":"IF(Lab_Inputs[[#This Row],[ECD Appropriate?]]=\"\", \"\", VLOOKUP('Lab Input and Calculations'!O27,'Reference Tables'!$C$2:$D$52,2,FALSE))","v":""},{"$f":"IF(Lab_Inputs[[#This Row],[Ventilation Effectivness ]]=\"\", \"\",VLOOKUP('Lab Input and Calculations'!P27,'Reference Tables'!$C$2:$D$52,2,FALSE))","v":""},{"$f":"IF(Lab_Inputs[[#This Row],[Maximum RCB for ECDs in Lab]]=\"\", \"\", Lab_Inputs[[#This Row],[Maximum RCB for ECDs in Lab]])","v":""},{"$f":"IF(Table75[[#This Row],[Hazard Exposure Limit Rating]]=\"\", \"\", ($G$1*R27)+($H$1*S27)+($I$1*T27)+($J$1*U27)+($K$1*V27)+($L$1*W27)+($M$1*X27)+($N$1*Y27)+($O$1*Z27)+($P$1*AA27)+($Q$1*AB27))","v":""},{"$f":"IF(Table75[[#This Row],[Weighed Score]]=\"\", \"\", _xlfn.IFS(AND($AC27>='Reference Tables'!$L$2,'Lab Input and Calculations'!$AC27<='Reference Tables'!$L$3),0,AND('Lab Input and Calculations'!$AC27>='Reference Tables'!$L$4,'Lab Input and Calculations'!$AC27<='Reference Tables'!$L$5),1,AND('Lab Input and Calculations'!$AC27>='Reference Tables'!$L$6,'Lab Input and Calculations'!$AC27<='Reference Tables'!$L$7),2,AND('Lab Input and Calculations'!$AC27>='Reference Tables'!$L$8,'Lab Input and Calculations'!$AC27<='Reference Tables'!$L$9),3,AND('Lab Input and Calculations'!$AC27>'Reference Tables'!$L$10,'Lab Input and Calculations'!$AC27<='Reference Tables'!$L$11),4))","v":""},{"$f":"IF(Table75[[#This Row],[Lab Control Band]]=\"\", \"\", VLOOKUP(AD27,'Reference Tables'!$Q$3:$S$12,2))","v":""},{"$f":"IF(Table75[[#This Row],[Lab Control Band]]=\"\", \"\", VLOOKUP(AD27,'Reference Tables'!$Q$3:$S$12,3))","v":""},{"$f":"IF(Table75[[#This Row],[Lab Control Band]]=\"\", \"\", (Table5[[#This Row],[Minimum Air Changes per Hour, Occupied (ACH)]]*10)/60)","v":""},{"$f":"IF(Table75[[#This Row],[Lab Control Band]]=\"\", \"\", (AF27*10)/60)","v":""},{"$f":"IF(Table75[[#This Row],[Lab Control Band]]=\"\", \"\", D27*AG27)","v":""},{"$f":"IF(Table75[[#This Row],[Lab Control Band]]=\"\", \"\", D27*AH27)","v":""},{"$f":"IF(Lab_Inputs[[#This Row],[Lab Number]]=\"\",\"\",SUMIF(ECD_Inputs[Lab Number],Lab_Inputs[[#This Row],[Lab Number]],'ECD Input and Calculations'!$AF$4:$AF$56))","v":""},{"$f":"IF(Lab_Inputs[[#This Row],[Lab Number]]=\"\",\"\",SUMIF(ECD_Inputs[Lab Number],Lab_Inputs[[#This Row],[Lab Number]],'ECD Input and Calculations'!$AE$4:$AE$56))","v":""},{"$f":"IF(Lab_Inputs[[#This Row],[Lab Number]]=\"\",\"\",MAX(Table5[[#This Row],[Minimum Airflow, Occupied  (CFM)]],Table5[[#This Row],[Total ECD Min. Air Flow (CFM)]]))","v":""},{"$f":"IF(Lab_Inputs[[#This Row],[Lab Number]]=\"\",\"\",MAX(Table5[[#This Row],[Minimum Airflow, Unoccupied (CFM)]],Table5[[#This Row],[Total ECD Min. Air Flow (CFM)]]))","v":""}]
[null,null,null,null,null,null,null,null,null,null,null,null,null,null,null,null,{"$f":"IF(Lab_Inputs[[#This Row],[Lab Number]]=\"\",\"\",_xlfn.MAXIFS(Table7[Risk Control Band],ECD_Inputs[Lab Number],Lab_Inputs[[#This Row],[Lab Number]]))","v":""},{"$f":"IF(Lab_Inputs[[#This Row],[Quantity]]=\"\", \"\",VLOOKUP('Lab Input and Calculations'!G28,'Reference Tables'!$C$2:$D$52,2,FALSE))","v":""},{"$f":"IF(Lab_Inputs[[#This Row],[Quantity]]=\"\", \"\",VLOOKUP('Lab Input and Calculations'!H28,'Reference Tables'!$C$2:$D$52,2,FALSE))","v":""},{"$f":"IF(Lab_Inputs[[#This Row],[ Generation Potential]]=\"\", \"\", VLOOKUP('Lab Input and Calculations'!I28,'Reference Tables'!$C$2:$D$52,2,FALSE))","v":""},{"$f":"IF(Lab_Inputs[[#This Row],[ Generation Method]]=\"\", \"\", VLOOKUP('Lab Input and Calculations'!J28,'Reference Tables'!$C$2:$D$52,2,FALSE))","v":""},{"$f":"IF(Lab_Inputs[[#This Row],[Generation Location]]=\"\", \"\", VLOOKUP('Lab Input and Calculations'!K28,'Reference Tables'!$C$2:$D$52,2,FALSE))","v":""},{"$f":"IF(Lab_Inputs[[#This Row],[Change Dynamics]]=\"\", \"\", VLOOKUP('Lab Input and Calculations'!L28,'Reference Tables'!$C$2:$D$52,2,FALSE))","v":""},{"$f":"IF(Lab_Inputs[[#This Row],[Housekeeping]]=\"\", \"\", VLOOKUP('Lab Input and Calculations'!M28,'Reference Tables'!$C$2:$D$52,2,FALSE))","v":""},{"$f":"IF(Lab_Inputs[[#This Row],[ECD Available?]]=\"\",\"\", VLOOKUP('Lab Input and Calculations'!N28,'Reference Tables'!$C$2:$D$52,2,FALSE))","v":""},{"$f":"IF(Lab_Inputs[[#This Row],[ECD Appropriate?]]=\"\", \"\", VLOOKUP('Lab Input and Calculations'!O28,'Reference Tables'!$C$2:$D$52,2,FALSE))","v":""},{"$f":"IF(Lab_Inputs[[#This Row],[Ventilation Effectivness ]]=\"\", \"\",VLOOKUP('Lab Input and Calculations'!P28,'Reference Tables'!$C$2:$D$52,2,FALSE))","v":""},{"$f":"IF(Lab_Inputs[[#This Row],[Maximum RCB for ECDs in Lab]]=\"\", \"\", Lab_Inputs[[#This Row],[Maximum RCB for ECDs in Lab]])","v":""},{"$f":"IF(Table75[[#This Row],[Hazard Exposure Limit Rating]]=\"\", \"\", ($G$1*R28)+($H$1*S28)+($I$1*T28)+($J$1*U28)+($K$1*V28)+($L$1*W28)+($M$1*X28)+($N$1*Y28)+($O$1*Z28)+($P$1*AA28)+($Q$1*AB28))","v":""},{"$f":"IF(Table75[[#This Row],[Weighed Score]]=\"\", \"\", _xlfn.IFS(AND($AC28>='Reference Tables'!$L$2,'Lab Input and Calculations'!$AC28<='Reference Tables'!$L$3),0,AND('Lab Input and Calculations'!$AC28>='Reference Tables'!$L$4,'Lab Input and Calculations'!$AC28<='Reference Tables'!$L$5),1,AND('Lab Input and Calculations'!$AC28>='Reference Tables'!$L$6,'Lab Input and Calculations'!$AC28<='Reference Tables'!$L$7),2,AND('Lab Input and Calculations'!$AC28>='Reference Tables'!$L$8,'Lab Input and Calculations'!$AC28<='Reference Tables'!$L$9),3,AND('Lab Input and Calculations'!$AC28>'Reference Tables'!$L$10,'Lab Input and Calculations'!$AC28<='Reference Tables'!$L$11),4))","v":""},{"$f":"IF(Table75[[#This Row],[Lab Control Band]]=\"\", \"\", VLOOKUP(AD28,'Reference Tables'!$Q$3:$S$12,2))","v":""},{"$f":"IF(Table75[[#This Row],[Lab Control Band]]=\"\", \"\", VLOOKUP(AD28,'Reference Tables'!$Q$3:$S$12,3))","v":""},{"$f":"IF(Table75[[#This Row],[Lab Control Band]]=\"\", \"\", (Table5[[#This Row],[Minimum Air Changes per Hour, Occupied (ACH)]]*10)/60)","v":""},{"$f":"IF(Table75[[#This Row],[Lab Control Band]]=\"\", \"\", (AF28*10)/60)","v":""},{"$f":"IF(Table75[[#This Row],[Lab Control Band]]=\"\", \"\", D28*AG28)","v":""},{"$f":"IF(Table75[[#This Row],[Lab Control Band]]=\"\", \"\", D28*AH28)","v":""},{"$f":"IF(Lab_Inputs[[#This Row],[Lab Number]]=\"\",\"\",SUMIF(ECD_Inputs[Lab Number],Lab_Inputs[[#This Row],[Lab Number]],'ECD Input and Calculations'!$AF$4:$AF$56))","v":""},{"$f":"IF(Lab_Inputs[[#This Row],[Lab Number]]=\"\",\"\",SUMIF(ECD_Inputs[Lab Number],Lab_Inputs[[#This Row],[Lab Number]],'ECD Input and Calculations'!$AE$4:$AE$56))","v":""},{"$f":"IF(Lab_Inputs[[#This Row],[Lab Number]]=\"\",\"\",MAX(Table5[[#This Row],[Minimum Airflow, Occupied  (CFM)]],Table5[[#This Row],[Total ECD Min. Air Flow (CFM)]]))","v":""},{"$f":"IF(Lab_Inputs[[#This Row],[Lab Number]]=\"\",\"\",MAX(Table5[[#This Row],[Minimum Airflow, Unoccupied (CFM)]],Table5[[#This Row],[Total ECD Min. Air Flow (CFM)]]))","v":""}]
[null,null,null,null,null,null,null,null,null,null,null,null,null,null,null,null,{"$f":"IF(Lab_Inputs[[#This Row],[Lab Number]]=\"\",\"\",_xlfn.MAXIFS(Table7[Risk Control Band],ECD_Inputs[Lab Number],Lab_Inputs[[#This Row],[Lab Number]]))","v":""},{"$f":"IF(Lab_Inputs[[#This Row],[Quantity]]=\"\", \"\",VLOOKUP('Lab Input and Calculations'!G29,'Reference Tables'!$C$2:$D$52,2,FALSE))","v":""},{"$f":"IF(Lab_Inputs[[#This Row],[Quantity]]=\"\", \"\",VLOOKUP('Lab Input and Calculations'!H29,'Reference Tables'!$C$2:$D$52,2,FALSE))","v":""},{"$f":"IF(Lab_Inputs[[#This Row],[ Generation Potential]]=\"\", \"\", VLOOKUP('Lab Input and Calculations'!I29,'Reference Tables'!$C$2:$D$52,2,FALSE))","v":""},{"$f":"IF(Lab_Inputs[[#This Row],[ Generation Method]]=\"\", \"\", VLOOKUP('Lab Input and Calculations'!J29,'Reference Tables'!$C$2:$D$52,2,FALSE))","v":""},{"$f":"IF(Lab_Inputs[[#This Row],[Generation Location]]=\"\", \"\", VLOOKUP('Lab Input and Calculations'!K29,'Reference Tables'!$C$2:$D$52,2,FALSE))","v":""},{"$f":"IF(Lab_Inputs[[#This Row],[Change Dynamics]]=\"\", \"\", VLOOKUP('Lab Input and Calculations'!L29,'Reference Tables'!$C$2:$D$52,2,FALSE))","v":""},{"$f":"IF(Lab_Inputs[[#This Row],[Housekeeping]]=\"\", \"\", VLOOKUP('Lab Input and Calculations'!M29,'Reference Tables'!$C$2:$D$52,2,FALSE))","v":""},{"$f":"IF(Lab_Inputs[[#This Row],[ECD Available?]]=\"\",\"\", VLOOKUP('Lab Input and Calculations'!N29,'Reference Tables'!$C$2:$D$52,2,FALSE))","v":""},{"$f":"IF(Lab_Inputs[[#This Row],[ECD Appropriate?]]=\"\", \"\", VLOOKUP('Lab Input and Calculations'!O29,'Reference Tables'!$C$2:$D$52,2,FALSE))","v":""},{"$f":"IF(Lab_Inputs[[#This Row],[Ventilation Effectivness ]]=\"\", \"\",VLOOKUP('Lab Input and Calculations'!P29,'Reference Tables'!$C$2:$D$52,2,FALSE))","v":""},{"$f":"IF(Lab_Inputs[[#This Row],[Maximum RCB for ECDs in Lab]]=\"\", \"\", Lab_Inputs[[#This Row],[Maximum RCB for ECDs in Lab]])","v":""},{"$f":"IF(Table75[[#This Row],[Hazard Exposure Limit Rating]]=\"\", \"\", ($G$1*R29)+($H$1*S29)+($I$1*T29)+($J$1*U29)+($K$1*V29)+($L$1*W29)+($M$1*X29)+($N$1*Y29)+($O$1*Z29)+($P$1*AA29)+($Q$1*AB29))","v":""},{"$f":"IF(Table75[[#This Row],[Weighed Score]]=\"\", \"\", _xlfn.IFS(AND($AC29>='Reference Tables'!$L$2,'Lab Input and Calculations'!$AC29<='Reference Tables'!$L$3),0,AND('Lab Input and Calculations'!$AC29>='Reference Tables'!$L$4,'Lab Input and Calculations'!$AC29<='Reference Tables'!$L$5),1,AND('Lab Input and Calculations'!$AC29>='Reference Tables'!$L$6,'Lab Input and Calculations'!$AC29<='Reference Tables'!$L$7),2,AND('Lab Input and Calculations'!$AC29>='Reference Tables'!$L$8,'Lab Input and Calculations'!$AC29<='Reference Tables'!$L$9),3,AND('Lab Input and Calculations'!$AC29>'Reference Tables'!$L$10,'Lab Input and Calculations'!$AC29<='Reference Tables'!$L$11),4))","v":""},{"$f":"IF(Table75[[#This Row],[Lab Control Band]]=\"\", \"\", VLOOKUP(AD29,'Reference Tables'!$Q$3:$S$12,2))","v":""},{"$f":"IF(Table75[[#This Row],[Lab Control Band]]=\"\", \"\", VLOOKUP(AD29,'Reference Tables'!$Q$3:$S$12,3))","v":""},{"$f":"IF(Table75[[#This Row],[Lab Control Band]]=\"\", \"\", (Table5[[#This Row],[Minimum Air Changes per Hour, Occupied (ACH)]]*10)/60)","v":""},{"$f":"IF(Table75[[#This Row],[Lab Control Band]]=\"\", \"\", (AF29*10)/60)","v":""},{"$f":"IF(Table75[[#This Row],[Lab Control Band]]=\"\", \"\", D29*AG29)","v":""},{"$f":"IF(Table75[[#This Row],[Lab Control Band]]=\"\", \"\", D29*AH29)","v":""},{"$f":"IF(Lab_Inputs[[#This Row],[Lab Number]]=\"\",\"\",SUMIF(ECD_Inputs[Lab Number],Lab_Inputs[[#This Row],[Lab Number]],'ECD Input and Calculations'!$AF$4:$AF$56))","v":""},{"$f":"IF(Lab_Inputs[[#This Row],[Lab Number]]=\"\",\"\",SUMIF(ECD_Inputs[Lab Number],Lab_Inputs[[#This Row],[Lab Number]],'ECD Input and Calculations'!$AE$4:$AE$56))","v":""},{"$f":"IF(Lab_Inputs[[#This Row],[Lab Number]]=\"\",\"\",MAX(Table5[[#This Row],[Minimum Airflow, Occupied  (CFM)]],Table5[[#This Row],[Total ECD Min. Air Flow (CFM)]]))","v":""},{"$f":"IF(Lab_Inputs[[#This Row],[Lab Number]]=\"\",\"\",MAX(Table5[[#This Row],[Minimum Airflow, Unoccupied (CFM)]],Table5[[#This Row],[Total ECD Min. Air Flow (CFM)]]))","v":""}]
[null,null,null,null,null,null,null,null,null,null,null,null,null,null,null,null,{"$f":"IF(Lab_Inputs[[#This Row],[Lab Number]]=\"\",\"\",_xlfn.MAXIFS(Table7[Risk Control Band],ECD_Inputs[Lab Number],Lab_Inputs[[#This Row],[Lab Number]]))","v":""},{"$f":"IF(Lab_Inputs[[#This Row],[Quantity]]=\"\", \"\",VLOOKUP('Lab Input and Calculations'!G30,'Reference Tables'!$C$2:$D$52,2,FALSE))","v":""},{"$f":"IF(Lab_Inputs[[#This Row],[Quantity]]=\"\", \"\",VLOOKUP('Lab Input and Calculations'!H30,'Reference Tables'!$C$2:$D$52,2,FALSE))","v":""},{"$f":"IF(Lab_Inputs[[#This Row],[ Generation Potential]]=\"\", \"\", VLOOKUP('Lab Input and Calculations'!I30,'Reference Tables'!$C$2:$D$52,2,FALSE))","v":""},{"$f":"IF(Lab_Inputs[[#This Row],[ Generation Method]]=\"\", \"\", VLOOKUP('Lab Input and Calculations'!J30,'Reference Tables'!$C$2:$D$52,2,FALSE))","v":""},{"$f":"IF(Lab_Inputs[[#This Row],[Generation Location]]=\"\", \"\", VLOOKUP('Lab Input and Calculations'!K30,'Reference Tables'!$C$2:$D$52,2,FALSE))","v":""},{"$f":"IF(Lab_Inputs[[#This Row],[Change Dynamics]]=\"\", \"\", VLOOKUP('Lab Input and Calculations'!L30,'Reference Tables'!$C$2:$D$52,2,FALSE))","v":""},{"$f":"IF(Lab_Inputs[[#This Row],[Housekeeping]]=\"\", \"\", VLOOKUP('Lab Input and Calculations'!M30,'Reference Tables'!$C$2:$D$52,2,FALSE))","v":""},{"$f":"IF(Lab_Inputs[[#This Row],[ECD Available?]]=\"\",\"\", VLOOKUP('Lab Input and Calculations'!N30,'Reference Tables'!$C$2:$D$52,2,FALSE))","v":""},{"$f":"IF(Lab_Inputs[[#This Row],[ECD Appropriate?]]=\"\", \"\", VLOOKUP('Lab Input and Calculations'!O30,'Reference Tables'!$C$2:$D$52,2,FALSE))","v":""},{"$f":"IF(Lab_Inputs[[#This Row],[Ventilation Effectivness ]]=\"\", \"\",VLOOKUP('Lab Input and Calculations'!P30,'Reference Tables'!$C$2:$D$52,2,FALSE))","v":""},{"$f":"IF(Lab_Inputs[[#This Row],[Maximum RCB for ECDs in Lab]]=\"\", \"\", Lab_Inputs[[#This Row],[Maximum RCB for ECDs in Lab]])","v":""},{"$f":"IF(Table75[[#This Row],[Hazard Exposure Limit Rating]]=\"\", \"\", ($G$1*R30)+($H$1*S30)+($I$1*T30)+($J$1*U30)+($K$1*V30)+($L$1*W30)+($M$1*X30)+($N$1*Y30)+($O$1*Z30)+($P$1*AA30)+($Q$1*AB30))","v":""},{"$f":"IF(Table75[[#This Row],[Weighed Score]]=\"\", \"\", _xlfn.IFS(AND($AC30>='Reference Tables'!$L$2,'Lab Input and Calculations'!$AC30<='Reference Tables'!$L$3),0,AND('Lab Input and Calculations'!$AC30>='Reference Tables'!$L$4,'Lab Input and Calculations'!$AC30<='Reference Tables'!$L$5),1,AND('Lab Input and Calculations'!$AC30>='Reference Tables'!$L$6,'Lab Input and Calculations'!$AC30<='Reference Tables'!$L$7),2,AND('Lab Input and Calculations'!$AC30>='Reference Tables'!$L$8,'Lab Input and Calculations'!$AC30<='Reference Tables'!$L$9),3,AND('Lab Input and Calculations'!$AC30>'Reference Tables'!$L$10,'Lab Input and Calculations'!$AC30<='Reference Tables'!$L$11),4))","v":""},{"$f":"IF(Table75[[#This Row],[Lab Control Band]]=\"\", \"\", VLOOKUP(AD30,'Reference Tables'!$Q$3:$S$12,2))","v":""},{"$f":"IF(Table75[[#This Row],[Lab Control Band]]=\"\", \"\", VLOOKUP(AD30,'Reference Tables'!$Q$3:$S$12,3))","v":""},{"$f":"IF(Table75[[#This Row],[Lab Control Band]]=\"\", \"\", (Table5[[#This Row],[Minimum Air Changes per Hour, Occupied (ACH)]]*10)/60)","v":""},{"$f":"IF(Table75[[#This Row],[Lab Control Band]]=\"\", \"\", (AF30*10)/60)","v":""},{"$f":"IF(Table75[[#This Row],[Lab Control Band]]=\"\", \"\", D30*AG30)","v":""},{"$f":"IF(Table75[[#This Row],[Lab Control Band]]=\"\", \"\", D30*AH30)","v":""},{"$f":"IF(Lab_Inputs[[#This Row],[Lab Number]]=\"\",\"\",SUMIF(ECD_Inputs[Lab Number],Lab_Inputs[[#This Row],[Lab Number]],'ECD Input and Calculations'!$AF$4:$AF$56))","v":""},{"$f":"IF(Lab_Inputs[[#This Row],[Lab Number]]=\"\",\"\",SUMIF(ECD_Inputs[Lab Number],Lab_Inputs[[#This Row],[Lab Number]],'ECD Input and Calculations'!$AE$4:$AE$56))","v":""},{"$f":"IF(Lab_Inputs[[#This Row],[Lab Number]]=\"\",\"\",MAX(Table5[[#This Row],[Minimum Airflow, Occupied  (CFM)]],Table5[[#This Row],[Total ECD Min. Air Flow (CFM)]]))","v":""},{"$f":"IF(Lab_Inputs[[#This Row],[Lab Number]]=\"\",\"\",MAX(Table5[[#This Row],[Minimum Airflow, Unoccupied (CFM)]],Table5[[#This Row],[Total ECD Min. Air Flow (CFM)]]))","v":""}]
[null,null,null,null,null,null,null,null,null,null,null,null,null,null,null,null,{"$f":"IF(Lab_Inputs[[#This Row],[Lab Number]]=\"\",\"\",_xlfn.MAXIFS(Table7[Risk Control Band],ECD_Inputs[Lab Number],Lab_Inputs[[#This Row],[Lab Number]]))","v":""},{"$f":"IF(Lab_Inputs[[#This Row],[Quantity]]=\"\", \"\",VLOOKUP('Lab Input and Calculations'!G31,'Reference Tables'!$C$2:$D$52,2,FALSE))","v":""},{"$f":"IF(Lab_Inputs[[#This Row],[Quantity]]=\"\", \"\",VLOOKUP('Lab Input and Calculations'!H31,'Reference Tables'!$C$2:$D$52,2,FALSE))","v":""},{"$f":"IF(Lab_Inputs[[#This Row],[ Generation Potential]]=\"\", \"\", VLOOKUP('Lab Input and Calculations'!I31,'Reference Tables'!$C$2:$D$52,2,FALSE))","v":""},{"$f":"IF(Lab_Inputs[[#This Row],[ Generation Method]]=\"\", \"\", VLOOKUP('Lab Input and Calculations'!J31,'Reference Tables'!$C$2:$D$52,2,FALSE))","v":""},{"$f":"IF(Lab_Inputs[[#This Row],[Generation Location]]=\"\", \"\", VLOOKUP('Lab Input and Calculations'!K31,'Reference Tables'!$C$2:$D$52,2,FALSE))","v":""},{"$f":"IF(Lab_Inputs[[#This Row],[Change Dynamics]]=\"\", \"\", VLOOKUP('Lab Input and Calculations'!L31,'Reference Tables'!$C$2:$D$52,2,FALSE))","v":""},{"$f":"IF(Lab_Inputs[[#This Row],[Housekeeping]]=\"\", \"\", VLOOKUP('Lab Input and Calculations'!M31,'Reference Tables'!$C$2:$D$52,2,FALSE))","v":""},{"$f":"IF(Lab_Inputs[[#This Row],[ECD Available?]]=\"\",\"\", VLOOKUP('Lab Input and Calculations'!N31,'Reference Tables'!$C$2:$D$52,2,FALSE))","v":""},{"$f":"IF(Lab_Inputs[[#This Row],[ECD Appropriate?]]=\"\", \"\", VLOOKUP('Lab Input and Calculations'!O31,'Reference Tables'!$C$2:$D$52,2,FALSE))","v":""},{"$f":"IF(Lab_Inputs[[#This Row],[Ventilation Effectivness ]]=\"\", \"\",VLOOKUP('Lab Input and Calculations'!P31,'Reference Tables'!$C$2:$D$52,2,FALSE))","v":""},{"$f":"IF(Lab_Inputs[[#This Row],[Maximum RCB for ECDs in Lab]]=\"\", \"\", Lab_Inputs[[#This Row],[Maximum RCB for ECDs in Lab]])","v":""},{"$f":"IF(Table75[[#This Row],[Hazard Exposure Limit Rating]]=\"\", \"\", ($G$1*R31)+($H$1*S31)+($I$1*T31)+($J$1*U31)+($K$1*V31)+($L$1*W31)+($M$1*X31)+($N$1*Y31)+($O$1*Z31)+($P$1*AA31)+($Q$1*AB31))","v":""},{"$f":"IF(Table75[[#This Row],[Weighed Score]]=\"\", \"\", _xlfn.IFS(AND($AC31>='Reference Tables'!$L$2,'Lab Input and Calculations'!$AC31<='Reference Tables'!$L$3),0,AND('Lab Input and Calculations'!$AC31>='Reference Tables'!$L$4,'Lab Input and Calculations'!$AC31<='Reference Tables'!$L$5),1,AND('Lab Input and Calculations'!$AC31>='Reference Tables'!$L$6,'Lab Input and Calculations'!$AC31<='Reference Tables'!$L$7),2,AND('Lab Input and Calculations'!$AC31>='Reference Tables'!$L$8,'Lab Input and Calculations'!$AC31<='Reference Tables'!$L$9),3,AND('Lab Input and Calculations'!$AC31>'Reference Tables'!$L$10,'Lab Input and Calculations'!$AC31<='Reference Tables'!$L$11),4))","v":""},{"$f":"IF(Table75[[#This Row],[Lab Control Band]]=\"\", \"\", VLOOKUP(AD31,'Reference Tables'!$Q$3:$S$12,2))","v":""},{"$f":"IF(Table75[[#This Row],[Lab Control Band]]=\"\", \"\", VLOOKUP(AD31,'Reference Tables'!$Q$3:$S$12,3))","v":""},{"$f":"IF(Table75[[#This Row],[Lab Control Band]]=\"\", \"\", (Table5[[#This Row],[Minimum Air Changes per Hour, Occupied (ACH)]]*10)/60)","v":""},{"$f":"IF(Table75[[#This Row],[Lab Control Band]]=\"\", \"\", (AF31*10)/60)","v":""},{"$f":"IF(Table75[[#This Row],[Lab Control Band]]=\"\", \"\", D31*AG31)","v":""},{"$f":"IF(Table75[[#This Row],[Lab Control Band]]=\"\", \"\", D31*AH31)","v":""},{"$f":"IF(Lab_Inputs[[#This Row],[Lab Number]]=\"\",\"\",SUMIF(ECD_Inputs[Lab Number],Lab_Inputs[[#This Row],[Lab Number]],'ECD Input and Calculations'!$AF$4:$AF$56))","v":""},{"$f":"IF(Lab_Inputs[[#This Row],[Lab Number]]=\"\",\"\",SUMIF(ECD_Inputs[Lab Number],Lab_Inputs[[#This Row],[Lab Number]],'ECD Input and Calculations'!$AE$4:$AE$56))","v":""},{"$f":"IF(Lab_Inputs[[#This Row],[Lab Number]]=\"\",\"\",MAX(Table5[[#This Row],[Minimum Airflow, Occupied  (CFM)]],Table5[[#This Row],[Total ECD Min. Air Flow (CFM)]]))","v":""},{"$f":"IF(Lab_Inputs[[#This Row],[Lab Number]]=\"\",\"\",MAX(Table5[[#This Row],[Minimum Airflow, Unoccupied (CFM)]],Table5[[#This Row],[Total ECD Min. Air Flow (CFM)]]))","v":""}]
[null,null,null,null,null,null,null,null,null,null,null,null,null,null,null,null,{"$f":"IF(Lab_Inputs[[#This Row],[Lab Number]]=\"\",\"\",_xlfn.MAXIFS(Table7[Risk Control Band],ECD_Inputs[Lab Number],Lab_Inputs[[#This Row],[Lab Number]]))","v":""},{"$f":"IF(Lab_Inputs[[#This Row],[Quantity]]=\"\", \"\",VLOOKUP('Lab Input and Calculations'!G32,'Reference Tables'!$C$2:$D$52,2,FALSE))","v":""},{"$f":"IF(Lab_Inputs[[#This Row],[Quantity]]=\"\", \"\",VLOOKUP('Lab Input and Calculations'!H32,'Reference Tables'!$C$2:$D$52,2,FALSE))","v":""},{"$f":"IF(Lab_Inputs[[#This Row],[ Generation Potential]]=\"\", \"\", VLOOKUP('Lab Input and Calculations'!I32,'Reference Tables'!$C$2:$D$52,2,FALSE))","v":""},{"$f":"IF(Lab_Inputs[[#This Row],[ Generation Method]]=\"\", \"\", VLOOKUP('Lab Input and Calculations'!J32,'Reference Tables'!$C$2:$D$52,2,FALSE))","v":""},{"$f":"IF(Lab_Inputs[[#This Row],[Generation Location]]=\"\", \"\", VLOOKUP('Lab Input and Calculations'!K32,'Reference Tables'!$C$2:$D$52,2,FALSE))","v":""},{"$f":"IF(Lab_Inputs[[#This Row],[Change Dynamics]]=\"\", \"\", VLOOKUP('Lab Input and Calculations'!L32,'Reference Tables'!$C$2:$D$52,2,FALSE))","v":""},{"$f":"IF(Lab_Inputs[[#This Row],[Housekeeping]]=\"\", \"\", VLOOKUP('Lab Input and Calculations'!M32,'Reference Tables'!$C$2:$D$52,2,FALSE))","v":""},{"$f":"IF(Lab_Inputs[[#This Row],[ECD Available?]]=\"\",\"\", VLOOKUP('Lab Input and Calculations'!N32,'Reference Tables'!$C$2:$D$52,2,FALSE))","v":""},{"$f":"IF(Lab_Inputs[[#This Row],[ECD Appropriate?]]=\"\", \"\", VLOOKUP('Lab Input and Calculations'!O32,'Reference Tables'!$C$2:$D$52,2,FALSE))","v":""},{"$f":"IF(Lab_Inputs[[#This Row],[Ventilation Effectivness ]]=\"\", \"\",VLOOKUP('Lab Input and Calculations'!P32,'Reference Tables'!$C$2:$D$52,2,FALSE))","v":""},{"$f":"IF(Lab_Inputs[[#This Row],[Maximum RCB for ECDs in Lab]]=\"\", \"\", Lab_Inputs[[#This Row],[Maximum RCB for ECDs in Lab]])","v":""},{"$f":"IF(Table75[[#This Row],[Hazard Exposure Limit Rating]]=\"\", \"\", ($G$1*R32)+($H$1*S32)+($I$1*T32)+($J$1*U32)+($K$1*V32)+($L$1*W32)+($M$1*X32)+($N$1*Y32)+($O$1*Z32)+($P$1*AA32)+($Q$1*AB32))","v":""},{"$f":"IF(Table75[[#This Row],[Weighed Score]]=\"\", \"\", _xlfn.IFS(AND($AC32>='Reference Tables'!$L$2,'Lab Input and Calculations'!$AC32<='Reference Tables'!$L$3),0,AND('Lab Input and Calculations'!$AC32>='Reference Tables'!$L$4,'Lab Input and Calculations'!$AC32<='Reference Tables'!$L$5),1,AND('Lab Input and Calculations'!$AC32>='Reference Tables'!$L$6,'Lab Input and Calculations'!$AC32<='Reference Tables'!$L$7),2,AND('Lab Input and Calculations'!$AC32>='Reference Tables'!$L$8,'Lab Input and Calculations'!$AC32<='Reference Tables'!$L$9),3,AND('Lab Input and Calculations'!$AC32>'Reference Tables'!$L$10,'Lab Input and Calculations'!$AC32<='Reference Tables'!$L$11),4))","v":""},{"$f":"IF(Table75[[#This Row],[Lab Control Band]]=\"\", \"\", VLOOKUP(AD32,'Reference Tables'!$Q$3:$S$12,2))","v":""},{"$f":"IF(Table75[[#This Row],[Lab Control Band]]=\"\", \"\", VLOOKUP(AD32,'Reference Tables'!$Q$3:$S$12,3))","v":""},{"$f":"IF(Table75[[#This Row],[Lab Control Band]]=\"\", \"\", (Table5[[#This Row],[Minimum Air Changes per Hour, Occupied (ACH)]]*10)/60)","v":""},{"$f":"IF(Table75[[#This Row],[Lab Control Band]]=\"\", \"\", (AF32*10)/60)","v":""},{"$f":"IF(Table75[[#This Row],[Lab Control Band]]=\"\", \"\", D32*AG32)","v":""},{"$f":"IF(Table75[[#This Row],[Lab Control Band]]=\"\", \"\", D32*AH32)","v":""},{"$f":"IF(Lab_Inputs[[#This Row],[Lab Number]]=\"\",\"\",SUMIF(ECD_Inputs[Lab Number],Lab_Inputs[[#This Row],[Lab Number]],'ECD Input and Calculations'!$AF$4:$AF$56))","v":""},{"$f":"IF(Lab_Inputs[[#This Row],[Lab Number]]=\"\",\"\",SUMIF(ECD_Inputs[Lab Number],Lab_Inputs[[#This Row],[Lab Number]],'ECD Input and Calculations'!$AE$4:$AE$56))","v":""},{"$f":"IF(Lab_Inputs[[#This Row],[Lab Number]]=\"\",\"\",MAX(Table5[[#This Row],[Minimum Airflow, Occupied  (CFM)]],Table5[[#This Row],[Total ECD Min. Air Flow (CFM)]]))","v":""},{"$f":"IF(Lab_Inputs[[#This Row],[Lab Number]]=\"\",\"\",MAX(Table5[[#This Row],[Minimum Airflow, Unoccupied (CFM)]],Table5[[#This Row],[Total ECD Min. Air Flow (CFM)]]))","v":""}]
[null,null,null,null,null,null,null,null,null,null,null,null,null,null,null,null,{"$f":"IF(Lab_Inputs[[#This Row],[Lab Number]]=\"\",\"\",_xlfn.MAXIFS(Table7[Risk Control Band],ECD_Inputs[Lab Number],Lab_Inputs[[#This Row],[Lab Number]]))","v":""},{"$f":"IF(Lab_Inputs[[#This Row],[Quantity]]=\"\", \"\",VLOOKUP('Lab Input and Calculations'!G33,'Reference Tables'!$C$2:$D$52,2,FALSE))","v":""},{"$f":"IF(Lab_Inputs[[#This Row],[Quantity]]=\"\", \"\",VLOOKUP('Lab Input and Calculations'!H33,'Reference Tables'!$C$2:$D$52,2,FALSE))","v":""},{"$f":"IF(Lab_Inputs[[#This Row],[ Generation Potential]]=\"\", \"\", VLOOKUP('Lab Input and Calculations'!I33,'Reference Tables'!$C$2:$D$52,2,FALSE))","v":""},{"$f":"IF(Lab_Inputs[[#This Row],[ Generation Method]]=\"\", \"\", VLOOKUP('Lab Input and Calculations'!J33,'Reference Tables'!$C$2:$D$52,2,FALSE))","v":""},{"$f":"IF(Lab_Inputs[[#This Row],[Generation Location]]=\"\", \"\", VLOOKUP('Lab Input and Calculations'!K33,'Reference Tables'!$C$2:$D$52,2,FALSE))","v":""},{"$f":"IF(Lab_Inputs[[#This Row],[Change Dynamics]]=\"\", \"\", VLOOKUP('Lab Input and Calculations'!L33,'Reference Tables'!$C$2:$D$52,2,FALSE))","v":""},{"$f":"IF(Lab_Inputs[[#This Row],[Housekeeping]]=\"\", \"\", VLOOKUP('Lab Input and Calculations'!M33,'Reference Tables'!$C$2:$D$52,2,FALSE))","v":""},{"$f":"IF(Lab_Inputs[[#This Row],[ECD Available?]]=\"\",\"\", VLOOKUP('Lab Input and Calculations'!N33,'Reference Tables'!$C$2:$D$52,2,FALSE))","v":""},{"$f":"IF(Lab_Inputs[[#This Row],[ECD Appropriate?]]=\"\", \"\", VLOOKUP('Lab Input and Calculations'!O33,'Reference Tables'!$C$2:$D$52,2,FALSE))","v":""},{"$f":"IF(Lab_Inputs[[#This Row],[Ventilation Effectivness ]]=\"\", \"\",VLOOKUP('Lab Input and Calculations'!P33,'Reference Tables'!$C$2:$D$52,2,FALSE))","v":""},{"$f":"IF(Lab_Inputs[[#This Row],[Maximum RCB for ECDs in Lab]]=\"\", \"\", Lab_Inputs[[#This Row],[Maximum RCB for ECDs in Lab]])","v":""},{"$f":"IF(Table75[[#This Row],[Hazard Exposure Limit Rating]]=\"\", \"\", ($G$1*R33)+($H$1*S33)+($I$1*T33)+($J$1*U33)+($K$1*V33)+($L$1*W33)+($M$1*X33)+($N$1*Y33)+($O$1*Z33)+($P$1*AA33)+($Q$1*AB33))","v":""},{"$f":"IF(Table75[[#This Row],[Weighed Score]]=\"\", \"\", _xlfn.IFS(AND($AC33>='Reference Tables'!$L$2,'Lab Input and Calculations'!$AC33<='Reference Tables'!$L$3),0,AND('Lab Input and Calculations'!$AC33>='Reference Tables'!$L$4,'Lab Input and Calculations'!$AC33<='Reference Tables'!$L$5),1,AND('Lab Input and Calculations'!$AC33>='Reference Tables'!$L$6,'Lab Input and Calculations'!$AC33<='Reference Tables'!$L$7),2,AND('Lab Input and Calculations'!$AC33>='Reference Tables'!$L$8,'Lab Input and Calculations'!$AC33<='Reference Tables'!$L$9),3,AND('Lab Input and Calculations'!$AC33>'Reference Tables'!$L$10,'Lab Input and Calculations'!$AC33<='Reference Tables'!$L$11),4))","v":""},{"$f":"IF(Table75[[#This Row],[Lab Control Band]]=\"\", \"\", VLOOKUP(AD33,'Reference Tables'!$Q$3:$S$12,2))","v":""},{"$f":"IF(Table75[[#This Row],[Lab Control Band]]=\"\", \"\", VLOOKUP(AD33,'Reference Tables'!$Q$3:$S$12,3))","v":""},{"$f":"IF(Table75[[#This Row],[Lab Control Band]]=\"\", \"\", (Table5[[#This Row],[Minimum Air Changes per Hour, Occupied (ACH)]]*10)/60)","v":""},{"$f":"IF(Table75[[#This Row],[Lab Control Band]]=\"\", \"\", (AF33*10)/60)","v":""},{"$f":"IF(Table75[[#This Row],[Lab Control Band]]=\"\", \"\", D33*AG33)","v":""},{"$f":"IF(Table75[[#This Row],[Lab Control Band]]=\"\", \"\", D33*AH33)","v":""},{"$f":"IF(Lab_Inputs[[#This Row],[Lab Number]]=\"\",\"\",SUMIF(ECD_Inputs[Lab Number],Lab_Inputs[[#This Row],[Lab Number]],'ECD Input and Calculations'!$AF$4:$AF$56))","v":""},{"$f":"IF(Lab_Inputs[[#This Row],[Lab Number]]=\"\",\"\",SUMIF(ECD_Inputs[Lab Number],Lab_Inputs[[#This Row],[Lab Number]],'ECD Input and Calculations'!$AE$4:$AE$56))","v":""},{"$f":"IF(Lab_Inputs[[#This Row],[Lab Number]]=\"\",\"\",MAX(Table5[[#This Row],[Minimum Airflow, Occupied  (CFM)]],Table5[[#This Row],[Total ECD Min. Air Flow (CFM)]]))","v":""},{"$f":"IF(Lab_Inputs[[#This Row],[Lab Number]]=\"\",\"\",MAX(Table5[[#This Row],[Minimum Airflow, Unoccupied (CFM)]],Table5[[#This Row],[Total ECD Min. Air Flow (CFM)]]))","v":""}]
[null,null,null,null,null,null,null,null,null,null,null,null,null,null,null,null,{"$f":"IF(Lab_Inputs[[#This Row],[Lab Number]]=\"\",\"\",_xlfn.MAXIFS(Table7[Risk Control Band],ECD_Inputs[Lab Number],Lab_Inputs[[#This Row],[Lab Number]]))","v":""},{"$f":"IF(Lab_Inputs[[#This Row],[Quantity]]=\"\", \"\",VLOOKUP('Lab Input and Calculations'!G34,'Reference Tables'!$C$2:$D$52,2,FALSE))","v":""},{"$f":"IF(Lab_Inputs[[#This Row],[Quantity]]=\"\", \"\",VLOOKUP('Lab Input and Calculations'!H34,'Reference Tables'!$C$2:$D$52,2,FALSE))","v":""},{"$f":"IF(Lab_Inputs[[#This Row],[ Generation Potential]]=\"\", \"\", VLOOKUP('Lab Input and Calculations'!I34,'Reference Tables'!$C$2:$D$52,2,FALSE))","v":""},{"$f":"IF(Lab_Inputs[[#This Row],[ Generation Method]]=\"\", \"\", VLOOKUP('Lab Input and Calculations'!J34,'Reference Tables'!$C$2:$D$52,2,FALSE))","v":""},{"$f":"IF(Lab_Inputs[[#This Row],[Generation Location]]=\"\", \"\", VLOOKUP('Lab Input and Calculations'!K34,'Reference Tables'!$C$2:$D$52,2,FALSE))","v":""},{"$f":"IF(Lab_Inputs[[#This Row],[Change Dynamics]]=\"\", \"\", VLOOKUP('Lab Input and Calculations'!L34,'Reference Tables'!$C$2:$D$52,2,FALSE))","v":""},{"$f":"IF(Lab_Inputs[[#This Row],[Housekeeping]]=\"\", \"\", VLOOKUP('Lab Input and Calculations'!M34,'Reference Tables'!$C$2:$D$52,2,FALSE))","v":""},{"$f":"IF(Lab_Inputs[[#This Row],[ECD Available?]]=\"\",\"\", VLOOKUP('Lab Input and Calculations'!N34,'Reference Tables'!$C$2:$D$52,2,FALSE))","v":""},{"$f":"IF(Lab_Inputs[[#This Row],[ECD Appropriate?]]=\"\", \"\", VLOOKUP('Lab Input and Calculations'!O34,'Reference Tables'!$C$2:$D$52,2,FALSE))","v":""},{"$f":"IF(Lab_Inputs[[#This Row],[Ventilation Effectivness ]]=\"\", \"\",VLOOKUP('Lab Input and Calculations'!P34,'Reference Tables'!$C$2:$D$52,2,FALSE))","v":""},{"$f":"IF(Lab_Inputs[[#This Row],[Maximum RCB for ECDs in Lab]]=\"\", \"\", Lab_Inputs[[#This Row],[Maximum RCB for ECDs in Lab]])","v":""},{"$f":"IF(Table75[[#This Row],[Hazard Exposure Limit Rating]]=\"\", \"\", ($G$1*R34)+($H$1*S34)+($I$1*T34)+($J$1*U34)+($K$1*V34)+($L$1*W34)+($M$1*X34)+($N$1*Y34)+($O$1*Z34)+($P$1*AA34)+($Q$1*AB34))","v":""},{"$f":"IF(Table75[[#This Row],[Weighed Score]]=\"\", \"\", _xlfn.IFS(AND($AC34>='Reference Tables'!$L$2,'Lab Input and Calculations'!$AC34<='Reference Tables'!$L$3),0,AND('Lab Input and Calculations'!$AC34>='Reference Tables'!$L$4,'Lab Input and Calculations'!$AC34<='Reference Tables'!$L$5),1,AND('Lab Input and Calculations'!$AC34>='Reference Tables'!$L$6,'Lab Input and Calculations'!$AC34<='Reference Tables'!$L$7),2,AND('Lab Input and Calculations'!$AC34>='Reference Tables'!$L$8,'Lab Input and Calculations'!$AC34<='Reference Tables'!$L$9),3,AND('Lab Input and Calculations'!$AC34>'Reference Tables'!$L$10,'Lab Input and Calculations'!$AC34<='Reference Tables'!$L$11),4))","v":""},{"$f":"IF(Table75[[#This Row],[Lab Control Band]]=\"\", \"\", VLOOKUP(AD34,'Reference Tables'!$Q$3:$S$12,2))","v":""},{"$f":"IF(Table75[[#This Row],[Lab Control Band]]=\"\", \"\", VLOOKUP(AD34,'Reference Tables'!$Q$3:$S$12,3))","v":""},{"$f":"IF(Table75[[#This Row],[Lab Control Band]]=\"\", \"\", (Table5[[#This Row],[Minimum Air Changes per Hour, Occupied (ACH)]]*10)/60)","v":""},{"$f":"IF(Table75[[#This Row],[Lab Control Band]]=\"\", \"\", (AF34*10)/60)","v":""},{"$f":"IF(Table75[[#This Row],[Lab Control Band]]=\"\", \"\", D34*AG34)","v":""},{"$f":"IF(Table75[[#This Row],[Lab Control Band]]=\"\", \"\", D34*AH34)","v":""},{"$f":"IF(Lab_Inputs[[#This Row],[Lab Number]]=\"\",\"\",SUMIF(ECD_Inputs[Lab Number],Lab_Inputs[[#This Row],[Lab Number]],'ECD Input and Calculations'!$AF$4:$AF$56))","v":""},{"$f":"IF(Lab_Inputs[[#This Row],[Lab Number]]=\"\",\"\",SUMIF(ECD_Inputs[Lab Number],Lab_Inputs[[#This Row],[Lab Number]],'ECD Input and Calculations'!$AE$4:$AE$56))","v":""},{"$f":"IF(Lab_Inputs[[#This Row],[Lab Number]]=\"\",\"\",MAX(Table5[[#This Row],[Minimum Airflow, Occupied  (CFM)]],Table5[[#This Row],[Total ECD Min. Air Flow (CFM)]]))","v":""},{"$f":"IF(Lab_Inputs[[#This Row],[Lab Number]]=\"\",\"\",MAX(Table5[[#This Row],[Minimum Airflow, Unoccupied (CFM)]],Table5[[#This Row],[Total ECD Min. Air Flow (CFM)]]))","v":""}]
[null,null,null,null,null,null,null,null,null,null,null,null,null,null,null,null,{"$f":"IF(Lab_Inputs[[#This Row],[Lab Number]]=\"\",\"\",_xlfn.MAXIFS(Table7[Risk Control Band],ECD_Inputs[Lab Number],Lab_Inputs[[#This Row],[Lab Number]]))","v":""},{"$f":"IF(Lab_Inputs[[#This Row],[Quantity]]=\"\", \"\",VLOOKUP('Lab Input and Calculations'!G35,'Reference Tables'!$C$2:$D$52,2,FALSE))","v":""},{"$f":"IF(Lab_Inputs[[#This Row],[Quantity]]=\"\", \"\",VLOOKUP('Lab Input and Calculations'!H35,'Reference Tables'!$C$2:$D$52,2,FALSE))","v":""},{"$f":"IF(Lab_Inputs[[#This Row],[ Generation Potential]]=\"\", \"\", VLOOKUP('Lab Input and Calculations'!I35,'Reference Tables'!$C$2:$D$52,2,FALSE))","v":""},{"$f":"IF(Lab_Inputs[[#This Row],[ Generation Method]]=\"\", \"\", VLOOKUP('Lab Input and Calculations'!J35,'Reference Tables'!$C$2:$D$52,2,FALSE))","v":""},{"$f":"IF(Lab_Inputs[[#This Row],[Generation Location]]=\"\", \"\", VLOOKUP('Lab Input and Calculations'!K35,'Reference Tables'!$C$2:$D$52,2,FALSE))","v":""},{"$f":"IF(Lab_Inputs[[#This Row],[Change Dynamics]]=\"\", \"\", VLOOKUP('Lab Input and Calculations'!L35,'Reference Tables'!$C$2:$D$52,2,FALSE))","v":""},{"$f":"IF(Lab_Inputs[[#This Row],[Housekeeping]]=\"\", \"\", VLOOKUP('Lab Input and Calculations'!M35,'Reference Tables'!$C$2:$D$52,2,FALSE))","v":""},{"$f":"IF(Lab_Inputs[[#This Row],[ECD Available?]]=\"\",\"\", VLOOKUP('Lab Input and Calculations'!N35,'Reference Tables'!$C$2:$D$52,2,FALSE))","v":""},{"$f":"IF(Lab_Inputs[[#This Row],[ECD Appropriate?]]=\"\", \"\", VLOOKUP('Lab Input and Calculations'!O35,'Reference Tables'!$C$2:$D$52,2,FALSE))","v":""},{"$f":"IF(Lab_Inputs[[#This Row],[Ventilation Effectivness ]]=\"\", \"\",VLOOKUP('Lab Input and Calculations'!P35,'Reference Tables'!$C$2:$D$52,2,FALSE))","v":""},{"$f":"IF(Lab_Inputs[[#This Row],[Maximum RCB for ECDs in Lab]]=\"\", \"\", Lab_Inputs[[#This Row],[Maximum RCB for ECDs in Lab]])","v":""},{"$f":"IF(Table75[[#This Row],[Hazard Exposure Limit Rating]]=\"\", \"\", ($G$1*R35)+($H$1*S35)+($I$1*T35)+($J$1*U35)+($K$1*V35)+($L$1*W35)+($M$1*X35)+($N$1*Y35)+($O$1*Z35)+($P$1*AA35)+($Q$1*AB35))","v":""},{"$f":"IF(Table75[[#This Row],[Weighed Score]]=\"\", \"\", _xlfn.IFS(AND($AC35>='Reference Tables'!$L$2,'Lab Input and Calculations'!$AC35<='Reference Tables'!$L$3),0,AND('Lab Input and Calculations'!$AC35>='Reference Tables'!$L$4,'Lab Input and Calculations'!$AC35<='Reference Tables'!$L$5),1,AND('Lab Input and Calculations'!$AC35>='Reference Tables'!$L$6,'Lab Input and Calculations'!$AC35<='Reference Tables'!$L$7),2,AND('Lab Input and Calculations'!$AC35>='Reference Tables'!$L$8,'Lab Input and Calculations'!$AC35<='Reference Tables'!$L$9),3,AND('Lab Input and Calculations'!$AC35>'Reference Tables'!$L$10,'Lab Input and Calculations'!$AC35<='Reference Tables'!$L$11),4))","v":""},{"$f":"IF(Table75[[#This Row],[Lab Control Band]]=\"\", \"\", VLOOKUP(AD35,'Reference Tables'!$Q$3:$S$12,2))","v":""},{"$f":"IF(Table75[[#This Row],[Lab Control Band]]=\"\", \"\", VLOOKUP(AD35,'Reference Tables'!$Q$3:$S$12,3))","v":""},{"$f":"IF(Table75[[#This Row],[Lab Control Band]]=\"\", \"\", (Table5[[#This Row],[Minimum Air Changes per Hour, Occupied (ACH)]]*10)/60)","v":""},{"$f":"IF(Table75[[#This Row],[Lab Control Band]]=\"\", \"\", (AF35*10)/60)","v":""},{"$f":"IF(Table75[[#This Row],[Lab Control Band]]=\"\", \"\", D35*AG35)","v":""},{"$f":"IF(Table75[[#This Row],[Lab Control Band]]=\"\", \"\", D35*AH35)","v":""},{"$f":"IF(Lab_Inputs[[#This Row],[Lab Number]]=\"\",\"\",SUMIF(ECD_Inputs[Lab Number],Lab_Inputs[[#This Row],[Lab Number]],'ECD Input and Calculations'!$AF$4:$AF$56))","v":""},{"$f":"IF(Lab_Inputs[[#This Row],[Lab Number]]=\"\",\"\",SUMIF(ECD_Inputs[Lab Number],Lab_Inputs[[#This Row],[Lab Number]],'ECD Input and Calculations'!$AE$4:$AE$56))","v":""},{"$f":"IF(Lab_Inputs[[#This Row],[Lab Number]]=\"\",\"\",MAX(Table5[[#This Row],[Minimum Airflow, Occupied  (CFM)]],Table5[[#This Row],[Total ECD Min. Air Flow (CFM)]]))","v":""},{"$f":"IF(Lab_Inputs[[#This Row],[Lab Number]]=\"\",\"\",MAX(Table5[[#This Row],[Minimum Airflow, Unoccupied (CFM)]],Table5[[#This Row],[Total ECD Min. Air Flow (CFM)]]))","v":""}]
[null,null,null,null,null,null,null,null,null,null,null,null,null,null,null,null,{"$f":"IF(Lab_Inputs[[#This Row],[Lab Number]]=\"\",\"\",_xlfn.MAXIFS(Table7[Risk Control Band],ECD_Inputs[Lab Number],Lab_Inputs[[#This Row],[Lab Number]]))","v":""},{"$f":"IF(Lab_Inputs[[#This Row],[Quantity]]=\"\", \"\",VLOOKUP('Lab Input and Calculations'!G36,'Reference Tables'!$C$2:$D$52,2,FALSE))","v":""},{"$f":"IF(Lab_Inputs[[#This Row],[Quantity]]=\"\", \"\",VLOOKUP('Lab Input and Calculations'!H36,'Reference Tables'!$C$2:$D$52,2,FALSE))","v":""},{"$f":"IF(Lab_Inputs[[#This Row],[ Generation Potential]]=\"\", \"\", VLOOKUP('Lab Input and Calculations'!I36,'Reference Tables'!$C$2:$D$52,2,FALSE))","v":""},{"$f":"IF(Lab_Inputs[[#This Row],[ Generation Method]]=\"\", \"\", VLOOKUP('Lab Input and Calculations'!J36,'Reference Tables'!$C$2:$D$52,2,FALSE))","v":""},{"$f":"IF(Lab_Inputs[[#This Row],[Generation Location]]=\"\", \"\", VLOOKUP('Lab Input and Calculations'!K36,'Reference Tables'!$C$2:$D$52,2,FALSE))","v":""},{"$f":"IF(Lab_Inputs[[#This Row],[Change Dynamics]]=\"\", \"\", VLOOKUP('Lab Input and Calculations'!L36,'Reference Tables'!$C$2:$D$52,2,FALSE))","v":""},{"$f":"IF(Lab_Inputs[[#This Row],[Housekeeping]]=\"\", \"\", VLOOKUP('Lab Input and Calculations'!M36,'Reference Tables'!$C$2:$D$52,2,FALSE))","v":""},{"$f":"IF(Lab_Inputs[[#This Row],[ECD Available?]]=\"\",\"\", VLOOKUP('Lab Input and Calculations'!N36,'Reference Tables'!$C$2:$D$52,2,FALSE))","v":""},{"$f":"IF(Lab_Inputs[[#This Row],[ECD Appropriate?]]=\"\", \"\", VLOOKUP('Lab Input and Calculations'!O36,'Reference Tables'!$C$2:$D$52,2,FALSE))","v":""},{"$f":"IF(Lab_Inputs[[#This Row],[Ventilation Effectivness ]]=\"\", \"\",VLOOKUP('Lab Input and Calculations'!P36,'Reference Tables'!$C$2:$D$52,2,FALSE))","v":""},{"$f":"IF(Lab_Inputs[[#This Row],[Maximum RCB for ECDs in Lab]]=\"\", \"\", Lab_Inputs[[#This Row],[Maximum RCB for ECDs in Lab]])","v":""},{"$f":"IF(Table75[[#This Row],[Hazard Exposure Limit Rating]]=\"\", \"\", ($G$1*R36)+($H$1*S36)+($I$1*T36)+($J$1*U36)+($K$1*V36)+($L$1*W36)+($M$1*X36)+($N$1*Y36)+($O$1*Z36)+($P$1*AA36)+($Q$1*AB36))","v":""},{"$f":"IF(Table75[[#This Row],[Weighed Score]]=\"\", \"\", _xlfn.IFS(AND($AC36>='Reference Tables'!$L$2,'Lab Input and Calculations'!$AC36<='Reference Tables'!$L$3),0,AND('Lab Input and Calculations'!$AC36>='Reference Tables'!$L$4,'Lab Input and Calculations'!$AC36<='Reference Tables'!$L$5),1,AND('Lab Input and Calculations'!$AC36>='Reference Tables'!$L$6,'Lab Input and Calculations'!$AC36<='Reference Tables'!$L$7),2,AND('Lab Input and Calculations'!$AC36>='Reference Tables'!$L$8,'Lab Input and Calculations'!$AC36<='Reference Tables'!$L$9),3,AND('Lab Input and Calculations'!$AC36>'Reference Tables'!$L$10,'Lab Input and Calculations'!$AC36<='Reference Tables'!$L$11),4))","v":""},{"$f":"IF(Table75[[#This Row],[Lab Control Band]]=\"\", \"\", VLOOKUP(AD36,'Reference Tables'!$Q$3:$S$12,2))","v":""},{"$f":"IF(Table75[[#This Row],[Lab Control Band]]=\"\", \"\", VLOOKUP(AD36,'Reference Tables'!$Q$3:$S$12,3))","v":""},{"$f":"IF(Table75[[#This Row],[Lab Control Band]]=\"\", \"\", (Table5[[#This Row],[Minimum Air Changes per Hour, Occupied (ACH)]]*10)/60)","v":""},{"$f":"IF(Table75[[#This Row],[Lab Control Band]]=\"\", \"\", (AF36*10)/60)","v":""},{"$f":"IF(Table75[[#This Row],[Lab Control Band]]=\"\", \"\", D36*AG36)","v":""},{"$f":"IF(Table75[[#This Row],[Lab Control Band]]=\"\", \"\", D36*AH36)","v":""},{"$f":"IF(Lab_Inputs[[#This Row],[Lab Number]]=\"\",\"\",SUMIF(ECD_Inputs[Lab Number],Lab_Inputs[[#This Row],[Lab Number]],'ECD Input and Calculations'!$AF$4:$AF$56))","v":""},{"$f":"IF(Lab_Inputs[[#This Row],[Lab Number]]=\"\",\"\",SUMIF(ECD_Inputs[Lab Number],Lab_Inputs[[#This Row],[Lab Number]],'ECD Input and Calculations'!$AE$4:$AE$56))","v":""},{"$f":"IF(Lab_Inputs[[#This Row],[Lab Number]]=\"\",\"\",MAX(Table5[[#This Row],[Minimum Airflow, Occupied  (CFM)]],Table5[[#This Row],[Total ECD Min. Air Flow (CFM)]]))","v":""},{"$f":"IF(Lab_Inputs[[#This Row],[Lab Number]]=\"\",\"\",MAX(Table5[[#This Row],[Minimum Airflow, Unoccupied (CFM)]],Table5[[#This Row],[Total ECD Min. Air Flow (CFM)]]))","v":""}]
[null,null,null,null,null,null,null,null,null,null,null,null,null,null,null,null,{"$f":"IF(Lab_Inputs[[#This Row],[Lab Number]]=\"\",\"\",_xlfn.MAXIFS(Table7[Risk Control Band],ECD_Inputs[Lab Number],Lab_Inputs[[#This Row],[Lab Number]]))","v":""},{"$f":"IF(Lab_Inputs[[#This Row],[Quantity]]=\"\", \"\",VLOOKUP('Lab Input and Calculations'!G37,'Reference Tables'!$C$2:$D$52,2,FALSE))","v":""},{"$f":"IF(Lab_Inputs[[#This Row],[Quantity]]=\"\", \"\",VLOOKUP('Lab Input and Calculations'!H37,'Reference Tables'!$C$2:$D$52,2,FALSE))","v":""},{"$f":"IF(Lab_Inputs[[#This Row],[ Generation Potential]]=\"\", \"\", VLOOKUP('Lab Input and Calculations'!I37,'Reference Tables'!$C$2:$D$52,2,FALSE))","v":""},{"$f":"IF(Lab_Inputs[[#This Row],[ Generation Method]]=\"\", \"\", VLOOKUP('Lab Input and Calculations'!J37,'Reference Tables'!$C$2:$D$52,2,FALSE))","v":""},{"$f":"IF(Lab_Inputs[[#This Row],[Generation Location]]=\"\", \"\", VLOOKUP('Lab Input and Calculations'!K37,'Reference Tables'!$C$2:$D$52,2,FALSE))","v":""},{"$f":"IF(Lab_Inputs[[#This Row],[Change Dynamics]]=\"\", \"\", VLOOKUP('Lab Input and Calculations'!L37,'Reference Tables'!$C$2:$D$52,2,FALSE))","v":""},{"$f":"IF(Lab_Inputs[[#This Row],[Housekeeping]]=\"\", \"\", VLOOKUP('Lab Input and Calculations'!M37,'Reference Tables'!$C$2:$D$52,2,FALSE))","v":""},{"$f":"IF(Lab_Inputs[[#This Row],[ECD Available?]]=\"\",\"\", VLOOKUP('Lab Input and Calculations'!N37,'Reference Tables'!$C$2:$D$52,2,FALSE))","v":""},{"$f":"IF(Lab_Inputs[[#This Row],[ECD Appropriate?]]=\"\", \"\", VLOOKUP('Lab Input and Calculations'!O37,'Reference Tables'!$C$2:$D$52,2,FALSE))","v":""},{"$f":"IF(Lab_Inputs[[#This Row],[Ventilation Effectivness ]]=\"\", \"\",VLOOKUP('Lab Input and Calculations'!P37,'Reference Tables'!$C$2:$D$52,2,FALSE))","v":""},{"$f":"IF(Lab_Inputs[[#This Row],[Maximum RCB for ECDs in Lab]]=\"\", \"\", Lab_Inputs[[#This Row],[Maximum RCB for ECDs in Lab]])","v":""},{"$f":"IF(Table75[[#This Row],[Hazard Exposure Limit Rating]]=\"\", \"\", ($G$1*R37)+($H$1*S37)+($I$1*T37)+($J$1*U37)+($K$1*V37)+($L$1*W37)+($M$1*X37)+($N$1*Y37)+($O$1*Z37)+($P$1*AA37)+($Q$1*AB37))","v":""},{"$f":"IF(Table75[[#This Row],[Weighed Score]]=\"\", \"\", _xlfn.IFS(AND($AC37>='Reference Tables'!$L$2,'Lab Input and Calculations'!$AC37<='Reference Tables'!$L$3),0,AND('Lab Input and Calculations'!$AC37>='Reference Tables'!$L$4,'Lab Input and Calculations'!$AC37<='Reference Tables'!$L$5),1,AND('Lab Input and Calculations'!$AC37>='Reference Tables'!$L$6,'Lab Input and Calculations'!$AC37<='Reference Tables'!$L$7),2,AND('Lab Input and Calculations'!$AC37>='Reference Tables'!$L$8,'Lab Input and Calculations'!$AC37<='Reference Tables'!$L$9),3,AND('Lab Input and Calculations'!$AC37>'Reference Tables'!$L$10,'Lab Input and Calculations'!$AC37<='Reference Tables'!$L$11),4))","v":""},{"$f":"IF(Table75[[#This Row],[Lab Control Band]]=\"\", \"\", VLOOKUP(AD37,'Reference Tables'!$Q$3:$S$12,2))","v":""},{"$f":"IF(Table75[[#This Row],[Lab Control Band]]=\"\", \"\", VLOOKUP(AD37,'Reference Tables'!$Q$3:$S$12,3))","v":""},{"$f":"IF(Table75[[#This Row],[Lab Control Band]]=\"\", \"\", (Table5[[#This Row],[Minimum Air Changes per Hour, Occupied (ACH)]]*10)/60)","v":""},{"$f":"IF(Table75[[#This Row],[Lab Control Band]]=\"\", \"\", (AF37*10)/60)","v":""},{"$f":"IF(Table75[[#This Row],[Lab Control Band]]=\"\", \"\", D37*AG37)","v":""},{"$f":"IF(Table75[[#This Row],[Lab Control Band]]=\"\", \"\", D37*AH37)","v":""},{"$f":"IF(Lab_Inputs[[#This Row],[Lab Number]]=\"\",\"\",SUMIF(ECD_Inputs[Lab Number],Lab_Inputs[[#This Row],[Lab Number]],'ECD Input and Calculations'!$AF$4:$AF$56))","v":""},{"$f":"IF(Lab_Inputs[[#This Row],[Lab Number]]=\"\",\"\",SUMIF(ECD_Inputs[Lab Number],Lab_Inputs[[#This Row],[Lab Number]],'ECD Input and Calculations'!$AE$4:$AE$56))","v":""},{"$f":"IF(Lab_Inputs[[#This Row],[Lab Number]]=\"\",\"\",MAX(Table5[[#This Row],[Minimum Airflow, Occupied  (CFM)]],Table5[[#This Row],[Total ECD Min. Air Flow (CFM)]]))","v":""},{"$f":"IF(Lab_Inputs[[#This Row],[Lab Number]]=\"\",\"\",MAX(Table5[[#This Row],[Minimum Airflow, Unoccupied (CFM)]],Table5[[#This Row],[Total ECD Min. Air Flow (CFM)]]))","v":""}]
[null,null,null,null,null,null,null,null,null,null,null,null,null,null,null,null,{"$f":"IF(Lab_Inputs[[#This Row],[Lab Number]]=\"\",\"\",_xlfn.MAXIFS(Table7[Risk Control Band],ECD_Inputs[Lab Number],Lab_Inputs[[#This Row],[Lab Number]]))","v":""},{"$f":"IF(Lab_Inputs[[#This Row],[Quantity]]=\"\", \"\",VLOOKUP('Lab Input and Calculations'!G38,'Reference Tables'!$C$2:$D$52,2,FALSE))","v":""},{"$f":"IF(Lab_Inputs[[#This Row],[Quantity]]=\"\", \"\",VLOOKUP('Lab Input and Calculations'!H38,'Reference Tables'!$C$2:$D$52,2,FALSE))","v":""},{"$f":"IF(Lab_Inputs[[#This Row],[ Generation Potential]]=\"\", \"\", VLOOKUP('Lab Input and Calculations'!I38,'Reference Tables'!$C$2:$D$52,2,FALSE))","v":""},{"$f":"IF(Lab_Inputs[[#This Row],[ Generation Method]]=\"\", \"\", VLOOKUP('Lab Input and Calculations'!J38,'Reference Tables'!$C$2:$D$52,2,FALSE))","v":""},{"$f":"IF(Lab_Inputs[[#This Row],[Generation Location]]=\"\", \"\", VLOOKUP('Lab Input and Calculations'!K38,'Reference Tables'!$C$2:$D$52,2,FALSE))","v":""},{"$f":"IF(Lab_Inputs[[#This Row],[Change Dynamics]]=\"\", \"\", VLOOKUP('Lab Input and Calculations'!L38,'Reference Tables'!$C$2:$D$52,2,FALSE))","v":""},{"$f":"IF(Lab_Inputs[[#This Row],[Housekeeping]]=\"\", \"\", VLOOKUP('Lab Input and Calculations'!M38,'Reference Tables'!$C$2:$D$52,2,FALSE))","v":""},{"$f":"IF(Lab_Inputs[[#This Row],[ECD Available?]]=\"\",\"\", VLOOKUP('Lab Input and Calculations'!N38,'Reference Tables'!$C$2:$D$52,2,FALSE))","v":""},{"$f":"IF(Lab_Inputs[[#This Row],[ECD Appropriate?]]=\"\", \"\", VLOOKUP('Lab Input and Calculations'!O38,'Reference Tables'!$C$2:$D$52,2,FALSE))","v":""},{"$f":"IF(Lab_Inputs[[#This Row],[Ventilation Effectivness ]]=\"\", \"\",VLOOKUP('Lab Input and Calculations'!P38,'Reference Tables'!$C$2:$D$52,2,FALSE))","v":""},{"$f":"IF(Lab_Inputs[[#This Row],[Maximum RCB for ECDs in Lab]]=\"\", \"\", Lab_Inputs[[#This Row],[Maximum RCB for ECDs in Lab]])","v":""},{"$f":"IF(Table75[[#This Row],[Hazard Exposure Limit Rating]]=\"\", \"\", ($G$1*R38)+($H$1*S38)+($I$1*T38)+($J$1*U38)+($K$1*V38)+($L$1*W38)+($M$1*X38)+($N$1*Y38)+($O$1*Z38)+($P$1*AA38)+($Q$1*AB38))","v":""},{"$f":"IF(Table75[[#This Row],[Weighed Score]]=\"\", \"\", _xlfn.IFS(AND($AC38>='Reference Tables'!$L$2,'Lab Input and Calculations'!$AC38<='Reference Tables'!$L$3),0,AND('Lab Input and Calculations'!$AC38>='Reference Tables'!$L$4,'Lab Input and Calculations'!$AC38<='Reference Tables'!$L$5),1,AND('Lab Input and Calculations'!$AC38>='Reference Tables'!$L$6,'Lab Input and Calculations'!$AC38<='Reference Tables'!$L$7),2,AND('Lab Input and Calculations'!$AC38>='Reference Tables'!$L$8,'Lab Input and Calculations'!$AC38<='Reference Tables'!$L$9),3,AND('Lab Input and Calculations'!$AC38>'Reference Tables'!$L$10,'Lab Input and Calculations'!$AC38<='Reference Tables'!$L$11),4))","v":""},{"$f":"IF(Table75[[#This Row],[Lab Control Band]]=\"\", \"\", VLOOKUP(AD38,'Reference Tables'!$Q$3:$S$12,2))","v":""},{"$f":"IF(Table75[[#This Row],[Lab Control Band]]=\"\", \"\", VLOOKUP(AD38,'Reference Tables'!$Q$3:$S$12,3))","v":""},{"$f":"IF(Table75[[#This Row],[Lab Control Band]]=\"\", \"\", (Table5[[#This Row],[Minimum Air Changes per Hour, Occupied (ACH)]]*10)/60)","v":""},{"$f":"IF(Table75[[#This Row],[Lab Control Band]]=\"\", \"\", (AF38*10)/60)","v":""},{"$f":"IF(Table75[[#This Row],[Lab Control Band]]=\"\", \"\", D38*AG38)","v":""},{"$f":"IF(Table75[[#This Row],[Lab Control Band]]=\"\", \"\", D38*AH38)","v":""},{"$f":"IF(Lab_Inputs[[#This Row],[Lab Number]]=\"\",\"\",SUMIF(ECD_Inputs[Lab Number],Lab_Inputs[[#This Row],[Lab Number]],'ECD Input and Calculations'!$AF$4:$AF$56))","v":""},{"$f":"IF(Lab_Inputs[[#This Row],[Lab Number]]=\"\",\"\",SUMIF(ECD_Inputs[Lab Number],Lab_Inputs[[#This Row],[Lab Number]],'ECD Input and Calculations'!$AE$4:$AE$56))","v":""},{"$f":"IF(Lab_Inputs[[#This Row],[Lab Number]]=\"\",\"\",MAX(Table5[[#This Row],[Minimum Airflow, Occupied  (CFM)]],Table5[[#This Row],[Total ECD Min. Air Flow (CFM)]]))","v":""},{"$f":"IF(Lab_Inputs[[#This Row],[Lab Number]]=\"\",\"\",MAX(Table5[[#This Row],[Minimum Airflow, Unoccupied (CFM)]],Table5[[#This Row],[Total ECD Min. Air Flow (CFM)]]))","v":""}]
[null,null,null,null,null,null,null,null,null,null,null,null,null,null,null,null,{"$f":"IF(Lab_Inputs[[#This Row],[Lab Number]]=\"\",\"\",_xlfn.MAXIFS(Table7[Risk Control Band],ECD_Inputs[Lab Number],Lab_Inputs[[#This Row],[Lab Number]]))","v":""},{"$f":"IF(Lab_Inputs[[#This Row],[Quantity]]=\"\", \"\",VLOOKUP('Lab Input and Calculations'!G39,'Reference Tables'!$C$2:$D$52,2,FALSE))","v":""},{"$f":"IF(Lab_Inputs[[#This Row],[Quantity]]=\"\", \"\",VLOOKUP('Lab Input and Calculations'!H39,'Reference Tables'!$C$2:$D$52,2,FALSE))","v":""},{"$f":"IF(Lab_Inputs[[#This Row],[ Generation Potential]]=\"\", \"\", VLOOKUP('Lab Input and Calculations'!I39,'Reference Tables'!$C$2:$D$52,2,FALSE))","v":""},{"$f":"IF(Lab_Inputs[[#This Row],[ Generation Method]]=\"\", \"\", VLOOKUP('Lab Input and Calculations'!J39,'Reference Tables'!$C$2:$D$52,2,FALSE))","v":""},{"$f":"IF(Lab_Inputs[[#This Row],[Generation Location]]=\"\", \"\", VLOOKUP('Lab Input and Calculations'!K39,'Reference Tables'!$C$2:$D$52,2,FALSE))","v":""},{"$f":"IF(Lab_Inputs[[#This Row],[Change Dynamics]]=\"\", \"\", VLOOKUP('Lab Input and Calculations'!L39,'Reference Tables'!$C$2:$D$52,2,FALSE))","v":""},{"$f":"IF(Lab_Inputs[[#This Row],[Housekeeping]]=\"\", \"\", VLOOKUP('Lab Input and Calculations'!M39,'Reference Tables'!$C$2:$D$52,2,FALSE))","v":""},{"$f":"IF(Lab_Inputs[[#This Row],[ECD Available?]]=\"\",\"\", VLOOKUP('Lab Input and Calculations'!N39,'Reference Tables'!$C$2:$D$52,2,FALSE))","v":""},{"$f":"IF(Lab_Inputs[[#This Row],[ECD Appropriate?]]=\"\", \"\", VLOOKUP('Lab Input and Calculations'!O39,'Reference Tables'!$C$2:$D$52,2,FALSE))","v":""},{"$f":"IF(Lab_Inputs[[#This Row],[Ventilation Effectivness ]]=\"\", \"\",VLOOKUP('Lab Input and Calculations'!P39,'Reference Tables'!$C$2:$D$52,2,FALSE))","v":""},{"$f":"IF(Lab_Inputs[[#This Row],[Maximum RCB for ECDs in Lab]]=\"\", \"\", Lab_Inputs[[#This Row],[Maximum RCB for ECDs in Lab]])","v":""},{"$f":"IF(Table75[[#This Row],[Hazard Exposure Limit Rating]]=\"\", \"\", ($G$1*R39)+($H$1*S39)+($I$1*T39)+($J$1*U39)+($K$1*V39)+($L$1*W39)+($M$1*X39)+($N$1*Y39)+($O$1*Z39)+($P$1*AA39)+($Q$1*AB39))","v":""},{"$f":"IF(Table75[[#This Row],[Weighed Score]]=\"\", \"\", _xlfn.IFS(AND($AC39>='Reference Tables'!$L$2,'Lab Input and Calculations'!$AC39<='Reference Tables'!$L$3),0,AND('Lab Input and Calculations'!$AC39>='Reference Tables'!$L$4,'Lab Input and Calculations'!$AC39<='Reference Tables'!$L$5),1,AND('Lab Input and Calculations'!$AC39>='Reference Tables'!$L$6,'Lab Input and Calculations'!$AC39<='Reference Tables'!$L$7),2,AND('Lab Input and Calculations'!$AC39>='Reference Tables'!$L$8,'Lab Input and Calculations'!$AC39<='Reference Tables'!$L$9),3,AND('Lab Input and Calculations'!$AC39>'Reference Tables'!$L$10,'Lab Input and Calculations'!$AC39<='Reference Tables'!$L$11),4))","v":""},{"$f":"IF(Table75[[#This Row],[Lab Control Band]]=\"\", \"\", VLOOKUP(AD39,'Reference Tables'!$Q$3:$S$12,2))","v":""},{"$f":"IF(Table75[[#This Row],[Lab Control Band]]=\"\", \"\", VLOOKUP(AD39,'Reference Tables'!$Q$3:$S$12,3))","v":""},{"$f":"IF(Table75[[#This Row],[Lab Control Band]]=\"\", \"\", (Table5[[#This Row],[Minimum Air Changes per Hour, Occupied (ACH)]]*10)/60)","v":""},{"$f":"IF(Table75[[#This Row],[Lab Control Band]]=\"\", \"\", (AF39*10)/60)","v":""},{"$f":"IF(Table75[[#This Row],[Lab Control Band]]=\"\", \"\", D39*AG39)","v":""},{"$f":"IF(Table75[[#This Row],[Lab Control Band]]=\"\", \"\", D39*AH39)","v":""},{"$f":"IF(Lab_Inputs[[#This Row],[Lab Number]]=\"\",\"\",SUMIF(ECD_Inputs[Lab Number],Lab_Inputs[[#This Row],[Lab Number]],'ECD Input and Calculations'!$AF$4:$AF$56))","v":""},{"$f":"IF(Lab_Inputs[[#This Row],[Lab Number]]=\"\",\"\",SUMIF(ECD_Inputs[Lab Number],Lab_Inputs[[#This Row],[Lab Number]],'ECD Input and Calculations'!$AE$4:$AE$56))","v":""},{"$f":"IF(Lab_Inputs[[#This Row],[Lab Number]]=\"\",\"\",MAX(Table5[[#This Row],[Minimum Airflow, Occupied  (CFM)]],Table5[[#This Row],[Total ECD Min. Air Flow (CFM)]]))","v":""},{"$f":"IF(Lab_Inputs[[#This Row],[Lab Number]]=\"\",\"\",MAX(Table5[[#This Row],[Minimum Airflow, Unoccupied (CFM)]],Table5[[#This Row],[Total ECD Min. Air Flow (CFM)]]))","v":""}]
[null,null,null,null,null,null,null,null,null,null,null,null,null,null,null,null,{"$f":"IF(Lab_Inputs[[#This Row],[Lab Number]]=\"\",\"\",_xlfn.MAXIFS(Table7[Risk Control Band],ECD_Inputs[Lab Number],Lab_Inputs[[#This Row],[Lab Number]]))","v":""},{"$f":"IF(Lab_Inputs[[#This Row],[Quantity]]=\"\", \"\",VLOOKUP('Lab Input and Calculations'!G40,'Reference Tables'!$C$2:$D$52,2,FALSE))","v":""},{"$f":"IF(Lab_Inputs[[#This Row],[Quantity]]=\"\", \"\",VLOOKUP('Lab Input and Calculations'!H40,'Reference Tables'!$C$2:$D$52,2,FALSE))","v":""},{"$f":"IF(Lab_Inputs[[#This Row],[ Generation Potential]]=\"\", \"\", VLOOKUP('Lab Input and Calculations'!I40,'Reference Tables'!$C$2:$D$52,2,FALSE))","v":""},{"$f":"IF(Lab_Inputs[[#This Row],[ Generation Method]]=\"\", \"\", VLOOKUP('Lab Input and Calculations'!J40,'Reference Tables'!$C$2:$D$52,2,FALSE))","v":""},{"$f":"IF(Lab_Inputs[[#This Row],[Generation Location]]=\"\", \"\", VLOOKUP('Lab Input and Calculations'!K40,'Reference Tables'!$C$2:$D$52,2,FALSE))","v":""},{"$f":"IF(Lab_Inputs[[#This Row],[Change Dynamics]]=\"\", \"\", VLOOKUP('Lab Input and Calculations'!L40,'Reference Tables'!$C$2:$D$52,2,FALSE))","v":""},{"$f":"IF(Lab_Inputs[[#This Row],[Housekeeping]]=\"\", \"\", VLOOKUP('Lab Input and Calculations'!M40,'Reference Tables'!$C$2:$D$52,2,FALSE))","v":""},{"$f":"IF(Lab_Inputs[[#This Row],[ECD Available?]]=\"\",\"\", VLOOKUP('Lab Input and Calculations'!N40,'Reference Tables'!$C$2:$D$52,2,FALSE))","v":""},{"$f":"IF(Lab_Inputs[[#This Row],[ECD Appropriate?]]=\"\", \"\", VLOOKUP('Lab Input and Calculations'!O40,'Reference Tables'!$C$2:$D$52,2,FALSE))","v":""},{"$f":"IF(Lab_Inputs[[#This Row],[Ventilation Effectivness ]]=\"\", \"\",VLOOKUP('Lab Input and Calculations'!P40,'Reference Tables'!$C$2:$D$52,2,FALSE))","v":""},{"$f":"IF(Lab_Inputs[[#This Row],[Maximum RCB for ECDs in Lab]]=\"\", \"\", Lab_Inputs[[#This Row],[Maximum RCB for ECDs in Lab]])","v":""},{"$f":"IF(Table75[[#This Row],[Hazard Exposure Limit Rating]]=\"\", \"\", ($G$1*R40)+($H$1*S40)+($I$1*T40)+($J$1*U40)+($K$1*V40)+($L$1*W40)+($M$1*X40)+($N$1*Y40)+($O$1*Z40)+($P$1*AA40)+($Q$1*AB40))","v":""},{"$f":"IF(Table75[[#This Row],[Weighed Score]]=\"\", \"\", _xlfn.IFS(AND($AC40>='Reference Tables'!$L$2,'Lab Input and Calculations'!$AC40<='Reference Tables'!$L$3),0,AND('Lab Input and Calculations'!$AC40>='Reference Tables'!$L$4,'Lab Input and Calculations'!$AC40<='Reference Tables'!$L$5),1,AND('Lab Input and Calculations'!$AC40>='Reference Tables'!$L$6,'Lab Input and Calculations'!$AC40<='Reference Tables'!$L$7),2,AND('Lab Input and Calculations'!$AC40>='Reference Tables'!$L$8,'Lab Input and Calculations'!$AC40<='Reference Tables'!$L$9),3,AND('Lab Input and Calculations'!$AC40>'Reference Tables'!$L$10,'Lab Input and Calculations'!$AC40<='Reference Tables'!$L$11),4))","v":""},{"$f":"IF(Table75[[#This Row],[Lab Control Band]]=\"\", \"\", VLOOKUP(AD40,'Reference Tables'!$Q$3:$S$12,2))","v":""},{"$f":"IF(Table75[[#This Row],[Lab Control Band]]=\"\", \"\", VLOOKUP(AD40,'Reference Tables'!$Q$3:$S$12,3))","v":""},{"$f":"IF(Table75[[#This Row],[Lab Control Band]]=\"\", \"\", (Table5[[#This Row],[Minimum Air Changes per Hour, Occupied (ACH)]]*10)/60)","v":""},{"$f":"IF(Table75[[#This Row],[Lab Control Band]]=\"\", \"\", (AF40*10)/60)","v":""},{"$f":"IF(Table75[[#This Row],[Lab Control Band]]=\"\", \"\", D40*AG40)","v":""},{"$f":"IF(Table75[[#This Row],[Lab Control Band]]=\"\", \"\", D40*AH40)","v":""},{"$f":"IF(Lab_Inputs[[#This Row],[Lab Number]]=\"\",\"\",SUMIF(ECD_Inputs[Lab Number],Lab_Inputs[[#This Row],[Lab Number]],'ECD Input and Calculations'!$AF$4:$AF$56))","v":""},{"$f":"IF(Lab_Inputs[[#This Row],[Lab Number]]=\"\",\"\",SUMIF(ECD_Inputs[Lab Number],Lab_Inputs[[#This Row],[Lab Number]],'ECD Input and Calculations'!$AE$4:$AE$56))","v":""},{"$f":"IF(Lab_Inputs[[#This Row],[Lab Number]]=\"\",\"\",MAX(Table5[[#This Row],[Minimum Airflow, Occupied  (CFM)]],Table5[[#This Row],[Total ECD Min. Air Flow (CFM)]]))","v":""},{"$f":"IF(Lab_Inputs[[#This Row],[Lab Number]]=\"\",\"\",MAX(Table5[[#This Row],[Minimum Airflow, Unoccupied (CFM)]],Table5[[#This Row],[Total ECD Min. Air Flow (CFM)]]))","v":""}]
[null,null,null,null,null,null,null,null,null,null,null,null,null,null,null,null,{"$f":"IF(Lab_Inputs[[#This Row],[Lab Number]]=\"\",\"\",_xlfn.MAXIFS(Table7[Risk Control Band],ECD_Inputs[Lab Number],Lab_Inputs[[#This Row],[Lab Number]]))","v":""},{"$f":"IF(Lab_Inputs[[#This Row],[Quantity]]=\"\", \"\",VLOOKUP('Lab Input and Calculations'!G41,'Reference Tables'!$C$2:$D$52,2,FALSE))","v":""},{"$f":"IF(Lab_Inputs[[#This Row],[Quantity]]=\"\", \"\",VLOOKUP('Lab Input and Calculations'!H41,'Reference Tables'!$C$2:$D$52,2,FALSE))","v":""},{"$f":"IF(Lab_Inputs[[#This Row],[ Generation Potential]]=\"\", \"\", VLOOKUP('Lab Input and Calculations'!I41,'Reference Tables'!$C$2:$D$52,2,FALSE))","v":""},{"$f":"IF(Lab_Inputs[[#This Row],[ Generation Method]]=\"\", \"\", VLOOKUP('Lab Input and Calculations'!J41,'Reference Tables'!$C$2:$D$52,2,FALSE))","v":""},{"$f":"IF(Lab_Inputs[[#This Row],[Generation Location]]=\"\", \"\", VLOOKUP('Lab Input and Calculations'!K41,'Reference Tables'!$C$2:$D$52,2,FALSE))","v":""},{"$f":"IF(Lab_Inputs[[#This Row],[Change Dynamics]]=\"\", \"\", VLOOKUP('Lab Input and Calculations'!L41,'Reference Tables'!$C$2:$D$52,2,FALSE))","v":""},{"$f":"IF(Lab_Inputs[[#This Row],[Housekeeping]]=\"\", \"\", VLOOKUP('Lab Input and Calculations'!M41,'Reference Tables'!$C$2:$D$52,2,FALSE))","v":""},{"$f":"IF(Lab_Inputs[[#This Row],[ECD Available?]]=\"\",\"\", VLOOKUP('Lab Input and Calculations'!N41,'Reference Tables'!$C$2:$D$52,2,FALSE))","v":""},{"$f":"IF(Lab_Inputs[[#This Row],[ECD Appropriate?]]=\"\", \"\", VLOOKUP('Lab Input and Calculations'!O41,'Reference Tables'!$C$2:$D$52,2,FALSE))","v":""},{"$f":"IF(Lab_Inputs[[#This Row],[Ventilation Effectivness ]]=\"\", \"\",VLOOKUP('Lab Input and Calculations'!P41,'Reference Tables'!$C$2:$D$52,2,FALSE))","v":""},{"$f":"IF(Lab_Inputs[[#This Row],[Maximum RCB for ECDs in Lab]]=\"\", \"\", Lab_Inputs[[#This Row],[Maximum RCB for ECDs in Lab]])","v":""},{"$f":"IF(Table75[[#This Row],[Hazard Exposure Limit Rating]]=\"\", \"\", ($G$1*R41)+($H$1*S41)+($I$1*T41)+($J$1*U41)+($K$1*V41)+($L$1*W41)+($M$1*X41)+($N$1*Y41)+($O$1*Z41)+($P$1*AA41)+($Q$1*AB41))","v":""},{"$f":"IF(Table75[[#This Row],[Weighed Score]]=\"\", \"\", _xlfn.IFS(AND($AC41>='Reference Tables'!$L$2,'Lab Input and Calculations'!$AC41<='Reference Tables'!$L$3),0,AND('Lab Input and Calculations'!$AC41>='Reference Tables'!$L$4,'Lab Input and Calculations'!$AC41<='Reference Tables'!$L$5),1,AND('Lab Input and Calculations'!$AC41>='Reference Tables'!$L$6,'Lab Input and Calculations'!$AC41<='Reference Tables'!$L$7),2,AND('Lab Input and Calculations'!$AC41>='Reference Tables'!$L$8,'Lab Input and Calculations'!$AC41<='Reference Tables'!$L$9),3,AND('Lab Input and Calculations'!$AC41>'Reference Tables'!$L$10,'Lab Input and Calculations'!$AC41<='Reference Tables'!$L$11),4))","v":""},{"$f":"IF(Table75[[#This Row],[Lab Control Band]]=\"\", \"\", VLOOKUP(AD41,'Reference Tables'!$Q$3:$S$12,2))","v":""},{"$f":"IF(Table75[[#This Row],[Lab Control Band]]=\"\", \"\", VLOOKUP(AD41,'Reference Tables'!$Q$3:$S$12,3))","v":""},{"$f":"IF(Table75[[#This Row],[Lab Control Band]]=\"\", \"\", (Table5[[#This Row],[Minimum Air Changes per Hour, Occupied (ACH)]]*10)/60)","v":""},{"$f":"IF(Table75[[#This Row],[Lab Control Band]]=\"\", \"\", (AF41*10)/60)","v":""},{"$f":"IF(Table75[[#This Row],[Lab Control Band]]=\"\", \"\", D41*AG41)","v":""},{"$f":"IF(Table75[[#This Row],[Lab Control Band]]=\"\", \"\", D41*AH41)","v":""},{"$f":"IF(Lab_Inputs[[#This Row],[Lab Number]]=\"\",\"\",SUMIF(ECD_Inputs[Lab Number],Lab_Inputs[[#This Row],[Lab Number]],'ECD Input and Calculations'!$AF$4:$AF$56))","v":""},{"$f":"IF(Lab_Inputs[[#This Row],[Lab Number]]=\"\",\"\",SUMIF(ECD_Inputs[Lab Number],Lab_Inputs[[#This Row],[Lab Number]],'ECD Input and Calculations'!$AE$4:$AE$56))","v":""},{"$f":"IF(Lab_Inputs[[#This Row],[Lab Number]]=\"\",\"\",MAX(Table5[[#This Row],[Minimum Airflow, Occupied  (CFM)]],Table5[[#This Row],[Total ECD Min. Air Flow (CFM)]]))","v":""},{"$f":"IF(Lab_Inputs[[#This Row],[Lab Number]]=\"\",\"\",MAX(Table5[[#This Row],[Minimum Airflow, Unoccupied (CFM)]],Table5[[#This Row],[Total ECD Min. Air Flow (CFM)]]))","v":""}]
[null,null,null,null,null,null,null,null,null,null,null,null,null,null,null,null,{"$f":"IF(Lab_Inputs[[#This Row],[Lab Number]]=\"\",\"\",_xlfn.MAXIFS(Table7[Risk Control Band],ECD_Inputs[Lab Number],Lab_Inputs[[#This Row],[Lab Number]]))","v":""},{"$f":"IF(Lab_Inputs[[#This Row],[Quantity]]=\"\", \"\",VLOOKUP('Lab Input and Calculations'!G42,'Reference Tables'!$C$2:$D$52,2,FALSE))","v":""},{"$f":"IF(Lab_Inputs[[#This Row],[Quantity]]=\"\", \"\",VLOOKUP('Lab Input and Calculations'!H42,'Reference Tables'!$C$2:$D$52,2,FALSE))","v":""},{"$f":"IF(Lab_Inputs[[#This Row],[ Generation Potential]]=\"\", \"\", VLOOKUP('Lab Input and Calculations'!I42,'Reference Tables'!$C$2:$D$52,2,FALSE))","v":""},{"$f":"IF(Lab_Inputs[[#This Row],[ Generation Method]]=\"\", \"\", VLOOKUP('Lab Input and Calculations'!J42,'Reference Tables'!$C$2:$D$52,2,FALSE))","v":""},{"$f":"IF(Lab_Inputs[[#This Row],[Generation Location]]=\"\", \"\", VLOOKUP('Lab Input and Calculations'!K42,'Reference Tables'!$C$2:$D$52,2,FALSE))","v":""},{"$f":"IF(Lab_Inputs[[#This Row],[Change Dynamics]]=\"\", \"\", VLOOKUP('Lab Input and Calculations'!L42,'Reference Tables'!$C$2:$D$52,2,FALSE))","v":""},{"$f":"IF(Lab_Inputs[[#This Row],[Housekeeping]]=\"\", \"\", VLOOKUP('Lab Input and Calculations'!M42,'Reference Tables'!$C$2:$D$52,2,FALSE))","v":""},{"$f":"IF(Lab_Inputs[[#This Row],[ECD Available?]]=\"\",\"\", VLOOKUP('Lab Input and Calculations'!N42,'Reference Tables'!$C$2:$D$52,2,FALSE))","v":""},{"$f":"IF(Lab_Inputs[[#This Row],[ECD Appropriate?]]=\"\", \"\", VLOOKUP('Lab Input and Calculations'!O42,'Reference Tables'!$C$2:$D$52,2,FALSE))","v":""},{"$f":"IF(Lab_Inputs[[#This Row],[Ventilation Effectivness ]]=\"\", \"\",VLOOKUP('Lab Input and Calculations'!P42,'Reference Tables'!$C$2:$D$52,2,FALSE))","v":""},{"$f":"IF(Lab_Inputs[[#This Row],[Maximum RCB for ECDs in Lab]]=\"\", \"\", Lab_Inputs[[#This Row],[Maximum RCB for ECDs in Lab]])","v":""},{"$f":"IF(Table75[[#This Row],[Hazard Exposure Limit Rating]]=\"\", \"\", ($G$1*R42)+($H$1*S42)+($I$1*T42)+($J$1*U42)+($K$1*V42)+($L$1*W42)+($M$1*X42)+($N$1*Y42)+($O$1*Z42)+($P$1*AA42)+($Q$1*AB42))","v":""},{"$f":"IF(Table75[[#This Row],[Weighed Score]]=\"\", \"\", _xlfn.IFS(AND($AC42>='Reference Tables'!$L$2,'Lab Input and Calculations'!$AC42<='Reference Tables'!$L$3),0,AND('Lab Input and Calculations'!$AC42>='Reference Tables'!$L$4,'Lab Input and Calculations'!$AC42<='Reference Tables'!$L$5),1,AND('Lab Input and Calculations'!$AC42>='Reference Tables'!$L$6,'Lab Input and Calculations'!$AC42<='Reference Tables'!$L$7),2,AND('Lab Input and Calculations'!$AC42>='Reference Tables'!$L$8,'Lab Input and Calculations'!$AC42<='Reference Tables'!$L$9),3,AND('Lab Input and Calculations'!$AC42>'Reference Tables'!$L$10,'Lab Input and Calculations'!$AC42<='Reference Tables'!$L$11),4))","v":""},{"$f":"IF(Table75[[#This Row],[Lab Control Band]]=\"\", \"\", VLOOKUP(AD42,'Reference Tables'!$Q$3:$S$12,2))","v":""},{"$f":"IF(Table75[[#This Row],[Lab Control Band]]=\"\", \"\", VLOOKUP(AD42,'Reference Tables'!$Q$3:$S$12,3))","v":""},{"$f":"IF(Table75[[#This Row],[Lab Control Band]]=\"\", \"\", (Table5[[#This Row],[Minimum Air Changes per Hour, Occupied (ACH)]]*10)/60)","v":""},{"$f":"IF(Table75[[#This Row],[Lab Control Band]]=\"\", \"\", (AF42*10)/60)","v":""},{"$f":"IF(Table75[[#This Row],[Lab Control Band]]=\"\", \"\", D42*AG42)","v":""},{"$f":"IF(Table75[[#This Row],[Lab Control Band]]=\"\", \"\", D42*AH42)","v":""},{"$f":"IF(Lab_Inputs[[#This Row],[Lab Number]]=\"\",\"\",SUMIF(ECD_Inputs[Lab Number],Lab_Inputs[[#This Row],[Lab Number]],'ECD Input and Calculations'!$AF$4:$AF$56))","v":""},{"$f":"IF(Lab_Inputs[[#This Row],[Lab Number]]=\"\",\"\",SUMIF(ECD_Inputs[Lab Number],Lab_Inputs[[#This Row],[Lab Number]],'ECD Input and Calculations'!$AE$4:$AE$56))","v":""},{"$f":"IF(Lab_Inputs[[#This Row],[Lab Number]]=\"\",\"\",MAX(Table5[[#This Row],[Minimum Airflow, Occupied  (CFM)]],Table5[[#This Row],[Total ECD Min. Air Flow (CFM)]]))","v":""},{"$f":"IF(Lab_Inputs[[#This Row],[Lab Number]]=\"\",\"\",MAX(Table5[[#This Row],[Minimum Airflow, Unoccupied (CFM)]],Table5[[#This Row],[Total ECD Min. Air Flow (CFM)]]))","v":""}]
[null,null,null,null,null,null,null,null,null,null,null,null,null,null,null,null,{"$f":"IF(Lab_Inputs[[#This Row],[Lab Number]]=\"\",\"\",_xlfn.MAXIFS(Table7[Risk Control Band],ECD_Inputs[Lab Number],Lab_Inputs[[#This Row],[Lab Number]]))","v":""},{"$f":"IF(Lab_Inputs[[#This Row],[Quantity]]=\"\", \"\",VLOOKUP('Lab Input and Calculations'!G43,'Reference Tables'!$C$2:$D$52,2,FALSE))","v":""},{"$f":"IF(Lab_Inputs[[#This Row],[Quantity]]=\"\", \"\",VLOOKUP('Lab Input and Calculations'!H43,'Reference Tables'!$C$2:$D$52,2,FALSE))","v":""},{"$f":"IF(Lab_Inputs[[#This Row],[ Generation Potential]]=\"\", \"\", VLOOKUP('Lab Input and Calculations'!I43,'Reference Tables'!$C$2:$D$52,2,FALSE))","v":""},{"$f":"IF(Lab_Inputs[[#This Row],[ Generation Method]]=\"\", \"\", VLOOKUP('Lab Input and Calculations'!J43,'Reference Tables'!$C$2:$D$52,2,FALSE))","v":""},{"$f":"IF(Lab_Inputs[[#This Row],[Generation Location]]=\"\", \"\", VLOOKUP('Lab Input and Calculations'!K43,'Reference Tables'!$C$2:$D$52,2,FALSE))","v":""},{"$f":"IF(Lab_Inputs[[#This Row],[Change Dynamics]]=\"\", \"\", VLOOKUP('Lab Input and Calculations'!L43,'Reference Tables'!$C$2:$D$52,2,FALSE))","v":""},{"$f":"IF(Lab_Inputs[[#This Row],[Housekeeping]]=\"\", \"\", VLOOKUP('Lab Input and Calculations'!M43,'Reference Tables'!$C$2:$D$52,2,FALSE))","v":""},{"$f":"IF(Lab_Inputs[[#This Row],[ECD Available?]]=\"\",\"\", VLOOKUP('Lab Input and Calculations'!N43,'Reference Tables'!$C$2:$D$52,2,FALSE))","v":""},{"$f":"IF(Lab_Inputs[[#This Row],[ECD Appropriate?]]=\"\", \"\", VLOOKUP('Lab Input and Calculations'!O43,'Reference Tables'!$C$2:$D$52,2,FALSE))","v":""},{"$f":"IF(Lab_Inputs[[#This Row],[Ventilation Effectivness ]]=\"\", \"\",VLOOKUP('Lab Input and Calculations'!P43,'Reference Tables'!$C$2:$D$52,2,FALSE))","v":""},{"$f":"IF(Lab_Inputs[[#This Row],[Maximum RCB for ECDs in Lab]]=\"\", \"\", Lab_Inputs[[#This Row],[Maximum RCB for ECDs in Lab]])","v":""},{"$f":"IF(Table75[[#This Row],[Hazard Exposure Limit Rating]]=\"\", \"\", ($G$1*R43)+($H$1*S43)+($I$1*T43)+($J$1*U43)+($K$1*V43)+($L$1*W43)+($M$1*X43)+($N$1*Y43)+($O$1*Z43)+($P$1*AA43)+($Q$1*AB43))","v":""},{"$f":"IF(Table75[[#This Row],[Weighed Score]]=\"\", \"\", _xlfn.IFS(AND($AC43>='Reference Tables'!$L$2,'Lab Input and Calculations'!$AC43<='Reference Tables'!$L$3),0,AND('Lab Input and Calculations'!$AC43>='Reference Tables'!$L$4,'Lab Input and Calculations'!$AC43<='Reference Tables'!$L$5),1,AND('Lab Input and Calculations'!$AC43>='Reference Tables'!$L$6,'Lab Input and Calculations'!$AC43<='Reference Tables'!$L$7),2,AND('Lab Input and Calculations'!$AC43>='Reference Tables'!$L$8,'Lab Input and Calculations'!$AC43<='Reference Tables'!$L$9),3,AND('Lab Input and Calculations'!$AC43>'Reference Tables'!$L$10,'Lab Input and Calculations'!$AC43<='Reference Tables'!$L$11),4))","v":""},{"$f":"IF(Table75[[#This Row],[Lab Control Band]]=\"\", \"\", VLOOKUP(AD43,'Reference Tables'!$Q$3:$S$12,2))","v":""},{"$f":"IF(Table75[[#This Row],[Lab Control Band]]=\"\", \"\", VLOOKUP(AD43,'Reference Tables'!$Q$3:$S$12,3))","v":""},{"$f":"IF(Table75[[#This Row],[Lab Control Band]]=\"\", \"\", (Table5[[#This Row],[Minimum Air Changes per Hour, Occupied (ACH)]]*10)/60)","v":""},{"$f":"IF(Table75[[#This Row],[Lab Control Band]]=\"\", \"\", (AF43*10)/60)","v":""},{"$f":"IF(Table75[[#This Row],[Lab Control Band]]=\"\", \"\", D43*AG43)","v":""},{"$f":"IF(Table75[[#This Row],[Lab Control Band]]=\"\", \"\", D43*AH43)","v":""},{"$f":"IF(Lab_Inputs[[#This Row],[Lab Number]]=\"\",\"\",SUMIF(ECD_Inputs[Lab Number],Lab_Inputs[[#This Row],[Lab Number]],'ECD Input and Calculations'!$AF$4:$AF$56))","v":""},{"$f":"IF(Lab_Inputs[[#This Row],[Lab Number]]=\"\",\"\",SUMIF(ECD_Inputs[Lab Number],Lab_Inputs[[#This Row],[Lab Number]],'ECD Input and Calculations'!$AE$4:$AE$56))","v":""},{"$f":"IF(Lab_Inputs[[#This Row],[Lab Number]]=\"\",\"\",MAX(Table5[[#This Row],[Minimum Airflow, Occupied  (CFM)]],Table5[[#This Row],[Total ECD Min. Air Flow (CFM)]]))","v":""},{"$f":"IF(Lab_Inputs[[#This Row],[Lab Number]]=\"\",\"\",MAX(Table5[[#This Row],[Minimum Airflow, Unoccupied (CFM)]],Table5[[#This Row],[Total ECD Min. Air Flow (CFM)]]))","v":""}]
[null,null,null,null,null,null,null,null,null,null,null,null,null,null,null,null,{"$f":"IF(Lab_Inputs[[#This Row],[Lab Number]]=\"\",\"\",_xlfn.MAXIFS(Table7[Risk Control Band],ECD_Inputs[Lab Number],Lab_Inputs[[#This Row],[Lab Number]]))","v":""},{"$f":"IF(Lab_Inputs[[#This Row],[Quantity]]=\"\", \"\",VLOOKUP('Lab Input and Calculations'!G44,'Reference Tables'!$C$2:$D$52,2,FALSE))","v":""},{"$f":"IF(Lab_Inputs[[#This Row],[Quantity]]=\"\", \"\",VLOOKUP('Lab Input and Calculations'!H44,'Reference Tables'!$C$2:$D$52,2,FALSE))","v":""},{"$f":"IF(Lab_Inputs[[#This Row],[ Generation Potential]]=\"\", \"\", VLOOKUP('Lab Input and Calculations'!I44,'Reference Tables'!$C$2:$D$52,2,FALSE))","v":""},{"$f":"IF(Lab_Inputs[[#This Row],[ Generation Method]]=\"\", \"\", VLOOKUP('Lab Input and Calculations'!J44,'Reference Tables'!$C$2:$D$52,2,FALSE))","v":""},{"$f":"IF(Lab_Inputs[[#This Row],[Generation Location]]=\"\", \"\", VLOOKUP('Lab Input and Calculations'!K44,'Reference Tables'!$C$2:$D$52,2,FALSE))","v":""},{"$f":"IF(Lab_Inputs[[#This Row],[Change Dynamics]]=\"\", \"\", VLOOKUP('Lab Input and Calculations'!L44,'Reference Tables'!$C$2:$D$52,2,FALSE))","v":""},{"$f":"IF(Lab_Inputs[[#This Row],[Housekeeping]]=\"\", \"\", VLOOKUP('Lab Input and Calculations'!M44,'Reference Tables'!$C$2:$D$52,2,FALSE))","v":""},{"$f":"IF(Lab_Inputs[[#This Row],[ECD Available?]]=\"\",\"\", VLOOKUP('Lab Input and Calculations'!N44,'Reference Tables'!$C$2:$D$52,2,FALSE))","v":""},{"$f":"IF(Lab_Inputs[[#This Row],[ECD Appropriate?]]=\"\", \"\", VLOOKUP('Lab Input and Calculations'!O44,'Reference Tables'!$C$2:$D$52,2,FALSE))","v":""},{"$f":"IF(Lab_Inputs[[#This Row],[Ventilation Effectivness ]]=\"\", \"\",VLOOKUP('Lab Input and Calculations'!P44,'Reference Tables'!$C$2:$D$52,2,FALSE))","v":""},{"$f":"IF(Lab_Inputs[[#This Row],[Maximum RCB for ECDs in Lab]]=\"\", \"\", Lab_Inputs[[#This Row],[Maximum RCB for ECDs in Lab]])","v":""},{"$f":"IF(Table75[[#This Row],[Hazard Exposure Limit Rating]]=\"\", \"\", ($G$1*R44)+($H$1*S44)+($I$1*T44)+($J$1*U44)+($K$1*V44)+($L$1*W44)+($M$1*X44)+($N$1*Y44)+($O$1*Z44)+($P$1*AA44)+($Q$1*AB44))","v":""},{"$f":"IF(Table75[[#This Row],[Weighed Score]]=\"\", \"\", _xlfn.IFS(AND($AC44>='Reference Tables'!$L$2,'Lab Input and Calculations'!$AC44<='Reference Tables'!$L$3),0,AND('Lab Input and Calculations'!$AC44>='Reference Tables'!$L$4,'Lab Input and Calculations'!$AC44<='Reference Tables'!$L$5),1,AND('Lab Input and Calculations'!$AC44>='Reference Tables'!$L$6,'Lab Input and Calculations'!$AC44<='Reference Tables'!$L$7),2,AND('Lab Input and Calculations'!$AC44>='Reference Tables'!$L$8,'Lab Input and Calculations'!$AC44<='Reference Tables'!$L$9),3,AND('Lab Input and Calculations'!$AC44>'Reference Tables'!$L$10,'Lab Input and Calculations'!$AC44<='Reference Tables'!$L$11),4))","v":""},{"$f":"IF(Table75[[#This Row],[Lab Control Band]]=\"\", \"\", VLOOKUP(AD44,'Reference Tables'!$Q$3:$S$12,2))","v":""},{"$f":"IF(Table75[[#This Row],[Lab Control Band]]=\"\", \"\", VLOOKUP(AD44,'Reference Tables'!$Q$3:$S$12,3))","v":""},{"$f":"IF(Table75[[#This Row],[Lab Control Band]]=\"\", \"\", (Table5[[#This Row],[Minimum Air Changes per Hour, Occupied (ACH)]]*10)/60)","v":""},{"$f":"IF(Table75[[#This Row],[Lab Control Band]]=\"\", \"\", (AF44*10)/60)","v":""},{"$f":"IF(Table75[[#This Row],[Lab Control Band]]=\"\", \"\", D44*AG44)","v":""},{"$f":"IF(Table75[[#This Row],[Lab Control Band]]=\"\", \"\", D44*AH44)","v":""},{"$f":"IF(Lab_Inputs[[#This Row],[Lab Number]]=\"\",\"\",SUMIF(ECD_Inputs[Lab Number],Lab_Inputs[[#This Row],[Lab Number]],'ECD Input and Calculations'!$AF$4:$AF$56))","v":""},{"$f":"IF(Lab_Inputs[[#This Row],[Lab Number]]=\"\",\"\",SUMIF(ECD_Inputs[Lab Number],Lab_Inputs[[#This Row],[Lab Number]],'ECD Input and Calculations'!$AE$4:$AE$56))","v":""},{"$f":"IF(Lab_Inputs[[#This Row],[Lab Number]]=\"\",\"\",MAX(Table5[[#This Row],[Minimum Airflow, Occupied  (CFM)]],Table5[[#This Row],[Total ECD Min. Air Flow (CFM)]]))","v":""},{"$f":"IF(Lab_Inputs[[#This Row],[Lab Number]]=\"\",\"\",MAX(Table5[[#This Row],[Minimum Airflow, Unoccupied (CFM)]],Table5[[#This Row],[Total ECD Min. Air Flow (CFM)]]))","v":""}]
[null,null,null,null,null,null,null,null,null,null,null,null,null,null,null,null,{"$f":"IF(Lab_Inputs[[#This Row],[Lab Number]]=\"\",\"\",_xlfn.MAXIFS(Table7[Risk Control Band],ECD_Inputs[Lab Number],Lab_Inputs[[#This Row],[Lab Number]]))","v":""},{"$f":"IF(Lab_Inputs[[#This Row],[Quantity]]=\"\", \"\",VLOOKUP('Lab Input and Calculations'!G45,'Reference Tables'!$C$2:$D$52,2,FALSE))","v":""},{"$f":"IF(Lab_Inputs[[#This Row],[Quantity]]=\"\", \"\",VLOOKUP('Lab Input and Calculations'!H45,'Reference Tables'!$C$2:$D$52,2,FALSE))","v":""},{"$f":"IF(Lab_Inputs[[#This Row],[ Generation Potential]]=\"\", \"\", VLOOKUP('Lab Input and Calculations'!I45,'Reference Tables'!$C$2:$D$52,2,FALSE))","v":""},{"$f":"IF(Lab_Inputs[[#This Row],[ Generation Method]]=\"\", \"\", VLOOKUP('Lab Input and Calculations'!J45,'Reference Tables'!$C$2:$D$52,2,FALSE))","v":""},{"$f":"IF(Lab_Inputs[[#This Row],[Generation Location]]=\"\", \"\", VLOOKUP('Lab Input and Calculations'!K45,'Reference Tables'!$C$2:$D$52,2,FALSE))","v":""},{"$f":"IF(Lab_Inputs[[#This Row],[Change Dynamics]]=\"\", \"\", VLOOKUP('Lab Input and Calculations'!L45,'Reference Tables'!$C$2:$D$52,2,FALSE))","v":""},{"$f":"IF(Lab_Inputs[[#This Row],[Housekeeping]]=\"\", \"\", VLOOKUP('Lab Input and Calculations'!M45,'Reference Tables'!$C$2:$D$52,2,FALSE))","v":""},{"$f":"IF(Lab_Inputs[[#This Row],[ECD Available?]]=\"\",\"\", VLOOKUP('Lab Input and Calculations'!N45,'Reference Tables'!$C$2:$D$52,2,FALSE))","v":""},{"$f":"IF(Lab_Inputs[[#This Row],[ECD Appropriate?]]=\"\", \"\", VLOOKUP('Lab Input and Calculations'!O45,'Reference Tables'!$C$2:$D$52,2,FALSE))","v":""},{"$f":"IF(Lab_Inputs[[#This Row],[Ventilation Effectivness ]]=\"\", \"\",VLOOKUP('Lab Input and Calculations'!P45,'Reference Tables'!$C$2:$D$52,2,FALSE))","v":""},{"$f":"IF(Lab_Inputs[[#This Row],[Maximum RCB for ECDs in Lab]]=\"\", \"\", Lab_Inputs[[#This Row],[Maximum RCB for ECDs in Lab]])","v":""},{"$f":"IF(Table75[[#This Row],[Hazard Exposure Limit Rating]]=\"\", \"\", ($G$1*R45)+($H$1*S45)+($I$1*T45)+($J$1*U45)+($K$1*V45)+($L$1*W45)+($M$1*X45)+($N$1*Y45)+($O$1*Z45)+($P$1*AA45)+($Q$1*AB45))","v":""},{"$f":"IF(Table75[[#This Row],[Weighed Score]]=\"\", \"\", _xlfn.IFS(AND($AC45>='Reference Tables'!$L$2,'Lab Input and Calculations'!$AC45<='Reference Tables'!$L$3),0,AND('Lab Input and Calculations'!$AC45>='Reference Tables'!$L$4,'Lab Input and Calculations'!$AC45<='Reference Tables'!$L$5),1,AND('Lab Input and Calculations'!$AC45>='Reference Tables'!$L$6,'Lab Input and Calculations'!$AC45<='Reference Tables'!$L$7),2,AND('Lab Input and Calculations'!$AC45>='Reference Tables'!$L$8,'Lab Input and Calculations'!$AC45<='Reference Tables'!$L$9),3,AND('Lab Input and Calculations'!$AC45>'Reference Tables'!$L$10,'Lab Input and Calculations'!$AC45<='Reference Tables'!$L$11),4))","v":""},{"$f":"IF(Table75[[#This Row],[Lab Control Band]]=\"\", \"\", VLOOKUP(AD45,'Reference Tables'!$Q$3:$S$12,2))","v":""},{"$f":"IF(Table75[[#This Row],[Lab Control Band]]=\"\", \"\", VLOOKUP(AD45,'Reference Tables'!$Q$3:$S$12,3))","v":""},{"$f":"IF(Table75[[#This Row],[Lab Control Band]]=\"\", \"\", (Table5[[#This Row],[Minimum Air Changes per Hour, Occupied (ACH)]]*10)/60)","v":""},{"$f":"IF(Table75[[#This Row],[Lab Control Band]]=\"\", \"\", (AF45*10)/60)","v":""},{"$f":"IF(Table75[[#This Row],[Lab Control Band]]=\"\", \"\", D45*AG45)","v":""},{"$f":"IF(Table75[[#This Row],[Lab Control Band]]=\"\", \"\", D45*AH45)","v":""},{"$f":"IF(Lab_Inputs[[#This Row],[Lab Number]]=\"\",\"\",SUMIF(ECD_Inputs[Lab Number],Lab_Inputs[[#This Row],[Lab Number]],'ECD Input and Calculations'!$AF$4:$AF$56))","v":""},{"$f":"IF(Lab_Inputs[[#This Row],[Lab Number]]=\"\",\"\",SUMIF(ECD_Inputs[Lab Number],Lab_Inputs[[#This Row],[Lab Number]],'ECD Input and Calculations'!$AE$4:$AE$56))","v":""},{"$f":"IF(Lab_Inputs[[#This Row],[Lab Number]]=\"\",\"\",MAX(Table5[[#This Row],[Minimum Airflow, Occupied  (CFM)]],Table5[[#This Row],[Total ECD Min. Air Flow (CFM)]]))","v":""},{"$f":"IF(Lab_Inputs[[#This Row],[Lab Number]]=\"\",\"\",MAX(Table5[[#This Row],[Minimum Airflow, Unoccupied (CFM)]],Table5[[#This Row],[Total ECD Min. Air Flow (CFM)]]))","v":""}]
[null,null,null,null,null,null,null,null,null,null,null,null,null,null,null,null,{"$f":"IF(Lab_Inputs[[#This Row],[Lab Number]]=\"\",\"\",_xlfn.MAXIFS(Table7[Risk Control Band],ECD_Inputs[Lab Number],Lab_Inputs[[#This Row],[Lab Number]]))","v":""},{"$f":"IF(Lab_Inputs[[#This Row],[Quantity]]=\"\", \"\",VLOOKUP('Lab Input and Calculations'!G46,'Reference Tables'!$C$2:$D$52,2,FALSE))","v":""},{"$f":"IF(Lab_Inputs[[#This Row],[Quantity]]=\"\", \"\",VLOOKUP('Lab Input and Calculations'!H46,'Reference Tables'!$C$2:$D$52,2,FALSE))","v":""},{"$f":"IF(Lab_Inputs[[#This Row],[ Generation Potential]]=\"\", \"\", VLOOKUP('Lab Input and Calculations'!I46,'Reference Tables'!$C$2:$D$52,2,FALSE))","v":""},{"$f":"IF(Lab_Inputs[[#This Row],[ Generation Method]]=\"\", \"\", VLOOKUP('Lab Input and Calculations'!J46,'Reference Tables'!$C$2:$D$52,2,FALSE))","v":""},{"$f":"IF(Lab_Inputs[[#This Row],[Generation Location]]=\"\", \"\", VLOOKUP('Lab Input and Calculations'!K46,'Reference Tables'!$C$2:$D$52,2,FALSE))","v":""},{"$f":"IF(Lab_Inputs[[#This Row],[Change Dynamics]]=\"\", \"\", VLOOKUP('Lab Input and Calculations'!L46,'Reference Tables'!$C$2:$D$52,2,FALSE))","v":""},{"$f":"IF(Lab_Inputs[[#This Row],[Housekeeping]]=\"\", \"\", VLOOKUP('Lab Input and Calculations'!M46,'Reference Tables'!$C$2:$D$52,2,FALSE))","v":""},{"$f":"IF(Lab_Inputs[[#This Row],[ECD Available?]]=\"\",\"\", VLOOKUP('Lab Input and Calculations'!N46,'Reference Tables'!$C$2:$D$52,2,FALSE))","v":""},{"$f":"IF(Lab_Inputs[[#This Row],[ECD Appropriate?]]=\"\", \"\", VLOOKUP('Lab Input and Calculations'!O46,'Reference Tables'!$C$2:$D$52,2,FALSE))","v":""},{"$f":"IF(Lab_Inputs[[#This Row],[Ventilation Effectivness ]]=\"\", \"\",VLOOKUP('Lab Input and Calculations'!P46,'Reference Tables'!$C$2:$D$52,2,FALSE))","v":""},{"$f":"IF(Lab_Inputs[[#This Row],[Maximum RCB for ECDs in Lab]]=\"\", \"\", Lab_Inputs[[#This Row],[Maximum RCB for ECDs in Lab]])","v":""},{"$f":"IF(Table75[[#This Row],[Hazard Exposure Limit Rating]]=\"\", \"\", ($G$1*R46)+($H$1*S46)+($I$1*T46)+($J$1*U46)+($K$1*V46)+($L$1*W46)+($M$1*X46)+($N$1*Y46)+($O$1*Z46)+($P$1*AA46)+($Q$1*AB46))","v":""},{"$f":"IF(Table75[[#This Row],[Weighed Score]]=\"\", \"\", _xlfn.IFS(AND($AC46>='Reference Tables'!$L$2,'Lab Input and Calculations'!$AC46<='Reference Tables'!$L$3),0,AND('Lab Input and Calculations'!$AC46>='Reference Tables'!$L$4,'Lab Input and Calculations'!$AC46<='Reference Tables'!$L$5),1,AND('Lab Input and Calculations'!$AC46>='Reference Tables'!$L$6,'Lab Input and Calculations'!$AC46<='Reference Tables'!$L$7),2,AND('Lab Input and Calculations'!$AC46>='Reference Tables'!$L$8,'Lab Input and Calculations'!$AC46<='Reference Tables'!$L$9),3,AND('Lab Input and Calculations'!$AC46>'Reference Tables'!$L$10,'Lab Input and Calculations'!$AC46<='Reference Tables'!$L$11),4))","v":""},{"$f":"IF(Table75[[#This Row],[Lab Control Band]]=\"\", \"\", VLOOKUP(AD46,'Reference Tables'!$Q$3:$S$12,2))","v":""},{"$f":"IF(Table75[[#This Row],[Lab Control Band]]=\"\", \"\", VLOOKUP(AD46,'Reference Tables'!$Q$3:$S$12,3))","v":""},{"$f":"IF(Table75[[#This Row],[Lab Control Band]]=\"\", \"\", (Table5[[#This Row],[Minimum Air Changes per Hour, Occupied (ACH)]]*10)/60)","v":""},{"$f":"IF(Table75[[#This Row],[Lab Control Band]]=\"\", \"\", (AF46*10)/60)","v":""},{"$f":"IF(Table75[[#This Row],[Lab Control Band]]=\"\", \"\", D46*AG46)","v":""},{"$f":"IF(Table75[[#This Row],[Lab Control Band]]=\"\", \"\", D46*AH46)","v":""},{"$f":"IF(Lab_Inputs[[#This Row],[Lab Number]]=\"\",\"\",SUMIF(ECD_Inputs[Lab Number],Lab_Inputs[[#This Row],[Lab Number]],'ECD Input and Calculations'!$AF$4:$AF$56))","v":""},{"$f":"IF(Lab_Inputs[[#This Row],[Lab Number]]=\"\",\"\",SUMIF(ECD_Inputs[Lab Number],Lab_Inputs[[#This Row],[Lab Number]],'ECD Input and Calculations'!$AE$4:$AE$56))","v":""},{"$f":"IF(Lab_Inputs[[#This Row],[Lab Number]]=\"\",\"\",MAX(Table5[[#This Row],[Minimum Airflow, Occupied  (CFM)]],Table5[[#This Row],[Total ECD Min. Air Flow (CFM)]]))","v":""},{"$f":"IF(Lab_Inputs[[#This Row],[Lab Number]]=\"\",\"\",MAX(Table5[[#This Row],[Minimum Airflow, Unoccupied (CFM)]],Table5[[#This Row],[Total ECD Min. Air Flow (CFM)]]))","v":""}]
[null,null,null,null,null,null,null,null,null,null,null,null,null,null,null,null,{"$f":"IF(Lab_Inputs[[#This Row],[Lab Number]]=\"\",\"\",_xlfn.MAXIFS(Table7[Risk Control Band],ECD_Inputs[Lab Number],Lab_Inputs[[#This Row],[Lab Number]]))","v":""},{"$f":"IF(Lab_Inputs[[#This Row],[Quantity]]=\"\", \"\",VLOOKUP('Lab Input and Calculations'!G47,'Reference Tables'!$C$2:$D$52,2,FALSE))","v":""},{"$f":"IF(Lab_Inputs[[#This Row],[Quantity]]=\"\", \"\",VLOOKUP('Lab Input and Calculations'!H47,'Reference Tables'!$C$2:$D$52,2,FALSE))","v":""},{"$f":"IF(Lab_Inputs[[#This Row],[ Generation Potential]]=\"\", \"\", VLOOKUP('Lab Input and Calculations'!I47,'Reference Tables'!$C$2:$D$52,2,FALSE))","v":""},{"$f":"IF(Lab_Inputs[[#This Row],[ Generation Method]]=\"\", \"\", VLOOKUP('Lab Input and Calculations'!J47,'Reference Tables'!$C$2:$D$52,2,FALSE))","v":""},{"$f":"IF(Lab_Inputs[[#This Row],[Generation Location]]=\"\", \"\", VLOOKUP('Lab Input and Calculations'!K47,'Reference Tables'!$C$2:$D$52,2,FALSE))","v":""},{"$f":"IF(Lab_Inputs[[#This Row],[Change Dynamics]]=\"\", \"\", VLOOKUP('Lab Input and Calculations'!L47,'Reference Tables'!$C$2:$D$52,2,FALSE))","v":""},{"$f":"IF(Lab_Inputs[[#This Row],[Housekeeping]]=\"\", \"\", VLOOKUP('Lab Input and Calculations'!M47,'Reference Tables'!$C$2:$D$52,2,FALSE))","v":""},{"$f":"IF(Lab_Inputs[[#This Row],[ECD Available?]]=\"\",\"\", VLOOKUP('Lab Input and Calculations'!N47,'Reference Tables'!$C$2:$D$52,2,FALSE))","v":""},{"$f":"IF(Lab_Inputs[[#This Row],[ECD Appropriate?]]=\"\", \"\", VLOOKUP('Lab Input and Calculations'!O47,'Reference Tables'!$C$2:$D$52,2,FALSE))","v":""},{"$f":"IF(Lab_Inputs[[#This Row],[Ventilation Effectivness ]]=\"\", \"\",VLOOKUP('Lab Input and Calculations'!P47,'Reference Tables'!$C$2:$D$52,2,FALSE))","v":""},{"$f":"IF(Lab_Inputs[[#This Row],[Maximum RCB for ECDs in Lab]]=\"\", \"\", Lab_Inputs[[#This Row],[Maximum RCB for ECDs in Lab]])","v":""},{"$f":"IF(Table75[[#This Row],[Hazard Exposure Limit Rating]]=\"\", \"\", ($G$1*R47)+($H$1*S47)+($I$1*T47)+($J$1*U47)+($K$1*V47)+($L$1*W47)+($M$1*X47)+($N$1*Y47)+($O$1*Z47)+($P$1*AA47)+($Q$1*AB47))","v":""},{"$f":"IF(Table75[[#This Row],[Weighed Score]]=\"\", \"\", _xlfn.IFS(AND($AC47>='Reference Tables'!$L$2,'Lab Input and Calculations'!$AC47<='Reference Tables'!$L$3),0,AND('Lab Input and Calculations'!$AC47>='Reference Tables'!$L$4,'Lab Input and Calculations'!$AC47<='Reference Tables'!$L$5),1,AND('Lab Input and Calculations'!$AC47>='Reference Tables'!$L$6,'Lab Input and Calculations'!$AC47<='Reference Tables'!$L$7),2,AND('Lab Input and Calculations'!$AC47>='Reference Tables'!$L$8,'Lab Input and Calculations'!$AC47<='Reference Tables'!$L$9),3,AND('Lab Input and Calculations'!$AC47>'Reference Tables'!$L$10,'Lab Input and Calculations'!$AC47<='Reference Tables'!$L$11),4))","v":""},{"$f":"IF(Table75[[#This Row],[Lab Control Band]]=\"\", \"\", VLOOKUP(AD47,'Reference Tables'!$Q$3:$S$12,2))","v":""},{"$f":"IF(Table75[[#This Row],[Lab Control Band]]=\"\", \"\", VLOOKUP(AD47,'Reference Tables'!$Q$3:$S$12,3))","v":""},{"$f":"IF(Table75[[#This Row],[Lab Control Band]]=\"\", \"\", (Table5[[#This Row],[Minimum Air Changes per Hour, Occupied (ACH)]]*10)/60)","v":""},{"$f":"IF(Table75[[#This Row],[Lab Control Band]]=\"\", \"\", (AF47*10)/60)","v":""},{"$f":"IF(Table75[[#This Row],[Lab Control Band]]=\"\", \"\", D47*AG47)","v":""},{"$f":"IF(Table75[[#This Row],[Lab Control Band]]=\"\", \"\", D47*AH47)","v":""},{"$f":"IF(Lab_Inputs[[#This Row],[Lab Number]]=\"\",\"\",SUMIF(ECD_Inputs[Lab Number],Lab_Inputs[[#This Row],[Lab Number]],'ECD Input and Calculations'!$AF$4:$AF$56))","v":""},{"$f":"IF(Lab_Inputs[[#This Row],[Lab Number]]=\"\",\"\",SUMIF(ECD_Inputs[Lab Number],Lab_Inputs[[#This Row],[Lab Number]],'ECD Input and Calculations'!$AE$4:$AE$56))","v":""},{"$f":"IF(Lab_Inputs[[#This Row],[Lab Number]]=\"\",\"\",MAX(Table5[[#This Row],[Minimum Airflow, Occupied  (CFM)]],Table5[[#This Row],[Total ECD Min. Air Flow (CFM)]]))","v":""},{"$f":"IF(Lab_Inputs[[#This Row],[Lab Number]]=\"\",\"\",MAX(Table5[[#This Row],[Minimum Airflow, Unoccupied (CFM)]],Table5[[#This Row],[Total ECD Min. Air Flow (CFM)]]))","v":""}]
[null,null,null,null,null,null,null,null,null,null,null,null,null,null,null,null,{"$f":"IF(Lab_Inputs[[#This Row],[Lab Number]]=\"\",\"\",_xlfn.MAXIFS(Table7[Risk Control Band],ECD_Inputs[Lab Number],Lab_Inputs[[#This Row],[Lab Number]]))","v":""},{"$f":"IF(Lab_Inputs[[#This Row],[Quantity]]=\"\", \"\",VLOOKUP('Lab Input and Calculations'!G48,'Reference Tables'!$C$2:$D$52,2,FALSE))","v":""},{"$f":"IF(Lab_Inputs[[#This Row],[Quantity]]=\"\", \"\",VLOOKUP('Lab Input and Calculations'!H48,'Reference Tables'!$C$2:$D$52,2,FALSE))","v":""},{"$f":"IF(Lab_Inputs[[#This Row],[ Generation Potential]]=\"\", \"\", VLOOKUP('Lab Input and Calculations'!I48,'Reference Tables'!$C$2:$D$52,2,FALSE))","v":""},{"$f":"IF(Lab_Inputs[[#This Row],[ Generation Method]]=\"\", \"\", VLOOKUP('Lab Input and Calculations'!J48,'Reference Tables'!$C$2:$D$52,2,FALSE))","v":""},{"$f":"IF(Lab_Inputs[[#This Row],[Generation Location]]=\"\", \"\", VLOOKUP('Lab Input and Calculations'!K48,'Reference Tables'!$C$2:$D$52,2,FALSE))","v":""},{"$f":"IF(Lab_Inputs[[#This Row],[Change Dynamics]]=\"\", \"\", VLOOKUP('Lab Input and Calculations'!L48,'Reference Tables'!$C$2:$D$52,2,FALSE))","v":""},{"$f":"IF(Lab_Inputs[[#This Row],[Housekeeping]]=\"\", \"\", VLOOKUP('Lab Input and Calculations'!M48,'Reference Tables'!$C$2:$D$52,2,FALSE))","v":""},{"$f":"IF(Lab_Inputs[[#This Row],[ECD Available?]]=\"\",\"\", VLOOKUP('Lab Input and Calculations'!N48,'Reference Tables'!$C$2:$D$52,2,FALSE))","v":""},{"$f":"IF(Lab_Inputs[[#This Row],[ECD Appropriate?]]=\"\", \"\", VLOOKUP('Lab Input and Calculations'!O48,'Reference Tables'!$C$2:$D$52,2,FALSE))","v":""},{"$f":"IF(Lab_Inputs[[#This Row],[Ventilation Effectivness ]]=\"\", \"\",VLOOKUP('Lab Input and Calculations'!P48,'Reference Tables'!$C$2:$D$52,2,FALSE))","v":""},{"$f":"IF(Lab_Inputs[[#This Row],[Maximum RCB for ECDs in Lab]]=\"\", \"\", Lab_Inputs[[#This Row],[Maximum RCB for ECDs in Lab]])","v":""},{"$f":"IF(Table75[[#This Row],[Hazard Exposure Limit Rating]]=\"\", \"\", ($G$1*R48)+($H$1*S48)+($I$1*T48)+($J$1*U48)+($K$1*V48)+($L$1*W48)+($M$1*X48)+($N$1*Y48)+($O$1*Z48)+($P$1*AA48)+($Q$1*AB48))","v":""},{"$f":"IF(Table75[[#This Row],[Weighed Score]]=\"\", \"\", _xlfn.IFS(AND($AC48>='Reference Tables'!$L$2,'Lab Input and Calculations'!$AC48<='Reference Tables'!$L$3),0,AND('Lab Input and Calculations'!$AC48>='Reference Tables'!$L$4,'Lab Input and Calculations'!$AC48<='Reference Tables'!$L$5),1,AND('Lab Input and Calculations'!$AC48>='Reference Tables'!$L$6,'Lab Input and Calculations'!$AC48<='Reference Tables'!$L$7),2,AND('Lab Input and Calculations'!$AC48>='Reference Tables'!$L$8,'Lab Input and Calculations'!$AC48<='Reference Tables'!$L$9),3,AND('Lab Input and Calculations'!$AC48>'Reference Tables'!$L$10,'Lab Input and Calculations'!$AC48<='Reference Tables'!$L$11),4))","v":""},{"$f":"IF(Table75[[#This Row],[Lab Control Band]]=\"\", \"\", VLOOKUP(AD48,'Reference Tables'!$Q$3:$S$12,2))","v":""},{"$f":"IF(Table75[[#This Row],[Lab Control Band]]=\"\", \"\", VLOOKUP(AD48,'Reference Tables'!$Q$3:$S$12,3))","v":""},{"$f":"IF(Table75[[#This Row],[Lab Control Band]]=\"\", \"\", (Table5[[#This Row],[Minimum Air Changes per Hour, Occupied (ACH)]]*10)/60)","v":""},{"$f":"IF(Table75[[#This Row],[Lab Control Band]]=\"\", \"\", (AF48*10)/60)","v":""},{"$f":"IF(Table75[[#This Row],[Lab Control Band]]=\"\", \"\", D48*AG48)","v":""},{"$f":"IF(Table75[[#This Row],[Lab Control Band]]=\"\", \"\", D48*AH48)","v":""},{"$f":"IF(Lab_Inputs[[#This Row],[Lab Number]]=\"\",\"\",SUMIF(ECD_Inputs[Lab Number],Lab_Inputs[[#This Row],[Lab Number]],'ECD Input and Calculations'!$AF$4:$AF$56))","v":""},{"$f":"IF(Lab_Inputs[[#This Row],[Lab Number]]=\"\",\"\",SUMIF(ECD_Inputs[Lab Number],Lab_Inputs[[#This Row],[Lab Number]],'ECD Input and Calculations'!$AE$4:$AE$56))","v":""},{"$f":"IF(Lab_Inputs[[#This Row],[Lab Number]]=\"\",\"\",MAX(Table5[[#This Row],[Minimum Airflow, Occupied  (CFM)]],Table5[[#This Row],[Total ECD Min. Air Flow (CFM)]]))","v":""},{"$f":"IF(Lab_Inputs[[#This Row],[Lab Number]]=\"\",\"\",MAX(Table5[[#This Row],[Minimum Airflow, Unoccupied (CFM)]],Table5[[#This Row],[Total ECD Min. Air Flow (CFM)]]))","v":""}]
[null,null,null,null,null,null,null,null,null,null,null,null,null,null,null,null,{"$f":"IF(Lab_Inputs[[#This Row],[Lab Number]]=\"\",\"\",_xlfn.MAXIFS(Table7[Risk Control Band],ECD_Inputs[Lab Number],Lab_Inputs[[#This Row],[Lab Number]]))","v":""},{"$f":"IF(Lab_Inputs[[#This Row],[Quantity]]=\"\", \"\",VLOOKUP('Lab Input and Calculations'!G49,'Reference Tables'!$C$2:$D$52,2,FALSE))","v":""},{"$f":"IF(Lab_Inputs[[#This Row],[Quantity]]=\"\", \"\",VLOOKUP('Lab Input and Calculations'!H49,'Reference Tables'!$C$2:$D$52,2,FALSE))","v":""},{"$f":"IF(Lab_Inputs[[#This Row],[ Generation Potential]]=\"\", \"\", VLOOKUP('Lab Input and Calculations'!I49,'Reference Tables'!$C$2:$D$52,2,FALSE))","v":""},{"$f":"IF(Lab_Inputs[[#This Row],[ Generation Method]]=\"\", \"\", VLOOKUP('Lab Input and Calculations'!J49,'Reference Tables'!$C$2:$D$52,2,FALSE))","v":""},{"$f":"IF(Lab_Inputs[[#This Row],[Generation Location]]=\"\", \"\", VLOOKUP('Lab Input and Calculations'!K49,'Reference Tables'!$C$2:$D$52,2,FALSE))","v":""},{"$f":"IF(Lab_Inputs[[#This Row],[Change Dynamics]]=\"\", \"\", VLOOKUP('Lab Input and Calculations'!L49,'Reference Tables'!$C$2:$D$52,2,FALSE))","v":""},{"$f":"IF(Lab_Inputs[[#This Row],[Housekeeping]]=\"\", \"\", VLOOKUP('Lab Input and Calculations'!M49,'Reference Tables'!$C$2:$D$52,2,FALSE))","v":""},{"$f":"IF(Lab_Inputs[[#This Row],[ECD Available?]]=\"\",\"\", VLOOKUP('Lab Input and Calculations'!N49,'Reference Tables'!$C$2:$D$52,2,FALSE))","v":""},{"$f":"IF(Lab_Inputs[[#This Row],[ECD Appropriate?]]=\"\", \"\", VLOOKUP('Lab Input and Calculations'!O49,'Reference Tables'!$C$2:$D$52,2,FALSE))","v":""},{"$f":"IF(Lab_Inputs[[#This Row],[Ventilation Effectivness ]]=\"\", \"\",VLOOKUP('Lab Input and Calculations'!P49,'Reference Tables'!$C$2:$D$52,2,FALSE))","v":""},{"$f":"IF(Lab_Inputs[[#This Row],[Maximum RCB for ECDs in Lab]]=\"\", \"\", Lab_Inputs[[#This Row],[Maximum RCB for ECDs in Lab]])","v":""},{"$f":"IF(Table75[[#This Row],[Hazard Exposure Limit Rating]]=\"\", \"\", ($G$1*R49)+($H$1*S49)+($I$1*T49)+($J$1*U49)+($K$1*V49)+($L$1*W49)+($M$1*X49)+($N$1*Y49)+($O$1*Z49)+($P$1*AA49)+($Q$1*AB49))","v":""},{"$f":"IF(Table75[[#This Row],[Weighed Score]]=\"\", \"\", _xlfn.IFS(AND($AC49>='Reference Tables'!$L$2,'Lab Input and Calculations'!$AC49<='Reference Tables'!$L$3),0,AND('Lab Input and Calculations'!$AC49>='Reference Tables'!$L$4,'Lab Input and Calculations'!$AC49<='Reference Tables'!$L$5),1,AND('Lab Input and Calculations'!$AC49>='Reference Tables'!$L$6,'Lab Input and Calculations'!$AC49<='Reference Tables'!$L$7),2,AND('Lab Input and Calculations'!$AC49>='Reference Tables'!$L$8,'Lab Input and Calculations'!$AC49<='Reference Tables'!$L$9),3,AND('Lab Input and Calculations'!$AC49>'Reference Tables'!$L$10,'Lab Input and Calculations'!$AC49<='Reference Tables'!$L$11),4))","v":""},{"$f":"IF(Table75[[#This Row],[Lab Control Band]]=\"\", \"\", VLOOKUP(AD49,'Reference Tables'!$Q$3:$S$12,2))","v":""},{"$f":"IF(Table75[[#This Row],[Lab Control Band]]=\"\", \"\", VLOOKUP(AD49,'Reference Tables'!$Q$3:$S$12,3))","v":""},{"$f":"IF(Table75[[#This Row],[Lab Control Band]]=\"\", \"\", (Table5[[#This Row],[Minimum Air Changes per Hour, Occupied (ACH)]]*10)/60)","v":""},{"$f":"IF(Table75[[#This Row],[Lab Control Band]]=\"\", \"\", (AF49*10)/60)","v":""},{"$f":"IF(Table75[[#This Row],[Lab Control Band]]=\"\", \"\", D49*AG49)","v":""},{"$f":"IF(Table75[[#This Row],[Lab Control Band]]=\"\", \"\", D49*AH49)","v":""},{"$f":"IF(Lab_Inputs[[#This Row],[Lab Number]]=\"\",\"\",SUMIF(ECD_Inputs[Lab Number],Lab_Inputs[[#This Row],[Lab Number]],'ECD Input and Calculations'!$AF$4:$AF$56))","v":""},{"$f":"IF(Lab_Inputs[[#This Row],[Lab Number]]=\"\",\"\",SUMIF(ECD_Inputs[Lab Number],Lab_Inputs[[#This Row],[Lab Number]],'ECD Input and Calculations'!$AE$4:$AE$56))","v":""},{"$f":"IF(Lab_Inputs[[#This Row],[Lab Number]]=\"\",\"\",MAX(Table5[[#This Row],[Minimum Airflow, Occupied  (CFM)]],Table5[[#This Row],[Total ECD Min. Air Flow (CFM)]]))","v":""},{"$f":"IF(Lab_Inputs[[#This Row],[Lab Number]]=\"\",\"\",MAX(Table5[[#This Row],[Minimum Airflow, Unoccupied (CFM)]],Table5[[#This Row],[Total ECD Min. Air Flow (CFM)]]))","v":""}]
[null,null,null,null,null,null,null,null,null,null,null,null,null,null,null,null,{"$f":"IF(Lab_Inputs[[#This Row],[Lab Number]]=\"\",\"\",_xlfn.MAXIFS(Table7[Risk Control Band],ECD_Inputs[Lab Number],Lab_Inputs[[#This Row],[Lab Number]]))","v":""},{"$f":"IF(Lab_Inputs[[#This Row],[Quantity]]=\"\", \"\",VLOOKUP('Lab Input and Calculations'!G50,'Reference Tables'!$C$2:$D$52,2,FALSE))","v":""},{"$f":"IF(Lab_Inputs[[#This Row],[Quantity]]=\"\", \"\",VLOOKUP('Lab Input and Calculations'!H50,'Reference Tables'!$C$2:$D$52,2,FALSE))","v":""},{"$f":"IF(Lab_Inputs[[#This Row],[ Generation Potential]]=\"\", \"\", VLOOKUP('Lab Input and Calculations'!I50,'Reference Tables'!$C$2:$D$52,2,FALSE))","v":""},{"$f":"IF(Lab_Inputs[[#This Row],[ Generation Method]]=\"\", \"\", VLOOKUP('Lab Input and Calculations'!J50,'Reference Tables'!$C$2:$D$52,2,FALSE))","v":""},{"$f":"IF(Lab_Inputs[[#This Row],[Generation Location]]=\"\", \"\", VLOOKUP('Lab Input and Calculations'!K50,'Reference Tables'!$C$2:$D$52,2,FALSE))","v":""},{"$f":"IF(Lab_Inputs[[#This Row],[Change Dynamics]]=\"\", \"\", VLOOKUP('Lab Input and Calculations'!L50,'Reference Tables'!$C$2:$D$52,2,FALSE))","v":""},{"$f":"IF(Lab_Inputs[[#This Row],[Housekeeping]]=\"\", \"\", VLOOKUP('Lab Input and Calculations'!M50,'Reference Tables'!$C$2:$D$52,2,FALSE))","v":""},{"$f":"IF(Lab_Inputs[[#This Row],[ECD Available?]]=\"\",\"\", VLOOKUP('Lab Input and Calculations'!N50,'Reference Tables'!$C$2:$D$52,2,FALSE))","v":""},{"$f":"IF(Lab_Inputs[[#This Row],[ECD Appropriate?]]=\"\", \"\", VLOOKUP('Lab Input and Calculations'!O50,'Reference Tables'!$C$2:$D$52,2,FALSE))","v":""},{"$f":"IF(Lab_Inputs[[#This Row],[Ventilation Effectivness ]]=\"\", \"\",VLOOKUP('Lab Input and Calculations'!P50,'Reference Tables'!$C$2:$D$52,2,FALSE))","v":""},{"$f":"IF(Lab_Inputs[[#This Row],[Maximum RCB for ECDs in Lab]]=\"\", \"\", Lab_Inputs[[#This Row],[Maximum RCB for ECDs in Lab]])","v":""},{"$f":"IF(Table75[[#This Row],[Hazard Exposure Limit Rating]]=\"\", \"\", ($G$1*R50)+($H$1*S50)+($I$1*T50)+($J$1*U50)+($K$1*V50)+($L$1*W50)+($M$1*X50)+($N$1*Y50)+($O$1*Z50)+($P$1*AA50)+($Q$1*AB50))","v":""},{"$f":"IF(Table75[[#This Row],[Weighed Score]]=\"\", \"\", _xlfn.IFS(AND($AC50>='Reference Tables'!$L$2,'Lab Input and Calculations'!$AC50<='Reference Tables'!$L$3),0,AND('Lab Input and Calculations'!$AC50>='Reference Tables'!$L$4,'Lab Input and Calculations'!$AC50<='Reference Tables'!$L$5),1,AND('Lab Input and Calculations'!$AC50>='Reference Tables'!$L$6,'Lab Input and Calculations'!$AC50<='Reference Tables'!$L$7),2,AND('Lab Input and Calculations'!$AC50>='Reference Tables'!$L$8,'Lab Input and Calculations'!$AC50<='Reference Tables'!$L$9),3,AND('Lab Input and Calculations'!$AC50>'Reference Tables'!$L$10,'Lab Input and Calculations'!$AC50<='Reference Tables'!$L$11),4))","v":""},{"$f":"IF(Table75[[#This Row],[Lab Control Band]]=\"\", \"\", VLOOKUP(AD50,'Reference Tables'!$Q$3:$S$12,2))","v":""},{"$f":"IF(Table75[[#This Row],[Lab Control Band]]=\"\", \"\", VLOOKUP(AD50,'Reference Tables'!$Q$3:$S$12,3))","v":""},{"$f":"IF(Table75[[#This Row],[Lab Control Band]]=\"\", \"\", (Table5[[#This Row],[Minimum Air Changes per Hour, Occupied (ACH)]]*10)/60)","v":""},{"$f":"IF(Table75[[#This Row],[Lab Control Band]]=\"\", \"\", (AF50*10)/60)","v":""},{"$f":"IF(Table75[[#This Row],[Lab Control Band]]=\"\", \"\", D50*AG50)","v":""},{"$f":"IF(Table75[[#This Row],[Lab Control Band]]=\"\", \"\", D50*AH50)","v":""},{"$f":"IF(Lab_Inputs[[#This Row],[Lab Number]]=\"\",\"\",SUMIF(ECD_Inputs[Lab Number],Lab_Inputs[[#This Row],[Lab Number]],'ECD Input and Calculations'!$AF$4:$AF$56))","v":""},{"$f":"IF(Lab_Inputs[[#This Row],[Lab Number]]=\"\",\"\",SUMIF(ECD_Inputs[Lab Number],Lab_Inputs[[#This Row],[Lab Number]],'ECD Input and Calculations'!$AE$4:$AE$56))","v":""},{"$f":"IF(Lab_Inputs[[#This Row],[Lab Number]]=\"\",\"\",MAX(Table5[[#This Row],[Minimum Airflow, Occupied  (CFM)]],Table5[[#This Row],[Total ECD Min. Air Flow (CFM)]]))","v":""},{"$f":"IF(Lab_Inputs[[#This Row],[Lab Number]]=\"\",\"\",MAX(Table5[[#This Row],[Minimum Airflow, Unoccupied (CFM)]],Table5[[#This Row],[Total ECD Min. Air Flow (CFM)]]))","v":""}]
[null,null,null,null,null,null,null,null,null,null,null,null,null,null,null,null,{"$f":"IF(Lab_Inputs[[#This Row],[Lab Number]]=\"\",\"\",_xlfn.MAXIFS(Table7[Risk Control Band],ECD_Inputs[Lab Number],Lab_Inputs[[#This Row],[Lab Number]]))","v":""},{"$f":"IF(Lab_Inputs[[#This Row],[Quantity]]=\"\", \"\",VLOOKUP('Lab Input and Calculations'!G51,'Reference Tables'!$C$2:$D$52,2,FALSE))","v":""},{"$f":"IF(Lab_Inputs[[#This Row],[Quantity]]=\"\", \"\",VLOOKUP('Lab Input and Calculations'!H51,'Reference Tables'!$C$2:$D$52,2,FALSE))","v":""},{"$f":"IF(Lab_Inputs[[#This Row],[ Generation Potential]]=\"\", \"\", VLOOKUP('Lab Input and Calculations'!I51,'Reference Tables'!$C$2:$D$52,2,FALSE))","v":""},{"$f":"IF(Lab_Inputs[[#This Row],[ Generation Method]]=\"\", \"\", VLOOKUP('Lab Input and Calculations'!J51,'Reference Tables'!$C$2:$D$52,2,FALSE))","v":""},{"$f":"IF(Lab_Inputs[[#This Row],[Generation Location]]=\"\", \"\", VLOOKUP('Lab Input and Calculations'!K51,'Reference Tables'!$C$2:$D$52,2,FALSE))","v":""},{"$f":"IF(Lab_Inputs[[#This Row],[Change Dynamics]]=\"\", \"\", VLOOKUP('Lab Input and Calculations'!L51,'Reference Tables'!$C$2:$D$52,2,FALSE))","v":""},{"$f":"IF(Lab_Inputs[[#This Row],[Housekeeping]]=\"\", \"\", VLOOKUP('Lab Input and Calculations'!M51,'Reference Tables'!$C$2:$D$52,2,FALSE))","v":""},{"$f":"IF(Lab_Inputs[[#This Row],[ECD Available?]]=\"\",\"\", VLOOKUP('Lab Input and Calculations'!N51,'Reference Tables'!$C$2:$D$52,2,FALSE))","v":""},{"$f":"IF(Lab_Inputs[[#This Row],[ECD Appropriate?]]=\"\", \"\", VLOOKUP('Lab Input and Calculations'!O51,'Reference Tables'!$C$2:$D$52,2,FALSE))","v":""},{"$f":"IF(Lab_Inputs[[#This Row],[Ventilation Effectivness ]]=\"\", \"\",VLOOKUP('Lab Input and Calculations'!P51,'Reference Tables'!$C$2:$D$52,2,FALSE))","v":""},{"$f":"IF(Lab_Inputs[[#This Row],[Maximum RCB for ECDs in Lab]]=\"\", \"\", Lab_Inputs[[#This Row],[Maximum RCB for ECDs in Lab]])","v":""},{"$f":"IF(Table75[[#This Row],[Hazard Exposure Limit Rating]]=\"\", \"\", ($G$1*R51)+($H$1*S51)+($I$1*T51)+($J$1*U51)+($K$1*V51)+($L$1*W51)+($M$1*X51)+($N$1*Y51)+($O$1*Z51)+($P$1*AA51)+($Q$1*AB51))","v":""},{"$f":"IF(Table75[[#This Row],[Weighed Score]]=\"\", \"\", _xlfn.IFS(AND($AC51>='Reference Tables'!$L$2,'Lab Input and Calculations'!$AC51<='Reference Tables'!$L$3),0,AND('Lab Input and Calculations'!$AC51>='Reference Tables'!$L$4,'Lab Input and Calculations'!$AC51<='Reference Tables'!$L$5),1,AND('Lab Input and Calculations'!$AC51>='Reference Tables'!$L$6,'Lab Input and Calculations'!$AC51<='Reference Tables'!$L$7),2,AND('Lab Input and Calculations'!$AC51>='Reference Tables'!$L$8,'Lab Input and Calculations'!$AC51<='Reference Tables'!$L$9),3,AND('Lab Input and Calculations'!$AC51>'Reference Tables'!$L$10,'Lab Input and Calculations'!$AC51<='Reference Tables'!$L$11),4))","v":""},{"$f":"IF(Table75[[#This Row],[Lab Control Band]]=\"\", \"\", VLOOKUP(AD51,'Reference Tables'!$Q$3:$S$12,2))","v":""},{"$f":"IF(Table75[[#This Row],[Lab Control Band]]=\"\", \"\", VLOOKUP(AD51,'Reference Tables'!$Q$3:$S$12,3))","v":""},{"$f":"IF(Table75[[#This Row],[Lab Control Band]]=\"\", \"\", (Table5[[#This Row],[Minimum Air Changes per Hour, Occupied (ACH)]]*10)/60)","v":""},{"$f":"IF(Table75[[#This Row],[Lab Control Band]]=\"\", \"\", (AF51*10)/60)","v":""},{"$f":"IF(Table75[[#This Row],[Lab Control Band]]=\"\", \"\", D51*AG51)","v":""},{"$f":"IF(Table75[[#This Row],[Lab Control Band]]=\"\", \"\", D51*AH51)","v":""},{"$f":"IF(Lab_Inputs[[#This Row],[Lab Number]]=\"\",\"\",SUMIF(ECD_Inputs[Lab Number],Lab_Inputs[[#This Row],[Lab Number]],'ECD Input and Calculations'!$AF$4:$AF$56))","v":""},{"$f":"IF(Lab_Inputs[[#This Row],[Lab Number]]=\"\",\"\",SUMIF(ECD_Inputs[Lab Number],Lab_Inputs[[#This Row],[Lab Number]],'ECD Input and Calculations'!$AE$4:$AE$56))","v":""},{"$f":"IF(Lab_Inputs[[#This Row],[Lab Number]]=\"\",\"\",MAX(Table5[[#This Row],[Minimum Airflow, Occupied  (CFM)]],Table5[[#This Row],[Total ECD Min. Air Flow (CFM)]]))","v":""},{"$f":"IF(Lab_Inputs[[#This Row],[Lab Number]]=\"\",\"\",MAX(Table5[[#This Row],[Minimum Airflow, Unoccupied (CFM)]],Table5[[#This Row],[Total ECD Min. Air Flow (CFM)]]))","v":""}]
[null,null,null,null,null,null,null,null,null,null,null,null,null,null,null,null,{"$f":"IF(Lab_Inputs[[#This Row],[Lab Number]]=\"\",\"\",_xlfn.MAXIFS(Table7[Risk Control Band],ECD_Inputs[Lab Number],Lab_Inputs[[#This Row],[Lab Number]]))","v":""},{"$f":"IF(Lab_Inputs[[#This Row],[Quantity]]=\"\", \"\",VLOOKUP('Lab Input and Calculations'!G52,'Reference Tables'!$C$2:$D$52,2,FALSE))","v":""},{"$f":"IF(Lab_Inputs[[#This Row],[Quantity]]=\"\", \"\",VLOOKUP('Lab Input and Calculations'!H52,'Reference Tables'!$C$2:$D$52,2,FALSE))","v":""},{"$f":"IF(Lab_Inputs[[#This Row],[ Generation Potential]]=\"\", \"\", VLOOKUP('Lab Input and Calculations'!I52,'Reference Tables'!$C$2:$D$52,2,FALSE))","v":""},{"$f":"IF(Lab_Inputs[[#This Row],[ Generation Method]]=\"\", \"\", VLOOKUP('Lab Input and Calculations'!J52,'Reference Tables'!$C$2:$D$52,2,FALSE))","v":""},{"$f":"IF(Lab_Inputs[[#This Row],[Generation Location]]=\"\", \"\", VLOOKUP('Lab Input and Calculations'!K52,'Reference Tables'!$C$2:$D$52,2,FALSE))","v":""},{"$f":"IF(Lab_Inputs[[#This Row],[Change Dynamics]]=\"\", \"\", VLOOKUP('Lab Input and Calculations'!L52,'Reference Tables'!$C$2:$D$52,2,FALSE))","v":""},{"$f":"IF(Lab_Inputs[[#This Row],[Housekeeping]]=\"\", \"\", VLOOKUP('Lab Input and Calculations'!M52,'Reference Tables'!$C$2:$D$52,2,FALSE))","v":""},{"$f":"IF(Lab_Inputs[[#This Row],[ECD Available?]]=\"\",\"\", VLOOKUP('Lab Input and Calculations'!N52,'Reference Tables'!$C$2:$D$52,2,FALSE))","v":""},{"$f":"IF(Lab_Inputs[[#This Row],[ECD Appropriate?]]=\"\", \"\", VLOOKUP('Lab Input and Calculations'!O52,'Reference Tables'!$C$2:$D$52,2,FALSE))","v":""},{"$f":"IF(Lab_Inputs[[#This Row],[Ventilation Effectivness ]]=\"\", \"\",VLOOKUP('Lab Input and Calculations'!P52,'Reference Tables'!$C$2:$D$52,2,FALSE))","v":""},{"$f":"IF(Lab_Inputs[[#This Row],[Maximum RCB for ECDs in Lab]]=\"\", \"\", Lab_Inputs[[#This Row],[Maximum RCB for ECDs in Lab]])","v":""},{"$f":"IF(Table75[[#This Row],[Hazard Exposure Limit Rating]]=\"\", \"\", ($G$1*R52)+($H$1*S52)+($I$1*T52)+($J$1*U52)+($K$1*V52)+($L$1*W52)+($M$1*X52)+($N$1*Y52)+($O$1*Z52)+($P$1*AA52)+($Q$1*AB52))","v":""},{"$f":"IF(Table75[[#This Row],[Weighed Score]]=\"\", \"\", _xlfn.IFS(AND($AC52>='Reference Tables'!$L$2,'Lab Input and Calculations'!$AC52<='Reference Tables'!$L$3),0,AND('Lab Input and Calculations'!$AC52>='Reference Tables'!$L$4,'Lab Input and Calculations'!$AC52<='Reference Tables'!$L$5),1,AND('Lab Input and Calculations'!$AC52>='Reference Tables'!$L$6,'Lab Input and Calculations'!$AC52<='Reference Tables'!$L$7),2,AND('Lab Input and Calculations'!$AC52>='Reference Tables'!$L$8,'Lab Input and Calculations'!$AC52<='Reference Tables'!$L$9),3,AND('Lab Input and Calculations'!$AC52>'Reference Tables'!$L$10,'Lab Input and Calculations'!$AC52<='Reference Tables'!$L$11),4))","v":""},{"$f":"IF(Table75[[#This Row],[Lab Control Band]]=\"\", \"\", VLOOKUP(AD52,'Reference Tables'!$Q$3:$S$12,2))","v":""},{"$f":"IF(Table75[[#This Row],[Lab Control Band]]=\"\", \"\", VLOOKUP(AD52,'Reference Tables'!$Q$3:$S$12,3))","v":""},{"$f":"IF(Table75[[#This Row],[Lab Control Band]]=\"\", \"\", (Table5[[#This Row],[Minimum Air Changes per Hour, Occupied (ACH)]]*10)/60)","v":""},{"$f":"IF(Table75[[#This Row],[Lab Control Band]]=\"\", \"\", (AF52*10)/60)","v":""},{"$f":"IF(Table75[[#This Row],[Lab Control Band]]=\"\", \"\", D52*AG52)","v":""},{"$f":"IF(Table75[[#This Row],[Lab Control Band]]=\"\", \"\", D52*AH52)","v":""},{"$f":"IF(Lab_Inputs[[#This Row],[Lab Number]]=\"\",\"\",SUMIF(ECD_Inputs[Lab Number],Lab_Inputs[[#This Row],[Lab Number]],'ECD Input and Calculations'!$AF$4:$AF$56))","v":""},{"$f":"IF(Lab_Inputs[[#This Row],[Lab Number]]=\"\",\"\",SUMIF(ECD_Inputs[Lab Number],Lab_Inputs[[#This Row],[Lab Number]],'ECD Input and Calculations'!$AE$4:$AE$56))","v":""},{"$f":"IF(Lab_Inputs[[#This Row],[Lab Number]]=\"\",\"\",MAX(Table5[[#This Row],[Minimum Airflow, Occupied  (CFM)]],Table5[[#This Row],[Total ECD Min. Air Flow (CFM)]]))","v":""},{"$f":"IF(Lab_Inputs[[#This Row],[Lab Number]]=\"\",\"\",MAX(Table5[[#This Row],[Minimum Airflow, Unoccupied (CFM)]],Table5[[#This Row],[Total ECD Min. Air Flow (CFM)]]))","v":""}]
[null,null,null,null,null,null,null,null,null,null,null,null,null,null,null,null,{"$f":"IF(Lab_Inputs[[#This Row],[Lab Number]]=\"\",\"\",_xlfn.MAXIFS(Table7[Risk Control Band],ECD_Inputs[Lab Number],Lab_Inputs[[#This Row],[Lab Number]]))","v":""},{"$f":"IF(Lab_Inputs[[#This Row],[Quantity]]=\"\", \"\",VLOOKUP('Lab Input and Calculations'!G53,'Reference Tables'!$C$2:$D$52,2,FALSE))","v":""},{"$f":"IF(Lab_Inputs[[#This Row],[Quantity]]=\"\", \"\",VLOOKUP('Lab Input and Calculations'!H53,'Reference Tables'!$C$2:$D$52,2,FALSE))","v":""},{"$f":"IF(Lab_Inputs[[#This Row],[ Generation Potential]]=\"\", \"\", VLOOKUP('Lab Input and Calculations'!I53,'Reference Tables'!$C$2:$D$52,2,FALSE))","v":""},{"$f":"IF(Lab_Inputs[[#This Row],[ Generation Method]]=\"\", \"\", VLOOKUP('Lab Input and Calculations'!J53,'Reference Tables'!$C$2:$D$52,2,FALSE))","v":""},{"$f":"IF(Lab_Inputs[[#This Row],[Generation Location]]=\"\", \"\", VLOOKUP('Lab Input and Calculations'!K53,'Reference Tables'!$C$2:$D$52,2,FALSE))","v":""},{"$f":"IF(Lab_Inputs[[#This Row],[Change Dynamics]]=\"\", \"\", VLOOKUP('Lab Input and Calculations'!L53,'Reference Tables'!$C$2:$D$52,2,FALSE))","v":""},{"$f":"IF(Lab_Inputs[[#This Row],[Housekeeping]]=\"\", \"\", VLOOKUP('Lab Input and Calculations'!M53,'Reference Tables'!$C$2:$D$52,2,FALSE))","v":""},{"$f":"IF(Lab_Inputs[[#This Row],[ECD Available?]]=\"\",\"\", VLOOKUP('Lab Input and Calculations'!N53,'Reference Tables'!$C$2:$D$52,2,FALSE))","v":""},{"$f":"IF(Lab_Inputs[[#This Row],[ECD Appropriate?]]=\"\", \"\", VLOOKUP('Lab Input and Calculations'!O53,'Reference Tables'!$C$2:$D$52,2,FALSE))","v":""},{"$f":"IF(Lab_Inputs[[#This Row],[Ventilation Effectivness ]]=\"\", \"\",VLOOKUP('Lab Input and Calculations'!P53,'Reference Tables'!$C$2:$D$52,2,FALSE))","v":""},{"$f":"IF(Lab_Inputs[[#This Row],[Maximum RCB for ECDs in Lab]]=\"\", \"\", Lab_Inputs[[#This Row],[Maximum RCB for ECDs in Lab]])","v":""},{"$f":"IF(Table75[[#This Row],[Hazard Exposure Limit Rating]]=\"\", \"\", ($G$1*R53)+($H$1*S53)+($I$1*T53)+($J$1*U53)+($K$1*V53)+($L$1*W53)+($M$1*X53)+($N$1*Y53)+($O$1*Z53)+($P$1*AA53)+($Q$1*AB53))","v":""},{"$f":"IF(Table75[[#This Row],[Weighed Score]]=\"\", \"\", _xlfn.IFS(AND($AC53>='Reference Tables'!$L$2,'Lab Input and Calculations'!$AC53<='Reference Tables'!$L$3),0,AND('Lab Input and Calculations'!$AC53>='Reference Tables'!$L$4,'Lab Input and Calculations'!$AC53<='Reference Tables'!$L$5),1,AND('Lab Input and Calculations'!$AC53>='Reference Tables'!$L$6,'Lab Input and Calculations'!$AC53<='Reference Tables'!$L$7),2,AND('Lab Input and Calculations'!$AC53>='Reference Tables'!$L$8,'Lab Input and Calculations'!$AC53<='Reference Tables'!$L$9),3,AND('Lab Input and Calculations'!$AC53>'Reference Tables'!$L$10,'Lab Input and Calculations'!$AC53<='Reference Tables'!$L$11),4))","v":""},{"$f":"IF(Table75[[#This Row],[Lab Control Band]]=\"\", \"\", VLOOKUP(AD53,'Reference Tables'!$Q$3:$S$12,2))","v":""},{"$f":"IF(Table75[[#This Row],[Lab Control Band]]=\"\", \"\", VLOOKUP(AD53,'Reference Tables'!$Q$3:$S$12,3))","v":""},{"$f":"IF(Table75[[#This Row],[Lab Control Band]]=\"\", \"\", (Table5[[#This Row],[Minimum Air Changes per Hour, Occupied (ACH)]]*10)/60)","v":""},{"$f":"IF(Table75[[#This Row],[Lab Control Band]]=\"\", \"\", (AF53*10)/60)","v":""},{"$f":"IF(Table75[[#This Row],[Lab Control Band]]=\"\", \"\", D53*AG53)","v":""},{"$f":"IF(Table75[[#This Row],[Lab Control Band]]=\"\", \"\", D53*AH53)","v":""},{"$f":"IF(Lab_Inputs[[#This Row],[Lab Number]]=\"\",\"\",SUMIF(ECD_Inputs[Lab Number],Lab_Inputs[[#This Row],[Lab Number]],'ECD Input and Calculations'!$AF$4:$AF$56))","v":""},{"$f":"IF(Lab_Inputs[[#This Row],[Lab Number]]=\"\",\"\",SUMIF(ECD_Inputs[Lab Number],Lab_Inputs[[#This Row],[Lab Number]],'ECD Input and Calculations'!$AE$4:$AE$56))","v":""},{"$f":"IF(Lab_Inputs[[#This Row],[Lab Number]]=\"\",\"\",MAX(Table5[[#This Row],[Minimum Airflow, Occupied  (CFM)]],Table5[[#This Row],[Total ECD Min. Air Flow (CFM)]]))","v":""},{"$f":"IF(Lab_Inputs[[#This Row],[Lab Number]]=\"\",\"\",MAX(Table5[[#This Row],[Minimum Airflow, Unoccupied (CFM)]],Table5[[#This Row],[Total ECD Min. Air Flow (CFM)]]))","v":""}]
[null,null,null,null,null,null,null,null,null,null,null,null,null,null,null,null,{"$f":"IF(Lab_Inputs[[#This Row],[Lab Number]]=\"\",\"\",_xlfn.MAXIFS(Table7[Risk Control Band],ECD_Inputs[Lab Number],Lab_Inputs[[#This Row],[Lab Number]]))","v":""},{"$f":"IF(Lab_Inputs[[#This Row],[Quantity]]=\"\", \"\",VLOOKUP('Lab Input and Calculations'!G54,'Reference Tables'!$C$2:$D$52,2,FALSE))","v":""},{"$f":"IF(Lab_Inputs[[#This Row],[Quantity]]=\"\", \"\",VLOOKUP('Lab Input and Calculations'!H54,'Reference Tables'!$C$2:$D$52,2,FALSE))","v":""},{"$f":"IF(Lab_Inputs[[#This Row],[ Generation Potential]]=\"\", \"\", VLOOKUP('Lab Input and Calculations'!I54,'Reference Tables'!$C$2:$D$52,2,FALSE))","v":""},{"$f":"IF(Lab_Inputs[[#This Row],[ Generation Method]]=\"\", \"\", VLOOKUP('Lab Input and Calculations'!J54,'Reference Tables'!$C$2:$D$52,2,FALSE))","v":""},{"$f":"IF(Lab_Inputs[[#This Row],[Generation Location]]=\"\", \"\", VLOOKUP('Lab Input and Calculations'!K54,'Reference Tables'!$C$2:$D$52,2,FALSE))","v":""},{"$f":"IF(Lab_Inputs[[#This Row],[Change Dynamics]]=\"\", \"\", VLOOKUP('Lab Input and Calculations'!L54,'Reference Tables'!$C$2:$D$52,2,FALSE))","v":""},{"$f":"IF(Lab_Inputs[[#This Row],[Housekeeping]]=\"\", \"\", VLOOKUP('Lab Input and Calculations'!M54,'Reference Tables'!$C$2:$D$52,2,FALSE))","v":""},{"$f":"IF(Lab_Inputs[[#This Row],[ECD Available?]]=\"\",\"\", VLOOKUP('Lab Input and Calculations'!N54,'Reference Tables'!$C$2:$D$52,2,FALSE))","v":""},{"$f":"IF(Lab_Inputs[[#This Row],[ECD Appropriate?]]=\"\", \"\", VLOOKUP('Lab Input and Calculations'!O54,'Reference Tables'!$C$2:$D$52,2,FALSE))","v":""},{"$f":"IF(Lab_Inputs[[#This Row],[Ventilation Effectivness ]]=\"\", \"\",VLOOKUP('Lab Input and Calculations'!P54,'Reference Tables'!$C$2:$D$52,2,FALSE))","v":""},{"$f":"IF(Lab_Inputs[[#This Row],[Maximum RCB for ECDs in Lab]]=\"\", \"\", Lab_Inputs[[#This Row],[Maximum RCB for ECDs in Lab]])","v":""},{"$f":"IF(Table75[[#This Row],[Hazard Exposure Limit Rating]]=\"\", \"\", ($G$1*R54)+($H$1*S54)+($I$1*T54)+($J$1*U54)+($K$1*V54)+($L$1*W54)+($M$1*X54)+($N$1*Y54)+($O$1*Z54)+($P$1*AA54)+($Q$1*AB54))","v":""},{"$f":"IF(Table75[[#This Row],[Weighed Score]]=\"\", \"\", _xlfn.IFS(AND($AC54>='Reference Tables'!$L$2,'Lab Input and Calculations'!$AC54<='Reference Tables'!$L$3),0,AND('Lab Input and Calculations'!$AC54>='Reference Tables'!$L$4,'Lab Input and Calculations'!$AC54<='Reference Tables'!$L$5),1,AND('Lab Input and Calculations'!$AC54>='Reference Tables'!$L$6,'Lab Input and Calculations'!$AC54<='Reference Tables'!$L$7),2,AND('Lab Input and Calculations'!$AC54>='Reference Tables'!$L$8,'Lab Input and Calculations'!$AC54<='Reference Tables'!$L$9),3,AND('Lab Input and Calculations'!$AC54>'Reference Tables'!$L$10,'Lab Input and Calculations'!$AC54<='Reference Tables'!$L$11),4))","v":""},{"$f":"IF(Table75[[#This Row],[Lab Control Band]]=\"\", \"\", VLOOKUP(AD54,'Reference Tables'!$Q$3:$S$12,2))","v":""},{"$f":"IF(Table75[[#This Row],[Lab Control Band]]=\"\", \"\", VLOOKUP(AD54,'Reference Tables'!$Q$3:$S$12,3))","v":""},{"$f":"IF(Table75[[#This Row],[Lab Control Band]]=\"\", \"\", (Table5[[#This Row],[Minimum Air Changes per Hour, Occupied (ACH)]]*10)/60)","v":""},{"$f":"IF(Table75[[#This Row],[Lab Control Band]]=\"\", \"\", (AF54*10)/60)","v":""},{"$f":"IF(Table75[[#This Row],[Lab Control Band]]=\"\", \"\", D54*AG54)","v":""},{"$f":"IF(Table75[[#This Row],[Lab Control Band]]=\"\", \"\", D54*AH54)","v":""},{"$f":"IF(Lab_Inputs[[#This Row],[Lab Number]]=\"\",\"\",SUMIF(ECD_Inputs[Lab Number],Lab_Inputs[[#This Row],[Lab Number]],'ECD Input and Calculations'!$AF$4:$AF$56))","v":""},{"$f":"IF(Lab_Inputs[[#This Row],[Lab Number]]=\"\",\"\",SUMIF(ECD_Inputs[Lab Number],Lab_Inputs[[#This Row],[Lab Number]],'ECD Input and Calculations'!$AE$4:$AE$56))","v":""},{"$f":"IF(Lab_Inputs[[#This Row],[Lab Number]]=\"\",\"\",MAX(Table5[[#This Row],[Minimum Airflow, Occupied  (CFM)]],Table5[[#This Row],[Total ECD Min. Air Flow (CFM)]]))","v":""},{"$f":"IF(Lab_Inputs[[#This Row],[Lab Number]]=\"\",\"\",MAX(Table5[[#This Row],[Minimum Airflow, Unoccupied (CFM)]],Table5[[#This Row],[Total ECD Min. Air Flow (CFM)]]))","v":""}]
[null,null,null,null,null,null,null,null,null,null,null,null,null,null,null,null,{"$f":"IF(Lab_Inputs[[#This Row],[Lab Number]]=\"\",\"\",_xlfn.MAXIFS(Table7[Risk Control Band],ECD_Inputs[Lab Number],Lab_Inputs[[#This Row],[Lab Number]]))","v":""},{"$f":"IF(Lab_Inputs[[#This Row],[Quantity]]=\"\", \"\",VLOOKUP('Lab Input and Calculations'!G55,'Reference Tables'!$C$2:$D$52,2,FALSE))","v":""},{"$f":"IF(Lab_Inputs[[#This Row],[Quantity]]=\"\", \"\",VLOOKUP('Lab Input and Calculations'!H55,'Reference Tables'!$C$2:$D$52,2,FALSE))","v":""},{"$f":"IF(Lab_Inputs[[#This Row],[ Generation Potential]]=\"\", \"\", VLOOKUP('Lab Input and Calculations'!I55,'Reference Tables'!$C$2:$D$52,2,FALSE))","v":""},{"$f":"IF(Lab_Inputs[[#This Row],[ Generation Method]]=\"\", \"\", VLOOKUP('Lab Input and Calculations'!J55,'Reference Tables'!$C$2:$D$52,2,FALSE))","v":""},{"$f":"IF(Lab_Inputs[[#This Row],[Generation Location]]=\"\", \"\", VLOOKUP('Lab Input and Calculations'!K55,'Reference Tables'!$C$2:$D$52,2,FALSE))","v":""},{"$f":"IF(Lab_Inputs[[#This Row],[Change Dynamics]]=\"\", \"\", VLOOKUP('Lab Input and Calculations'!L55,'Reference Tables'!$C$2:$D$52,2,FALSE))","v":""},{"$f":"IF(Lab_Inputs[[#This Row],[Housekeeping]]=\"\", \"\", VLOOKUP('Lab Input and Calculations'!M55,'Reference Tables'!$C$2:$D$52,2,FALSE))","v":""},{"$f":"IF(Lab_Inputs[[#This Row],[ECD Available?]]=\"\",\"\", VLOOKUP('Lab Input and Calculations'!N55,'Reference Tables'!$C$2:$D$52,2,FALSE))","v":""},{"$f":"IF(Lab_Inputs[[#This Row],[ECD Appropriate?]]=\"\", \"\", VLOOKUP('Lab Input and Calculations'!O55,'Reference Tables'!$C$2:$D$52,2,FALSE))","v":""},{"$f":"IF(Lab_Inputs[[#This Row],[Ventilation Effectivness ]]=\"\", \"\",VLOOKUP('Lab Input and Calculations'!P55,'Reference Tables'!$C$2:$D$52,2,FALSE))","v":""},{"$f":"IF(Lab_Inputs[[#This Row],[Maximum RCB for ECDs in Lab]]=\"\", \"\", Lab_Inputs[[#This Row],[Maximum RCB for ECDs in Lab]])","v":""},{"$f":"IF(Table75[[#This Row],[Hazard Exposure Limit Rating]]=\"\", \"\", ($G$1*R55)+($H$1*S55)+($I$1*T55)+($J$1*U55)+($K$1*V55)+($L$1*W55)+($M$1*X55)+($N$1*Y55)+($O$1*Z55)+($P$1*AA55)+($Q$1*AB55))","v":""},{"$f":"IF(Table75[[#This Row],[Weighed Score]]=\"\", \"\", _xlfn.IFS(AND($AC55>='Reference Tables'!$L$2,'Lab Input and Calculations'!$AC55<='Reference Tables'!$L$3),0,AND('Lab Input and Calculations'!$AC55>='Reference Tables'!$L$4,'Lab Input and Calculations'!$AC55<='Reference Tables'!$L$5),1,AND('Lab Input and Calculations'!$AC55>='Reference Tables'!$L$6,'Lab Input and Calculations'!$AC55<='Reference Tables'!$L$7),2,AND('Lab Input and Calculations'!$AC55>='Reference Tables'!$L$8,'Lab Input and Calculations'!$AC55<='Reference Tables'!$L$9),3,AND('Lab Input and Calculations'!$AC55>'Reference Tables'!$L$10,'Lab Input and Calculations'!$AC55<='Reference Tables'!$L$11),4))","v":""},{"$f":"IF(Table75[[#This Row],[Lab Control Band]]=\"\", \"\", VLOOKUP(AD55,'Reference Tables'!$Q$3:$S$12,2))","v":""},{"$f":"IF(Table75[[#This Row],[Lab Control Band]]=\"\", \"\", VLOOKUP(AD55,'Reference Tables'!$Q$3:$S$12,3))","v":""},{"$f":"IF(Table75[[#This Row],[Lab Control Band]]=\"\", \"\", (Table5[[#This Row],[Minimum Air Changes per Hour, Occupied (ACH)]]*10)/60)","v":""},{"$f":"IF(Table75[[#This Row],[Lab Control Band]]=\"\", \"\", (AF55*10)/60)","v":""},{"$f":"IF(Table75[[#This Row],[Lab Control Band]]=\"\", \"\", D55*AG55)","v":""},{"$f":"IF(Table75[[#This Row],[Lab Control Band]]=\"\", \"\", D55*AH55)","v":""},{"$f":"IF(Lab_Inputs[[#This Row],[Lab Number]]=\"\",\"\",SUMIF(ECD_Inputs[Lab Number],Lab_Inputs[[#This Row],[Lab Number]],'ECD Input and Calculations'!$AF$4:$AF$56))","v":""},{"$f":"IF(Lab_Inputs[[#This Row],[Lab Number]]=\"\",\"\",SUMIF(ECD_Inputs[Lab Number],Lab_Inputs[[#This Row],[Lab Number]],'ECD Input and Calculations'!$AE$4:$AE$56))","v":""},{"$f":"IF(Lab_Inputs[[#This Row],[Lab Number]]=\"\",\"\",MAX(Table5[[#This Row],[Minimum Airflow, Occupied  (CFM)]],Table5[[#This Row],[Total ECD Min. Air Flow (CFM)]]))","v":""},{"$f":"IF(Lab_Inputs[[#This Row],[Lab Number]]=\"\",\"\",MAX(Table5[[#This Row],[Minimum Airflow, Unoccupied (CFM)]],Table5[[#This Row],[Total ECD Min. Air Flow (CFM)]]))","v":""}]
[null,null,null,null,null,null,null,null,null,null,null,null,null,null,null,null,{"$f":"IF(Lab_Inputs[[#This Row],[Lab Number]]=\"\",\"\",_xlfn.MAXIFS(Table7[Risk Control Band],ECD_Inputs[Lab Number],Lab_Inputs[[#This Row],[Lab Number]]))","v":""},{"$f":"IF(Lab_Inputs[[#This Row],[Quantity]]=\"\", \"\",VLOOKUP('Lab Input and Calculations'!G56,'Reference Tables'!$C$2:$D$52,2,FALSE))","v":""},{"$f":"IF(Lab_Inputs[[#This Row],[Quantity]]=\"\", \"\",VLOOKUP('Lab Input and Calculations'!H56,'Reference Tables'!$C$2:$D$52,2,FALSE))","v":""},{"$f":"IF(Lab_Inputs[[#This Row],[ Generation Potential]]=\"\", \"\", VLOOKUP('Lab Input and Calculations'!I56,'Reference Tables'!$C$2:$D$52,2,FALSE))","v":""},{"$f":"IF(Lab_Inputs[[#This Row],[ Generation Method]]=\"\", \"\", VLOOKUP('Lab Input and Calculations'!J56,'Reference Tables'!$C$2:$D$52,2,FALSE))","v":""},{"$f":"IF(Lab_Inputs[[#This Row],[Generation Location]]=\"\", \"\", VLOOKUP('Lab Input and Calculations'!K56,'Reference Tables'!$C$2:$D$52,2,FALSE))","v":""},{"$f":"IF(Lab_Inputs[[#This Row],[Change Dynamics]]=\"\", \"\", VLOOKUP('Lab Input and Calculations'!L56,'Reference Tables'!$C$2:$D$52,2,FALSE))","v":""},{"$f":"IF(Lab_Inputs[[#This Row],[Housekeeping]]=\"\", \"\", VLOOKUP('Lab Input and Calculations'!M56,'Reference Tables'!$C$2:$D$52,2,FALSE))","v":""},{"$f":"IF(Lab_Inputs[[#This Row],[ECD Available?]]=\"\",\"\", VLOOKUP('Lab Input and Calculations'!N56,'Reference Tables'!$C$2:$D$52,2,FALSE))","v":""},{"$f":"IF(Lab_Inputs[[#This Row],[ECD Appropriate?]]=\"\", \"\", VLOOKUP('Lab Input and Calculations'!O56,'Reference Tables'!$C$2:$D$52,2,FALSE))","v":""},{"$f":"IF(Lab_Inputs[[#This Row],[Ventilation Effectivness ]]=\"\", \"\",VLOOKUP('Lab Input and Calculations'!P56,'Reference Tables'!$C$2:$D$52,2,FALSE))","v":""},{"$f":"IF(Lab_Inputs[[#This Row],[Maximum RCB for ECDs in Lab]]=\"\", \"\", Lab_Inputs[[#This Row],[Maximum RCB for ECDs in Lab]])","v":""},{"$f":"IF(Table75[[#This Row],[Hazard Exposure Limit Rating]]=\"\", \"\", ($G$1*R56)+($H$1*S56)+($I$1*T56)+($J$1*U56)+($K$1*V56)+($L$1*W56)+($M$1*X56)+($N$1*Y56)+($O$1*Z56)+($P$1*AA56)+($Q$1*AB56))","v":""},{"$f":"IF(Table75[[#This Row],[Weighed Score]]=\"\", \"\", _xlfn.IFS(AND($AC56>='Reference Tables'!$L$2,'Lab Input and Calculations'!$AC56<='Reference Tables'!$L$3),0,AND('Lab Input and Calculations'!$AC56>='Reference Tables'!$L$4,'Lab Input and Calculations'!$AC56<='Reference Tables'!$L$5),1,AND('Lab Input and Calculations'!$AC56>='Reference Tables'!$L$6,'Lab Input and Calculations'!$AC56<='Reference Tables'!$L$7),2,AND('Lab Input and Calculations'!$AC56>='Reference Tables'!$L$8,'Lab Input and Calculations'!$AC56<='Reference Tables'!$L$9),3,AND('Lab Input and Calculations'!$AC56>'Reference Tables'!$L$10,'Lab Input and Calculations'!$AC56<='Reference Tables'!$L$11),4))","v":""},{"$f":"IF(Table75[[#This Row],[Lab Control Band]]=\"\", \"\", VLOOKUP(AD56,'Reference Tables'!$Q$3:$S$12,2))","v":""},{"$f":"IF(Table75[[#This Row],[Lab Control Band]]=\"\", \"\", VLOOKUP(AD56,'Reference Tables'!$Q$3:$S$12,3))","v":""},{"$f":"IF(Table75[[#This Row],[Lab Control Band]]=\"\", \"\", (Table5[[#This Row],[Minimum Air Changes per Hour, Occupied (ACH)]]*10)/60)","v":""},{"$f":"IF(Table75[[#This Row],[Lab Control Band]]=\"\", \"\", (AF56*10)/60)","v":""},{"$f":"IF(Table75[[#This Row],[Lab Control Band]]=\"\", \"\", D56*AG56)","v":""},{"$f":"IF(Table75[[#This Row],[Lab Control Band]]=\"\", \"\", D56*AH56)","v":""},{"$f":"IF(Lab_Inputs[[#This Row],[Lab Number]]=\"\",\"\",SUMIF(ECD_Inputs[Lab Number],Lab_Inputs[[#This Row],[Lab Number]],'ECD Input and Calculations'!$AF$4:$AF$56))","v":""},{"$f":"IF(Lab_Inputs[[#This Row],[Lab Number]]=\"\",\"\",SUMIF(ECD_Inputs[Lab Number],Lab_Inputs[[#This Row],[Lab Number]],'ECD Input and Calculations'!$AE$4:$AE$56))","v":""},{"$f":"IF(Lab_Inputs[[#This Row],[Lab Number]]=\"\",\"\",MAX(Table5[[#This Row],[Minimum Airflow, Occupied  (CFM)]],Table5[[#This Row],[Total ECD Min. Air Flow (CFM)]]))","v":""},{"$f":"IF(Lab_Inputs[[#This Row],[Lab Number]]=\"\",\"\",MAX(Table5[[#This Row],[Minimum Airflow, Unoccupied (CFM)]],Table5[[#This Row],[Total ECD Min. Air Flow (CFM)]]))","v":""}]

{"sheet":"Summary ","index":3,"n_rows":29,"n_cols":6,"rows_kept":29,"cut":false,"hidden":false,"merged":[[0,0,0,5]]}
["Recommended Airflow Summary                                                                                                                    "]
["Lab Number","Lab Control Band","Minimum Air Changes per Hour, Occupied (ACH)","Minimum Air Changes per Hour, Unoccupied (ACH)","Recommended Minimum Airflow, Occupied  (CFM)","Recommended Minimum Airflow, Unoccupied (CFM)"]
[{"$f":"IF('Lab Input and Calculations'!C4=\"\", \"\", 'Lab Input and Calculations'!C4)","v":""},{"$f":"IF('Lab Input and Calculations'!AD4 = \"\", \"\", 'Lab Input and Calculations'!AD4)","v":""},{"$f":"IF(Table11[[#This Row],[Lab Control Band]]=\"\", \"\",'Lab Input and Calculations'!AE4)","v":""},{"$f":"IF(Table11[[#This Row],[Lab Control Band]]=\"\", \"\", VLOOKUP(B3,'Reference Tables'!$Q$3:$S$12,3))","v":""},{"$f":"IF(Table11[[#This Row],[Lab Control Band]]=\"\", \"\",'Lab Input and Calculations'!AM4)","v":""},{"$f":"IF(Table11[[#This Row],[Lab Control Band]]=\"\", \"\",'Lab Input and Calculations'!AN4)","v":""}]
[{"$f":"IF('Lab Input and Calculations'!C5=\"\", \"\", 'Lab Input and Calculations'!C5)","v":""},{"$f":"IF('Lab Input and Calculations'!AD5 = \"\", \"\", 'Lab Input and Calculations'!AD5)","v":""},{"$f":"IF(Table11[[#This Row],[Lab Control Band]]=\"\", \"\",'Lab Input and Calculations'!AE5)","v":""},{"$f":"IF(Table11[[#This Row],[Lab Control Band]]=\"\", \"\", VLOOKUP(B4,'Reference Tables'!$Q$3:$S$12,3))","v":""},{"$f":"IF(Table11[[#This Row],[Lab Control Band]]=\"\", \"\",'Lab Input and Calculations'!AM5)","v":""},{"$f":"IF(Table11[[#This Row],[Lab Control Band]]=\"\", \"\",'Lab Input and Calculations'!AN5)","v":""}]
[null,{"$f":"IF('Lab Input and Calculations'!AD6 = \"\", \"\", 'Lab Input and Calculations'!AD6)","v":""},{"$f":"IF(Table11[[#This Row],[Lab Control Band]]=\"\", \"\",'Lab Input and Calculations'!AE6)","v":""},{"$f":"IF(Table11[[#This Row],[Lab Control Band]]=\"\", \"\", VLOOKUP(B5,'Reference Tables'!$Q$3:$S$12,3))","v":""},{"$f":"IF(Table11[[#This Row],[Lab Control Band]]=\"\", \"\",'Lab Input and Calculations'!AM6)","v":""},{"$f":"IF(Table11[[#This Row],[Lab Control Band]]=\"\", \"\",'Lab Input and Calculations'!AN6)","v":""}]
[{"$f":"IF('Lab Input and Calculations'!C7=\"\", \"\", 'Lab Input and Calculations'!C7)","v":""},{"$f":"IF('Lab Input and Calculations'!AD7 = \"\", \"\", 'Lab Input and Calculations'!AD7)","v":""},{"$f":"IF(Table11[[#This Row],[Lab Control Band]]=\"\", \"\",'Lab Input and Calculations'!AE7)","v":""},{"$f":"IF(Table11[[#This Row],[Lab Control Band]]=\"\", \"\", VLOOKUP(B6,'Reference Tables'!$Q$3:$S$12,3))","v":""},{"$f":"IF(Table11[[#This Row],[Lab Control Band]]=\"\", \"\",'Lab Input and Calculations'!AM7)","v":""},{"$f":"IF(Table11[[#This Row],[Lab Control Band]]=\"\", \"\",'Lab Input and Calculations'!AN7)","v":""}]
[{"$f":"IF('Lab Input and Calculations'!C8=\"\", \"\", 'Lab Input and Calculations'!C8)","v":""},{"$f":"IF('Lab Input and Calculations'!AD8 = \"\", \"\", 'Lab Input and Calculations'!AD8)","v":""},{"$f":"IF(Table11[[#This Row],[Lab Control Band]]=\"\", \"\",'Lab Input and Calculations'!AE8)","v":""},{"$f":"IF(Table11[[#This Row],[Lab Control Band]]=\"\", \"\", VLOOKUP(B7,'Reference Tables'!$Q$3:$S$12,3))","v":""},{"$f":"IF(Table11[[#This Row],[Lab Control Band]]=\"\", \"\",'Lab Input and Calculations'!AM8)","v":""},{"$f":"IF(Table11[[#This Row],[Lab Control Band]]=\"\", \"\",'Lab Input and Calculations'!AN8)","v":""}]
[{"$f":"IF('Lab Input and Calculations'!C9=\"\", \"\", 'Lab Input and Calculations'!C9)","v":""},{"$f":"IF('Lab Input and Calculations'!AD9 = \"\", \"\", 'Lab Input and Calculations'!AD9)","v":""},{"$f":"IF(Table11[[#This Row],[Lab Control Band]]=\"\", \"\",'Lab Input and Calculations'!AE9)","v":""},{"$f":"IF(Table11[[#This Row],[Lab Control Band]]=\"\", \"\", VLOOKUP(B8,'Reference Tables'!$Q$3:$S$12,3))","v":""},{"$f":"IF(Table11[[#This Row],[Lab Control Band]]=\"\", \"\",'Lab Input and Calculations'!AM9)","v":""},{"$f":"IF(Table11[[#This Row],[Lab Control Band]]=\"\", \"\",'Lab Input and Calculations'!AN9)","v":""}]
[{"$f":"IF('Lab Input and Calculations'!C10=\"\", \"\", 'Lab Input and Calculations'!C10)","v":""},{"$f":"IF('Lab Input and Calculations'!AD10 = \"\", \"\", 'Lab Input and Calculations'!AD10)","v":""},{"$f":"IF(Table11[[#This Row],[Lab Control Band]]=\"\", \"\",'Lab Input and Calculations'!AE10)","v":""},{"$f":"IF(Table11[[#This Row],[Lab Control Band]]=\"\", \"\", VLOOKUP(B9,'Reference Tables'!$Q$3:$S$12,3))","v":""},{"$f":"IF(Table11[[#This Row],[Lab Control Band]]=\"\", \"\",'Lab Input and Calculations'!AM10)","v":""},{"$f":"IF(Table11[[#This Row],[Lab Control Band]]=\"\", \"\",'Lab Input and Calculations'!AN10)","v":""}]
[{"$f":"IF('Lab Input and Calculations'!C11=\"\", \"\", 'Lab Input and Calculations'!C11)","v":""},{"$f":"IF('Lab Input and Calculations'!AD11 = \"\", \"\", 'Lab Input and Calculations'!AD11)","v":""},{"$f":"IF(Table11[[#This Row],[Lab Control Band]]=\"\", \"\",'Lab Input and Calculations'!AE11)","v":""},{"$f":"IF(Table11[[#This Row],[Lab Control Band]]=\"\", \"\", VLOOKUP(B10,'Reference Tables'!$Q$3:$S$12,3))","v":""},{"$f":"IF(Table11[[#This Row],[Lab Control Band]]=\"\", \"\",'Lab Input and Calculations'!AM11)","v":""},{"$f":"IF(Table11[[#This Row],[Lab Control Band]]=\"\", \"\",'Lab Input and Calculations'!AN11)","v":""}]
[{"$f":"IF('Lab Input and Calculations'!C12=\"\", \"\", 'Lab Input and Calculations'!C12)","v":""},{"$f":"IF('Lab Input and Calculations'!AD12 = \"\", \"\", 'Lab Input and Calculations'!AD12)","v":""},{"$f":"IF(Table11[[#This Row],[Lab Control Band]]=\"\", \"\",'Lab Input and Calculations'!AE12)","v":""},{"$f":"IF(Table11[[#This Row],[Lab Control Band]]=\"\", \"\", VLOOKUP(B11,'Reference Tables'!$Q$3:$S$12,3))","v":""},{"$f":"IF(Table11[[#This Row],[Lab Control Band]]=\"\", \"\",'Lab Input and Calculations'!AM12)","v":""},{"$f":"IF(Table11[[#This Row],[Lab Control Band]]=\"\", \"\",'Lab Input and Calculations'!AN12)","v":""}]
[{"$f":"IF('Lab Input and Calculations'!C13=\"\", \"\", 'Lab Input and Calculations'!C13)","v":""},{"$f":"IF('Lab Input and Calculations'!AD13 = \"\", \"\", 'Lab Input and Calculations'!AD13)","v":""},{"$f":"IF(Table11[[#This Row],[Lab Control Band]]=\"\", \"\",'Lab Input and Calculations'!AE13)","v":""},{"$f":"IF(Table11[[#This Row],[Lab Control Band]]=\"\", \"\", VLOOKUP(B12,'Reference Tables'!$Q$3:$S$12,3))","v":""},{"$f":"IF(Table11[[#This Row],[Lab Control Band]]=\"\", \"\",'Lab Input and Calculations'!AM13)","v":""},{"$f":"IF(Table11[[#This Row],[Lab Control Band]]=\"\", \"\",'Lab Input and Calculations'!AN13)","v":""}]
[{"$f":"IF('Lab Input and Calculations'!C14=\"\", \"\", 'Lab Input and Calculations'!C14)","v":""},{"$f":"IF('Lab Input and Calculations'!AD14 = \"\", \"\", 'Lab Input and Calculations'!AD14)","v":""},{"$f":"IF(Table11[[#This Row],[Lab Control Band]]=\"\", \"\",'Lab Input and Calculations'!AE14)","v":""},{"$f":"IF(Table11[[#This Row],[Lab Control Band]]=\"\", \"\", VLOOKUP(B13,'Reference Tables'!$Q$3:$S$12,3))","v":""},{"$f":"IF(Table11[[#This Row],[Lab Control Band]]=\"\", \"\",'Lab Input and Calculations'!AM14)","v":""},{"$f":"IF(Table11[[#This Row],[Lab Control Band]]=\"\", \"\",'Lab Input and Calculations'!AN14)","v":""}]
[{"$f":"IF('Lab Input and Calculations'!C15=\"\", \"\", 'Lab Input and Calculations'!C15)","v":""},{"$f":"IF('Lab Input and Calculations'!AD15 = \"\", \"\", 'Lab Input and Calculations'!AD15)","v":""},{"$f":"IF(Table11[[#This Row],[Lab Control Band]]=\"\", \"\",'Lab Input and Calculations'!AE15)","v":""},{"$f":"IF(Table11[[#This Row],[Lab Control Band]]=\"\", \"\", VLOOKUP(B14,'Reference Tables'!$Q$3:$S$12,3))","v":""},{"$f":"IF(Table11[[#This Row],[Lab Control Band]]=\"\", \"\",'Lab Input and Calculations'!AM15)","v":""},{"$f":"IF(Table11[[#This Row],[Lab Control Band]]=\"\", \"\",'Lab Input and Calculations'!AN15)","v":""}]
[{"$f":"IF('Lab Input and Calculations'!C16=\"\", \"\", 'Lab Input and Calculations'!C16)","v":""},{"$f":"IF('Lab Input and Calculations'!AD16 = \"\", \"\", 'Lab Input and Calculations'!AD16)","v":""},{"$f":"IF(Table11[[#This Row],[Lab Control Band]]=\"\", \"\",'Lab Input and Calculations'!AE16)","v":""},{"$f":"IF(Table11[[#This Row],[Lab Control Band]]=\"\", \"\", VLOOKUP(B15,'Reference Tables'!$Q$3:$S$12,3))","v":""},{"$f":"IF(Table11[[#This Row],[Lab Control Band]]=\"\", \"\",'Lab Input and Calculations'!AM16)","v":""},{"$f":"IF(Table11[[#This Row],[Lab Control Band]]=\"\", \"\",'Lab Input and Calculations'!AN16)","v":""}]
[{"$f":"IF('Lab Input and Calculations'!C17=\"\", \"\", 'Lab Input and Calculations'!C17)","v":""},{"$f":"IF('Lab Input and Calculations'!AD17 = \"\", \"\", 'Lab Input and Calculations'!AD17)","v":""},{"$f":"IF(Table11[[#This Row],[Lab Control Band]]=\"\", \"\",'Lab Input and Calculations'!AE17)","v":""},{"$f":"IF(Table11[[#This Row],[Lab Control Band]]=\"\", \"\", VLOOKUP(B16,'Reference Tables'!$Q$3:$S$12,3))","v":""},{"$f":"IF(Table11[[#This Row],[Lab Control Band]]=\"\", \"\",'Lab Input and Calculations'!AM17)","v":""},{"$f":"IF(Table11[[#This Row],[Lab Control Band]]=\"\", \"\",'Lab Input and Calculations'!AN17)","v":""}]
[{"$f":"IF('Lab Input and Calculations'!C18=\"\", \"\", 'Lab Input and Calculations'!C18)","v":""},{"$f":"IF('Lab Input and Calculations'!AD18 = \"\", \"\", 'Lab Input and Calculations'!AD18)","v":""},{"$f":"IF(Table11[[#This Row],[Lab Control Band]]=\"\", \"\",'Lab Input and Calculations'!AE18)","v":""},{"$f":"IF(Table11[[#This Row],[Lab Control Band]]=\"\", \"\", VLOOKUP(B17,'Reference Tables'!$Q$3:$S$12,3))","v":""},{"$f":"IF(Table11[[#This Row],[Lab Control Band]]=\"\", \"\",'Lab Input and Calculations'!AM18)","v":""},{"$f":"IF(Table11[[#This Row],[Lab Control Band]]=\"\", \"\",'Lab Input and Calculations'!AN18)","v":""}]
[{"$f":"IF('Lab Input and Calculations'!C19=\"\", \"\", 'Lab Input and Calculations'!C19)","v":""},{"$f":"IF('Lab Input and Calculations'!AD19 = \"\", \"\", 'Lab Input and Calculations'!AD19)","v":""},{"$f":"IF(Table11[[#This Row],[Lab Control Band]]=\"\", \"\",'Lab Input and Calculations'!AE19)","v":""},{"$f":"IF(Table11[[#This Row],[Lab Control Band]]=\"\", \"\", VLOOKUP(B18,'Reference Tables'!$Q$3:$S$12,3))","v":""},{"$f":"IF(Table11[[#This Row],[Lab Control Band]]=\"\", \"\",'Lab Input and Calculations'!AM19)","v":""},{"$f":"IF(Table11[[#This Row],[Lab Control Band]]=\"\", \"\",'Lab Input and Calculations'!AN19)","v":""}]
[{"$f":"IF('Lab Input and Calculations'!C20=\"\", \"\", 'Lab Input and Calculations'!C20)","v":""},{"$f":"IF('Lab Input and Calculations'!AD20 = \"\", \"\", 'Lab Input and Calculations'!AD20)","v":""},{"$f":"IF(Table11[[#This Row],[Lab Control Band]]=\"\", \"\",'Lab Input and Calculations'!AE20)","v":""},{"$f":"IF(Table11[[#This Row],[Lab Control Band]]=\"\", \"\", VLOOKUP(B19,'Reference Tables'!$Q$3:$S$12,3))","v":""},{"$f":"IF(Table11[[#This Row],[Lab Control Band]]=\"\", \"\",'Lab Input and Calculations'!AM20)","v":""},{"$f":"IF(Table11[[#This Row],[Lab Control Band]]=\"\", \"\",'Lab Input and Calculations'!AN20)","v":""}]
[{"$f":"IF('Lab Input and Calculations'!C21=\"\", \"\", 'Lab Input and Calculations'!C21)","v":""},{"$f":"IF('Lab Input and Calculations'!AD21 = \"\", \"\", 'Lab Input and Calculations'!AD21)","v":""},{"$f":"IF(Table11[[#This Row],[Lab Control Band]]=\"\", \"\",'Lab Input and Calculations'!AE21)","v":""},{"$f":"IF(Table11[[#This Row],[Lab Control Band]]=\"\", \"\", VLOOKUP(B20,'Reference Tables'!$Q$3:$S$12,3))","v":""},{"$f":"IF(Table11[[#This Row],[Lab Control Band]]=\"\", \"\",'Lab Input and Calculations'!AM21)","v":""},{"$f":"IF(Table11[[#This Row],[Lab Control Band]]=\"\", \"\",'Lab Input and Calculations'!AN21)","v":""}]
[{"$f":"IF('Lab Input and Calculations'!C22=\"\", \"\", 'Lab Input and Calculations'!C22)","v":""},{"$f":"IF('Lab Input and Calculations'!AD22 = \"\", \"\", 'Lab Input and Calculations'!AD22)","v":""},{"$f":"IF(Table11[[#This Row],[Lab Control Band]]=\"\", \"\",'Lab Input and Calculations'!AE22)","v":""},{"$f":"IF(Table11[[#This Row],[Lab Control Band]]=\"\", \"\", VLOOKUP(B21,'Reference Tables'!$Q$3:$S$12,3))","v":""},{"$f":"IF(Table11[[#This Row],[Lab Control Band]]=\"\", \"\",'Lab Input and Calculations'!AM22)","v":""},{"$f":"IF(Table11[[#This Row],[Lab Control Band]]=\"\", \"\",'Lab Input and Calculations'!AN22)","v":""}]
[{"$f":"IF('Lab Input and Calculations'!C23=\"\", \"\", 'Lab Input and Calculations'!C23)","v":""},{"$f":"IF('Lab Input and Calculations'!AD23 = \"\", \"\", 'Lab Input and Calculations'!AD23)","v":""},{"$f":"IF(Table11[[#This Row],[Lab Control Band]]=\"\", \"\",'Lab Input and Calculations'!AE23)","v":""},{"$f":"IF(Table11[[#This Row],[Lab Control Band]]=\"\", \"\", VLOOKUP(B22,'Reference Tables'!$Q$3:$S$12,3))","v":""},{"$f":"IF(Table11[[#This Row],[Lab Control Band]]=\"\", \"\",'Lab Input and Calculations'!AM23)","v":""},{"$f":"IF(Table11[[#This Row],[Lab Control Band]]=\"\", \"\",'Lab Input and Calculations'!AN23)","v":""}]
[{"$f":"IF('Lab Input and Calculations'!C24=\"\", \"\", 'Lab Input and Calculations'!C24)","v":""},{"$f":"IF('Lab Input and Calculations'!AD24 = \"\", \"\", 'Lab Input and Calculations'!AD24)","v":""},{"$f":"IF(Table11[[#This Row],[Lab Control Band]]=\"\", \"\",'Lab Input and Calculations'!AE24)","v":""},{"$f":"IF(Table11[[#This Row],[Lab Control Band]]=\"\", \"\", VLOOKUP(B23,'Reference Tables'!$Q$3:$S$12,3))","v":""},{"$f":"IF(Table11[[#This Row],[Lab Control Band]]=\"\", \"\",'Lab Input and Calculations'!AM24)","v":""},{"$f":"IF(Table11[[#This Row],[Lab Control Band]]=\"\", \"\",'Lab Input and Calculations'!AN24)","v":""}]
[{"$f":"IF('Lab Input and Calculations'!C25=\"\", \"\", 'Lab Input and Calculations'!C25)","v":""},{"$f":"IF('Lab Input and Calculations'!AD25 = \"\", \"\", 'Lab Input and Calculations'!AD25)","v":""},{"$f":"IF(Table11[[#This Row],[Lab Control Band]]=\"\", \"\",'Lab Input and Calculations'!AE25)","v":""},{"$f":"IF(Table11[[#This Row],[Lab Control Band]]=\"\", \"\", VLOOKUP(B24,'Reference Tables'!$Q$3:$S$12,3))","v":""},{"$f":"IF(Table11[[#This Row],[Lab Control Band]]=\"\", \"\",'Lab Input and Calculations'!AM25)","v":""},{"$f":"IF(Table11[[#This Row],[Lab Control Band]]=\"\", \"\",'Lab Input and Calculations'!AN25)","v":""}]
[{"$f":"IF('Lab Input and Calculations'!C26=\"\", \"\", 'Lab Input and Calculations'!C26)","v":""},{"$f":"IF('Lab Input and Calculations'!AD26 = \"\", \"\", 'Lab Input and Calculations'!AD26)","v":""},{"$f":"IF(Table11[[#This Row],[Lab Control Band]]=\"\", \"\",'Lab Input and Calculations'!AE26)","v":""},{"$f":"IF(Table11[[#This Row],[Lab Control Band]]=\"\", \"\", VLOOKUP(B25,'Reference Tables'!$Q$3:$S$12,3))","v":""},{"$f":"IF(Table11[[#This Row],[Lab Control Band]]=\"\", \"\",'Lab Input and Calculations'!AM26)","v":""},{"$f":"IF(Table11[[#This Row],[Lab Control Band]]=\"\", \"\",'Lab Input and Calculations'!AN26)","v":""}]
[]
[]
[null,"Building Totals","Total Min Occ Exhaust Airflow",{"$f":"SUM(E3:E24)","v":0}]
[null,null,"Total Min Unocc Exhaust Airflow",{"$f":"SUM(F3:F24)","v":0}]

{"sheet":"Reference Tables","index":4,"n_rows":52,"n_cols":19,"rows_kept":52,"cut":false,"hidden":false,"merged":[[1,7,2,7],[3,7,4,7],[5,7,6,7],[7,7,8,7],[1,0,5,0],[6,0,10,0],[9,10,10,10],[8,16,9,16],[7,13,8,13],[7,14,8,14],[9,13,10,13],[9,14,10,14],[6,16,7,16],[31,0,35,0],[49,0,51,0],[9,7,10,7],[46,0,48,0],[36,0,40,0],[41,0,45,0],[11,0,15,0],[21,0,25,0],[26,0,30,0],[16,0,20,0],[10,18,11,18],[2,18,3,18],[4,18,5,18],[6,18,7,18],[8,18,9,18],[10,17,11,17],[4,17,5,17],[8,17,9,17],[2,16,3,16],[4,16,5,16],[10,16,11,16],[0,16,0,18],[2,17,3,17],[6,17,7,17],[0,7,0,8],[0,10,0,11],[0,13,0,14],[5,13,6,13],[5,14,6,14],[1,13,2,13],[1,14,2,14],[3,13,4,13],[3,14,4,14],[1,10,2,10],[3,10,4,10],[5,10,6,10],[7,10,8,10]]}
[null,"ECD ","Lab Enviornment","Risk Control Band",null,"Exposure  Control Device Types",null,"Risk Score for Each Risk Control Band (ECD)",null,null,"Risk Score for Each Risk Control Band  (Lab Environment)",null,null,"Minimum Fume Hood Air Changes Per Hour (ACH) Requirement per ANSI Z9.5 based on Risk Control Band",null,null,"Minimum ACH Recommended per ASHRAE Classification of Laboratory Design Levels (based on Risk Control Band)"]
["Hazard Exposure Limit"," > 500 ppm or > 2000 mg/m3"," > 500 ppm or > 2000 mg/m3",0,null,"Fume Hood",null,0,0,null,0,0,null,0,150,null,null,"Occupied ACH","Unoccupied ACH"]
[null,"50-500 ppm or 250-2000 mg/m3","300-500 ppm or 1000-2000 mg/m3",1,null,"Snorkel",null,null,9.1999999999999993,null,null,24,null,null,null,null,0,1.7,1.7]
[null,"5-50 ppm or 20-250 mg/m3","150-300 ppm or 500-1000 mg/m3",2,null,"Biosafety Cabinet",null,1,9.3000000000000007,null,1,25,null,1,150]
[null,"0.5-5 ppm or 1-20 mg/m3","50-150 ppm or 300-500mg/m3",3,null,"Slot hood",null,null,23,null,null,52,null,null,null,null,1,4,2]
[null,"<0.5 ppm or <1 mg/m3","<50 ppm or <300 mg/m3",4,null,"Canopy hood and dedicated equipment exhaust",null,2,24,null,2,53,null,2,150]
["Hazard Quantity","None","None",0,null,"Snorkels and spot exhausts",null,null,36.799999999999997,null,null,80,null,null,null,null,2,6,3]
[null,"<1 mL or <1 g","<1 L or <10 g",1,null,"Laminar flow clean air station",null,3,36.9,null,3,81,null,3,250]
[null,"1-500 mL or 1-100 g","1-10 L or 10-100 g",2,null,"Glove box",null,null,69,null,null,108,null,null,null,null,3,6,4]
[null,"0.5-5L or 0.1-1 kg","10-20 L or 0.1-1 kg",3,null,"Ventilated enclosure",null,4,70,null,4,109,null,4,250]
[null,">5 L or >1 kg","> 20 L or >1 kg",4,null,null,null,null,92,null,null,160,null,null,null,null,4,8,4]
["Hazard Generation Rate","None","None",0]
[null,"<0.1 lpm (evaporation)","<0.1 lpm (evaporation / small # of small containers)",1]
[null,"<0.5 lpm (high vapor pressure/stirring)","< 0.3 lpm (high VP/stirring/smal # of large containers)",2]
[null,"<4 lpm (heat/mixing)","<0.5 lpm (heat/mixing/large # of small containers)",3]
[null,">4 lpm (boiling)",">0.5 lpm (boiling/large # of large containers)",4]
["Method of Generation ","None","None",0]
[null,"Manual","Manual",1]
[null,"Manual, intermittent\nEquipment, intermittent","Manual, intermittent\nEquipment, intermittent",2]
[null,"Equipment, constant\nManual, equipment, intermittent\nManual, equipment, constant","Equipment, constant\nManual, equipment, intermittent\nManual, equipment, constant",3]
[null,"Manual, equipment, intermittent, constant","Manual, equipment, intermittent, constant",4]
["Generation Location","None","None",0]
[null,"Very close / inside capture device","Low (very close to capture device)",1]
[null,"Close to capture device","Middle (close to capture device)",2]
[null,"Not close to capture device","Low-Middle or High-Middle (not very close)",3]
[null,"No capture device","Low, Middle, High (not close)",4]
["Change Dynamics","1 change/decade","1 change/decade",0]
[null,"1 change/year","1 change/year",1]
[null,"1 change/month","1 change/month",2]
[null,"1 change/week","1 change/week",3]
[null,"1 change/day","1 change/day",4]
["Housekeeping","No clutter","No clutter",0]
[null,"Some clutter","Some Clutter",1]
[null,"Cluttered","Cluttered",2]
[null,"Very cluttered","Very Cluttered",3]
[null,"Exceedingly cluttered","Exceedingly Cluttered",4]
["Ventilation Effectiveness","Very effective","Very effective",0]
[null,"Effective","Effective",1]
[null,"Moderately effective","Moderately effective",2]
[null,"Ineffective","Ineffective",3]
[null,"Very inffective","Very inffective",4]
["Maximum ECD",0,0,0]
[null,1,1,1]
[null,2,2,2]
[null,3,3,3]
[null,4,4,4]
["EDC Availability",null,"Yes",0]
[null,null,"No",4]
[null,null,"N/A",1]
["EDC  Appropriateness",null,"Yes",0]
[null,null,"No",4]
[null,null,"N/A",1]